Workbook

Sheet EECBG Calculator
A1: City and County EECBG Grant Calculator | E1: Instructions
A2: Direct Formula EECBG Funding Allocation Estimates for Local Governments | E2: 1. In the "User Selection" section, use the drop down menus in cells B10, B11, and B12 to select a city or county of your choice. 2. Explore the Calculations tab in the bottom left to understand the methodology of the estimate. 3. Explore the About tab in the bottom left to understand the data sources, general methodology, and scope of the tool. 4. Click on the "+" or "-" in the bottom right to zoom in and out as needed.
A9: User Selection
A10: County or City:
A11: State:
A12: =IF(B10="", "Area of Interest:", IF(B10="County", "County:", IF(B10="City", "City:", ""))) -> Area of Interest: | D12: =IF($B$10="City",VLOOKUP($B$12,'Named Ranges'!$B$8:$C$31915,2,FALSE),IF($B$10="County",VLOOKUP($B$12,'Named Ranges'!$G$8:$H$3228,2,FALSE),"-")) -> -
A15: Results
A16: Eligible for Local Government Alternative 1 formula allocation? | C16: =_xlfn.IFNA(Calculations!$B$46,"-") -> -
A17: Eligible for Local Government Alternative 2 formula allocation? | C17: =_xlfn.IFNA(Calculations!$B$47,"-") -> -
A18: FY22 Total Estimated EECBG Funding Allocation | C18: =IFERROR(Calculations!$B$51,"-") -> -
A20: Notes
A21: These estimates are modeled on the formulas in Appendix 1 and 2 of the EECBG formula grant notice of availability. All data is from 2020, except for population estimates for cities that cross county boundaries (2010). As a result, allocation estimates for counties with cities that are partially located within the county boundaries may be inacurate if population in those cities has changed substantially from 2010 to 2020. If the selected city or county is not allocated funding, this means they did not meet the population eligibility criteria for EECBG formula grants. For counties, all population figures are adjusted to reflect only the balance of their population excluding the populations of any eligible entities therein. NOTE: The current list of municipalities listed under the 'City' category is being finalized. The calculator will be updated with a full representation of townships and other units of government after integrating alternative datasets needed for calculations. Once complete, we will provide a note on the landing webpage for the calculator download that this process is complete. In the meantime, the tool remains accurate for the majority of city and local government users. Questions or feedback about the calculator should be directed to Kyle Richmond-Crosset (kyle.richmondcrosset@wri.org). Disclaimer: this tool produces estimates and users and public entities will need to confirm final eligibility and funding amounts as released by DOE when available.

Sheet Calculations
A1: Inputs and Variables
A2: Allocation
A3: Total appropriation amount for FY2022 ($) | B3: 550000000
A4: Local Government Alternative 1 formula allocation (% of total) | B4: 0.34
A5: Local Government Alternative 1 formula allocation ($) | B5: =$B$3*B4 -> 187000000
A6: Local Government Alternative 2 formula allocation (% of total) | B6: 0.34
A7: Local Government Alternative 2 formula allocation ($) | B7: =$B$3*B6 -> 187000000
A8: State Government formula allocation (% of total) | B8: 0.28
A9: State Government formula allocation ($) | B9: =$B$3*B8 -> 154000000
A10: Indian tribes formula allocation (% of total) | B10: 0.02
A11: Indian tribes formula allocation ($) | B11: =$B$3*B10 -> 11000000
A12: Competitive grant allocation (% of total) | B12: 0.02
A13: Competitive grant allocation ($) | B13: =$B$3*B12 -> 11000000
A14: Formula variables
A15: Minimum funding amount (Local Government Alternative 1) | B15: 75000
A16: Daytime population coefficient weighting scheme (%) | B16: 0.2975
A17: Minimum city population (Local Government Alternative 1) | B17: 35000
A18: Minimum city population (Local Government Alternative 2) | B18: 50000
A19: Minimum county population (Local Government Alternative 1 + 2) | B19: 200000
A21: Eligibility
A22: Funding category | B22: Eligibility notes
A23: Local Government Alternative 1 | B23: city: pop>35,000 or in top 10 largest cities in state county: pop>200,000 or in top 10 largest counties in state
A24: Local Government Alternative 2 | B24: city: pop>50,000 county: pop>200,000
A26: Number of Local Governments Eligible | B26: Cities | C26: Counties | D26: Total
A27: Eligible because population exceeds minimum threshold | B27: =COUNTIF('US CENSUS 2020 | Cities'!D2:D31910,">35000") -> 1286 | C27: =COUNTIF('US CENSUS 2020 | Counties'!F2:F3222, ">200000") -> 205 | D27: =SUM(B27:C27) -> 1491
A28: Eligible because top 10 by population in state | B28: =COUNTIF('US CENSUS 2020 | Cities'!F2:F31910, "=Y") -> 79 | C28: =COUNTIF('US CENSUS 2020 | Counties'!$H$2:$H$3222, "=Y") -> 282 | D28: =SUM(B28:C28) -> 361
A29: Total eligible local governments | B29: =SUM(B27:B28) -> 1365 | C29: =SUM(C27:C28) -> 487 | D29: =SUM(D27:D28) -> 1852
A31: Local Government Alternative 1 Calculations
B32: Cities | C32: Counties | D32: TOTAL
A33: Total population served by eligible local governments | B33: =SUMIF('US CENSUS 2020 | Cities'!$I:$I,"=1", 'US CENSUS 2020 | Cities'!$D:$D) -> 155292338 | C33: =SUMIF('US CENSUS 2020 | Counties'!$K:$K,"=1", 'US CENSUS 2020 | Counties'!$F:$F) -> 116044057 | D33: =SUM(B33:C33) -> 271336395
A34: Total daytime population of eligible local governments | B34: =SUMIF('ACS 5yr 2020 | Cities'!$H:$H,"=1", 'ACS 5yr 2020 | Cities'!$G:$G) -> 164696581 | C34: =SUMIF('ACS 5yr 2020 | Counties'!$I:$I,"=1", 'ACS 5yr 2020 | Counties'!$H:$H) -> 127445788 | D34: =SUM(B34:C34) -> 292142369
A36: Local Government Alternative 2 Calculations
B37: Cities | C37: Counties | D37: TOTAL
A38: Total population served by eligible local governments | B38: =SUMIF('US CENSUS 2020 | Cities'!$J:$J,"=1", 'US CENSUS 2020 | Cities'!$D:$D) -> 136645608 | C38: =SUMIF('US CENSUS 2020 | Counties'!$L:$L,"=1", 'US CENSUS 2020 | Counties'!$F:$F) -> 91417102 | D38: =SUM(B38:C38) -> 228062710
A39: Total daytime population of eligible local governments | B39: =SUMIF('ACS 5yr 2020 | Cities'!$I:$I,"=1", 'ACS 5yr 2020 | Cities'!$G:$G) -> 146097462 | C39: =SUMIF('ACS 5yr 2020 | Counties'!$J:$J,"=1", 'ACS 5yr 2020 | Counties'!$H:$H) -> 100066261 | D39: =SUM(B39:C39) -> 246163723
A41: Output Calculations
A42: Population statistics
A43: Population served by local government | B43: =IF('EECBG Calculator'!$B$10="City", VLOOKUP('EECBG Calculator'!$D$12,'US CENSUS 2020 | Cities'!$A$2:$D$31910,4, FALSE), IF('EECBG Calculator'!$B$10="County", VLOOKUP('EECBG Calculator'!$D$12,'US CENSUS 2020 | Counties'!$A$2:$F$3222,5,FALSE),"-")) -> -
A44: Daytime population of local government (commuter-adjusted) | B44: =IF('EECBG Calculator'!$B$10="City", VLOOKUP('EECBG Calculator'!$D$12,'ACS 5yr 2020 | Cities'!$A$2:$G$31909, 7, FALSE), IF('EECBG Calculator'!$B$10="County", VLOOKUP('EECBG Calculator'!$D$12,'ACS 5yr 2020 | Counties'!$A$2:$H$3222,8,FALSE),"-")) -> -
A45: Eligibility
A46: Eligible for Local Government Alternative 1 formula allocation? | B46: =IF('EECBG Calculator'!$B$10="City", IF(VLOOKUP('EECBG Calculator'!$D$12,'US CENSUS 2020 | Cities'!$A$2:$J$31910,9,FALSE)=1, "Yes", "No"), IF(VLOOKUP('EECBG Calculator'!$D$12,'US CENSUS 2020 | Counties'!$A$2:$L$3222,11,FALSE)=1, "Yes", "No")) ->  | C46: =IF(B46="No",0,1) -> 
A47: Eligible for Local Government Alternative 2 formula allocation? | B47: =IF('EECBG Calculator'!$B$10="City", IF(VLOOKUP('EECBG Calculator'!$D$12,'US CENSUS 2020 | Cities'!$A$2:$J$31910,10,FALSE)=1, "Yes", "No"), IF(VLOOKUP('EECBG Calculator'!$D$12,'US CENSUS 2020 | Counties'!$A$2:$L$3222,12,FALSE)=1, "Yes", "No")) ->  | C47: =IF(B47="No",0,1) -> 
A48: Formula funding allocation
A49: Local Government Alternative 1 | B49: =($B$15+($B$5-($D$29*B15))*(((1-$B$16)*($B$43/$D$33))+($B$16*($B$44/$D$34))))*$C$46 -> 
A50: Local Government Alternative 2 | B50: =($B$7*(((1-$B$16)*($B$43/$D$38))+($B$16*($B$44/$D$39))))*$C$47 -> 
A51: Total allocated EECBG funding | B51: =SUM($B$49:$B$50) -> 

Sheet About
A1: Methodology | B1: Scope | C1: Updates | D1: Authors
A2: FY 2022 EECBG formula grant allocations were estimated by recreating the eligibility criteria and allocation formulas released by the federal government: https://www.federalregister.gov/documents/2022/06/29/2022-13859/notice-of-availability-of-state-local-and-tribal-allocation-formulas-for-the-energy-efficiency-and. The allocation formulas primarily use population data from the 2020 Census and the 2020 ACS 5-Year Estimates. For cities with residents in more than one county, population data was estimated using Census 2010 data that was aggregated by Indiana University. Links to the data sources found in this report are below. | B2: This calculator is designed to estimate FY 2022 EECBG formula grant allocations by city and county. | C2: This calculator will not be updated, and should be discarded once the actual FY 2022 EECBG formula grant allocation information is released. | D2: Kyle Richmond-Crosset, WRI Alex Dane, WRI Please contact Kyle (kyle.richmondcrosset@wri.org) with any questions or feedback.
A4: Data Type | B4: Data Source
A5: US CENSUS 2020 | Cities | B5: https://data.census.gov/cedsci/table?q=redistricting&t=Population%20Total&g=0100000US%241600000&y=2020
A6: US CENSUS 2020 | Counties | B6: https://data.census.gov/cedsci/table?q=redistricting&t=Population%20Total&g=0100000US%240500000&y=2020
A7: ACS 5yr 2020 | Cities | B7: https://data.census.gov/cedsci/table?q=B08008&g=0100000US%241600000&y=2020&d=ACS%205-Year%20Estimates%20Detailed%20Tables
B8: https://data.census.gov/cedsci/table?q=B01003&g=0100000US%241600000&y=2020&d=ACS%205-Year%20Estimates%20Detailed%20Tables
B9: https://data.census.gov/cedsci/table?q=B08604%20&g=0100000US%241600000&y=2020&d=ACS%205-Year%20Estimates%20Detailed%20Tables
A10: ACS 5yr 2020 | Counties | B10: https://data.census.gov/cedsci/table?q=B08007&g=0100000US%240500000&y=2020&d=ACS%205-Year%20Estimates%20Detailed%20Tables
B11: https://data.census.gov/cedsci/table?q=B01003%20&g=0100000US%240500000&y=2020&d=ACS%205-Year%20Estimates%20Detailed%20Tables
B12: https://data.census.gov/cedsci/table?q=B08604%20&g=0100000US%240500000&y=2020&d=ACS%205-Year%20Estimates%20Detailed%20Tables
A13: Calculating commuter-adjusted population | B13: https://www.census.gov/topics/employment/commuting/guidance/calculations.html
A14: City to County Crosswalk | B14: https://www.statsamerica.org/CityCountyFinder/

Sheet City to County Pop Crosswalk (hidden)
A1: id | B1: placename | C1: placefips | D1: countyfips | E1: countyname | F1: county | G1: county, state | H1: statefips | I1: state | J1: totpop (2010) | K1: totalpop (2020) | L1: totalpop (final) | M1: pctpop | N1: alt 1 eligibility | O1: alt 2 eligibility | P1: pop eligible for alt 1 | Q1: pop eligible for alt 2
A2: 1600000US4200100 | B2: Aaronsburg CDP | C2: 00100 | D2: 027 | E2: Centre County (part) | F2: Centre County | G2: =F2&", "&I2 -> Centre County, Pennsylvania | H2: 42 | I2: =VLOOKUP(H2,'FIPS to State Crosswalk'!$A$1:$C$52,2,FALSE) -> Pennsylvania | J2: 613 | K2: =_xlfn.IFNA(VLOOKUP(A2,'US CENSUS 2020 | Cities'!$A$1:$Q$31910,4,FALSE),0) -> 593 | L2: =IF(M2=100,K2,J2) -> 593 | M2: 100 | N2: =_xlfn.IFNA(VLOOKUP($A2,'US CENSUS 2020 | Cities'!$A$1:$Q$31910,9,FALSE),0) -> 0 | O2: =_xlfn.IFNA(VLOOKUP($A2,'US CENSUS 2020 | Cities'!$A$1:$Q$31910,10,FALSE),0) -> 0 | P2: =L2*N2 -> 0 | Q2: =L2*O2 -> 0
A3: 1600000US4200104 | B3: Aaronsburg CDP | C3: 00104 | D3: 125 | E3: Washington County (part) | F3: Washington County | G3: =F3&", "&I3 -> Washington County, Pennsylvania | H3: 42 | I3: =VLOOKUP(H3,'FIPS to State Crosswalk'!$A$1:$C$52,2,FALSE) -> Pennsylvania | J3: 259 | K3: =_xlfn.IFNA(VLOOKUP(A3,'US CENSUS 2020 | Cities'!$A$1:$Q$31910,4,FALSE),0) -> 361 | L3: 361 | M3: 100 | N3: =_xlfn.IFNA(VLOOKUP($A3,'US CENSUS 2020 | Cities'!$A$1:$Q$31910,9,FALSE),0) -> 0 | O3: =_xlfn.IFNA(VLOOKUP($A3,'US CENSUS 2020 | Cities'!$A$1:$Q$31910,10,FALSE),0) -> 0 | P3: 0 | Q3: 0
A4: 1600000US0100100 | B4: Abanda CDP | C4: 00100 | D4: 017 | E4: Chambers County (part) | F4: Chambers County | G4: Chambers County, Alabama | H4: 01 | I4: =VLOOKUP(H4,'FIPS to State Crosswalk'!$A$1:$C$52,2,FALSE) -> Alabama | J4: 192 | K4: =_xlfn.IFNA(VLOOKUP(A4,'US CENSUS 2020 | Cities'!$A$1:$Q$31910,4,FALSE),0) -> 133 | L4: 133 | M4: 100 | N4: =_xlfn.IFNA(VLOOKUP($A4,'US CENSUS 2020 | Cities'!$A$1:$Q$31910,9,FALSE),0) -> 0 | O4: =_xlfn.IFNA(VLOOKUP($A4,'US CENSUS 2020 | Cities'!$A$1:$Q$31910,10,FALSE),0) -> 0 | P4: 0 | Q4: 0
A5: 1600000US0100124 | B5: Abbeville city | C5: 00124 | D5: 067 | E5: Henry County (part) | F5: Henry County | G5: Henry County, Alabama | H5: 01 | I5: =VLOOKUP(H5,'FIPS to State Crosswalk'!$A$1:$C$80,2,FALSE) -> Alabama | J5: 2688 | K5: =_xlfn.IFNA(VLOOKUP(A5,'US CENSUS 2020 | Cities'!$A$1:$Q$31910,4,FALSE),0) -> 2358 | L5: 2358 | M5: 100 | N5: =_xlfn.IFNA(VLOOKUP($A5,'US CENSUS 2020 | Cities'!$A$1:$Q$31910,9,FALSE),0) -> 0 | O5: =_xlfn.IFNA(VLOOKUP($A5,'US CENSUS 2020 | Cities'!$A$1:$Q$31910,10,FALSE),0) -> 0 | P5: 0 | Q5: 0
A6: 1600000US4500100 | B6: Abbeville city | C6: 00100 | D6: 001 | E6: Abbeville County (part) | F6: Abbeville County | G6: Abbeville County, South Carolina | H6: 45 | I6: =VLOOKUP(H6,'FIPS to State Crosswalk'!$A$1:$C$80,2,FALSE) -> South Carolina | J6: 5241 | K6: =_xlfn.IFNA(VLOOKUP(A6,'US CENSUS 2020 | Cities'!$A$1:$Q$31910,4,FALSE),0) -> 4874 | L6: 4874 | M6: 100 | N6: =_xlfn.IFNA(VLOOKUP($A6,'US CENSUS 2020 | Cities'!$A$1:$Q$31910,9,FALSE),0) -> 0 | O6: =_xlfn.IFNA(VLOOKUP($A6,'US CENSUS 2020 | Cities'!$A$1:$Q$31910,10,FALSE),0) -> 0 | P6: 0 | Q6: 0
A7: 1600000US1300184 | B7: Abbeville city | C7: 00184 | D7: 315 | E7: Wilcox County (part) | F7: Wilcox County | G7: Wilcox County, Georgia | H7: 13 | I7: =VLOOKUP(H7,'FIPS to State Crosswalk'!$A$1:$C$80,2,FALSE) -> Georgia | J7: 2910 | K7: =_xlfn.IFNA(VLOOKUP(A7,'US CENSUS 2020 | Cities'!$A$1:$Q$31910,4,FALSE),0) -> 2685 | L7: 2685 | M7: 100 | N7: =_xlfn.IFNA(VLOOKUP($A7,'US CENSUS 2020 | Cities'!$A$1:$Q$31910,9,FALSE),0) -> 0 | O7: =_xlfn.IFNA(VLOOKUP($A7,'US CENSUS 2020 | Cities'!$A$1:$Q$31910,10,FALSE),0) -> 0 | P7: 0 | Q7: 0
A8: 1600000US2200100 | B8: Abbeville city | C8: 00100 | D8: 113 | E8: Vermilion Parish (part) | F8: Vermilion Parish | G8: Vermilion Parish, Louisiana | H8: 22 | I8: =VLOOKUP(H8,'FIPS to State Crosswalk'!$A$1:$C$80,2,FALSE) -> Louisiana | J8: 12249 | K8: =_xlfn.IFNA(VLOOKUP(A8,'US CENSUS 2020 | Cities'!$A$1:$Q$31910,4,FALSE),0) -> 11186 | L8: 11186 | M8: 100 | N8: =_xlfn.IFNA(VLOOKUP($A8,'US CENSUS 2020 | Cities'!$A$1:$Q$31910,9,FALSE),0) -> 0 | O8: =_xlfn.IFNA(VLOOKUP($A8,'US CENSUS 2020 | Cities'!$A$1:$Q$31910,10,FALSE),0) -> 0 | P8: 0 | Q8: 0
A9: 1600000US2800100 | B9: Abbeville town | C9: 00100 | D9: 071 | E9: Lafayette County (part) | F9: Lafayette County | G9: Lafayette County, Mississippi | H9: 28 | I9: =VLOOKUP(H9,'FIPS to State Crosswalk'!$A$1:$C$80,2,FALSE) -> Mississippi | J9: 419 | K9: =_xlfn.IFNA(VLOOKUP(A9,'US CENSUS 2020 | Cities'!$A$1:$Q$31910,4,FALSE),0) -> 372 | L9: 372 | M9: 100 | N9: =_xlfn.IFNA(VLOOKUP($A9,'US CENSUS 2020 | Cities'!$A$1:$Q$31910,9,FALSE),0) -> 0 | O9: =_xlfn.IFNA(VLOOKUP($A9,'US CENSUS 2020 | Cities'!$A$1:$Q$31910,10,FALSE),0) -> 0 | P9: 0 | Q9: 0
A10: 1600000US4800100 | B10: Abbott city | C10: 00100 | D10: 217 | E10: Hill County (part) | F10: Hill County | G10: Hill County, Texas | H10: 48 | I10: =VLOOKUP(H10,'FIPS to State Crosswalk'!$A$1:$C$80,2,FALSE) -> Texas | J10: 361 | K10: =_xlfn.IFNA(VLOOKUP(A10,'US CENSUS 2020 | Cities'!$A$1:$Q$31910,4,FALSE),0) -> 352 | L10: 352 | M10: 100 | N10: =_xlfn.IFNA(VLOOKUP($A10,'US CENSUS 2020 | Cities'!$A$1:$Q$31910,9,FALSE),0) -> 0 | O10: =_xlfn.IFNA(VLOOKUP($A10,'US CENSUS 2020 | Cities'!$A$1:$Q$31910,10,FALSE),0) -> 0 | P10: 0 | Q10: 0
A11: 1600000US4200116 | B11: Abbottstown borough | C11: 00116 | D11: 001 | E11: Adams County (part) | F11: Adams County | G11: Adams County, Pennsylvania | H11: 42 | I11: =VLOOKUP(H11,'FIPS to State Crosswalk'!$A$1:$C$80,2,FALSE) -> Pennsylvania | J11: 1011 | K11: =_xlfn.IFNA(VLOOKUP(A11,'US CENSUS 2020 | Cities'!$A$1:$Q$31910,4,FALSE),0) -> 1022 | L11: 1022 | M11: 100 | N11: =_xlfn.IFNA(VLOOKUP($A11,'US CENSUS 2020 | Cities'!$A$1:$Q$31910,9,FALSE),0) -> 0 | O11: =_xlfn.IFNA(VLOOKUP($A11,'US CENSUS 2020 | Cities'!$A$1:$Q$31910,10,FALSE),0) -> 0 | P11: 0 | Q11: 0
A12: 1600000US2000100 | B12: Abbyville city | C12: 00100 | D12: 155 | E12: Reno County (part) | F12: Reno County | G12: Reno County, Kansas | H12: 20 | I12: =VLOOKUP(H12,'FIPS to State Crosswalk'!$A$1:$C$80,2,FALSE) -> Kansas | J12: 87 | K12: =_xlfn.IFNA(VLOOKUP(A12,'US CENSUS 2020 | Cities'!$A$1:$Q$31910,4,FALSE),0) -> 83 | L12: 83 | M12: 100 | N12: =_xlfn.IFNA(VLOOKUP($A12,'US CENSUS 2020 | Cities'!$A$1:$Q$31910,9,FALSE),0) -> 0 | O12: =_xlfn.IFNA(VLOOKUP($A12,'US CENSUS 2020 | Cities'!$A$1:$Q$31910,10,FALSE),0) -> 0 | P12: 0 | Q12: 0
A13: 1600000US3800100 | B13: Abercrombie city | C13: 00100 | D13: 077 | E13: Richland County (part) | F13: Richland County | G13: Richland County, North Dakota | H13: 38 | I13: =VLOOKUP(H13,'FIPS to State Crosswalk'!$A$1:$C$80,2,FALSE) -> North Dakota | J13: 259 | K13: =_xlfn.IFNA(VLOOKUP(A13,'US CENSUS 2020 | Cities'!$A$1:$Q$31910,4,FALSE),0) -> 244 | L13: 244 | M13: 100 | N13: =_xlfn.IFNA(VLOOKUP($A13,'US CENSUS 2020 | Cities'!$A$1:$Q$31910,9,FALSE),0) -> 0 | O13: =_xlfn.IFNA(VLOOKUP($A13,'US CENSUS 2020 | Cities'!$A$1:$Q$31910,10,FALSE),0) -> 0 | P13: 0 | Q13: 0
A14: 1600000US1800140 | B14: Aberdeen CDP | C14: 00140 | D14: 127 | E14: Porter County (part) | F14: Porter County | G14: Porter County, Indiana | H14: 18 | I14: =VLOOKUP(H14,'FIPS to State Crosswalk'!$A$1:$C$80,2,FALSE) -> Indiana | J14: 1875 | K14: =_xlfn.IFNA(VLOOKUP(A14,'US CENSUS 2020 | Cities'!$A$1:$Q$31910,4,FALSE),0) -> 2117 | L14: 2117 | M14: 100 | N14: =_xlfn.IFNA(VLOOKUP($A14,'US CENSUS 2020 | Cities'!$A$1:$Q$31910,9,FALSE),0) -> 0 | O14: =_xlfn.IFNA(VLOOKUP($A14,'US CENSUS 2020 | Cities'!$A$1:$Q$31910,10,FALSE),0) -> 0 | P14: 0 | Q14: 0
A15: 1600000US4600100 | B15: Aberdeen city | C15: 00100 | D15: 013 | E15: Brown County (part) | F15: Brown County | G15: Brown County, South Dakota | H15: 46 | I15: =VLOOKUP(H15,'FIPS to State Crosswalk'!$A$1:$C$80,2,FALSE) -> South Dakota | J15: 26091 | K15: =_xlfn.IFNA(VLOOKUP(A15,'US CENSUS 2020 | Cities'!$A$1:$Q$31910,4,FALSE),0) -> 28495 | L15: 28495 | M15: 100 | N15: =_xlfn.IFNA(VLOOKUP($A15,'US CENSUS 2020 | Cities'!$A$1:$Q$31910,9,FALSE),0) -> 1 | O15: =_xlfn.IFNA(VLOOKUP($A15,'US CENSUS 2020 | Cities'!$A$1:$Q$31910,10,FALSE),0) -> 0 | P15: 28495 | Q15: 0
A16: 1600000US1600100 | B16: Aberdeen city | C16: 00100 | D16: 011 | E16: Bingham County (part) | F16: Bingham County | G16: Bingham County, Idaho | H16: 16 | I16: =VLOOKUP(H16,'FIPS to State Crosswalk'!$A$1:$C$80,2,FALSE) -> Idaho | J16: 1994 | K16: =_xlfn.IFNA(VLOOKUP(A16,'US CENSUS 2020 | Cities'!$A$1:$Q$31910,4,FALSE),0) -> 1756 | L16: 1756 | M16: 100 | N16: =_xlfn.IFNA(VLOOKUP($A16,'US CENSUS 2020 | Cities'!$A$1:$Q$31910,9,FALSE),0) -> 0 | O16: =_xlfn.IFNA(VLOOKUP($A16,'US CENSUS 2020 | Cities'!$A$1:$Q$31910,10,FALSE),0) -> 0 | P16: 0 | Q16: 0
A17: 1600000US2800180 | B17: Aberdeen city | C17: 00180 | D17: 095 | E17: Monroe County (part) | F17: Monroe County | G17: Monroe County, Mississippi | H17: 28 | I17: =VLOOKUP(H17,'FIPS to State Crosswalk'!$A$1:$C$80,2,FALSE) -> Mississippi | J17: 5612 | K17: =_xlfn.IFNA(VLOOKUP(A17,'US CENSUS 2020 | Cities'!$A$1:$Q$31910,4,FALSE),0) -> 4961 | L17: 4961 | M17: 100 | N17: =_xlfn.IFNA(VLOOKUP($A17,'US CENSUS 2020 | Cities'!$A$1:$Q$31910,9,FALSE),0) -> 0 | O17: =_xlfn.IFNA(VLOOKUP($A17,'US CENSUS 2020 | Cities'!$A$1:$Q$31910,10,FALSE),0) -> 0 | P17: 0 | Q17: 0
A18: 1600000US5300100 | B18: Aberdeen city | C18: 00100 | D18: 027 | E18: Grays Harbor County (part) | F18: Grays Harbor County | G18: Grays Harbor County, Washington | H18: 53 | I18: =VLOOKUP(H18,'FIPS to State Crosswalk'!$A$1:$C$80,2,FALSE) -> Washington | J18: 16894 | K18: =_xlfn.IFNA(VLOOKUP(A18,'US CENSUS 2020 | Cities'!$A$1:$Q$31910,4,FALSE),0) -> 17013 | L18: 17013 | M18: 100 | N18: =_xlfn.IFNA(VLOOKUP($A18,'US CENSUS 2020 | Cities'!$A$1:$Q$31910,9,FALSE),0) -> 0 | O18: =_xlfn.IFNA(VLOOKUP($A18,'US CENSUS 2020 | Cities'!$A$1:$Q$31910,10,FALSE),0) -> 0 | P18: 0 | Q18: 0
A19: 1600000US2400125 | B19: Aberdeen city | C19: 00125 | D19: 025 | E19: Harford County (part) | F19: Harford County | G19: Harford County, Maryland | H19: 24 | I19: =VLOOKUP(H19,'FIPS to State Crosswalk'!$A$1:$C$80,2,FALSE) -> Maryland | J19: 14981 | K19: =_xlfn.IFNA(VLOOKUP(A19,'US CENSUS 2020 | Cities'!$A$1:$Q$31910,4,FALSE),0) -> 16254 | L19: 16254 | M19: 100 | N19: =_xlfn.IFNA(VLOOKUP($A19,'US CENSUS 2020 | Cities'!$A$1:$Q$31910,9,FALSE),0) -> 0 | O19: =_xlfn.IFNA(VLOOKUP($A19,'US CENSUS 2020 | Cities'!$A$1:$Q$31910,10,FALSE),0) -> 0 | P19: 0 | Q19: 0
A20: 1600000US5300135 | B20: Aberdeen Gardens CDP | C20: 00135 | D20: 027 | E20: Grays Harbor County (part) | F20: Grays Harbor County | G20: Grays Harbor County, Washington | H20: 53 | I20: =VLOOKUP(H20,'FIPS to State Crosswalk'!$A$1:$C$80,2,FALSE) -> Washington | J20: 279 | K20: =_xlfn.IFNA(VLOOKUP(A20,'US CENSUS 2020 | Cities'!$A$1:$Q$31910,4,FALSE),0) -> 279 | L20: 279 | M20: 100 | N20: =_xlfn.IFNA(VLOOKUP($A20,'US CENSUS 2020 | Cities'!$A$1:$Q$31910,9,FALSE),0) -> 0 | O20: =_xlfn.IFNA(VLOOKUP($A20,'US CENSUS 2020 | Cities'!$A$1:$Q$31910,10,FALSE),0) -> 0 | P20: 0 | Q20: 0
A21: 1600000US2400175 | B21: Aberdeen Proving Ground CDP | C21: 00175 | D21: 025 | E21: Harford County (part) | F21: Harford County | G21: Harford County, Maryland | H21: 24 | I21: =VLOOKUP(H21,'FIPS to State Crosswalk'!$A$1:$C$80,2,FALSE) -> Maryland | J21: 2093 | K21: =_xlfn.IFNA(VLOOKUP(A21,'US CENSUS 2020 | Cities'!$A$1:$Q$31910,4,FALSE),0) -> 1668 | L21: 1668 | M21: 100 | N21: =_xlfn.IFNA(VLOOKUP($A21,'US CENSUS 2020 | Cities'!$A$1:$Q$31910,9,FALSE),0) -> 0 | O21: =_xlfn.IFNA(VLOOKUP($A21,'US CENSUS 2020 | Cities'!$A$1:$Q$31910,10,FALSE),0) -> 0 | P21: 0 | Q21: 0
A22: 1600000US3700160 | B22: Aberdeen town | C22: 00160 | D22: 125 | E22: Moore County (part) | F22: Moore County | G22: Moore County, North Carolina | H22: 37 | I22: =VLOOKUP(H22,'FIPS to State Crosswalk'!$A$1:$C$80,2,FALSE) -> North Carolina | J22: 6363 | K22: =_xlfn.IFNA(VLOOKUP(A22,'US CENSUS 2020 | Cities'!$A$1:$Q$31910,4,FALSE),0) -> 8516 | L22: 8516 | M22: 100 | N22: =_xlfn.IFNA(VLOOKUP($A22,'US CENSUS 2020 | Cities'!$A$1:$Q$31910,9,FALSE),0) -> 0 | O22: =_xlfn.IFNA(VLOOKUP($A22,'US CENSUS 2020 | Cities'!$A$1:$Q$31910,10,FALSE),0) -> 0 | P22: 0 | Q22: 0
A23: 1600000US3900142 | B23: Aberdeen village | C23: 00142 | D23: 015 | E23: Brown County (part) | F23: Brown County | G23: Brown County, Ohio | H23: 39 | I23: =VLOOKUP(H23,'FIPS to State Crosswalk'!$A$1:$C$80,2,FALSE) -> Ohio | J23: 1638 | K23: =_xlfn.IFNA(VLOOKUP(A23,'US CENSUS 2020 | Cities'!$A$1:$Q$31910,4,FALSE),0) -> 1515 | L23: 1515 | M23: 100 | N23: =_xlfn.IFNA(VLOOKUP($A23,'US CENSUS 2020 | Cities'!$A$1:$Q$31910,9,FALSE),0) -> 0 | O23: =_xlfn.IFNA(VLOOKUP($A23,'US CENSUS 2020 | Cities'!$A$1:$Q$31910,10,FALSE),0) -> 0 | P23: 0 | Q23: 0
A24: 1600000US3500240 | B24: Abeytas CDP | C24: 00240 | D24: 053 | E24: Socorro County (part) | F24: Socorro County | G24: Socorro County, New Mexico | H24: 35 | I24: =VLOOKUP(H24,'FIPS to State Crosswalk'!$A$1:$C$80,2,FALSE) -> New Mexico | J24: 56 | K24: =_xlfn.IFNA(VLOOKUP(A24,'US CENSUS 2020 | Cities'!$A$1:$Q$31910,4,FALSE),0) -> 45 | L24: 45 | M24: 100 | N24: =_xlfn.IFNA(VLOOKUP($A24,'US CENSUS 2020 | Cities'!$A$1:$Q$31910,9,FALSE),0) -> 0 | O24: =_xlfn.IFNA(VLOOKUP($A24,'US CENSUS 2020 | Cities'!$A$1:$Q$31910,10,FALSE),0) -> 0 | P24: 0 | Q24: 0
A25: 1600000US3100205 | B25: Abie village | C25: 00205 | D25: 023 | E25: Butler County (part) | F25: Butler County | G25: Butler County, Nebraska | H25: 31 | I25: =VLOOKUP(H25,'FIPS to State Crosswalk'!$A$1:$C$80,2,FALSE) -> Nebraska | J25: 69 | K25: =_xlfn.IFNA(VLOOKUP(A25,'US CENSUS 2020 | Cities'!$A$1:$Q$31910,4,FALSE),0) -> 65 | L25: 65 | M25: 100 | N25: =_xlfn.IFNA(VLOOKUP($A25,'US CENSUS 2020 | Cities'!$A$1:$Q$31910,9,FALSE),0) -> 0 | O25: =_xlfn.IFNA(VLOOKUP($A25,'US CENSUS 2020 | Cities'!$A$1:$Q$31910,10,FALSE),0) -> 0 | P25: 0 | Q25: 0
A26: 1600000US2000125 | B26: Abilene city | C26: 00125 | D26: 041 | E26: Dickinson County (part) | F26: Dickinson County | G26: Dickinson County, Kansas | H26: 20 | I26: =VLOOKUP(H26,'FIPS to State Crosswalk'!$A$1:$C$80,2,FALSE) -> Kansas | J26: 6844 | K26: =_xlfn.IFNA(VLOOKUP(A26,'US CENSUS 2020 | Cities'!$A$1:$Q$31910,4,FALSE),0) -> 6460 | L26: 6460 | M26: 100 | N26: =_xlfn.IFNA(VLOOKUP($A26,'US CENSUS 2020 | Cities'!$A$1:$Q$31910,9,FALSE),0) -> 0 | O26: =_xlfn.IFNA(VLOOKUP($A26,'US CENSUS 2020 | Cities'!$A$1:$Q$31910,10,FALSE),0) -> 0 | P26: 0 | Q26: 0
A27: 1600000US1700113 | B27: Abingdon city | C27: 00113 | D27: 095 | E27: Knox County (part) | F27: Knox County | G27: Knox County, Illinois | H27: 17 | I27: =VLOOKUP(H27,'FIPS to State Crosswalk'!$A$1:$C$80,2,FALSE) -> Illinois | J27: 3286 | K27: =_xlfn.IFNA(VLOOKUP(A27,'US CENSUS 2020 | Cities'!$A$1:$Q$31910,4,FALSE),0) -> 2951 | L27: 2951 | M27: 100 | N27: =_xlfn.IFNA(VLOOKUP($A27,'US CENSUS 2020 | Cities'!$A$1:$Q$31910,9,FALSE),0) -> 0 | O27: =_xlfn.IFNA(VLOOKUP($A27,'US CENSUS 2020 | Cities'!$A$1:$Q$31910,10,FALSE),0) -> 0 | P27: 0 | Q27: 0
A28: 1600000US5100148 | B28: Abingdon town | C28: 00148 | D28: 191 | E28: Washington County (part) | F28: Washington County | G28: Washington County, Virginia | H28: 51 | I28: =VLOOKUP(H28,'FIPS to State Crosswalk'!$A$1:$C$80,2,FALSE) -> Virginia | J28: 8191 | K28: =_xlfn.IFNA(VLOOKUP(A28,'US CENSUS 2020 | Cities'!$A$1:$Q$31910,4,FALSE),0) -> 8376 | L28: 8376 | M28: 100 | N28: =_xlfn.IFNA(VLOOKUP($A28,'US CENSUS 2020 | Cities'!$A$1:$Q$31910,9,FALSE),0) -> 0 | O28: =_xlfn.IFNA(VLOOKUP($A28,'US CENSUS 2020 | Cities'!$A$1:$Q$31910,10,FALSE),0) -> 0 | P28: 0 | Q28: 0
A29: 1600000US2500135 | B29: Abington CDP | C29: 00135 | D29: 023 | E29: Plymouth County (part) | F29: Plymouth County | G29: Plymouth County, Massachusetts | H29: 25 | I29: =VLOOKUP(H29,'FIPS to State Crosswalk'!$A$1:$C$80,2,FALSE) -> Massachusetts | J29: 15985 | K29: =_xlfn.IFNA(VLOOKUP(A29,'US CENSUS 2020 | Cities'!$A$1:$Q$31910,4,FALSE),0) -> 17062 | L29: 17062 | M29: 100 | N29: =_xlfn.IFNA(VLOOKUP($A29,'US CENSUS 2020 | Cities'!$A$1:$Q$31910,9,FALSE),0) -> 0 | O29: =_xlfn.IFNA(VLOOKUP($A29,'US CENSUS 2020 | Cities'!$A$1:$Q$31910,10,FALSE),0) -> 0 | P29: 0 | Q29: 0
A30: 1600000US3500310 | B30: Abiquiu CDP | C30: 00310 | D30: 039 | E30: Rio Arriba County (part) | F30: Rio Arriba County | G30: Rio Arriba County, New Mexico | H30: 35 | I30: =VLOOKUP(H30,'FIPS to State Crosswalk'!$A$1:$C$80,2,FALSE) -> New Mexico | J30: 231 | K30: =_xlfn.IFNA(VLOOKUP(A30,'US CENSUS 2020 | Cities'!$A$1:$Q$31910,4,FALSE),0) -> 181 | L30: 181 | M30: 100 | N30: =_xlfn.IFNA(VLOOKUP($A30,'US CENSUS 2020 | Cities'!$A$1:$Q$31910,9,FALSE),0) -> 0 | O30: =_xlfn.IFNA(VLOOKUP($A30,'US CENSUS 2020 | Cities'!$A$1:$Q$31910,10,FALSE),0) -> 0 | P30: 0 | Q30: 0
A31: 1600000US2200240 | B31: Abita Springs town | C31: 00240 | D31: 103 | E31: St. Tammany Parish (part) | F31: St. Tammany Parish | G31: St. Tammany Parish, Louisiana | H31: 22 | I31: =VLOOKUP(H31,'FIPS to State Crosswalk'!$A$1:$C$80,2,FALSE) -> Louisiana | J31: 2367 | K31: =_xlfn.IFNA(VLOOKUP(A31,'US CENSUS 2020 | Cities'!$A$1:$Q$31910,4,FALSE),0) -> 2631 | L31: 2631 | M31: 100 | N31: =_xlfn.IFNA(VLOOKUP($A31,'US CENSUS 2020 | Cities'!$A$1:$Q$31910,9,FALSE),0) -> 0 | O31: =_xlfn.IFNA(VLOOKUP($A31,'US CENSUS 2020 | Cities'!$A$1:$Q$31910,10,FALSE),0) -> 0 | P31: 0 | Q31: 0
A32: 1600000US4801060 | B32: Abram CDP | C32: 01060 | D32: 215 | E32: Hidalgo County (part) | F32: Hidalgo County | G32: Hidalgo County, Texas | H32: 48 | I32: =VLOOKUP(H32,'FIPS to State Crosswalk'!$A$1:$C$80,2,FALSE) -> Texas | J32: 2067 | K32: =_xlfn.IFNA(VLOOKUP(A32,'US CENSUS 2020 | Cities'!$A$1:$Q$31910,4,FALSE),0) -> 1108 | L32: 1108 | M32: 100 | N32: =_xlfn.IFNA(VLOOKUP($A32,'US CENSUS 2020 | Cities'!$A$1:$Q$31910,9,FALSE),0) -> 0 | O32: =_xlfn.IFNA(VLOOKUP($A32,'US CENSUS 2020 | Cities'!$A$1:$Q$31910,10,FALSE),0) -> 0 | P32: 0 | Q32: 0
A33: 1600000US5500150 | B33: Abrams CDP | C33: 00150 | D33: 083 | E33: Oconto County (part) | F33: Oconto County | G33: Oconto County, Wisconsin | H33: 55 | I33: =VLOOKUP(H33,'FIPS to State Crosswalk'!$A$1:$C$80,2,FALSE) -> Wisconsin | J33: 340 | K33: =_xlfn.IFNA(VLOOKUP(A33,'US CENSUS 2020 | Cities'!$A$1:$Q$31910,4,FALSE),0) -> 358 | L33: 358 | M33: 100 | N33: =_xlfn.IFNA(VLOOKUP($A33,'US CENSUS 2020 | Cities'!$A$1:$Q$31910,9,FALSE),0) -> 0 | O33: =_xlfn.IFNA(VLOOKUP($A33,'US CENSUS 2020 | Cities'!$A$1:$Q$31910,10,FALSE),0) -> 0 | P33: 0 | Q33: 0
A34: 1600000US3000175 | B34: Absarokee CDP | C34: 00175 | D34: 095 | E34: Stillwater County (part) | F34: Stillwater County | G34: Stillwater County, Montana | H34: 30 | I34: =VLOOKUP(H34,'FIPS to State Crosswalk'!$A$1:$C$80,2,FALSE) -> Montana | J34: 1150 | K34: =_xlfn.IFNA(VLOOKUP(A34,'US CENSUS 2020 | Cities'!$A$1:$Q$31910,4,FALSE),0) -> 1000 | L34: 1000 | M34: 100 | N34: =_xlfn.IFNA(VLOOKUP($A34,'US CENSUS 2020 | Cities'!$A$1:$Q$31910,9,FALSE),0) -> 0 | O34: =_xlfn.IFNA(VLOOKUP($A34,'US CENSUS 2020 | Cities'!$A$1:$Q$31910,10,FALSE),0) -> 0 | P34: 0 | Q34: 0
A35: 1600000US3400100 | B35: Absecon city | C35: 00100 | D35: 001 | E35: Atlantic County (part) | F35: Atlantic County | G35: Atlantic County, New Jersey | H35: 34 | I35: =VLOOKUP(H35,'FIPS to State Crosswalk'!$A$1:$C$80,2,FALSE) -> New Jersey | J35: 8411 | K35: =_xlfn.IFNA(VLOOKUP(A35,'US CENSUS 2020 | Cities'!$A$1:$Q$31910,4,FALSE),0) -> 9137 | L35: 9137 | M35: 100 | N35: =_xlfn.IFNA(VLOOKUP($A35,'US CENSUS 2020 | Cities'!$A$1:$Q$31910,9,FALSE),0) -> 0 | O35: =_xlfn.IFNA(VLOOKUP($A35,'US CENSUS 2020 | Cities'!$A$1:$Q$31910,10,FALSE),0) -> 0 | P35: 0 | Q35: 0
A36: 1600000US1200075 | B36: Acacia Villas CDP | C36: 00075 | D36: 099 | E36: Palm Beach County (part) | F36: Palm Beach County | G36: Palm Beach County, Florida | H36: 12 | I36: =VLOOKUP(H36,'FIPS to State Crosswalk'!$A$1:$C$80,2,FALSE) -> Florida | J36: 427 | K36: =_xlfn.IFNA(VLOOKUP(A36,'US CENSUS 2020 | Cities'!$A$1:$Q$31910,4,FALSE),0) -> 398 | L36: 398 | M36: 100 | N36: =_xlfn.IFNA(VLOOKUP($A36,'US CENSUS 2020 | Cities'!$A$1:$Q$31910,9,FALSE),0) -> 0 | O36: =_xlfn.IFNA(VLOOKUP($A36,'US CENSUS 2020 | Cities'!$A$1:$Q$31910,10,FALSE),0) -> 0 | P36: 0 | Q36: 0
A37: 1600000US0600135 | B37: Acalanes Ridge CDP | C37: 00135 | D37: 013 | E37: Contra Costa County (part) | F37: Contra Costa County | G37: Contra Costa County, California | H37: 06 | I37: =VLOOKUP(H37,'FIPS to State Crosswalk'!$A$1:$C$80,2,FALSE) -> California | J37: 1137 | K37: =_xlfn.IFNA(VLOOKUP(A37,'US CENSUS 2020 | Cities'!$A$1:$Q$31910,4,FALSE),0) -> 1285 | L37: 1285 | M37: 100 | N37: =_xlfn.IFNA(VLOOKUP($A37,'US CENSUS 2020 | Cities'!$A$1:$Q$31910,9,FALSE),0) -> 0 | O37: =_xlfn.IFNA(VLOOKUP($A37,'US CENSUS 2020 | Cities'!$A$1:$Q$31910,10,FALSE),0) -> 0 | P37: 0 | Q37: 0
A38: 1600000US0600156 | B38: Acampo CDP | C38: 00156 | D38: 077 | E38: San Joaquin County (part) | F38: San Joaquin County | G38: San Joaquin County, California | H38: 06 | I38: =VLOOKUP(H38,'FIPS to State Crosswalk'!$A$1:$C$80,2,FALSE) -> California | J38: 341 | K38: =_xlfn.IFNA(VLOOKUP(A38,'US CENSUS 2020 | Cities'!$A$1:$Q$31910,4,FALSE),0) -> 334 | L38: 334 | M38: 100 | N38: =_xlfn.IFNA(VLOOKUP($A38,'US CENSUS 2020 | Cities'!$A$1:$Q$31910,9,FALSE),0) -> 0 | O38: =_xlfn.IFNA(VLOOKUP($A38,'US CENSUS 2020 | Cities'!$A$1:$Q$31910,10,FALSE),0) -> 0 | P38: 0 | Q38: 0
A39: 1600000US2400225 | B39: Accident town | C39: 00225 | D39: 023 | E39: Garrett County (part) | F39: Garrett County | G39: Garrett County, Maryland | H39: 24 | I39: =VLOOKUP(H39,'FIPS to State Crosswalk'!$A$1:$C$80,2,FALSE) -> Maryland | J39: 325 | K39: =_xlfn.IFNA(VLOOKUP(A39,'US CENSUS 2020 | Cities'!$A$1:$Q$31910,4,FALSE),0) -> 338 | L39: 338 | M39: 100 | N39: =_xlfn.IFNA(VLOOKUP($A39,'US CENSUS 2020 | Cities'!$A$1:$Q$31910,9,FALSE),0) -> 0 | O39: =_xlfn.IFNA(VLOOKUP($A39,'US CENSUS 2020 | Cities'!$A$1:$Q$31910,10,FALSE),0) -> 0 | P39: 0 | Q39: 0
A40: 1600000US2400250 | B40: Accokeek CDP | C40: 00250 | D40: 033 | E40: Prince George's County (part) | F40: Prince George's County | G40: Prince George's County, Maryland | H40: 24 | I40: =VLOOKUP(H40,'FIPS to State Crosswalk'!$A$1:$C$80,2,FALSE) -> Maryland | J40: 10573 | K40: =_xlfn.IFNA(VLOOKUP(A40,'US CENSUS 2020 | Cities'!$A$1:$Q$31910,4,FALSE),0) -> 13927 | L40: 13927 | M40: 100 | N40: =_xlfn.IFNA(VLOOKUP($A40,'US CENSUS 2020 | Cities'!$A$1:$Q$31910,9,FALSE),0) -> 0 | O40: =_xlfn.IFNA(VLOOKUP($A40,'US CENSUS 2020 | Cities'!$A$1:$Q$31910,10,FALSE),0) -> 0 | P40: 0 | Q40: 0
A41: 1600000US5100180 | B41: Accomac town | C41: 00180 | D41: 001 | E41: Accomack County (part) | F41: Accomack County | G41: Accomack County, Virginia | H41: 51 | I41: =VLOOKUP(H41,'FIPS to State Crosswalk'!$A$1:$C$80,2,FALSE) -> Virginia | J41: 519 | K41: =_xlfn.IFNA(VLOOKUP(A41,'US CENSUS 2020 | Cities'!$A$1:$Q$31910,4,FALSE),0) -> 519 | L41: 519 | M41: 100 | N41: =_xlfn.IFNA(VLOOKUP($A41,'US CENSUS 2020 | Cities'!$A$1:$Q$31910,9,FALSE),0) -> 0 | O41: =_xlfn.IFNA(VLOOKUP($A41,'US CENSUS 2020 | Cities'!$A$1:$Q$31910,10,FALSE),0) -> 0 | P41: 0 | Q41: 0
A42: 1600000US3600155 | B42: Accord CDP | C42: 00155 | D42: 111 | E42: Ulster County (part) | F42: Ulster County | G42: Ulster County, New York | H42: 36 | I42: =VLOOKUP(H42,'FIPS to State Crosswalk'!$A$1:$C$80,2,FALSE) -> New York | J42: 562 | K42: =_xlfn.IFNA(VLOOKUP(A42,'US CENSUS 2020 | Cities'!$A$1:$Q$31910,4,FALSE),0) -> 573 | L42: 573 | M42: 100 | N42: =_xlfn.IFNA(VLOOKUP($A42,'US CENSUS 2020 | Cities'!$A$1:$Q$31910,9,FALSE),0) -> 0 | O42: =_xlfn.IFNA(VLOOKUP($A42,'US CENSUS 2020 | Cities'!$A$1:$Q$31910,10,FALSE),0) -> 0 | P42: 0 | Q42: 0
A43: 1600000US5400196 | B43: Accoville CDP | C43: 00196 | D43: 045 | E43: Logan County (part) | F43: Logan County | G43: Logan County, West Virginia | H43: 54 | I43: =VLOOKUP(H43,'FIPS to State Crosswalk'!$A$1:$C$80,2,FALSE) -> West Virginia | J43: 574 | K43: =_xlfn.IFNA(VLOOKUP(A43,'US CENSUS 2020 | Cities'!$A$1:$Q$31910,4,FALSE),0) -> 599 | L43: 599 | M43: 100 | N43: =_xlfn.IFNA(VLOOKUP($A43,'US CENSUS 2020 | Cities'!$A$1:$Q$31910,9,FALSE),0) -> 0 | O43: =_xlfn.IFNA(VLOOKUP($A43,'US CENSUS 2020 | Cities'!$A$1:$Q$31910,10,FALSE),0) -> 0 | P43: 0 | Q43: 0
A44: 1600000US7200186 | B44: Aceitunas comunidad | C44: 00186 | D44: 099 | E44: Moca Municipio (part) | F44: Moca Municipio | G44: Moca Municipio, Puerto Rico | H44: 72 | I44: =VLOOKUP(H44,'FIPS to State Crosswalk'!$A$1:$C$80,2,FALSE) -> Puerto Rico | J44: 1436 | K44: =_xlfn.IFNA(VLOOKUP(A44,'US CENSUS 2020 | Cities'!$A$1:$Q$31910,4,FALSE),0) -> 1188 | L44: 1188 | M44: 100 | N44: =_xlfn.IFNA(VLOOKUP($A44,'US CENSUS 2020 | Cities'!$A$1:$Q$31910,9,FALSE),0) -> 0 | O44: =_xlfn.IFNA(VLOOKUP($A44,'US CENSUS 2020 | Cities'!$A$1:$Q$31910,10,FALSE),0) -> 0 | P44: 0 | Q44: 0
A45: 1600000US1600280 | B45: Acequia city | C45: 00280 | D45: 067 | E45: Minidoka County (part) | F45: Minidoka County | G45: Minidoka County, Idaho | H45: 16 | I45: =VLOOKUP(H45,'FIPS to State Crosswalk'!$A$1:$C$80,2,FALSE) -> Idaho | J45: 124 | K45: =_xlfn.IFNA(VLOOKUP(A45,'US CENSUS 2020 | Cities'!$A$1:$Q$31910,4,FALSE),0) -> 131 | L45: 131 | M45: 100 | N45: =_xlfn.IFNA(VLOOKUP($A45,'US CENSUS 2020 | Cities'!$A$1:$Q$31910,9,FALSE),0) -> 0 | O45: =_xlfn.IFNA(VLOOKUP($A45,'US CENSUS 2020 | Cities'!$A$1:$Q$31910,10,FALSE),0) -> 0 | P45: 0 | Q45: 0
A46: 1600000US4000100 | B46: Achille town | C46: 00100 | D46: 013 | E46: Bryan County (part) | F46: Bryan County | G46: Bryan County, Oklahoma | H46: 40 | I46: =VLOOKUP(H46,'FIPS to State Crosswalk'!$A$1:$C$80,2,FALSE) -> Oklahoma | J46: 491 | K46: =_xlfn.IFNA(VLOOKUP(A46,'US CENSUS 2020 | Cities'!$A$1:$Q$31910,4,FALSE),0) -> 398 | L46: 398 | M46: 100 | N46: =_xlfn.IFNA(VLOOKUP($A46,'US CENSUS 2020 | Cities'!$A$1:$Q$31910,9,FALSE),0) -> 0 | O46: =_xlfn.IFNA(VLOOKUP($A46,'US CENSUS 2020 | Cities'!$A$1:$Q$31910,10,FALSE),0) -> 0 | P46: 0 | Q46: 0
A47: 1600000US2800300 | B47: Ackerman town | C47: 00300 | D47: 019 | E47: Choctaw County (part) | F47: Choctaw County | G47: Choctaw County, Mississippi | H47: 28 | I47: =VLOOKUP(H47,'FIPS to State Crosswalk'!$A$1:$C$80,2,FALSE) -> Mississippi | J47: 1510 | K47: =_xlfn.IFNA(VLOOKUP(A47,'US CENSUS 2020 | Cities'!$A$1:$Q$31910,4,FALSE),0) -> 1594 | L47: 1594 | M47: 100 | N47: =_xlfn.IFNA(VLOOKUP($A47,'US CENSUS 2020 | Cities'!$A$1:$Q$31910,9,FALSE),0) -> 0 | O47: =_xlfn.IFNA(VLOOKUP($A47,'US CENSUS 2020 | Cities'!$A$1:$Q$31910,10,FALSE),0) -> 0 | P47: 0 | Q47: 0
A48: 1600000US4200244 | B48: Ackermanville CDP | C48: 00244 | D48: 095 | E48: Northampton County (part) | F48: Northampton County | G48: Northampton County, Pennsylvania | H48: 42 | I48: =VLOOKUP(H48,'FIPS to State Crosswalk'!$A$1:$C$80,2,FALSE) -> Pennsylvania | J48: 610 | K48: =_xlfn.IFNA(VLOOKUP(A48,'US CENSUS 2020 | Cities'!$A$1:$Q$31910,4,FALSE),0) -> 572 | L48: 572 | M48: 100 | N48: =_xlfn.IFNA(VLOOKUP($A48,'US CENSUS 2020 | Cities'!$A$1:$Q$31910,9,FALSE),0) -> 0 | O48: =_xlfn.IFNA(VLOOKUP($A48,'US CENSUS 2020 | Cities'!$A$1:$Q$31910,10,FALSE),0) -> 0 | P48: 0 | Q48: 0
A49: 1600000US1900235 | B49: Ackworth city | C49: 00235 | D49: 181 | E49: Warren County (part) | F49: Warren County | G49: Warren County, Iowa | H49: 19 | I49: =VLOOKUP(H49,'FIPS to State Crosswalk'!$A$1:$C$80,2,FALSE) -> Iowa | J49: 83 | K49: =_xlfn.IFNA(VLOOKUP(A49,'US CENSUS 2020 | Cities'!$A$1:$Q$31910,4,FALSE),0) -> 115 | L49: 115 | M49: 100 | N49: =_xlfn.IFNA(VLOOKUP($A49,'US CENSUS 2020 | Cities'!$A$1:$Q$31910,9,FALSE),0) -> 0 | O49: =_xlfn.IFNA(VLOOKUP($A49,'US CENSUS 2020 | Cities'!$A$1:$Q$31910,10,FALSE),0) -> 0 | P49: 0 | Q49: 0
A50: 1600000US5300275 | B50: Acme CDP | C50: 00275 | D50: 073 | E50: Whatcom County (part) | F50: Whatcom County | G50: Whatcom County, Washington | H50: 53 | I50: =VLOOKUP(H50,'FIPS to State Crosswalk'!$A$1:$C$80,2,FALSE) -> Washington | J50: 246 | K50: =_xlfn.IFNA(VLOOKUP(A50,'US CENSUS 2020 | Cities'!$A$1:$Q$31910,4,FALSE),0) -> 229 | L50: 229 | M50: 100 | N50: =_xlfn.IFNA(VLOOKUP($A50,'US CENSUS 2020 | Cities'!$A$1:$Q$31910,9,FALSE),0) -> 0 | O50: =_xlfn.IFNA(VLOOKUP($A50,'US CENSUS 2020 | Cities'!$A$1:$Q$31910,10,FALSE),0) -> 0 | P50: 0 | Q50: 0
A51: 1600000US3500765 | B51: Acomita Lake CDP | C51: 00765 | D51: 006 | E51: Cibola County (part) | F51: Cibola County | G51: Cibola County, New Mexico | H51: 35 | I51: =VLOOKUP(H51,'FIPS to State Crosswalk'!$A$1:$C$80,2,FALSE) -> New Mexico | J51: 416 | K51: =_xlfn.IFNA(VLOOKUP(A51,'US CENSUS 2020 | Cities'!$A$1:$Q$31910,4,FALSE),0) -> 339 | L51: 339 | M51: 100 | N51: =_xlfn.IFNA(VLOOKUP($A51,'US CENSUS 2020 | Cities'!$A$1:$Q$31910,9,FALSE),0) -> 0 | O51: =_xlfn.IFNA(VLOOKUP($A51,'US CENSUS 2020 | Cities'!$A$1:$Q$31910,10,FALSE),0) -> 0 | P51: 0 | Q51: 0
A52: 1600000US0800320 | B52: Acres Green CDP | C52: 00320 | D52: 035 | E52: Douglas County (part) | F52: Douglas County | G52: Douglas County, Colorado | H52: 08 | I52: =VLOOKUP(H52,'FIPS to State Crosswalk'!$A$1:$C$80,2,FALSE) -> Colorado | J52: 3007 | K52: =_xlfn.IFNA(VLOOKUP(A52,'US CENSUS 2020 | Cities'!$A$1:$Q$31910,4,FALSE),0) -> 2922 | L52: 2922 | M52: 100 | N52: =_xlfn.IFNA(VLOOKUP($A52,'US CENSUS 2020 | Cities'!$A$1:$Q$31910,9,FALSE),0) -> 0 | O52: =_xlfn.IFNA(VLOOKUP($A52,'US CENSUS 2020 | Cities'!$A$1:$Q$31910,10,FALSE),0) -> 0 | P52: 0 | Q52: 0
A53: 1600000US0600212 | B53: Acton CDP | C53: 00212 | D53: 037 | E53: Los Angeles County (part) | F53: Los Angeles County | G53: Los Angeles County, California | H53: 06 | I53: =VLOOKUP(H53,'FIPS to State Crosswalk'!$A$1:$C$80,2,FALSE) -> California | J53: 7596 | K53: =_xlfn.IFNA(VLOOKUP(A53,'US CENSUS 2020 | Cities'!$A$1:$Q$31910,4,FALSE),0) -> 7431 | L53: 7431 | M53: 100 | N53: =_xlfn.IFNA(VLOOKUP($A53,'US CENSUS 2020 | Cities'!$A$1:$Q$31910,9,FALSE),0) -> 0 | O53: =_xlfn.IFNA(VLOOKUP($A53,'US CENSUS 2020 | Cities'!$A$1:$Q$31910,10,FALSE),0) -> 0 | P53: 0 | Q53: 0
A54: 1600000US2500530 | B54: Acushnet Center CDP | C54: 00530 | D54: 005 | E54: Bristol County (part) | F54: Bristol County | G54: Bristol County, Massachusetts | H54: 25 | I54: =VLOOKUP(H54,'FIPS to State Crosswalk'!$A$1:$C$80,2,FALSE) -> Massachusetts | J54: 3073 | K54: =_xlfn.IFNA(VLOOKUP(A54,'US CENSUS 2020 | Cities'!$A$1:$Q$31910,4,FALSE),0) -> 3030 | L54: 3030 | M54: 100 | N54: =_xlfn.IFNA(VLOOKUP($A54,'US CENSUS 2020 | Cities'!$A$1:$Q$31910,9,FALSE),0) -> 0 | O54: =_xlfn.IFNA(VLOOKUP($A54,'US CENSUS 2020 | Cities'!$A$1:$Q$31910,10,FALSE),0) -> 0 | P54: 0 | Q54: 0
A55: 1600000US1300408 | B55: Acworth city | C55: 00408 | D55: 067 | E55: Cobb County (part) | F55: Cobb County | G55: Cobb County, Georgia | H55: 13 | I55: =VLOOKUP(H55,'FIPS to State Crosswalk'!$A$1:$C$80,2,FALSE) -> Georgia | J55: 20439 | K55: =_xlfn.IFNA(VLOOKUP(A55,'US CENSUS 2020 | Cities'!$A$1:$Q$31910,4,FALSE),0) -> 22440 | L55: 22440 | M55: 100 | N55: =_xlfn.IFNA(VLOOKUP($A55,'US CENSUS 2020 | Cities'!$A$1:$Q$31910,9,FALSE),0) -> 0 | O55: =_xlfn.IFNA(VLOOKUP($A55,'US CENSUS 2020 | Cities'!$A$1:$Q$31910,10,FALSE),0) -> 0 | P55: 0 | Q55: 0
A56: 1600000US2000225 | B56: Ada CDP | C56: 00225 | D56: 143 | E56: Ottawa County (part) | F56: Ottawa County | G56: Ottawa County, Kansas | H56: 20 | I56: =VLOOKUP(H56,'FIPS to State Crosswalk'!$A$1:$C$80,2,FALSE) -> Kansas | J56: 100 | K56: =_xlfn.IFNA(VLOOKUP(A56,'US CENSUS 2020 | Cities'!$A$1:$Q$31910,4,FALSE),0) -> 86 | L56: 86 | M56: 100 | N56: =_xlfn.IFNA(VLOOKUP($A56,'US CENSUS 2020 | Cities'!$A$1:$Q$31910,9,FALSE),0) -> 0 | O56: =_xlfn.IFNA(VLOOKUP($A56,'US CENSUS 2020 | Cities'!$A$1:$Q$31910,10,FALSE),0) -> 0 | P56: 0 | Q56: 0
A57: 1600000US4000200 | B57: Ada city | C57: 00200 | D57: 123 | E57: Pontotoc County (part) | F57: Pontotoc County | G57: Pontotoc County, Oklahoma | H57: 40 | I57: =VLOOKUP(H57,'FIPS to State Crosswalk'!$A$1:$C$80,2,FALSE) -> Oklahoma | J57: 16830 | K57: =_xlfn.IFNA(VLOOKUP(A57,'US CENSUS 2020 | Cities'!$A$1:$Q$31910,4,FALSE),0) -> 16481 | L57: 16481 | M57: 100 | N57: =_xlfn.IFNA(VLOOKUP($A57,'US CENSUS 2020 | Cities'!$A$1:$Q$31910,9,FALSE),0) -> 0 | O57: =_xlfn.IFNA(VLOOKUP($A57,'US CENSUS 2020 | Cities'!$A$1:$Q$31910,10,FALSE),0) -> 0 | P57: 0 | Q57: 0
A58: 1600000US2700172 | B58: Ada city | C58: 00172 | D58: 107 | E58: Norman County (part) | F58: Norman County | G58: Norman County, Minnesota | H58: 27 | I58: =VLOOKUP(H58,'FIPS to State Crosswalk'!$A$1:$C$80,2,FALSE) -> Minnesota | J58: 1707 | K58: =_xlfn.IFNA(VLOOKUP(A58,'US CENSUS 2020 | Cities'!$A$1:$Q$31910,4,FALSE),0) -> 1740 | L58: 1740 | M58: 100 | N58: =_xlfn.IFNA(VLOOKUP($A58,'US CENSUS 2020 | Cities'!$A$1:$Q$31910,9,FALSE),0) -> 0 | O58: =_xlfn.IFNA(VLOOKUP($A58,'US CENSUS 2020 | Cities'!$A$1:$Q$31910,10,FALSE),0) -> 0 | P58: 0 | Q58: 0
A59: 1600000US3900198 | B59: Ada village | C59: 00198 | D59: 065 | E59: Hardin County (part) | F59: Hardin County | G59: Hardin County, Ohio | H59: 39 | I59: =VLOOKUP(H59,'FIPS to State Crosswalk'!$A$1:$C$80,2,FALSE) -> Ohio | J59: 5955 | K59: =_xlfn.IFNA(VLOOKUP(A59,'US CENSUS 2020 | Cities'!$A$1:$Q$31910,4,FALSE),0) -> 5334 | L59: 5334 | M59: 100 | N59: =_xlfn.IFNA(VLOOKUP($A59,'US CENSUS 2020 | Cities'!$A$1:$Q$31910,9,FALSE),0) -> 0 | O59: =_xlfn.IFNA(VLOOKUP($A59,'US CENSUS 2020 | Cities'!$A$1:$Q$31910,10,FALSE),0) -> 0 | P59: 0 | Q59: 0
A60: 1600000US1700178 | B60: Adair CDP | C60: 00178 | D60: 109 | E60: McDonough County (part) | F60: McDonough County | G60: McDonough County, Illinois | H60: 17 | I60: =VLOOKUP(H60,'FIPS to State Crosswalk'!$A$1:$C$80,2,FALSE) -> Illinois | J60: 210 | K60: =_xlfn.IFNA(VLOOKUP(A60,'US CENSUS 2020 | Cities'!$A$1:$Q$31910,4,FALSE),0) -> 212 | L60: 212 | M60: 100 | N60: =_xlfn.IFNA(VLOOKUP($A60,'US CENSUS 2020 | Cities'!$A$1:$Q$31910,9,FALSE),0) -> 0 | O60: =_xlfn.IFNA(VLOOKUP($A60,'US CENSUS 2020 | Cities'!$A$1:$Q$31910,10,FALSE),0) -> 0 | P60: 0 | Q60: 0
A61: 1600000US4000250 | B61: Adair town | C61: 00250 | D61: 097 | E61: Mayes County (part) | F61: Mayes County | G61: Mayes County, Oklahoma | H61: 40 | I61: =VLOOKUP(H61,'FIPS to State Crosswalk'!$A$1:$C$80,2,FALSE) -> Oklahoma | J61: 827 | K61: =_xlfn.IFNA(VLOOKUP(A61,'US CENSUS 2020 | Cities'!$A$1:$Q$31910,4,FALSE),0) -> 732 | L61: 732 | M61: 100 | N61: =_xlfn.IFNA(VLOOKUP($A61,'US CENSUS 2020 | Cities'!$A$1:$Q$31910,9,FALSE),0) -> 0 | O61: =_xlfn.IFNA(VLOOKUP($A61,'US CENSUS 2020 | Cities'!$A$1:$Q$31910,10,FALSE),0) -> 0 | P61: 0 | Q61: 0
A62: 1600000US4100275 | B62: Adair Village city | C62: 00275 | D62: 003 | E62: Benton County (part) | F62: Benton County | G62: Benton County, Oregon | H62: 41 | I62: =VLOOKUP(H62,'FIPS to State Crosswalk'!$A$1:$C$80,2,FALSE) -> Oregon | J62: 827 | K62: =_xlfn.IFNA(VLOOKUP(A62,'US CENSUS 2020 | Cities'!$A$1:$Q$31910,4,FALSE),0) -> 994 | L62: 994 | M62: 100 | N62: =_xlfn.IFNA(VLOOKUP($A62,'US CENSUS 2020 | Cities'!$A$1:$Q$31910,9,FALSE),0) -> 0 | O62: =_xlfn.IFNA(VLOOKUP($A62,'US CENSUS 2020 | Cities'!$A$1:$Q$31910,10,FALSE),0) -> 0 | P62: 0 | Q62: 0
A63: 1600000US1300436 | B63: Adairsville city | C63: 00436 | D63: 015 | E63: Bartow County (part) | F63: Bartow County | G63: Bartow County, Georgia | H63: 13 | I63: =VLOOKUP(H63,'FIPS to State Crosswalk'!$A$1:$C$80,2,FALSE) -> Georgia | J63: 4648 | K63: =_xlfn.IFNA(VLOOKUP(A63,'US CENSUS 2020 | Cities'!$A$1:$Q$31910,4,FALSE),0) -> 4878 | L63: 4878 | M63: 100 | N63: =_xlfn.IFNA(VLOOKUP($A63,'US CENSUS 2020 | Cities'!$A$1:$Q$31910,9,FALSE),0) -> 0 | O63: =_xlfn.IFNA(VLOOKUP($A63,'US CENSUS 2020 | Cities'!$A$1:$Q$31910,10,FALSE),0) -> 0 | P63: 0 | Q63: 0
A64: 1600000US2100298 | B64: Adairville city | C64: 00298 | D64: 141 | E64: Logan County (part) | F64: Logan County | G64: Logan County, Kentucky | H64: 21 | I64: =VLOOKUP(H64,'FIPS to State Crosswalk'!$A$1:$C$80,2,FALSE) -> Kentucky | J64: 892 | K64: =_xlfn.IFNA(VLOOKUP(A64,'US CENSUS 2020 | Cities'!$A$1:$Q$31910,4,FALSE),0) -> 837 | L64: 837 | M64: 100 | N64: =_xlfn.IFNA(VLOOKUP($A64,'US CENSUS 2020 | Cities'!$A$1:$Q$31910,9,FALSE),0) -> 0 | O64: =_xlfn.IFNA(VLOOKUP($A64,'US CENSUS 2020 | Cities'!$A$1:$Q$31910,10,FALSE),0) -> 0 | P64: 0 | Q64: 0
A65: 1600000US0200065 | B65: Adak city | C65: 00065 | D65: 016 | E65: Aleutians West Census Area (pa | F65: Aleutians West Census Area | G65: Aleutians West Census Area, Alaska | H65: 02 | I65: =VLOOKUP(H65,'FIPS to State Crosswalk'!$A$1:$C$80,2,FALSE) -> Alaska | J65: 326 | K65: =_xlfn.IFNA(VLOOKUP(A65,'US CENSUS 2020 | Cities'!$A$1:$Q$31910,4,FALSE),0) -> 171 | L65: 171 | M65: 100 | N65: =_xlfn.IFNA(VLOOKUP($A65,'US CENSUS 2020 | Cities'!$A$1:$Q$31910,9,FALSE),0) -> 0 | O65: =_xlfn.IFNA(VLOOKUP($A65,'US CENSUS 2020 | Cities'!$A$1:$Q$31910,10,FALSE),0) -> 0 | P65: 0 | Q65: 0
A66: 1600000US2500590 | B66: Adams CDP | C66: 00590 | D66: 003 | E66: Berkshire County (part) | F66: Berkshire County | G66: Berkshire County, Massachusetts | H66: 25 | I66: =VLOOKUP(H66,'FIPS to State Crosswalk'!$A$1:$C$80,2,FALSE) -> Massachusetts | J66: 5515 | K66: =_xlfn.IFNA(VLOOKUP(A66,'US CENSUS 2020 | Cities'!$A$1:$Q$31910,4,FALSE),0) -> 5466 | L66: =IF(M66=100,K66,J66) -> 5466 | M66: 100 | N66: =_xlfn.IFNA(VLOOKUP($A66,'US CENSUS 2020 | Cities'!$A$1:$Q$31910,9,FALSE),0) -> 0 | O66: =_xlfn.IFNA(VLOOKUP($A66,'US CENSUS 2020 | Cities'!$A$1:$Q$31910,10,FALSE),0) -> 0 | P66: =L66*N66 -> 0 | Q66: =L66*O66 -> 0
A67: 1600000US3600232 | B67: Adams Center CDP | C67: 00232 | D67: 045 | E67: Jefferson County (part) | F67: Jefferson County | G67: =F67&", "&I67 -> Jefferson County, New York | H67: 36 | I67: =VLOOKUP(H67,'FIPS to State Crosswalk'!$A$1:$C$80,2,FALSE) -> New York | J67: 1568 | K67: =_xlfn.IFNA(VLOOKUP(A67,'US CENSUS 2020 | Cities'!$A$1:$Q$31910,4,FALSE),0) -> 1492 | L67: 1492 | M67: 100 | N67: =_xlfn.IFNA(VLOOKUP($A67,'US CENSUS 2020 | Cities'!$A$1:$Q$31910,9,FALSE),0) -> 0 | O67: =_xlfn.IFNA(VLOOKUP($A67,'US CENSUS 2020 | Cities'!$A$1:$Q$31910,10,FALSE),0) -> 0 | P67: 0 | Q67: 0
A68: 1600000US3800340 | B68: Adams city | C68: 00340 | D68: 099 | E68: Walsh County (part) | F68: Walsh County | G68: Walsh County, North Dakota | H68: 38 | I68: =VLOOKUP(H68,'FIPS to State Crosswalk'!$A$1:$C$80,2,FALSE) -> North Dakota | J68: 127 | K68: =_xlfn.IFNA(VLOOKUP(A68,'US CENSUS 2020 | Cities'!$A$1:$Q$31910,4,FALSE),0) -> 127 | L68: 127 | M68: 100 | N68: =_xlfn.IFNA(VLOOKUP($A68,'US CENSUS 2020 | Cities'!$A$1:$Q$31910,9,FALSE),0) -> 0 | O68: =_xlfn.IFNA(VLOOKUP($A68,'US CENSUS 2020 | Cities'!$A$1:$Q$31910,10,FALSE),0) -> 0 | P68: 0 | Q68: 0
A69: 1600000US2700190 | B69: Adams city | C69: 00190 | D69: 099 | E69: Mower County (part) | F69: Mower County | G69: Mower County, Minnesota | H69: 27 | I69: =VLOOKUP(H69,'FIPS to State Crosswalk'!$A$1:$C$80,2,FALSE) -> Minnesota | J69: 787 | K69: =_xlfn.IFNA(VLOOKUP(A69,'US CENSUS 2020 | Cities'!$A$1:$Q$31910,4,FALSE),0) -> 683 | L69: 683 | M69: 100 | N69: =_xlfn.IFNA(VLOOKUP($A69,'US CENSUS 2020 | Cities'!$A$1:$Q$31910,9,FALSE),0) -> 0 | O69: =_xlfn.IFNA(VLOOKUP($A69,'US CENSUS 2020 | Cities'!$A$1:$Q$31910,10,FALSE),0) -> 0 | P69: 0 | Q69: 0
A70: 1600000US5500275 | B70: Adams city | C70: 00275 | D70: 001 | E70: Adams County (part) | F70: Adams County | G70: Adams County, Wisconsin | H70: 55 | I70: =VLOOKUP(H70,'FIPS to State Crosswalk'!$A$1:$C$80,2,FALSE) -> Wisconsin | J70: 1967 | K70: =_xlfn.IFNA(VLOOKUP(A70,'US CENSUS 2020 | Cities'!$A$1:$Q$31910,4,FALSE),0) -> 1761 | L70: 1761 | M70: 100 | N70: =_xlfn.IFNA(VLOOKUP($A70,'US CENSUS 2020 | Cities'!$A$1:$Q$31910,9,FALSE),0) -> 0 | O70: =_xlfn.IFNA(VLOOKUP($A70,'US CENSUS 2020 | Cities'!$A$1:$Q$31910,10,FALSE),0) -> 0 | P70: 0 | Q70: 0
A71: 1600000US4100350 | B71: Adams city | C71: 00350 | D71: 059 | E71: Umatilla County (part) | F71: Umatilla County | G71: Umatilla County, Oregon | H71: 41 | I71: =VLOOKUP(H71,'FIPS to State Crosswalk'!$A$1:$C$80,2,FALSE) -> Oregon | J71: 350 | K71: =_xlfn.IFNA(VLOOKUP(A71,'US CENSUS 2020 | Cities'!$A$1:$Q$31910,4,FALSE),0) -> 389 | L71: 389 | M71: 100 | N71: =_xlfn.IFNA(VLOOKUP($A71,'US CENSUS 2020 | Cities'!$A$1:$Q$31910,9,FALSE),0) -> 0 | O71: =_xlfn.IFNA(VLOOKUP($A71,'US CENSUS 2020 | Cities'!$A$1:$Q$31910,10,FALSE),0) -> 0 | P71: 0 | Q71: 0
A72: 1600000US4700200 | B72: Adams city | C72: 00200 | D72: 147 | E72: Robertson County (part) | F72: Robertson County | G72: Robertson County, Tennessee | H72: 47 | I72: =VLOOKUP(H72,'FIPS to State Crosswalk'!$A$1:$C$80,2,FALSE) -> Tennessee | J72: 635 | K72: =_xlfn.IFNA(VLOOKUP(A72,'US CENSUS 2020 | Cities'!$A$1:$Q$31910,4,FALSE),0) -> 624 | L72: 624 | M72: 100 | N72: =_xlfn.IFNA(VLOOKUP($A72,'US CENSUS 2020 | Cities'!$A$1:$Q$31910,9,FALSE),0) -> 0 | O72: =_xlfn.IFNA(VLOOKUP($A72,'US CENSUS 2020 | Cities'!$A$1:$Q$31910,10,FALSE),0) -> 0 | P72: 0 | Q72: 0
A73: 1600000US3100240 | B73: Adams village | C73: 00240 | D73: 067 | E73: Gage County (part) | F73: Gage County | G73: Gage County, Nebraska | H73: 31 | I73: =VLOOKUP(H73,'FIPS to State Crosswalk'!$A$1:$C$80,2,FALSE) -> Nebraska | J73: 583 | K73: =_xlfn.IFNA(VLOOKUP(A73,'US CENSUS 2020 | Cities'!$A$1:$Q$31910,4,FALSE),0) -> 604 | L73: 604 | M73: 100 | N73: =_xlfn.IFNA(VLOOKUP($A73,'US CENSUS 2020 | Cities'!$A$1:$Q$31910,9,FALSE),0) -> 0 | O73: =_xlfn.IFNA(VLOOKUP($A73,'US CENSUS 2020 | Cities'!$A$1:$Q$31910,10,FALSE),0) -> 0 | P73: 0 | Q73: 0
A74: 1600000US3600199 | B74: Adams village | C74: 00199 | D74: 045 | E74: Jefferson County (part) | F74: Jefferson County | G74: Jefferson County, New York | H74: 36 | I74: =VLOOKUP(H74,'FIPS to State Crosswalk'!$A$1:$C$80,2,FALSE) -> New York | J74: 1782 | K74: =_xlfn.IFNA(VLOOKUP(A74,'US CENSUS 2020 | Cities'!$A$1:$Q$31910,4,FALSE),0) -> 1633 | L74: 1633 | M74: 100 | N74: =_xlfn.IFNA(VLOOKUP($A74,'US CENSUS 2020 | Cities'!$A$1:$Q$31910,9,FALSE),0) -> 0 | O74: =_xlfn.IFNA(VLOOKUP($A74,'US CENSUS 2020 | Cities'!$A$1:$Q$31910,10,FALSE),0) -> 0 | P74: 0 | Q74: 0
A75: 1600000US4200332 | B75: Adamsburg borough | C75: 00332 | D75: 129 | E75: Westmoreland County (part) | F75: Westmoreland County | G75: Westmoreland County, Pennsylvania | H75: 42 | I75: =VLOOKUP(H75,'FIPS to State Crosswalk'!$A$1:$C$80,2,FALSE) -> Pennsylvania | J75: 172 | K75: =_xlfn.IFNA(VLOOKUP(A75,'US CENSUS 2020 | Cities'!$A$1:$Q$31910,4,FALSE),0) -> 142 | L75: 142 | M75: 100 | N75: =_xlfn.IFNA(VLOOKUP($A75,'US CENSUS 2020 | Cities'!$A$1:$Q$31910,9,FALSE),0) -> 0 | O75: =_xlfn.IFNA(VLOOKUP($A75,'US CENSUS 2020 | Cities'!$A$1:$Q$31910,10,FALSE),0) -> 0 | P75: 0 | Q75: 0
A76: 1600000US2400350 | B76: Adamstown CDP | C76: 00350 | D76: 021 | E76: Frederick County (part) | F76: Frederick County | G76: Frederick County, Maryland | H76: 24 | I76: =VLOOKUP(H76,'FIPS to State Crosswalk'!$A$1:$C$80,2,FALSE) -> Maryland | J76: 2372 | K76: =_xlfn.IFNA(VLOOKUP(A76,'US CENSUS 2020 | Cities'!$A$1:$Q$31910,4,FALSE),0) -> 2331 | L76: 2331 | M76: 100 | N76: =_xlfn.IFNA(VLOOKUP($A76,'US CENSUS 2020 | Cities'!$A$1:$Q$31910,9,FALSE),0) -> 0 | O76: =_xlfn.IFNA(VLOOKUP($A76,'US CENSUS 2020 | Cities'!$A$1:$Q$31910,10,FALSE),0) -> 0 | P76: 0 | Q76: 0
A77: 1600000US4200372 | B77: Adamsville CDP | C77: 00372 | D77: 039 | E77: Crawford County (part) | F77: Crawford County | G77: Crawford County, Pennsylvania | H77: 42 | I77: =VLOOKUP(H77,'FIPS to State Crosswalk'!$A$1:$C$80,2,FALSE) -> Pennsylvania | J77: 67 | K77: =_xlfn.IFNA(VLOOKUP(A77,'US CENSUS 2020 | Cities'!$A$1:$Q$31910,4,FALSE),0) -> 88 | L77: 88 | M77: 100 | N77: =_xlfn.IFNA(VLOOKUP($A77,'US CENSUS 2020 | Cities'!$A$1:$Q$31910,9,FALSE),0) -> 0 | O77: =_xlfn.IFNA(VLOOKUP($A77,'US CENSUS 2020 | Cities'!$A$1:$Q$31910,10,FALSE),0) -> 0 | P77: 0 | Q77: 0
A78: 1600000US0100460 | B78: Adamsville city | C78: 00460 | D78: 073 | E78: Jefferson County (part) | F78: Jefferson County | G78: Jefferson County, Alabama | H78: 01 | I78: =VLOOKUP(H78,'FIPS to State Crosswalk'!$A$1:$C$80,2,FALSE) -> Alabama | J78: 4522 | K78: =_xlfn.IFNA(VLOOKUP(A78,'US CENSUS 2020 | Cities'!$A$1:$Q$31910,4,FALSE),0) -> 4366 | L78: 4366 | M78: 100 | N78: =_xlfn.IFNA(VLOOKUP($A78,'US CENSUS 2020 | Cities'!$A$1:$Q$31910,9,FALSE),0) -> 0 | O78: =_xlfn.IFNA(VLOOKUP($A78,'US CENSUS 2020 | Cities'!$A$1:$Q$31910,10,FALSE),0) -> 0 | P78: 0 | Q78: 0
A79: 1600000US3900380 | B79: Adamsville village | C79: 00380 | D79: 119 | E79: Muskingum County (part) | F79: Muskingum County | G79: Muskingum County, Ohio | H79: 39 | I79: =VLOOKUP(H79,'FIPS to State Crosswalk'!$A$1:$C$80,2,FALSE) -> Ohio | J79: 114 | K79: =_xlfn.IFNA(VLOOKUP(A79,'US CENSUS 2020 | Cities'!$A$1:$Q$31910,4,FALSE),0) -> 140 | L79: 140 | M79: 100 | N79: =_xlfn.IFNA(VLOOKUP($A79,'US CENSUS 2020 | Cities'!$A$1:$Q$31910,9,FALSE),0) -> 0 | O79: =_xlfn.IFNA(VLOOKUP($A79,'US CENSUS 2020 | Cities'!$A$1:$Q$31910,10,FALSE),0) -> 0 | P79: 0 | Q79: 0
A80: 1600000US1700230 | B80: Addieville village | C80: 00230 | D80: 189 | E80: Washington County (part) | F80: Washington County | G80: Washington County, Illinois | H80: 17 | I80: =VLOOKUP(H80,'FIPS to State Crosswalk'!$A$1:$C$80,2,FALSE) -> Illinois | J80: 252 | K80: =_xlfn.IFNA(VLOOKUP(A80,'US CENSUS 2020 | Cities'!$A$1:$Q$31910,4,FALSE),0) -> 259 | L80: 259 | M80: 100 | N80: =_xlfn.IFNA(VLOOKUP($A80,'US CENSUS 2020 | Cities'!$A$1:$Q$31910,9,FALSE),0) -> 0 | O80: =_xlfn.IFNA(VLOOKUP($A80,'US CENSUS 2020 | Cities'!$A$1:$Q$31910,10,FALSE),0) -> 0 | P80: 0 | Q80: 0
A81: 1600000US4000450 | B81: Addington town | C81: 00450 | D81: 067 | E81: Jefferson County (part) | F81: Jefferson County | G81: Jefferson County, Oklahoma | H81: 40 | I81: =VLOOKUP(H81,'FIPS to State Crosswalk'!$A$1:$C$80,2,FALSE) -> Oklahoma | J81: 113 | K81: =_xlfn.IFNA(VLOOKUP(A81,'US CENSUS 2020 | Cities'!$A$1:$Q$31910,4,FALSE),0) -> 83 | L81: 83 | M81: 100 | N81: =_xlfn.IFNA(VLOOKUP($A81,'US CENSUS 2020 | Cities'!$A$1:$Q$31910,9,FALSE),0) -> 0 | O81: =_xlfn.IFNA(VLOOKUP($A81,'US CENSUS 2020 | Cities'!$A$1:$Q$31910,10,FALSE),0) -> 0 | P81: 0 | Q81: 0
A82: 1600000US2200415 | B82: Addis town | C82: 00415 | D82: 121 | E82: West Baton Rouge Parish (part) | F82: West Baton Rouge Parish | G82: West Baton Rouge Parish, Louisiana | H82: 22 | I82: =VLOOKUP(H82,'FIPS to State Crosswalk'!$A$1:$C$80,2,FALSE) -> Louisiana | J82: 3593 | K82: =_xlfn.IFNA(VLOOKUP(A82,'US CENSUS 2020 | Cities'!$A$1:$Q$31910,4,FALSE),0) -> 6731 | L82: 6731 | M82: 100 | N82: =_xlfn.IFNA(VLOOKUP($A82,'US CENSUS 2020 | Cities'!$A$1:$Q$31910,9,FALSE),0) -> 0 | O82: =_xlfn.IFNA(VLOOKUP($A82,'US CENSUS 2020 | Cities'!$A$1:$Q$31910,10,FALSE),0) -> 0 | P82: 0 | Q82: 0
A83: 1600000US5400364 | B83: Addison (Webster Springs) town | C83: 00364 | D83: 101 | E83: Webster County (part) | F83: Webster County | G83: Webster County, West Virginia | H83: 54 | I83: =VLOOKUP(H83,'FIPS to State Crosswalk'!$A$1:$C$80,2,FALSE) -> West Virginia | J83: 772 | K83: =_xlfn.IFNA(VLOOKUP(A83,'US CENSUS 2020 | Cities'!$A$1:$Q$31910,4,FALSE),0) -> 731 | L83: 731 | M83: 100 | N83: =_xlfn.IFNA(VLOOKUP($A83,'US CENSUS 2020 | Cities'!$A$1:$Q$31910,9,FALSE),0) -> 0 | O83: =_xlfn.IFNA(VLOOKUP($A83,'US CENSUS 2020 | Cities'!$A$1:$Q$31910,10,FALSE),0) -> 0 | P83: 0 | Q83: 0
A84: 1600000US4200396 | B84: Addison borough | C84: 00396 | D84: 111 | E84: Somerset County (part) | F84: Somerset County | G84: Somerset County, Pennsylvania | H84: 42 | I84: =VLOOKUP(H84,'FIPS to State Crosswalk'!$A$1:$C$80,2,FALSE) -> Pennsylvania | J84: 207 | K84: =_xlfn.IFNA(VLOOKUP(A84,'US CENSUS 2020 | Cities'!$A$1:$Q$31910,4,FALSE),0) -> 166 | L84: 166 | M84: 100 | N84: =_xlfn.IFNA(VLOOKUP($A84,'US CENSUS 2020 | Cities'!$A$1:$Q$31910,9,FALSE),0) -> 0 | O84: =_xlfn.IFNA(VLOOKUP($A84,'US CENSUS 2020 | Cities'!$A$1:$Q$31910,10,FALSE),0) -> 0 | P84: 0 | Q84: 0
A85: 1600000US0100484 | B85: Addison town | C85: 00484 | D85: 133 | E85: Winston County (part) | F85: Winston County | G85: Winston County, Alabama | H85: 01 | I85: =VLOOKUP(H85,'FIPS to State Crosswalk'!$A$1:$C$80,2,FALSE) -> Alabama | J85: 756 | K85: =_xlfn.IFNA(VLOOKUP(A85,'US CENSUS 2020 | Cities'!$A$1:$Q$31910,4,FALSE),0) -> 659 | L85: 659 | M85: 100 | N85: =_xlfn.IFNA(VLOOKUP($A85,'US CENSUS 2020 | Cities'!$A$1:$Q$31910,9,FALSE),0) -> 0 | O85: =_xlfn.IFNA(VLOOKUP($A85,'US CENSUS 2020 | Cities'!$A$1:$Q$31910,10,FALSE),0) -> 0 | P85: 0 | Q85: 0
A86: 1600000US4801240 | B86: Addison town | C86: 01240 | D86: 113 | E86: Dallas County (part) | F86: Dallas County | G86: Dallas County, Texas | H86: 48 | I86: =VLOOKUP(H86,'FIPS to State Crosswalk'!$A$1:$C$80,2,FALSE) -> Texas | J86: 13056 | K86: =_xlfn.IFNA(VLOOKUP(A86,'US CENSUS 2020 | Cities'!$A$1:$Q$31910,4,FALSE),0) -> 16661 | L86: 16661 | M86: 100 | N86: =_xlfn.IFNA(VLOOKUP($A86,'US CENSUS 2020 | Cities'!$A$1:$Q$31910,9,FALSE),0) -> 0 | O86: =_xlfn.IFNA(VLOOKUP($A86,'US CENSUS 2020 | Cities'!$A$1:$Q$31910,10,FALSE),0) -> 0 | P86: 0 | Q86: 0
A87: 1600000US2600380 | B87: Addison village | C87: 00380 | D87: 091 | E87: Lenawee County (part) | F87: Lenawee County | G87: Lenawee County, Michigan | H87: 26 | I87: =VLOOKUP(H87,'FIPS to State Crosswalk'!$A$1:$C$80,2,FALSE) -> Michigan | J87: 605 | K87: =_xlfn.IFNA(VLOOKUP(A87,'US CENSUS 2020 | Cities'!$A$1:$Q$31910,4,FALSE),0) -> 573 | L87: 573 | M87: 100 | N87: =_xlfn.IFNA(VLOOKUP($A87,'US CENSUS 2020 | Cities'!$A$1:$Q$31910,9,FALSE),0) -> 0 | O87: =_xlfn.IFNA(VLOOKUP($A87,'US CENSUS 2020 | Cities'!$A$1:$Q$31910,10,FALSE),0) -> 0 | P87: 0 | Q87: 0
A88: 1600000US3600276 | B88: Addison village | C88: 00276 | D88: 101 | E88: Steuben County (part) | F88: Steuben County | G88: Steuben County, New York | H88: 36 | I88: =VLOOKUP(H88,'FIPS to State Crosswalk'!$A$1:$C$80,2,FALSE) -> New York | J88: 1763 | K88: =_xlfn.IFNA(VLOOKUP(A88,'US CENSUS 2020 | Cities'!$A$1:$Q$31910,4,FALSE),0) -> 1561 | L88: 1561 | M88: 100 | N88: =_xlfn.IFNA(VLOOKUP($A88,'US CENSUS 2020 | Cities'!$A$1:$Q$31910,9,FALSE),0) -> 0 | O88: =_xlfn.IFNA(VLOOKUP($A88,'US CENSUS 2020 | Cities'!$A$1:$Q$31910,10,FALSE),0) -> 0 | P88: 0 | Q88: 0
A89: 1600000US1700243 | B89: Addison village | C89: 00243 | D89: 043 | E89: DuPage County (part) | F89: DuPage County | G89: DuPage County, Illinois | H89: 17 | I89: =VLOOKUP(H89,'FIPS to State Crosswalk'!$A$1:$C$80,2,FALSE) -> Illinois | J89: 36964 | K89: =_xlfn.IFNA(VLOOKUP(A89,'US CENSUS 2020 | Cities'!$A$1:$Q$31910,4,FALSE),0) -> 35702 | L89: 35702 | M89: 100 | N89: =_xlfn.IFNA(VLOOKUP($A89,'US CENSUS 2020 | Cities'!$A$1:$Q$31910,9,FALSE),0) -> 1 | O89: =_xlfn.IFNA(VLOOKUP($A89,'US CENSUS 2020 | Cities'!$A$1:$Q$31910,10,FALSE),0) -> 0 | P89: 35702 | Q89: 0
A90: 1600000US5300380 | B90: Addy CDP | C90: 00380 | D90: 065 | E90: Stevens County (part) | F90: Stevens County | G90: Stevens County, Washington | H90: 53 | I90: =VLOOKUP(H90,'FIPS to State Crosswalk'!$A$1:$C$80,2,FALSE) -> Washington | J90: 268 | K90: =_xlfn.IFNA(VLOOKUP(A90,'US CENSUS 2020 | Cities'!$A$1:$Q$31910,4,FALSE),0) -> 210 | L90: 210 | M90: 100 | N90: =_xlfn.IFNA(VLOOKUP($A90,'US CENSUS 2020 | Cities'!$A$1:$Q$31910,9,FALSE),0) -> 0 | O90: =_xlfn.IFNA(VLOOKUP($A90,'US CENSUS 2020 | Cities'!$A$1:$Q$31910,10,FALSE),0) -> 0 | P90: 0 | Q90: 0
A91: 1600000US3900436 | B91: Addyston village | C91: 00436 | D91: 061 | E91: Hamilton County (part) | F91: Hamilton County | G91: Hamilton County, Ohio | H91: 39 | I91: =VLOOKUP(H91,'FIPS to State Crosswalk'!$A$1:$C$80,2,FALSE) -> Ohio | J91: 938 | K91: =_xlfn.IFNA(VLOOKUP(A91,'US CENSUS 2020 | Cities'!$A$1:$Q$31910,4,FALSE),0) -> 927 | L91: 927 | M91: 100 | N91: =_xlfn.IFNA(VLOOKUP($A91,'US CENSUS 2020 | Cities'!$A$1:$Q$31910,9,FALSE),0) -> 0 | O91: =_xlfn.IFNA(VLOOKUP($A91,'US CENSUS 2020 | Cities'!$A$1:$Q$31910,10,FALSE),0) -> 0 | P91: 0 | Q91: 0
A92: 1600000US1300576 | B92: Adel city | C92: 00576 | D92: 075 | E92: Cook County (part) | F92: Cook County | G92: Cook County, Georgia | H92: 13 | I92: =VLOOKUP(H92,'FIPS to State Crosswalk'!$A$1:$C$80,2,FALSE) -> Georgia | J92: 5332 | K92: =_xlfn.IFNA(VLOOKUP(A92,'US CENSUS 2020 | Cities'!$A$1:$Q$31910,4,FALSE),0) -> 5571 | L92: 5571 | M92: 100 | N92: =_xlfn.IFNA(VLOOKUP($A92,'US CENSUS 2020 | Cities'!$A$1:$Q$31910,9,FALSE),0) -> 0 | O92: =_xlfn.IFNA(VLOOKUP($A92,'US CENSUS 2020 | Cities'!$A$1:$Q$31910,10,FALSE),0) -> 0 | P92: 0 | Q92: 0
A93: 1600000US1900505 | B93: Adel city | C93: 00505 | D93: 049 | E93: Dallas County (part) | F93: Dallas County | G93: Dallas County, Iowa | H93: 19 | I93: =VLOOKUP(H93,'FIPS to State Crosswalk'!$A$1:$C$80,2,FALSE) -> Iowa | J93: 3707 | K93: =_xlfn.IFNA(VLOOKUP(A93,'US CENSUS 2020 | Cities'!$A$1:$Q$31910,4,FALSE),0) -> 6153 | L93: 6153 | M93: 100 | N93: =_xlfn.IFNA(VLOOKUP($A93,'US CENSUS 2020 | Cities'!$A$1:$Q$31910,9,FALSE),0) -> 0 | O93: =_xlfn.IFNA(VLOOKUP($A93,'US CENSUS 2020 | Cities'!$A$1:$Q$31910,10,FALSE),0) -> 0 | P93: 0 | Q93: 0
A94: 1600000US0600296 | B94: Adelanto city | C94: 00296 | D94: 071 | E94: San Bernardino County (part) | F94: San Bernardino County | G94: San Bernardino County, California | H94: 06 | I94: =VLOOKUP(H94,'FIPS to State Crosswalk'!$A$1:$C$80,2,FALSE) -> California | J94: 31765 | K94: =_xlfn.IFNA(VLOOKUP(A94,'US CENSUS 2020 | Cities'!$A$1:$Q$31910,4,FALSE),0) -> 38046 | L94: 38046 | M94: 100 | N94: =_xlfn.IFNA(VLOOKUP($A94,'US CENSUS 2020 | Cities'!$A$1:$Q$31910,9,FALSE),0) -> 1 | O94: =_xlfn.IFNA(VLOOKUP($A94,'US CENSUS 2020 | Cities'!$A$1:$Q$31910,10,FALSE),0) -> 0 | P94: 38046 | Q94: 0
A95: 1600000US1700295 | B95: Adeline village | C95: 00295 | D95: 141 | E95: Ogle County (part) | F95: Ogle County | G95: Ogle County, Illinois | H95: 17 | I95: =VLOOKUP(H95,'FIPS to State Crosswalk'!$A$1:$C$80,2,FALSE) -> Illinois | J95: 85 | K95: =_xlfn.IFNA(VLOOKUP(A95,'US CENSUS 2020 | Cities'!$A$1:$Q$31910,4,FALSE),0) -> 78 | L95: 78 | M95: 100 | N95: =_xlfn.IFNA(VLOOKUP($A95,'US CENSUS 2020 | Cities'!$A$1:$Q$31910,9,FALSE),0) -> 0 | O95: =_xlfn.IFNA(VLOOKUP($A95,'US CENSUS 2020 | Cities'!$A$1:$Q$31910,10,FALSE),0) -> 0 | P95: 0 | Q95: 0
A96: 1600000US3500940 | B96: Adelino CDP | C96: 00940 | D96: 061 | E96: Valencia County (part) | F96: Valencia County | G96: Valencia County, New Mexico | H96: 35 | I96: =VLOOKUP(H96,'FIPS to State Crosswalk'!$A$1:$C$80,2,FALSE) -> New Mexico | J96: 823 | K96: =_xlfn.IFNA(VLOOKUP(A96,'US CENSUS 2020 | Cities'!$A$1:$Q$31910,4,FALSE),0) -> 735 | L96: 735 | M96: 100 | N96: =_xlfn.IFNA(VLOOKUP($A96,'US CENSUS 2020 | Cities'!$A$1:$Q$31910,9,FALSE),0) -> 0 | O96: =_xlfn.IFNA(VLOOKUP($A96,'US CENSUS 2020 | Cities'!$A$1:$Q$31910,10,FALSE),0) -> 0 | P96: 0 | Q96: 0
A97: 1600000US5500450 | B97: Adell village | C97: 00450 | D97: 117 | E97: Sheboygan County (part) | F97: Sheboygan County | G97: Sheboygan County, Wisconsin | H97: 55 | I97: =VLOOKUP(H97,'FIPS to State Crosswalk'!$A$1:$C$80,2,FALSE) -> Wisconsin | J97: 516 | K97: =_xlfn.IFNA(VLOOKUP(A97,'US CENSUS 2020 | Cities'!$A$1:$Q$31910,4,FALSE),0) -> 498 | L97: 498 | M97: 100 | N97: =_xlfn.IFNA(VLOOKUP($A97,'US CENSUS 2020 | Cities'!$A$1:$Q$31910,9,FALSE),0) -> 0 | O97: =_xlfn.IFNA(VLOOKUP($A97,'US CENSUS 2020 | Cities'!$A$1:$Q$31910,10,FALSE),0) -> 0 | P97: 0 | Q97: 0
A98: 1600000US2400400 | B98: Adelphi CDP | C98: 00400 | D98: 033 | E98: Prince George's County (part) | F98: Prince George's County | G98: Prince George's County, Maryland | H98: 24 | I98: =VLOOKUP(H98,'FIPS to State Crosswalk'!$A$1:$C$80,2,FALSE) -> Maryland | J98: 15086 | K98: =_xlfn.IFNA(VLOOKUP(A98,'US CENSUS 2020 | Cities'!$A$1:$Q$31910,4,FALSE),0) -> 16823 | L98: 16823 | M98: 100 | N98: =_xlfn.IFNA(VLOOKUP($A98,'US CENSUS 2020 | Cities'!$A$1:$Q$31910,9,FALSE),0) -> 0 | O98: =_xlfn.IFNA(VLOOKUP($A98,'US CENSUS 2020 | Cities'!$A$1:$Q$31910,10,FALSE),0) -> 0 | P98: 0 | Q98: 0
A99: 1600000US3900450 | B99: Adelphi village | C99: 00450 | D99: 141 | E99: Ross County (part) | F99: Ross County | G99: Ross County, Ohio | H99: 39 | I99: =VLOOKUP(H99,'FIPS to State Crosswalk'!$A$1:$C$80,2,FALSE) -> Ohio | J99: 380 | K99: =_xlfn.IFNA(VLOOKUP(A99,'US CENSUS 2020 | Cities'!$A$1:$Q$31910,4,FALSE),0) -> 322 | L99: 322 | M99: 100 | N99: =_xlfn.IFNA(VLOOKUP($A99,'US CENSUS 2020 | Cities'!$A$1:$Q$31910,9,FALSE),0) -> 0 | O99: =_xlfn.IFNA(VLOOKUP($A99,'US CENSUS 2020 | Cities'!$A$1:$Q$31910,10,FALSE),0) -> 0 | P99: 0 | Q99: 0
A100: 1600000US0600310 | B100: Adin CDP | C100: 00310 | D100: 049 | E100: Modoc County (part) | F100: Modoc County | G100: Modoc County, California | H100: 06 | I100: =VLOOKUP(H100,'FIPS to State Crosswalk'!$A$1:$C$80,2,FALSE) -> California | J100: 272 | K100: =_xlfn.IFNA(VLOOKUP(A100,'US CENSUS 2020 | Cities'!$A$1:$Q$31910,4,FALSE),0) -> 205 | L100: 205 | M100: 100 | N100: =_xlfn.IFNA(VLOOKUP($A100,'US CENSUS 2020 | Cities'!$A$1:$Q$31910,9,FALSE),0) -> 0 | O100: =_xlfn.IFNA(VLOOKUP($A100,'US CENSUS 2020 | Cities'!$A$1:$Q$31910,10,FALSE),0) -> 0 | P100: 0 | Q100: 0
A101: 1600000US7200358 | B101: Adjuntas zona urbana | C101: 00358 | D101: 001 | E101: Adjuntas Municipio (part) | F101: Adjuntas Municipio | G101: Adjuntas Municipio, Puerto Rico | H101: 72 | I101: =VLOOKUP(H101,'FIPS to State Crosswalk'!$A$1:$C$80,2,FALSE) -> Puerto Rico | J101: 4406 | K101: =_xlfn.IFNA(VLOOKUP(A101,'US CENSUS 2020 | Cities'!$A$1:$Q$31910,4,FALSE),0) -> 4169 | L101: 4169 | M101: 100 | N101: =_xlfn.IFNA(VLOOKUP($A101,'US CENSUS 2020 | Cities'!$A$1:$Q$31910,9,FALSE),0) -> 0 | O101: =_xlfn.IFNA(VLOOKUP($A101,'US CENSUS 2020 | Cities'!$A$1:$Q$31910,10,FALSE),0) -> 0 | P101: 0 | Q101: 0
A102: 1600000US2000325 | B102: Admire city | C102: 00325 | D102: 111 | E102: Lyon County (part) | F102: Lyon County | G102: Lyon County, Kansas | H102: 20 | I102: =VLOOKUP(H102,'FIPS to State Crosswalk'!$A$1:$C$80,2,FALSE) -> Kansas | J102: 156 | K102: =_xlfn.IFNA(VLOOKUP(A102,'US CENSUS 2020 | Cities'!$A$1:$Q$31910,4,FALSE),0) -> 130 | L102: 130 | M102: 100 | N102: =_xlfn.IFNA(VLOOKUP($A102,'US CENSUS 2020 | Cities'!$A$1:$Q$31910,9,FALSE),0) -> 0 | O102: =_xlfn.IFNA(VLOOKUP($A102,'US CENSUS 2020 | Cities'!$A$1:$Q$31910,10,FALSE),0) -> 0 | P102: 0 | Q102: 0
A103: 1600000US0500250 | B103: Adona city | C103: 00250 | D103: 105 | E103: Perry County (part) | F103: Perry County | G103: Perry County, Arkansas | H103: 05 | I103: =VLOOKUP(H103,'FIPS to State Crosswalk'!$A$1:$C$80,2,FALSE) -> Arkansas | J103: 209 | K103: =_xlfn.IFNA(VLOOKUP(A103,'US CENSUS 2020 | Cities'!$A$1:$Q$31910,4,FALSE),0) -> 149 | L103: 149 | M103: 100 | N103: =_xlfn.IFNA(VLOOKUP($A103,'US CENSUS 2020 | Cities'!$A$1:$Q$31910,9,FALSE),0) -> 0 | O103: =_xlfn.IFNA(VLOOKUP($A103,'US CENSUS 2020 | Cities'!$A$1:$Q$31910,10,FALSE),0) -> 0 | P103: 0 | Q103: 0
A104: 1600000US2700262 | B104: Adrian city | C104: 00262 | D104: 105 | E104: Nobles County (part) | F104: Nobles County | G104: Nobles County, Minnesota | H104: 27 | I104: =VLOOKUP(H104,'FIPS to State Crosswalk'!$A$1:$C$80,2,FALSE) -> Minnesota | J104: 1209 | K104: =_xlfn.IFNA(VLOOKUP(A104,'US CENSUS 2020 | Cities'!$A$1:$Q$31910,4,FALSE),0) -> 1194 | L104: 1194 | M104: 100 | N104: =_xlfn.IFNA(VLOOKUP($A104,'US CENSUS 2020 | Cities'!$A$1:$Q$31910,9,FALSE),0) -> 0 | O104: =_xlfn.IFNA(VLOOKUP($A104,'US CENSUS 2020 | Cities'!$A$1:$Q$31910,10,FALSE),0) -> 0 | P104: 0 | Q104: 0
A105: 1600000US2900244 | B105: Adrian city | C105: 00244 | D105: 013 | E105: Bates County (part) | F105: Bates County | G105: Bates County, Missouri | H105: 29 | I105: =VLOOKUP(H105,'FIPS to State Crosswalk'!$A$1:$C$80,2,FALSE) -> Missouri | J105: 1677 | K105: =_xlfn.IFNA(VLOOKUP(A105,'US CENSUS 2020 | Cities'!$A$1:$Q$31910,4,FALSE),0) -> 1730 | L105: 1730 | M105: 100 | N105: =_xlfn.IFNA(VLOOKUP($A105,'US CENSUS 2020 | Cities'!$A$1:$Q$31910,9,FALSE),0) -> 0 | O105: =_xlfn.IFNA(VLOOKUP($A105,'US CENSUS 2020 | Cities'!$A$1:$Q$31910,10,FALSE),0) -> 0 | P105: 0 | Q105: 0
A106: 1600000US4100500 | B106: Adrian city | C106: 00500 | D106: 045 | E106: Malheur County (part) | F106: Malheur County | G106: Malheur County, Oregon | H106: 41 | I106: =VLOOKUP(H106,'FIPS to State Crosswalk'!$A$1:$C$80,2,FALSE) -> Oregon | J106: 177 | K106: =_xlfn.IFNA(VLOOKUP(A106,'US CENSUS 2020 | Cities'!$A$1:$Q$31910,4,FALSE),0) -> 157 | L106: 157 | M106: 100 | N106: =_xlfn.IFNA(VLOOKUP($A106,'US CENSUS 2020 | Cities'!$A$1:$Q$31910,9,FALSE),0) -> 0 | O106: =_xlfn.IFNA(VLOOKUP($A106,'US CENSUS 2020 | Cities'!$A$1:$Q$31910,10,FALSE),0) -> 0 | P106: 0 | Q106: 0
A107: 1600000US4801324 | B107: Adrian city | C107: 01324 | D107: 359 | E107: Oldham County (part) | F107: Oldham County | G107: Oldham County, Texas | H107: 48 | I107: =VLOOKUP(H107,'FIPS to State Crosswalk'!$A$1:$C$80,2,FALSE) -> Texas | J107: 166 | K107: =_xlfn.IFNA(VLOOKUP(A107,'US CENSUS 2020 | Cities'!$A$1:$Q$31910,4,FALSE),0) -> 128 | L107: 128 | M107: 100 | N107: =_xlfn.IFNA(VLOOKUP($A107,'US CENSUS 2020 | Cities'!$A$1:$Q$31910,9,FALSE),0) -> 0 | O107: =_xlfn.IFNA(VLOOKUP($A107,'US CENSUS 2020 | Cities'!$A$1:$Q$31910,10,FALSE),0) -> 0 | P107: 0 | Q107: 0
A108: 1600000US2600440 | B108: Adrian city | C108: 00440 | D108: 091 | E108: Lenawee County (part) | F108: Lenawee County | G108: Lenawee County, Michigan | H108: 26 | I108: =VLOOKUP(H108,'FIPS to State Crosswalk'!$A$1:$C$80,2,FALSE) -> Michigan | J108: 21193 | K108: =_xlfn.IFNA(VLOOKUP(A108,'US CENSUS 2020 | Cities'!$A$1:$Q$31910,4,FALSE),0) -> 20645 | L108: 20645 | M108: 100 | N108: =_xlfn.IFNA(VLOOKUP($A108,'US CENSUS 2020 | Cities'!$A$1:$Q$31910,9,FALSE),0) -> 0 | O108: =_xlfn.IFNA(VLOOKUP($A108,'US CENSUS 2020 | Cities'!$A$1:$Q$31910,10,FALSE),0) -> 0 | P108: 0 | Q108: 0
A109: 1600000US2600480 | B109: Advance CDP | C109: 00480 | D109: 029 | E109: Charlevoix County (part) | F109: Charlevoix County | G109: Charlevoix County, Michigan | H109: 26 | I109: =VLOOKUP(H109,'FIPS to State Crosswalk'!$A$1:$C$80,2,FALSE) -> Michigan | J109: 328 | K109: =_xlfn.IFNA(VLOOKUP(A109,'US CENSUS 2020 | Cities'!$A$1:$Q$31910,4,FALSE),0) -> 340 | L109: 340 | M109: 100 | N109: =_xlfn.IFNA(VLOOKUP($A109,'US CENSUS 2020 | Cities'!$A$1:$Q$31910,9,FALSE),0) -> 0 | O109: =_xlfn.IFNA(VLOOKUP($A109,'US CENSUS 2020 | Cities'!$A$1:$Q$31910,10,FALSE),0) -> 0 | P109: 0 | Q109: 0
A110: 1600000US3700440 | B110: Advance CDP | C110: 00440 | D110: 059 | E110: Davie County (part) | F110: Davie County | G110: Davie County, North Carolina | H110: 37 | I110: =VLOOKUP(H110,'FIPS to State Crosswalk'!$A$1:$C$80,2,FALSE) -> North Carolina | J110: 1138 | K110: =_xlfn.IFNA(VLOOKUP(A110,'US CENSUS 2020 | Cities'!$A$1:$Q$31910,4,FALSE),0) -> 1499 | L110: 1499 | M110: 100 | N110: =_xlfn.IFNA(VLOOKUP($A110,'US CENSUS 2020 | Cities'!$A$1:$Q$31910,9,FALSE),0) -> 0 | O110: =_xlfn.IFNA(VLOOKUP($A110,'US CENSUS 2020 | Cities'!$A$1:$Q$31910,10,FALSE),0) -> 0 | P110: 0 | Q110: 0
A111: 1600000US2900262 | B111: Advance city | C111: 00262 | D111: 207 | E111: Stoddard County (part) | F111: Stoddard County | G111: Stoddard County, Missouri | H111: 29 | I111: =VLOOKUP(H111,'FIPS to State Crosswalk'!$A$1:$C$80,2,FALSE) -> Missouri | J111: 1347 | K111: =_xlfn.IFNA(VLOOKUP(A111,'US CENSUS 2020 | Cities'!$A$1:$Q$31910,4,FALSE),0) -> 1349 | L111: 1349 | M111: 100 | N111: =_xlfn.IFNA(VLOOKUP($A111,'US CENSUS 2020 | Cities'!$A$1:$Q$31910,9,FALSE),0) -> 0 | O111: =_xlfn.IFNA(VLOOKUP($A111,'US CENSUS 2020 | Cities'!$A$1:$Q$31910,10,FALSE),0) -> 0 | P111: 0 | Q111: 0
A112: 1600000US1800640 | B112: Advance town | C112: 00640 | D112: 011 | E112: Boone County (part) | F112: Boone County | G112: Boone County, Indiana | H112: 18 | I112: =VLOOKUP(H112,'FIPS to State Crosswalk'!$A$1:$C$80,2,FALSE) -> Indiana | J112: 477 | K112: =_xlfn.IFNA(VLOOKUP(A112,'US CENSUS 2020 | Cities'!$A$1:$Q$31910,4,FALSE),0) -> 503 | L112: 503 | M112: 100 | N112: =_xlfn.IFNA(VLOOKUP($A112,'US CENSUS 2020 | Cities'!$A$1:$Q$31910,9,FALSE),0) -> 0 | O112: =_xlfn.IFNA(VLOOKUP($A112,'US CENSUS 2020 | Cities'!$A$1:$Q$31910,10,FALSE),0) -> 0 | P112: 0 | Q112: 0
A113: 1600000US5100468 | B113: Adwolf CDP | C113: 00468 | D113: 173 | E113: Smyth County (part) | F113: Smyth County | G113: Smyth County, Virginia | H113: 51 | I113: =VLOOKUP(H113,'FIPS to State Crosswalk'!$A$1:$C$80,2,FALSE) -> Virginia | J113: 1530 | K113: =_xlfn.IFNA(VLOOKUP(A113,'US CENSUS 2020 | Cities'!$A$1:$Q$31910,4,FALSE),0) -> 1658 | L113: 1658 | M113: 100 | N113: =_xlfn.IFNA(VLOOKUP($A113,'US CENSUS 2020 | Cities'!$A$1:$Q$31910,9,FALSE),0) -> 0 | O113: =_xlfn.IFNA(VLOOKUP($A113,'US CENSUS 2020 | Cities'!$A$1:$Q$31910,10,FALSE),0) -> 0 | P113: 0 | Q113: 0
A114: 1600000US0800620 | B114: Aetna Estates CDP | C114: 00620 | D114: 005 | E114: Arapahoe County (part) | F114: Arapahoe County | G114: Arapahoe County, Colorado | H114: 08 | I114: =VLOOKUP(H114,'FIPS to State Crosswalk'!$A$1:$C$80,2,FALSE) -> Colorado | J114: 834 | K114: =_xlfn.IFNA(VLOOKUP(A114,'US CENSUS 2020 | Cities'!$A$1:$Q$31910,4,FALSE),0) -> 1496 | L114: 1496 | M114: 100 | N114: =_xlfn.IFNA(VLOOKUP($A114,'US CENSUS 2020 | Cities'!$A$1:$Q$31910,9,FALSE),0) -> 0 | O114: =_xlfn.IFNA(VLOOKUP($A114,'US CENSUS 2020 | Cities'!$A$1:$Q$31910,10,FALSE),0) -> 0 | P114: 0 | Q114: 0
A115: 1600000US2900280 | B115: Affton CDP | C115: 00280 | D115: 189 | E115: St. Louis County (part) | F115: St. Louis County | G115: St. Louis County, Missouri | H115: 29 | I115: =VLOOKUP(H115,'FIPS to State Crosswalk'!$A$1:$C$80,2,FALSE) -> Missouri | J115: 20307 | K115: =_xlfn.IFNA(VLOOKUP(A115,'US CENSUS 2020 | Cities'!$A$1:$Q$31910,4,FALSE),0) -> 20417 | L115: 20417 | M115: 100 | N115: =_xlfn.IFNA(VLOOKUP($A115,'US CENSUS 2020 | Cities'!$A$1:$Q$31910,9,FALSE),0) -> 0 | O115: =_xlfn.IFNA(VLOOKUP($A115,'US CENSUS 2020 | Cities'!$A$1:$Q$31910,10,FALSE),0) -> 0 | P115: 0 | Q115: 0
A116: 1600000US2700316 | B116: Afton city | C116: 00316 | D116: 163 | E116: Washington County (part) | F116: Washington County | G116: Washington County, Minnesota | H116: 27 | I116: =VLOOKUP(H116,'FIPS to State Crosswalk'!$A$1:$C$80,2,FALSE) -> Minnesota | J116: 2879 | K116: =_xlfn.IFNA(VLOOKUP(A116,'US CENSUS 2020 | Cities'!$A$1:$Q$31910,4,FALSE),0) -> 2955 | L116: 2955 | M116: 100 | N116: =_xlfn.IFNA(VLOOKUP($A116,'US CENSUS 2020 | Cities'!$A$1:$Q$31910,9,FALSE),0) -> 0 | O116: =_xlfn.IFNA(VLOOKUP($A116,'US CENSUS 2020 | Cities'!$A$1:$Q$31910,10,FALSE),0) -> 0 | P116: 0 | Q116: 0
A117: 1600000US1900595 | B117: Afton city | C117: 00595 | D117: 175 | E117: Union County (part) | F117: Union County | G117: Union County, Iowa | H117: 19 | I117: =VLOOKUP(H117,'FIPS to State Crosswalk'!$A$1:$C$80,2,FALSE) -> Iowa | J117: 845 | K117: =_xlfn.IFNA(VLOOKUP(A117,'US CENSUS 2020 | Cities'!$A$1:$Q$31910,4,FALSE),0) -> 874 | L117: 874 | M117: 100 | N117: =_xlfn.IFNA(VLOOKUP($A117,'US CENSUS 2020 | Cities'!$A$1:$Q$31910,9,FALSE),0) -> 0 | O117: =_xlfn.IFNA(VLOOKUP($A117,'US CENSUS 2020 | Cities'!$A$1:$Q$31910,10,FALSE),0) -> 0 | P117: 0 | Q117: 0
A118: 1600000US5600245 | B118: Afton town | C118: 00245 | D118: 023 | E118: Lincoln County (part) | F118: Lincoln County | G118: Lincoln County, Wyoming | H118: 56 | I118: =VLOOKUP(H118,'FIPS to State Crosswalk'!$A$1:$C$80,2,FALSE) -> Wyoming | J118: 1916 | K118: =_xlfn.IFNA(VLOOKUP(A118,'US CENSUS 2020 | Cities'!$A$1:$Q$31910,4,FALSE),0) -> 2172 | L118: 2172 | M118: 100 | N118: =_xlfn.IFNA(VLOOKUP($A118,'US CENSUS 2020 | Cities'!$A$1:$Q$31910,9,FALSE),0) -> 0 | O118: =_xlfn.IFNA(VLOOKUP($A118,'US CENSUS 2020 | Cities'!$A$1:$Q$31910,10,FALSE),0) -> 0 | P118: 0 | Q118: 0
A119: 1600000US4000600 | B119: Afton town | C119: 00600 | D119: 115 | E119: Ottawa County (part) | F119: Ottawa County | G119: Ottawa County, Oklahoma | H119: 40 | I119: =VLOOKUP(H119,'FIPS to State Crosswalk'!$A$1:$C$80,2,FALSE) -> Oklahoma | J119: 1045 | K119: =_xlfn.IFNA(VLOOKUP(A119,'US CENSUS 2020 | Cities'!$A$1:$Q$31910,4,FALSE),0) -> 734 | L119: 734 | M119: 100 | N119: =_xlfn.IFNA(VLOOKUP($A119,'US CENSUS 2020 | Cities'!$A$1:$Q$31910,9,FALSE),0) -> 0 | O119: =_xlfn.IFNA(VLOOKUP($A119,'US CENSUS 2020 | Cities'!$A$1:$Q$31910,10,FALSE),0) -> 0 | P119: 0 | Q119: 0
A120: 1600000US3600342 | B120: Afton village | C120: 00342 | D120: 017 | E120: Chenango County (part) | F120: Chenango County | G120: Chenango County, New York | H120: 36 | I120: =VLOOKUP(H120,'FIPS to State Crosswalk'!$A$1:$C$80,2,FALSE) -> New York | J120: 832 | K120: =_xlfn.IFNA(VLOOKUP(A120,'US CENSUS 2020 | Cities'!$A$1:$Q$31910,4,FALSE),0) -> 794 | L120: 794 | M120: 100 | N120: =_xlfn.IFNA(VLOOKUP($A120,'US CENSUS 2020 | Cities'!$A$1:$Q$31910,9,FALSE),0) -> 0 | O120: =_xlfn.IFNA(VLOOKUP($A120,'US CENSUS 2020 | Cities'!$A$1:$Q$31910,10,FALSE),0) -> 0 | P120: 0 | Q120: 0
A121: 1600000US4600460 | B121: Agar town | C121: 00460 | D121: 119 | E121: Sully County (part) | F121: Sully County | G121: Sully County, South Dakota | H121: 46 | I121: =VLOOKUP(H121,'FIPS to State Crosswalk'!$A$1:$C$80,2,FALSE) -> South Dakota | J121: 76 | K121: =_xlfn.IFNA(VLOOKUP(A121,'US CENSUS 2020 | Cities'!$A$1:$Q$31910,4,FALSE),0) -> 68 | L121: 68 | M121: 100 | N121: =_xlfn.IFNA(VLOOKUP($A121,'US CENSUS 2020 | Cities'!$A$1:$Q$31910,9,FALSE),0) -> 0 | O121: =_xlfn.IFNA(VLOOKUP($A121,'US CENSUS 2020 | Cities'!$A$1:$Q$31910,10,FALSE),0) -> 0 | P121: 0 | Q121: 0
A122: 1600000US2500840 | B122: Agawam Town city | C122: 00840 | D122: 013 | E122: Hampden County (part) | F122: Hampden County | G122: Hampden County, Massachusetts | H122: 25 | I122: =VLOOKUP(H122,'FIPS to State Crosswalk'!$A$1:$C$80,2,FALSE) -> Massachusetts | J122: 28438 | K122: =_xlfn.IFNA(VLOOKUP(A122,'US CENSUS 2020 | Cities'!$A$1:$Q$31910,4,FALSE),0) -> 28692 | L122: 28692 | M122: 100 | N122: =_xlfn.IFNA(VLOOKUP($A122,'US CENSUS 2020 | Cities'!$A$1:$Q$31910,9,FALSE),0) -> 0 | O122: =_xlfn.IFNA(VLOOKUP($A122,'US CENSUS 2020 | Cities'!$A$1:$Q$31910,10,FALSE),0) -> 0 | P122: 0 | Q122: 0
A123: 1600000US1900640 | B123: Agency city | C123: 00640 | D123: 179 | E123: Wapello County (part) | F123: Wapello County | G123: Wapello County, Iowa | H123: 19 | I123: =VLOOKUP(H123,'FIPS to State Crosswalk'!$A$1:$C$80,2,FALSE) -> Iowa | J123: 638 | K123: =_xlfn.IFNA(VLOOKUP(A123,'US CENSUS 2020 | Cities'!$A$1:$Q$31910,4,FALSE),0) -> 620 | L123: 620 | M123: 100 | N123: =_xlfn.IFNA(VLOOKUP($A123,'US CENSUS 2020 | Cities'!$A$1:$Q$31910,9,FALSE),0) -> 0 | O123: =_xlfn.IFNA(VLOOKUP($A123,'US CENSUS 2020 | Cities'!$A$1:$Q$31910,10,FALSE),0) -> 0 | P123: 0 | Q123: 0
A124: 1600000US2900298 | B124: Agency village | C124: 00298 | D124: 021 | E124: Buchanan County (part) | F124: Buchanan County | G124: Buchanan County, Missouri | H124: 29 | I124: =VLOOKUP(H124,'FIPS to State Crosswalk'!$A$1:$C$80,2,FALSE) -> Missouri | J124: 683 | K124: =_xlfn.IFNA(VLOOKUP(A124,'US CENSUS 2020 | Cities'!$A$1:$Q$31910,4,FALSE),0) -> 671 | L124: 671 | M124: 100 | N124: =_xlfn.IFNA(VLOOKUP($A124,'US CENSUS 2020 | Cities'!$A$1:$Q$31910,9,FALSE),0) -> 0 | O124: =_xlfn.IFNA(VLOOKUP($A124,'US CENSUS 2020 | Cities'!$A$1:$Q$31910,10,FALSE),0) -> 0 | P124: 0 | Q124: 0
A125: 1600000US4600520 | B125: Agency Village CDP | C125: 00520 | D125: 109 | E125: Roberts County (part) | F125: Roberts County | G125: Roberts County, South Dakota | H125: 46 | I125: =VLOOKUP(H125,'FIPS to State Crosswalk'!$A$1:$C$80,2,FALSE) -> South Dakota | J125: 181 | K125: =_xlfn.IFNA(VLOOKUP(A125,'US CENSUS 2020 | Cities'!$A$1:$Q$31910,4,FALSE),0) -> 776 | L125: 776 | M125: 100 | N125: =_xlfn.IFNA(VLOOKUP($A125,'US CENSUS 2020 | Cities'!$A$1:$Q$31910,9,FALSE),0) -> 0 | O125: =_xlfn.IFNA(VLOOKUP($A125,'US CENSUS 2020 | Cities'!$A$1:$Q$31910,10,FALSE),0) -> 0 | P125: 0 | Q125: 0
A126: 1600000US2000475 | B126: Agenda city | C126: 00475 | D126: 157 | E126: Republic County (part) | F126: Republic County | G126: Republic County, Kansas | H126: 20 | I126: =VLOOKUP(H126,'FIPS to State Crosswalk'!$A$1:$C$80,2,FALSE) -> Kansas | J126: 68 | K126: =_xlfn.IFNA(VLOOKUP(A126,'US CENSUS 2020 | Cities'!$A$1:$Q$31910,4,FALSE),0) -> 47 | L126: 47 | M126: 100 | N126: =_xlfn.IFNA(VLOOKUP($A126,'US CENSUS 2020 | Cities'!$A$1:$Q$31910,9,FALSE),0) -> 0 | O126: =_xlfn.IFNA(VLOOKUP($A126,'US CENSUS 2020 | Cities'!$A$1:$Q$31910,10,FALSE),0) -> 0 | P126: 0 | Q126: 0
A127: 1600000US0600394 | B127: Agoura Hills city | C127: 00394 | D127: 037 | E127: Los Angeles County (part) | F127: Los Angeles County | G127: Los Angeles County, California | H127: 06 | I127: =VLOOKUP(H127,'FIPS to State Crosswalk'!$A$1:$C$80,2,FALSE) -> California | J127: 20330 | K127: =_xlfn.IFNA(VLOOKUP(A127,'US CENSUS 2020 | Cities'!$A$1:$Q$31910,4,FALSE),0) -> 20299 | L127: 20299 | M127: 100 | N127: =_xlfn.IFNA(VLOOKUP($A127,'US CENSUS 2020 | Cities'!$A$1:$Q$31910,9,FALSE),0) -> 0 | O127: =_xlfn.IFNA(VLOOKUP($A127,'US CENSUS 2020 | Cities'!$A$1:$Q$31910,10,FALSE),0) -> 0 | P127: 0 | Q127: 0
A128: 1600000US2000550 | B128: Agra city | C128: 00550 | D128: 147 | E128: Phillips County (part) | F128: Phillips County | G128: Phillips County, Kansas | H128: 20 | I128: =VLOOKUP(H128,'FIPS to State Crosswalk'!$A$1:$C$80,2,FALSE) -> Kansas | J128: 267 | K128: =_xlfn.IFNA(VLOOKUP(A128,'US CENSUS 2020 | Cities'!$A$1:$Q$31910,4,FALSE),0) -> 208 | L128: 208 | M128: 100 | N128: =_xlfn.IFNA(VLOOKUP($A128,'US CENSUS 2020 | Cities'!$A$1:$Q$31910,9,FALSE),0) -> 0 | O128: =_xlfn.IFNA(VLOOKUP($A128,'US CENSUS 2020 | Cities'!$A$1:$Q$31910,10,FALSE),0) -> 0 | P128: 0 | Q128: 0
A129: 1600000US4000700 | B129: Agra town | C129: 00700 | D129: 081 | E129: Lincoln County (part) | F129: Lincoln County | G129: Lincoln County, Oklahoma | H129: 40 | I129: =VLOOKUP(H129,'FIPS to State Crosswalk'!$A$1:$C$80,2,FALSE) -> Oklahoma | J129: 339 | K129: =_xlfn.IFNA(VLOOKUP(A129,'US CENSUS 2020 | Cities'!$A$1:$Q$31910,4,FALSE),0) -> 311 | L129: 311 | M129: 100 | N129: =_xlfn.IFNA(VLOOKUP($A129,'US CENSUS 2020 | Cities'!$A$1:$Q$31910,9,FALSE),0) -> 0 | O129: =_xlfn.IFNA(VLOOKUP($A129,'US CENSUS 2020 | Cities'!$A$1:$Q$31910,10,FALSE),0) -> 0 | P129: 0 | Q129: 0
A130: 1600000US4801390 | B130: Agua Dulce CDP | C130: 01390 | D130: 141 | E130: El Paso County (part) | F130: El Paso County | G130: El Paso County, Texas | H130: 48 | I130: =VLOOKUP(H130,'FIPS to State Crosswalk'!$A$1:$C$80,2,FALSE) -> Texas | J130: 3014 | K130: =_xlfn.IFNA(VLOOKUP(A130,'US CENSUS 2020 | Cities'!$A$1:$Q$31910,4,FALSE),0) -> 3218 | L130: =IF(M130=100,K130,J130) -> 3218 | M130: 100 | N130: =_xlfn.IFNA(VLOOKUP($A130,'US CENSUS 2020 | Cities'!$A$1:$Q$31910,9,FALSE),0) -> 0 | O130: =_xlfn.IFNA(VLOOKUP($A130,'US CENSUS 2020 | Cities'!$A$1:$Q$31910,10,FALSE),0) -> 0 | P130: =L130*N130 -> 0 | Q130: =L130*O130 -> 0
A131: 1600000US0600450 | B131: Agua Dulce CDP | C131: 00450 | D131: 037 | E131: Los Angeles County (part) | F131: Los Angeles County | G131: =F131&", "&I131 -> Los Angeles County, California | H131: 06 | I131: =VLOOKUP(H131,'FIPS to State Crosswalk'!$A$1:$C$80,2,FALSE) -> California | J131: 3342 | K131: =_xlfn.IFNA(VLOOKUP(A131,'US CENSUS 2020 | Cities'!$A$1:$Q$31910,4,FALSE),0) -> 3451 | L131: 3451 | M131: 100 | N131: =_xlfn.IFNA(VLOOKUP($A131,'US CENSUS 2020 | Cities'!$A$1:$Q$31910,9,FALSE),0) -> 0 | O131: =_xlfn.IFNA(VLOOKUP($A131,'US CENSUS 2020 | Cities'!$A$1:$Q$31910,10,FALSE),0) -> 0 | P131: 0 | Q131: 0
A132: 1600000US4801396 | B132: Agua Dulce city | C132: 01396 | D132: 355 | E132: Nueces County (part) | F132: Nueces County | G132: Nueces County, Texas | H132: 48 | I132: =VLOOKUP(H132,'FIPS to State Crosswalk'!$A$1:$C$80,2,FALSE) -> Texas | J132: 812 | K132: =_xlfn.IFNA(VLOOKUP(A132,'US CENSUS 2020 | Cities'!$A$1:$Q$31910,4,FALSE),0) -> 685 | L132: 685 | M132: 100 | N132: =_xlfn.IFNA(VLOOKUP($A132,'US CENSUS 2020 | Cities'!$A$1:$Q$31910,9,FALSE),0) -> 0 | O132: =_xlfn.IFNA(VLOOKUP($A132,'US CENSUS 2020 | Cities'!$A$1:$Q$31910,10,FALSE),0) -> 0 | P132: 0 | Q132: 0
A133: 1600000US3501220 | B133: Agua Fria CDP | C133: 01220 | D133: 049 | E133: Santa Fe County (part) | F133: Santa Fe County | G133: Santa Fe County, New Mexico | H133: 35 | I133: =VLOOKUP(H133,'FIPS to State Crosswalk'!$A$1:$C$80,2,FALSE) -> New Mexico | J133: 2800 | K133: =_xlfn.IFNA(VLOOKUP(A133,'US CENSUS 2020 | Cities'!$A$1:$Q$31910,4,FALSE),0) -> 2913 | L133: 2913 | M133: 100 | N133: =_xlfn.IFNA(VLOOKUP($A133,'US CENSUS 2020 | Cities'!$A$1:$Q$31910,9,FALSE),0) -> 0 | O133: =_xlfn.IFNA(VLOOKUP($A133,'US CENSUS 2020 | Cities'!$A$1:$Q$31910,10,FALSE),0) -> 0 | P133: 0 | Q133: 0
A134: 1600000US7200616 | B134: Aguada zona urbana | C134: 00616 | D134: 003 | E134: Aguada Municipio (part) | F134: Aguada Municipio | G134: Aguada Municipio, Puerto Rico | H134: 72 | I134: =VLOOKUP(H134,'FIPS to State Crosswalk'!$A$1:$C$80,2,FALSE) -> Puerto Rico | J134: 3212 | K134: =_xlfn.IFNA(VLOOKUP(A134,'US CENSUS 2020 | Cities'!$A$1:$Q$31910,4,FALSE),0) -> 2839 | L134: 2839 | M134: 100 | N134: =_xlfn.IFNA(VLOOKUP($A134,'US CENSUS 2020 | Cities'!$A$1:$Q$31910,9,FALSE),0) -> 0 | O134: =_xlfn.IFNA(VLOOKUP($A134,'US CENSUS 2020 | Cities'!$A$1:$Q$31910,10,FALSE),0) -> 0 | P134: 0 | Q134: 0
A135: 1600000US7200745 | B135: Aguadilla zona urbana | C135: 00745 | D135: 005 | E135: Aguadilla Municipio (part) | F135: Aguadilla Municipio | G135: Aguadilla Municipio, Puerto Rico | H135: 72 | I135: =VLOOKUP(H135,'FIPS to State Crosswalk'!$A$1:$C$80,2,FALSE) -> Puerto Rico | J135: 13310 | K135: =_xlfn.IFNA(VLOOKUP(A135,'US CENSUS 2020 | Cities'!$A$1:$Q$31910,4,FALSE),0) -> 10919 | L135: 10919 | M135: 100 | N135: =_xlfn.IFNA(VLOOKUP($A135,'US CENSUS 2020 | Cities'!$A$1:$Q$31910,9,FALSE),0) -> 0 | O135: =_xlfn.IFNA(VLOOKUP($A135,'US CENSUS 2020 | Cities'!$A$1:$Q$31910,10,FALSE),0) -> 0 | P135: 0 | Q135: 0
A136: 1600000US0600464 | B136: Aguanga CDP | C136: 00464 | D136: 065 | E136: Riverside County (part) | F136: Riverside County | G136: Riverside County, California | H136: 06 | I136: =VLOOKUP(H136,'FIPS to State Crosswalk'!$A$1:$C$80,2,FALSE) -> California | J136: 1128 | K136: =_xlfn.IFNA(VLOOKUP(A136,'US CENSUS 2020 | Cities'!$A$1:$Q$31910,4,FALSE),0) -> 989 | L136: 989 | M136: 100 | N136: =_xlfn.IFNA(VLOOKUP($A136,'US CENSUS 2020 | Cities'!$A$1:$Q$31910,9,FALSE),0) -> 0 | O136: =_xlfn.IFNA(VLOOKUP($A136,'US CENSUS 2020 | Cities'!$A$1:$Q$31910,10,FALSE),0) -> 0 | P136: 0 | Q136: 0
A137: 1600000US7200874 | B137: Aguas Buenas zona urbana | C137: 00874 | D137: 007 | E137: Aguas Buenas Municipio (part) | F137: Aguas Buenas Municipio | G137: Aguas Buenas Municipio, Puerto Rico | H137: 72 | I137: =VLOOKUP(H137,'FIPS to State Crosswalk'!$A$1:$C$80,2,FALSE) -> Puerto Rico | J137: 4204 | K137: =_xlfn.IFNA(VLOOKUP(A137,'US CENSUS 2020 | Cities'!$A$1:$Q$31910,4,FALSE),0) -> 3083 | L137: 3083 | M137: 100 | N137: =_xlfn.IFNA(VLOOKUP($A137,'US CENSUS 2020 | Cities'!$A$1:$Q$31910,9,FALSE),0) -> 0 | O137: =_xlfn.IFNA(VLOOKUP($A137,'US CENSUS 2020 | Cities'!$A$1:$Q$31910,10,FALSE),0) -> 0 | P137: 0 | Q137: 0
A138: 1600000US7201003 | B138: Aguas Claras comunidad | C138: 01003 | D138: 037 | E138: Ceiba Municipio (part) | F138: Ceiba Municipio | G138: Ceiba Municipio, Puerto Rico | H138: 72 | I138: =VLOOKUP(H138,'FIPS to State Crosswalk'!$A$1:$C$80,2,FALSE) -> Puerto Rico | J138: 3006 | K138: =_xlfn.IFNA(VLOOKUP(A138,'US CENSUS 2020 | Cities'!$A$1:$Q$31910,4,FALSE),0) -> 2239 | L138: 2239 | M138: 100 | N138: =_xlfn.IFNA(VLOOKUP($A138,'US CENSUS 2020 | Cities'!$A$1:$Q$31910,9,FALSE),0) -> 0 | O138: =_xlfn.IFNA(VLOOKUP($A138,'US CENSUS 2020 | Cities'!$A$1:$Q$31910,10,FALSE),0) -> 0 | P138: 0 | Q138: 0
A139: 1600000US0400730 | B139: Aguila CDP | C139: 00730 | D139: 013 | E139: Maricopa County (part) | F139: Maricopa County | G139: Maricopa County, Arizona | H139: 04 | I139: =VLOOKUP(H139,'FIPS to State Crosswalk'!$A$1:$C$80,2,FALSE) -> Arizona | J139: 798 | K139: =_xlfn.IFNA(VLOOKUP(A139,'US CENSUS 2020 | Cities'!$A$1:$Q$31910,4,FALSE),0) -> 565 | L139: 565 | M139: 100 | N139: =_xlfn.IFNA(VLOOKUP($A139,'US CENSUS 2020 | Cities'!$A$1:$Q$31910,9,FALSE),0) -> 0 | O139: =_xlfn.IFNA(VLOOKUP($A139,'US CENSUS 2020 | Cities'!$A$1:$Q$31910,10,FALSE),0) -> 0 | P139: 0 | Q139: 0
A140: 1600000US0800760 | B140: Aguilar town | C140: 00760 | D140: 071 | E140: Las Animas County (part) | F140: Las Animas County | G140: Las Animas County, Colorado | H140: 08 | I140: =VLOOKUP(H140,'FIPS to State Crosswalk'!$A$1:$C$80,2,FALSE) -> Colorado | J140: 538 | K140: =_xlfn.IFNA(VLOOKUP(A140,'US CENSUS 2020 | Cities'!$A$1:$Q$31910,4,FALSE),0) -> 456 | L140: 456 | M140: 100 | N140: =_xlfn.IFNA(VLOOKUP($A140,'US CENSUS 2020 | Cities'!$A$1:$Q$31910,9,FALSE),0) -> 0 | O140: =_xlfn.IFNA(VLOOKUP($A140,'US CENSUS 2020 | Cities'!$A$1:$Q$31910,10,FALSE),0) -> 0 | P140: 0 | Q140: 0
A141: 1600000US4801420 | B141: Aguilares CDP | C141: 01420 | D141: 479 | E141: Webb County (part) | F141: Webb County | G141: Webb County, Texas | H141: 48 | I141: =VLOOKUP(H141,'FIPS to State Crosswalk'!$A$1:$C$80,2,FALSE) -> Texas | J141: 21 | K141: =_xlfn.IFNA(VLOOKUP(A141,'US CENSUS 2020 | Cities'!$A$1:$Q$31910,4,FALSE),0) -> 6 | L141: 6 | M141: 100 | N141: =_xlfn.IFNA(VLOOKUP($A141,'US CENSUS 2020 | Cities'!$A$1:$Q$31910,9,FALSE),0) -> 0 | O141: =_xlfn.IFNA(VLOOKUP($A141,'US CENSUS 2020 | Cities'!$A$1:$Q$31910,10,FALSE),0) -> 0 | P141: 0 | Q141: 0
A142: 1600000US7201089 | B142: Aguilita comunidad | C142: 01089 | D142: 075 | E142: Juana Díaz Municipio (part) | F142: Juana Díaz Municipio | G142: Juana Díaz Municipio, Puerto Rico | H142: 72 | I142: =VLOOKUP(H142,'FIPS to State Crosswalk'!$A$1:$C$80,2,FALSE) -> Puerto Rico | J142: 4747 | K142: =_xlfn.IFNA(VLOOKUP(A142,'US CENSUS 2020 | Cities'!$A$1:$Q$31910,4,FALSE),0) -> 3936 | L142: 3936 | M142: 100 | N142: =_xlfn.IFNA(VLOOKUP($A142,'US CENSUS 2020 | Cities'!$A$1:$Q$31910,9,FALSE),0) -> 0 | O142: =_xlfn.IFNA(VLOOKUP($A142,'US CENSUS 2020 | Cities'!$A$1:$Q$31910,10,FALSE),0) -> 0 | P142: 0 | Q142: 0
A143: 1600000US2600620 | B143: Ahmeek village | C143: 00620 | D143: 083 | E143: Keweenaw County (part) | F143: Keweenaw County | G143: Keweenaw County, Michigan | H143: 26 | I143: =VLOOKUP(H143,'FIPS to State Crosswalk'!$A$1:$C$80,2,FALSE) -> Michigan | J143: 146 | K143: =_xlfn.IFNA(VLOOKUP(A143,'US CENSUS 2020 | Cities'!$A$1:$Q$31910,4,FALSE),0) -> 127 | L143: 127 | M143: 100 | N143: =_xlfn.IFNA(VLOOKUP($A143,'US CENSUS 2020 | Cities'!$A$1:$Q$31910,9,FALSE),0) -> 0 | O143: =_xlfn.IFNA(VLOOKUP($A143,'US CENSUS 2020 | Cities'!$A$1:$Q$31910,10,FALSE),0) -> 0 | P143: 0 | Q143: 0
A144: 1600000US3700500 | B144: Ahoskie town | C144: 00500 | D144: 091 | E144: Hertford County (part) | F144: Hertford County | G144: Hertford County, North Carolina | H144: 37 | I144: =VLOOKUP(H144,'FIPS to State Crosswalk'!$A$1:$C$80,2,FALSE) -> North Carolina | J144: 5061 | K144: =_xlfn.IFNA(VLOOKUP(A144,'US CENSUS 2020 | Cities'!$A$1:$Q$31910,4,FALSE),0) -> 4891 | L144: 4891 | M144: 100 | N144: =_xlfn.IFNA(VLOOKUP($A144,'US CENSUS 2020 | Cities'!$A$1:$Q$31910,9,FALSE),0) -> 0 | O144: =_xlfn.IFNA(VLOOKUP($A144,'US CENSUS 2020 | Cities'!$A$1:$Q$31910,10,FALSE),0) -> 0 | P144: 0 | Q144: 0
A145: 1600000US5300800 | B145: Ahtanum CDP | C145: 00800 | D145: 077 | E145: Yakima County (part) | F145: Yakima County | G145: Yakima County, Washington | H145: 53 | I145: =VLOOKUP(H145,'FIPS to State Crosswalk'!$A$1:$C$80,2,FALSE) -> Washington | J145: 3601 | K145: =_xlfn.IFNA(VLOOKUP(A145,'US CENSUS 2020 | Cities'!$A$1:$Q$31910,4,FALSE),0) -> 4046 | L145: 4046 | M145: 100 | N145: =_xlfn.IFNA(VLOOKUP($A145,'US CENSUS 2020 | Cities'!$A$1:$Q$31910,9,FALSE),0) -> 0 | O145: =_xlfn.IFNA(VLOOKUP($A145,'US CENSUS 2020 | Cities'!$A$1:$Q$31910,10,FALSE),0) -> 0 | P145: 0 | Q145: 0
A146: 1600000US1500400 | B146: Ahuimanu CDP | C146: 00400 | D146: 003 | E146: Honolulu County (part) | F146: Honolulu County | G146: Honolulu County, Hawaii | H146: 15 | I146: =VLOOKUP(H146,'FIPS to State Crosswalk'!$A$1:$C$80,2,FALSE) -> Hawaii | J146: 8810 | K146: =_xlfn.IFNA(VLOOKUP(A146,'US CENSUS 2020 | Cities'!$A$1:$Q$31910,4,FALSE),0) -> 8969 | L146: 8969 | M146: 100 | N146: =_xlfn.IFNA(VLOOKUP($A146,'US CENSUS 2020 | Cities'!$A$1:$Q$31910,9,FALSE),0) -> 0 | O146: =_xlfn.IFNA(VLOOKUP($A146,'US CENSUS 2020 | Cities'!$A$1:$Q$31910,10,FALSE),0) -> 0 | P146: 0 | Q146: 0
A147: 1600000US0600478 | B147: Ahwahnee CDP | C147: 00478 | D147: 039 | E147: Madera County (part) | F147: Madera County | G147: Madera County, California | H147: 06 | I147: =VLOOKUP(H147,'FIPS to State Crosswalk'!$A$1:$C$80,2,FALSE) -> California | J147: 2246 | K147: =_xlfn.IFNA(VLOOKUP(A147,'US CENSUS 2020 | Cities'!$A$1:$Q$31910,4,FALSE),0) -> 2296 | L147: 2296 | M147: 100 | N147: =_xlfn.IFNA(VLOOKUP($A147,'US CENSUS 2020 | Cities'!$A$1:$Q$31910,9,FALSE),0) -> 0 | O147: =_xlfn.IFNA(VLOOKUP($A147,'US CENSUS 2020 | Cities'!$A$1:$Q$31910,10,FALSE),0) -> 0 | P147: 0 | Q147: 0
A148: 1600000US7201218 | B148: Aibonito zona urbana | C148: 01218 | D148: 009 | E148: Aibonito Municipio (part) | F148: Aibonito Municipio | G148: Aibonito Municipio, Puerto Rico | H148: 72 | I148: =VLOOKUP(H148,'FIPS to State Crosswalk'!$A$1:$C$80,2,FALSE) -> Puerto Rico | J148: 8249 | K148: =_xlfn.IFNA(VLOOKUP(A148,'US CENSUS 2020 | Cities'!$A$1:$Q$31910,4,FALSE),0) -> 7696 | L148: 7696 | M148: 100 | N148: =_xlfn.IFNA(VLOOKUP($A148,'US CENSUS 2020 | Cities'!$A$1:$Q$31910,9,FALSE),0) -> 0 | O148: =_xlfn.IFNA(VLOOKUP($A148,'US CENSUS 2020 | Cities'!$A$1:$Q$31910,10,FALSE),0) -> 0 | P148: 0 | Q148: 0
A149: 1600000US1500550 | B149: Aiea CDP | C149: 00550 | D149: 003 | E149: Honolulu County (part) | F149: Honolulu County | G149: Honolulu County, Hawaii | H149: 15 | I149: =VLOOKUP(H149,'FIPS to State Crosswalk'!$A$1:$C$80,2,FALSE) -> Hawaii | J149: 9338 | K149: =_xlfn.IFNA(VLOOKUP(A149,'US CENSUS 2020 | Cities'!$A$1:$Q$31910,4,FALSE),0) -> 10408 | L149: 10408 | M149: 100 | N149: =_xlfn.IFNA(VLOOKUP($A149,'US CENSUS 2020 | Cities'!$A$1:$Q$31910,9,FALSE),0) -> 0 | O149: =_xlfn.IFNA(VLOOKUP($A149,'US CENSUS 2020 | Cities'!$A$1:$Q$31910,10,FALSE),0) -> 0 | P149: 0 | Q149: 0
A150: 1600000US4500550 | B150: Aiken city | C150: 00550 | D150: 003 | E150: Aiken County (part) | F150: Aiken County | G150: Aiken County, South Carolina | H150: 45 | I150: =VLOOKUP(H150,'FIPS to State Crosswalk'!$A$1:$C$80,2,FALSE) -> South Carolina | J150: 29560 | K150: =_xlfn.IFNA(VLOOKUP(A150,'US CENSUS 2020 | Cities'!$A$1:$Q$31910,4,FALSE),0) -> 32025 | L150: 32025 | M150: 100 | N150: =_xlfn.IFNA(VLOOKUP($A150,'US CENSUS 2020 | Cities'!$A$1:$Q$31910,9,FALSE),0) -> 0 | O150: =_xlfn.IFNA(VLOOKUP($A150,'US CENSUS 2020 | Cities'!$A$1:$Q$31910,10,FALSE),0) -> 0 | P150: 0 | Q150: 0
A151: 1600000US1300828 | B151: Ailey city | C151: 00828 | D151: 209 | E151: Montgomery County (part) | F151: Montgomery County | G151: Montgomery County, Georgia | H151: 13 | I151: =VLOOKUP(H151,'FIPS to State Crosswalk'!$A$1:$C$80,2,FALSE) -> Georgia | J151: 544 | K151: =_xlfn.IFNA(VLOOKUP(A151,'US CENSUS 2020 | Cities'!$A$1:$Q$31910,4,FALSE),0) -> 519 | L151: 519 | M151: 100 | N151: =_xlfn.IFNA(VLOOKUP($A151,'US CENSUS 2020 | Cities'!$A$1:$Q$31910,9,FALSE),0) -> 0 | O151: =_xlfn.IFNA(VLOOKUP($A151,'US CENSUS 2020 | Cities'!$A$1:$Q$31910,10,FALSE),0) -> 0 | P151: 0 | Q151: 0
A152: 1600000US1501085 | B152: Ainaloa CDP | C152: 01085 | D152: 001 | E152: Hawaii County (part) | F152: Hawaii County | G152: Hawaii County, Hawaii | H152: 15 | I152: =VLOOKUP(H152,'FIPS to State Crosswalk'!$A$1:$C$80,2,FALSE) -> Hawaii | J152: 2965 | K152: =_xlfn.IFNA(VLOOKUP(A152,'US CENSUS 2020 | Cities'!$A$1:$Q$31910,4,FALSE),0) -> 3609 | L152: 3609 | M152: 100 | N152: =_xlfn.IFNA(VLOOKUP($A152,'US CENSUS 2020 | Cities'!$A$1:$Q$31910,9,FALSE),0) -> 0 | O152: =_xlfn.IFNA(VLOOKUP($A152,'US CENSUS 2020 | Cities'!$A$1:$Q$31910,10,FALSE),0) -> 0 | P152: 0 | Q152: 0
A153: 1600000US3100415 | B153: Ainsworth city | C153: 00415 | D153: 017 | E153: Brown County (part) | F153: Brown County | G153: Brown County, Nebraska | H153: 31 | I153: =VLOOKUP(H153,'FIPS to State Crosswalk'!$A$1:$C$80,2,FALSE) -> Nebraska | J153: 1728 | K153: =_xlfn.IFNA(VLOOKUP(A153,'US CENSUS 2020 | Cities'!$A$1:$Q$31910,4,FALSE),0) -> 1616 | L153: 1616 | M153: 100 | N153: =_xlfn.IFNA(VLOOKUP($A153,'US CENSUS 2020 | Cities'!$A$1:$Q$31910,9,FALSE),0) -> 0 | O153: =_xlfn.IFNA(VLOOKUP($A153,'US CENSUS 2020 | Cities'!$A$1:$Q$31910,10,FALSE),0) -> 0 | P153: 0 | Q153: 0
A154: 1600000US1900730 | B154: Ainsworth city | C154: 00730 | D154: 183 | E154: Washington County (part) | F154: Washington County | G154: Washington County, Iowa | H154: 19 | I154: =VLOOKUP(H154,'FIPS to State Crosswalk'!$A$1:$C$80,2,FALSE) -> Iowa | J154: 567 | K154: =_xlfn.IFNA(VLOOKUP(A154,'US CENSUS 2020 | Cities'!$A$1:$Q$31910,4,FALSE),0) -> 511 | L154: 511 | M154: 100 | N154: =_xlfn.IFNA(VLOOKUP($A154,'US CENSUS 2020 | Cities'!$A$1:$Q$31910,9,FALSE),0) -> 0 | O154: =_xlfn.IFNA(VLOOKUP($A154,'US CENSUS 2020 | Cities'!$A$1:$Q$31910,10,FALSE),0) -> 0 | P154: 0 | Q154: 0
A155: 1600000US0800870 | B155: Air Force Academy CDP | C155: 00870 | D155: 041 | E155: El Paso County (part) | F155: El Paso County | G155: El Paso County, Colorado | H155: 08 | I155: =VLOOKUP(H155,'FIPS to State Crosswalk'!$A$1:$C$80,2,FALSE) -> Colorado | J155: 6680 | K155: =_xlfn.IFNA(VLOOKUP(A155,'US CENSUS 2020 | Cities'!$A$1:$Q$31910,4,FALSE),0) -> 6608 | L155: 6608 | M155: 100 | N155: =_xlfn.IFNA(VLOOKUP($A155,'US CENSUS 2020 | Cities'!$A$1:$Q$31910,9,FALSE),0) -> 0 | O155: =_xlfn.IFNA(VLOOKUP($A155,'US CENSUS 2020 | Cities'!$A$1:$Q$31910,10,FALSE),0) -> 0 | P155: 0 | Q155: 0
A156: 1600000US3600408 | B156: Airmont village | C156: 00408 | D156: 087 | E156: Rockland County (part) | F156: Rockland County | G156: Rockland County, New York | H156: 36 | I156: =VLOOKUP(H156,'FIPS to State Crosswalk'!$A$1:$C$80,2,FALSE) -> New York | J156: 8628 | K156: =_xlfn.IFNA(VLOOKUP(A156,'US CENSUS 2020 | Cities'!$A$1:$Q$31910,4,FALSE),0) -> 10166 | L156: 10166 | M156: 100 | N156: =_xlfn.IFNA(VLOOKUP($A156,'US CENSUS 2020 | Cities'!$A$1:$Q$31910,9,FALSE),0) -> 0 | O156: =_xlfn.IFNA(VLOOKUP($A156,'US CENSUS 2020 | Cities'!$A$1:$Q$31910,10,FALSE),0) -> 0 | P156: 0 | Q156: 0
A157: 1600000US0600535 | B157: Airport CDP | C157: 00535 | D157: 099 | E157: Stanislaus County (part) | F157: Stanislaus County | G157: Stanislaus County, California | H157: 06 | I157: =VLOOKUP(H157,'FIPS to State Crosswalk'!$A$1:$C$80,2,FALSE) -> California | J157: 1964 | K157: =_xlfn.IFNA(VLOOKUP(A157,'US CENSUS 2020 | Cities'!$A$1:$Q$31910,4,FALSE),0) -> 1389 | L157: 1389 | M157: 100 | N157: =_xlfn.IFNA(VLOOKUP($A157,'US CENSUS 2020 | Cities'!$A$1:$Q$31910,9,FALSE),0) -> 0 | O157: =_xlfn.IFNA(VLOOKUP($A157,'US CENSUS 2020 | Cities'!$A$1:$Q$31910,10,FALSE),0) -> 0 | P157: 0 | Q157: 0
A158: 1600000US2900424 | B158: Airport Drive village | C158: 00424 | D158: 097 | E158: Jasper County (part) | F158: Jasper County | G158: Jasper County, Missouri | H158: 29 | I158: =VLOOKUP(H158,'FIPS to State Crosswalk'!$A$1:$C$80,2,FALSE) -> Missouri | J158: 698 | K158: =_xlfn.IFNA(VLOOKUP(A158,'US CENSUS 2020 | Cities'!$A$1:$Q$31910,4,FALSE),0) -> 766 | L158: 766 | M158: 100 | N158: =_xlfn.IFNA(VLOOKUP($A158,'US CENSUS 2020 | Cities'!$A$1:$Q$31910,9,FALSE),0) -> 0 | O158: =_xlfn.IFNA(VLOOKUP($A158,'US CENSUS 2020 | Cities'!$A$1:$Q$31910,10,FALSE),0) -> 0 | P158: 0 | Q158: 0
A159: 1600000US4801500 | B159: Airport Heights CDP | C159: 01500 | D159: 427 | E159: Starr County (part) | F159: Starr County | G159: Starr County, Texas | H159: 48 | I159: =VLOOKUP(H159,'FIPS to State Crosswalk'!$A$1:$C$80,2,FALSE) -> Texas | J159: 161 | K159: =_xlfn.IFNA(VLOOKUP(A159,'US CENSUS 2020 | Cities'!$A$1:$Q$31910,4,FALSE),0) -> 151 | L159: 151 | M159: 100 | N159: =_xlfn.IFNA(VLOOKUP($A159,'US CENSUS 2020 | Cities'!$A$1:$Q$31910,9,FALSE),0) -> 0 | O159: =_xlfn.IFNA(VLOOKUP($A159,'US CENSUS 2020 | Cities'!$A$1:$Q$31910,10,FALSE),0) -> 0 | P159: 0 | Q159: 0
A160: 1600000US4801514 | B160: Airport Road Addition CDP | C160: 01514 | D160: 047 | E160: Brooks County (part) | F160: Brooks County | G160: Brooks County, Texas | H160: 48 | I160: =VLOOKUP(H160,'FIPS to State Crosswalk'!$A$1:$C$80,2,FALSE) -> Texas | J160: 93 | K160: =_xlfn.IFNA(VLOOKUP(A160,'US CENSUS 2020 | Cities'!$A$1:$Q$31910,4,FALSE),0) -> 96 | L160: 96 | M160: 100 | N160: =_xlfn.IFNA(VLOOKUP($A160,'US CENSUS 2020 | Cities'!$A$1:$Q$31910,9,FALSE),0) -> 0 | O160: =_xlfn.IFNA(VLOOKUP($A160,'US CENSUS 2020 | Cities'!$A$1:$Q$31910,10,FALSE),0) -> 0 | P160: 0 | Q160: 0
A161: 1600000US5300905 | B161: Airway Heights city | C161: 00905 | D161: 063 | E161: Spokane County (part) | F161: Spokane County | G161: Spokane County, Washington | H161: 53 | I161: =VLOOKUP(H161,'FIPS to State Crosswalk'!$A$1:$C$80,2,FALSE) -> Washington | J161: 6114 | K161: =_xlfn.IFNA(VLOOKUP(A161,'US CENSUS 2020 | Cities'!$A$1:$Q$31910,4,FALSE),0) -> 10757 | L161: 10757 | M161: 100 | N161: =_xlfn.IFNA(VLOOKUP($A161,'US CENSUS 2020 | Cities'!$A$1:$Q$31910,9,FALSE),0) -> 0 | O161: =_xlfn.IFNA(VLOOKUP($A161,'US CENSUS 2020 | Cities'!$A$1:$Q$31910,10,FALSE),0) -> 0 | P161: 0 | Q161: 0
A162: 1600000US2700460 | B162: Aitkin city | C162: 00460 | D162: 001 | E162: Aitkin County (part) | F162: Aitkin County | G162: Aitkin County, Minnesota | H162: 27 | I162: =VLOOKUP(H162,'FIPS to State Crosswalk'!$A$1:$C$80,2,FALSE) -> Minnesota | J162: 2165 | K162: =_xlfn.IFNA(VLOOKUP(A162,'US CENSUS 2020 | Cities'!$A$1:$Q$31910,4,FALSE),0) -> 2168 | L162: 2168 | M162: 100 | N162: =_xlfn.IFNA(VLOOKUP($A162,'US CENSUS 2020 | Cities'!$A$1:$Q$31910,9,FALSE),0) -> 0 | O162: =_xlfn.IFNA(VLOOKUP($A162,'US CENSUS 2020 | Cities'!$A$1:$Q$31910,10,FALSE),0) -> 0 | P162: 0 | Q162: 0
A163: 1600000US0400870 | B163: Ajo CDP | C163: 00870 | D163: 019 | E163: Pima County (part) | F163: Pima County | G163: Pima County, Arizona | H163: 04 | I163: =VLOOKUP(H163,'FIPS to State Crosswalk'!$A$1:$C$80,2,FALSE) -> Arizona | J163: 3304 | K163: =_xlfn.IFNA(VLOOKUP(A163,'US CENSUS 2020 | Cities'!$A$1:$Q$31910,4,FALSE),0) -> 3039 | L163: 3039 | M163: 100 | N163: =_xlfn.IFNA(VLOOKUP($A163,'US CENSUS 2020 | Cities'!$A$1:$Q$31910,9,FALSE),0) -> 0 | O163: =_xlfn.IFNA(VLOOKUP($A163,'US CENSUS 2020 | Cities'!$A$1:$Q$31910,10,FALSE),0) -> 0 | P163: 0 | Q163: 0
A164: 1600000US0400940 | B164: Ak Chin CDP | C164: 00940 | D164: 019 | E164: Pima County (part) | F164: Pima County | G164: Pima County, Arizona | H164: 04 | I164: =VLOOKUP(H164,'FIPS to State Crosswalk'!$A$1:$C$80,2,FALSE) -> Arizona | J164: 30 | K164: =_xlfn.IFNA(VLOOKUP(A164,'US CENSUS 2020 | Cities'!$A$1:$Q$31910,4,FALSE),0) -> 50 | L164: 50 | M164: 100 | N164: =_xlfn.IFNA(VLOOKUP($A164,'US CENSUS 2020 | Cities'!$A$1:$Q$31910,9,FALSE),0) -> 0 | O164: =_xlfn.IFNA(VLOOKUP($A164,'US CENSUS 2020 | Cities'!$A$1:$Q$31910,10,FALSE),0) -> 0 | P164: 0 | Q164: 0
A165: 1600000US0401090 | B165: Ak-Chin Village CDP | C165: 01090 | D165: 021 | E165: Pinal County (part) | F165: Pinal County | G165: Pinal County, Arizona | H165: 04 | I165: =VLOOKUP(H165,'FIPS to State Crosswalk'!$A$1:$C$80,2,FALSE) -> Arizona | J165: 862 | K165: =_xlfn.IFNA(VLOOKUP(A165,'US CENSUS 2020 | Cities'!$A$1:$Q$31910,4,FALSE),0) -> 884 | L165: 884 | M165: 100 | N165: =_xlfn.IFNA(VLOOKUP($A165,'US CENSUS 2020 | Cities'!$A$1:$Q$31910,9,FALSE),0) -> 0 | O165: =_xlfn.IFNA(VLOOKUP($A165,'US CENSUS 2020 | Cities'!$A$1:$Q$31910,10,FALSE),0) -> 0 | P165: 0 | Q165: 0
A166: 1600000US4600540 | B166: Akaska town | C166: 00540 | D166: 129 | E166: Walworth County (part) | F166: Walworth County | G166: Walworth County, South Dakota | H166: 46 | I166: =VLOOKUP(H166,'FIPS to State Crosswalk'!$A$1:$C$80,2,FALSE) -> South Dakota | J166: 42 | K166: =_xlfn.IFNA(VLOOKUP(A166,'US CENSUS 2020 | Cities'!$A$1:$Q$31910,4,FALSE),0) -> 77 | L166: 77 | M166: 100 | N166: =_xlfn.IFNA(VLOOKUP($A166,'US CENSUS 2020 | Cities'!$A$1:$Q$31910,9,FALSE),0) -> 0 | O166: =_xlfn.IFNA(VLOOKUP($A166,'US CENSUS 2020 | Cities'!$A$1:$Q$31910,10,FALSE),0) -> 0 | P166: 0 | Q166: 0
A167: 1600000US2700496 | B167: Akeley city | C167: 00496 | D167: 057 | E167: Hubbard County (part) | F167: Hubbard County | G167: Hubbard County, Minnesota | H167: 27 | I167: =VLOOKUP(H167,'FIPS to State Crosswalk'!$A$1:$C$80,2,FALSE) -> Minnesota | J167: 432 | K167: =_xlfn.IFNA(VLOOKUP(A167,'US CENSUS 2020 | Cities'!$A$1:$Q$31910,4,FALSE),0) -> 404 | L167: 404 | M167: 100 | N167: =_xlfn.IFNA(VLOOKUP($A167,'US CENSUS 2020 | Cities'!$A$1:$Q$31910,9,FALSE),0) -> 0 | O167: =_xlfn.IFNA(VLOOKUP($A167,'US CENSUS 2020 | Cities'!$A$1:$Q$31910,10,FALSE),0) -> 0 | P167: 0 | Q167: 0
A168: 1600000US0200650 | B168: Akhiok city | C168: 00650 | D168: 150 | E168: Kodiak Island Borough (part) | F168: Kodiak Island Borough | G168: Kodiak Island Borough, Alaska | H168: 02 | I168: =VLOOKUP(H168,'FIPS to State Crosswalk'!$A$1:$C$80,2,FALSE) -> Alaska | J168: 71 | K168: =_xlfn.IFNA(VLOOKUP(A168,'US CENSUS 2020 | Cities'!$A$1:$Q$31910,4,FALSE),0) -> 63 | L168: 63 | M168: 100 | N168: =_xlfn.IFNA(VLOOKUP($A168,'US CENSUS 2020 | Cities'!$A$1:$Q$31910,9,FALSE),0) -> 0 | O168: =_xlfn.IFNA(VLOOKUP($A168,'US CENSUS 2020 | Cities'!$A$1:$Q$31910,10,FALSE),0) -> 0 | P168: 0 | Q168: 0
A169: 1600000US0200760 | B169: Akiachak CDP | C169: 00760 | D169: 050 | E169: Bethel Census Area (part) | F169: Bethel Census Area | G169: Bethel Census Area, Alaska | H169: 02 | I169: =VLOOKUP(H169,'FIPS to State Crosswalk'!$A$1:$C$80,2,FALSE) -> Alaska | J169: 627 | K169: =_xlfn.IFNA(VLOOKUP(A169,'US CENSUS 2020 | Cities'!$A$1:$Q$31910,4,FALSE),0) -> 677 | L169: 677 | M169: 100 | N169: =_xlfn.IFNA(VLOOKUP($A169,'US CENSUS 2020 | Cities'!$A$1:$Q$31910,9,FALSE),0) -> 0 | O169: =_xlfn.IFNA(VLOOKUP($A169,'US CENSUS 2020 | Cities'!$A$1:$Q$31910,10,FALSE),0) -> 0 | P169: 0 | Q169: 0
A170: 1600000US0200870 | B170: Akiak city | C170: 00870 | D170: 050 | E170: Bethel Census Area (part) | F170: Bethel Census Area | G170: Bethel Census Area, Alaska | H170: 02 | I170: =VLOOKUP(H170,'FIPS to State Crosswalk'!$A$1:$C$80,2,FALSE) -> Alaska | J170: 346 | K170: =_xlfn.IFNA(VLOOKUP(A170,'US CENSUS 2020 | Cities'!$A$1:$Q$31910,4,FALSE),0) -> 462 | L170: 462 | M170: 100 | N170: =_xlfn.IFNA(VLOOKUP($A170,'US CENSUS 2020 | Cities'!$A$1:$Q$31910,9,FALSE),0) -> 0 | O170: =_xlfn.IFNA(VLOOKUP($A170,'US CENSUS 2020 | Cities'!$A$1:$Q$31910,10,FALSE),0) -> 0 | P170: 0 | Q170: 0
A171: 1600000US4000900 | B171: Akins CDP | C171: 00900 | D171: 135 | E171: Sequoyah County (part) | F171: Sequoyah County | G171: Sequoyah County, Oklahoma | H171: 40 | I171: =VLOOKUP(H171,'FIPS to State Crosswalk'!$A$1:$C$80,2,FALSE) -> Oklahoma | J171: 493 | K171: =_xlfn.IFNA(VLOOKUP(A171,'US CENSUS 2020 | Cities'!$A$1:$Q$31910,4,FALSE),0) -> 405 | L171: 405 | M171: 100 | N171: =_xlfn.IFNA(VLOOKUP($A171,'US CENSUS 2020 | Cities'!$A$1:$Q$31910,9,FALSE),0) -> 0 | O171: =_xlfn.IFNA(VLOOKUP($A171,'US CENSUS 2020 | Cities'!$A$1:$Q$31910,10,FALSE),0) -> 0 | P171: 0 | Q171: 0
A172: 1600000US4200540 | B172: Akron borough | C172: 00540 | D172: 071 | E172: Lancaster County (part) | F172: Lancaster County | G172: Lancaster County, Pennsylvania | H172: 42 | I172: =VLOOKUP(H172,'FIPS to State Crosswalk'!$A$1:$C$80,2,FALSE) -> Pennsylvania | J172: 3883 | K172: =_xlfn.IFNA(VLOOKUP(A172,'US CENSUS 2020 | Cities'!$A$1:$Q$31910,4,FALSE),0) -> 4152 | L172: 4152 | M172: 100 | N172: =_xlfn.IFNA(VLOOKUP($A172,'US CENSUS 2020 | Cities'!$A$1:$Q$31910,9,FALSE),0) -> 0 | O172: =_xlfn.IFNA(VLOOKUP($A172,'US CENSUS 2020 | Cities'!$A$1:$Q$31910,10,FALSE),0) -> 0 | P172: 0 | Q172: 0
A173: 1600000US1900775 | B173: Akron city | C173: 00775 | D173: 149 | E173: Plymouth County (part) | F173: Plymouth County | G173: Plymouth County, Iowa | H173: 19 | I173: =VLOOKUP(H173,'FIPS to State Crosswalk'!$A$1:$C$80,2,FALSE) -> Iowa | J173: 1486 | K173: =_xlfn.IFNA(VLOOKUP(A173,'US CENSUS 2020 | Cities'!$A$1:$Q$31910,4,FALSE),0) -> 1558 | L173: 1558 | M173: 100 | N173: =_xlfn.IFNA(VLOOKUP($A173,'US CENSUS 2020 | Cities'!$A$1:$Q$31910,9,FALSE),0) -> 0 | O173: =_xlfn.IFNA(VLOOKUP($A173,'US CENSUS 2020 | Cities'!$A$1:$Q$31910,10,FALSE),0) -> 0 | P173: 0 | Q173: 0
A174: 1600000US3901000 | B174: Akron city | C174: 01000 | D174: 153 | E174: Summit County (part) | F174: Summit County | G174: Summit County, Ohio | H174: 39 | I174: =VLOOKUP(H174,'FIPS to State Crosswalk'!$A$1:$C$80,2,FALSE) -> Ohio | J174: 199092 | K174: =_xlfn.IFNA(VLOOKUP(A174,'US CENSUS 2020 | Cities'!$A$1:$Q$31910,4,FALSE),0) -> 190469 | L174: 190469 | M174: 100 | N174: =_xlfn.IFNA(VLOOKUP($A174,'US CENSUS 2020 | Cities'!$A$1:$Q$31910,9,FALSE),0) -> 1 | O174: =_xlfn.IFNA(VLOOKUP($A174,'US CENSUS 2020 | Cities'!$A$1:$Q$31910,10,FALSE),0) -> 1 | P174: 190469 | Q174: 190469
A175: 1600000US1800748 | B175: Akron town | C175: 00748 | D175: 049 | E175: Fulton County (part) | F175: Fulton County | G175: Fulton County, Indiana | H175: 18 | I175: =VLOOKUP(H175,'FIPS to State Crosswalk'!$A$1:$C$80,2,FALSE) -> Indiana | J175: 1167 | K175: =_xlfn.IFNA(VLOOKUP(A175,'US CENSUS 2020 | Cities'!$A$1:$Q$31910,4,FALSE),0) -> 1125 | L175: 1125 | M175: 100 | N175: =_xlfn.IFNA(VLOOKUP($A175,'US CENSUS 2020 | Cities'!$A$1:$Q$31910,9,FALSE),0) -> 0 | O175: =_xlfn.IFNA(VLOOKUP($A175,'US CENSUS 2020 | Cities'!$A$1:$Q$31910,10,FALSE),0) -> 0 | P175: 0 | Q175: 0
A176: 1600000US0100676 | B176: Akron town | C176: 00676 | D176: 065 | E176: Hale County (part) | F176: Hale County | G176: Hale County, Alabama | H176: 01 | I176: =VLOOKUP(H176,'FIPS to State Crosswalk'!$A$1:$C$80,2,FALSE) -> Alabama | J176: 356 | K176: =_xlfn.IFNA(VLOOKUP(A176,'US CENSUS 2020 | Cities'!$A$1:$Q$31910,4,FALSE),0) -> 225 | L176: 225 | M176: 100 | N176: =_xlfn.IFNA(VLOOKUP($A176,'US CENSUS 2020 | Cities'!$A$1:$Q$31910,9,FALSE),0) -> 0 | O176: =_xlfn.IFNA(VLOOKUP($A176,'US CENSUS 2020 | Cities'!$A$1:$Q$31910,10,FALSE),0) -> 0 | P176: 0 | Q176: 0
A177: 1600000US0800925 | B177: Akron town | C177: 00925 | D177: 121 | E177: Washington County (part) | F177: Washington County | G177: Washington County, Colorado | H177: 08 | I177: =VLOOKUP(H177,'FIPS to State Crosswalk'!$A$1:$C$80,2,FALSE) -> Colorado | J177: 1702 | K177: =_xlfn.IFNA(VLOOKUP(A177,'US CENSUS 2020 | Cities'!$A$1:$Q$31910,4,FALSE),0) -> 1757 | L177: 1757 | M177: 100 | N177: =_xlfn.IFNA(VLOOKUP($A177,'US CENSUS 2020 | Cities'!$A$1:$Q$31910,9,FALSE),0) -> 0 | O177: =_xlfn.IFNA(VLOOKUP($A177,'US CENSUS 2020 | Cities'!$A$1:$Q$31910,10,FALSE),0) -> 0 | P177: 0 | Q177: 0
A178: 1600000US3600441 | B178: Akron village | C178: 00441 | D178: 029 | E178: Erie County (part) | F178: Erie County | G178: Erie County, New York | H178: 36 | I178: =VLOOKUP(H178,'FIPS to State Crosswalk'!$A$1:$C$80,2,FALSE) -> New York | J178: 2873 | K178: =_xlfn.IFNA(VLOOKUP(A178,'US CENSUS 2020 | Cities'!$A$1:$Q$31910,4,FALSE),0) -> 2888 | L178: 2888 | M178: 100 | N178: =_xlfn.IFNA(VLOOKUP($A178,'US CENSUS 2020 | Cities'!$A$1:$Q$31910,9,FALSE),0) -> 0 | O178: =_xlfn.IFNA(VLOOKUP($A178,'US CENSUS 2020 | Cities'!$A$1:$Q$31910,10,FALSE),0) -> 0 | P178: 0 | Q178: 0
A179: 1600000US2600700 | B179: Akron village | C179: 00700 | D179: 157 | E179: Tuscola County (part) | F179: Tuscola County | G179: Tuscola County, Michigan | H179: 26 | I179: =VLOOKUP(H179,'FIPS to State Crosswalk'!$A$1:$C$80,2,FALSE) -> Michigan | J179: 402 | K179: =_xlfn.IFNA(VLOOKUP(A179,'US CENSUS 2020 | Cities'!$A$1:$Q$31910,4,FALSE),0) -> 349 | L179: 349 | M179: 100 | N179: =_xlfn.IFNA(VLOOKUP($A179,'US CENSUS 2020 | Cities'!$A$1:$Q$31910,9,FALSE),0) -> 0 | O179: =_xlfn.IFNA(VLOOKUP($A179,'US CENSUS 2020 | Cities'!$A$1:$Q$31910,10,FALSE),0) -> 0 | P179: 0 | Q179: 0
A180: 1600000US0201090 | B180: Akutan city | C180: 01090 | D180: 013 | E180: Aleutians East Borough (part) | F180: Aleutians East Borough | G180: Aleutians East Borough, Alaska | H180: 02 | I180: =VLOOKUP(H180,'FIPS to State Crosswalk'!$A$1:$C$80,2,FALSE) -> Alaska | J180: 1027 | K180: =_xlfn.IFNA(VLOOKUP(A180,'US CENSUS 2020 | Cities'!$A$1:$Q$31910,4,FALSE),0) -> 1589 | L180: 1589 | M180: 100 | N180: =_xlfn.IFNA(VLOOKUP($A180,'US CENSUS 2020 | Cities'!$A$1:$Q$31910,9,FALSE),0) -> 0 | O180: =_xlfn.IFNA(VLOOKUP($A180,'US CENSUS 2020 | Cities'!$A$1:$Q$31910,10,FALSE),0) -> 0 | P180: 0 | Q180: 0
A181: 1600000US0100820 | B181: Alabaster city | C181: 00820 | D181: 117 | E181: Shelby County (part) | F181: Shelby County | G181: Shelby County, Alabama | H181: 01 | I181: =VLOOKUP(H181,'FIPS to State Crosswalk'!$A$1:$C$80,2,FALSE) -> Alabama | J181: 30357 | K181: =_xlfn.IFNA(VLOOKUP(A181,'US CENSUS 2020 | Cities'!$A$1:$Q$31910,4,FALSE),0) -> 33284 | L181: 33284 | M181: 100 | N181: =_xlfn.IFNA(VLOOKUP($A181,'US CENSUS 2020 | Cities'!$A$1:$Q$31910,9,FALSE),0) -> 0 | O181: =_xlfn.IFNA(VLOOKUP($A181,'US CENSUS 2020 | Cities'!$A$1:$Q$31910,10,FALSE),0) -> 0 | P181: 0 | Q181: 0
A182: 1600000US1200375 | B182: Alachua city | C182: 00375 | D182: 001 | E182: Alachua County (part) | F182: Alachua County | G182: Alachua County, Florida | H182: 12 | I182: =VLOOKUP(H182,'FIPS to State Crosswalk'!$A$1:$C$80,2,FALSE) -> Florida | J182: 9058 | K182: =_xlfn.IFNA(VLOOKUP(A182,'US CENSUS 2020 | Cities'!$A$1:$Q$31910,4,FALSE),0) -> 10574 | L182: 10574 | M182: 100 | N182: =_xlfn.IFNA(VLOOKUP($A182,'US CENSUS 2020 | Cities'!$A$1:$Q$31910,9,FALSE),0) -> 0 | O182: =_xlfn.IFNA(VLOOKUP($A182,'US CENSUS 2020 | Cities'!$A$1:$Q$31910,10,FALSE),0) -> 0 | P182: 0 | Q182: 0
A183: 1600000US1200410 | B183: Alafaya CDP | C183: 00410 | D183: 095 | E183: Orange County (part) | F183: Orange County | G183: Orange County, Florida | H183: 12 | I183: =VLOOKUP(H183,'FIPS to State Crosswalk'!$A$1:$C$80,2,FALSE) -> Florida | J183: 78113 | K183: =_xlfn.IFNA(VLOOKUP(A183,'US CENSUS 2020 | Cities'!$A$1:$Q$31910,4,FALSE),0) -> 92452 | L183: 92452 | M183: 100 | N183: =_xlfn.IFNA(VLOOKUP($A183,'US CENSUS 2020 | Cities'!$A$1:$Q$31910,9,FALSE),0) -> 1 | O183: =_xlfn.IFNA(VLOOKUP($A183,'US CENSUS 2020 | Cities'!$A$1:$Q$31910,10,FALSE),0) -> 1 | P183: 92452 | Q183: 92452
A184: 1600000US0201200 | B184: Alakanuk city | C184: 01200 | D184: 270 | E184: Wade Hampton Census Area (part | F184: Wade Hampton Census Area | G184: Wade Hampton Census Area, Alaska | H184: 02 | I184: =VLOOKUP(H184,'FIPS to State Crosswalk'!$A$1:$C$80,2,FALSE) -> Alaska | J184: 677 | K184: =_xlfn.IFNA(VLOOKUP(A184,'US CENSUS 2020 | Cities'!$A$1:$Q$31910,4,FALSE),0) -> 756 | L184: 756 | M184: 100 | N184: =_xlfn.IFNA(VLOOKUP($A184,'US CENSUS 2020 | Cities'!$A$1:$Q$31910,9,FALSE),0) -> 0 | O184: =_xlfn.IFNA(VLOOKUP($A184,'US CENSUS 2020 | Cities'!$A$1:$Q$31910,10,FALSE),0) -> 0 | P184: 0 | Q184: 0
A185: 1600000US3700640 | B185: Alamance village | C185: 00640 | D185: 001 | E185: Alamance County (part) | F185: Alamance County | G185: Alamance County, North Carolina | H185: 37 | I185: =VLOOKUP(H185,'FIPS to State Crosswalk'!$A$1:$C$80,2,FALSE) -> North Carolina | J185: 951 | K185: =_xlfn.IFNA(VLOOKUP(A185,'US CENSUS 2020 | Cities'!$A$1:$Q$31910,4,FALSE),0) -> 988 | L185: 988 | M185: 100 | N185: =_xlfn.IFNA(VLOOKUP($A185,'US CENSUS 2020 | Cities'!$A$1:$Q$31910,9,FALSE),0) -> 0 | O185: =_xlfn.IFNA(VLOOKUP($A185,'US CENSUS 2020 | Cities'!$A$1:$Q$31910,10,FALSE),0) -> 0 | P185: 0 | Q185: 0
A186: 1600000US0600562 | B186: Alameda city | C186: 00562 | D186: 001 | E186: Alameda County (part) | F186: Alameda County | G186: Alameda County, California | H186: 06 | I186: =VLOOKUP(H186,'FIPS to State Crosswalk'!$A$1:$C$80,2,FALSE) -> California | J186: 73812 | K186: =_xlfn.IFNA(VLOOKUP(A186,'US CENSUS 2020 | Cities'!$A$1:$Q$31910,4,FALSE),0) -> 78280 | L186: 78280 | M186: 100 | N186: =_xlfn.IFNA(VLOOKUP($A186,'US CENSUS 2020 | Cities'!$A$1:$Q$31910,9,FALSE),0) -> 1 | O186: =_xlfn.IFNA(VLOOKUP($A186,'US CENSUS 2020 | Cities'!$A$1:$Q$31910,10,FALSE),0) -> 1 | P186: 78280 | Q186: 78280
A187: 1600000US3501640 | B187: Alamillo CDP | C187: 01640 | D187: 053 | E187: Socorro County (part) | F187: Socorro County | G187: Socorro County, New Mexico | H187: 35 | I187: =VLOOKUP(H187,'FIPS to State Crosswalk'!$A$1:$C$80,2,FALSE) -> New Mexico | J187: 102 | K187: =_xlfn.IFNA(VLOOKUP(A187,'US CENSUS 2020 | Cities'!$A$1:$Q$31910,4,FALSE),0) -> 124 | L187: 124 | M187: 100 | N187: =_xlfn.IFNA(VLOOKUP($A187,'US CENSUS 2020 | Cities'!$A$1:$Q$31910,9,FALSE),0) -> 0 | O187: =_xlfn.IFNA(VLOOKUP($A187,'US CENSUS 2020 | Cities'!$A$1:$Q$31910,10,FALSE),0) -> 0 | P187: 0 | Q187: 0
A188: 1600000US3501710 | B188: Alamo CDP | C188: 01710 | D188: 053 | E188: Socorro County (part) | F188: Socorro County | G188: Socorro County, New Mexico | H188: 35 | I188: =VLOOKUP(H188,'FIPS to State Crosswalk'!$A$1:$C$80,2,FALSE) -> New Mexico | J188: 1085 | K188: =_xlfn.IFNA(VLOOKUP(A188,'US CENSUS 2020 | Cities'!$A$1:$Q$31910,4,FALSE),0) -> 1150 | L188: 1150 | M188: 100 | N188: =_xlfn.IFNA(VLOOKUP($A188,'US CENSUS 2020 | Cities'!$A$1:$Q$31910,9,FALSE),0) -> 0 | O188: =_xlfn.IFNA(VLOOKUP($A188,'US CENSUS 2020 | Cities'!$A$1:$Q$31910,10,FALSE),0) -> 0 | P188: 0 | Q188: 0
A189: 1600000US3200500 | B189: Alamo CDP | C189: 00500 | D189: 017 | E189: Lincoln County (part) | F189: Lincoln County | G189: Lincoln County, Nevada | H189: 32 | I189: =VLOOKUP(H189,'FIPS to State Crosswalk'!$A$1:$C$80,2,FALSE) -> Nevada | J189: 1080 | K189: =_xlfn.IFNA(VLOOKUP(A189,'US CENSUS 2020 | Cities'!$A$1:$Q$31910,4,FALSE),0) -> 785 | L189: 785 | M189: 100 | N189: =_xlfn.IFNA(VLOOKUP($A189,'US CENSUS 2020 | Cities'!$A$1:$Q$31910,9,FALSE),0) -> 0 | O189: =_xlfn.IFNA(VLOOKUP($A189,'US CENSUS 2020 | Cities'!$A$1:$Q$31910,10,FALSE),0) -> 0 | P189: 0 | Q189: 0
A190: 1600000US0600618 | B190: Alamo CDP | C190: 00618 | D190: 013 | E190: Contra Costa County (part) | F190: Contra Costa County | G190: Contra Costa County, California | H190: 06 | I190: =VLOOKUP(H190,'FIPS to State Crosswalk'!$A$1:$C$80,2,FALSE) -> California | J190: 14570 | K190: =_xlfn.IFNA(VLOOKUP(A190,'US CENSUS 2020 | Cities'!$A$1:$Q$31910,4,FALSE),0) -> 15314 | L190: 15314 | M190: 100 | N190: =_xlfn.IFNA(VLOOKUP($A190,'US CENSUS 2020 | Cities'!$A$1:$Q$31910,9,FALSE),0) -> 0 | O190: =_xlfn.IFNA(VLOOKUP($A190,'US CENSUS 2020 | Cities'!$A$1:$Q$31910,10,FALSE),0) -> 0 | P190: 0 | Q190: 0
A191: 1600000US3800940 | B191: Alamo city | C191: 00940 | D191: 105 | E191: Williams County (part) | F191: Williams County | G191: Williams County, North Dakota | H191: 38 | I191: =VLOOKUP(H191,'FIPS to State Crosswalk'!$A$1:$C$80,2,FALSE) -> North Dakota | J191: 57 | K191: =_xlfn.IFNA(VLOOKUP(A191,'US CENSUS 2020 | Cities'!$A$1:$Q$31910,4,FALSE),0) -> 53 | L191: 53 | M191: 100 | N191: =_xlfn.IFNA(VLOOKUP($A191,'US CENSUS 2020 | Cities'!$A$1:$Q$31910,9,FALSE),0) -> 0 | O191: =_xlfn.IFNA(VLOOKUP($A191,'US CENSUS 2020 | Cities'!$A$1:$Q$31910,10,FALSE),0) -> 0 | P191: 0 | Q191: 0
A192: 1600000US4801576 | B192: Alamo city | C192: 01576 | D192: 215 | E192: Hidalgo County (part) | F192: Hidalgo County | G192: Hidalgo County, Texas | H192: 48 | I192: =VLOOKUP(H192,'FIPS to State Crosswalk'!$A$1:$C$80,2,FALSE) -> Texas | J192: 18541 | K192: =_xlfn.IFNA(VLOOKUP(A192,'US CENSUS 2020 | Cities'!$A$1:$Q$31910,4,FALSE),0) -> 19493 | L192: 19493 | M192: 100 | N192: =_xlfn.IFNA(VLOOKUP($A192,'US CENSUS 2020 | Cities'!$A$1:$Q$31910,9,FALSE),0) -> 0 | O192: =_xlfn.IFNA(VLOOKUP($A192,'US CENSUS 2020 | Cities'!$A$1:$Q$31910,10,FALSE),0) -> 0 | P192: 0 | Q192: 0
A193: 1600000US4801600 | B193: Alamo Heights city | C193: 01600 | D193: 029 | E193: Bexar County (part) | F193: Bexar County | G193: Bexar County, Texas | H193: 48 | I193: =VLOOKUP(H193,'FIPS to State Crosswalk'!$A$1:$C$80,2,FALSE) -> Texas | J193: 7031 | K193: =_xlfn.IFNA(VLOOKUP(A193,'US CENSUS 2020 | Cities'!$A$1:$Q$31910,4,FALSE),0) -> 7357 | L193: 7357 | M193: 100 | N193: =_xlfn.IFNA(VLOOKUP($A193,'US CENSUS 2020 | Cities'!$A$1:$Q$31910,9,FALSE),0) -> 0 | O193: =_xlfn.IFNA(VLOOKUP($A193,'US CENSUS 2020 | Cities'!$A$1:$Q$31910,10,FALSE),0) -> 0 | P193: 0 | Q193: 0
A194: 1600000US0401170 | B194: Alamo Lake CDP | C194: 01170 | D194: 012 | E194: La Paz County (part) | F194: La Paz County | G194: La Paz County, Arizona | H194: 04 | I194: =VLOOKUP(H194,'FIPS to State Crosswalk'!$A$1:$C$80,2,FALSE) -> Arizona | J194: 25 | K194: =_xlfn.IFNA(VLOOKUP(A194,'US CENSUS 2020 | Cities'!$A$1:$Q$31910,4,FALSE),0) -> 4 | L194: =IF(M194=100,K194,J194) -> 4 | M194: 100 | N194: =_xlfn.IFNA(VLOOKUP($A194,'US CENSUS 2020 | Cities'!$A$1:$Q$31910,9,FALSE),0) -> 0 | O194: =_xlfn.IFNA(VLOOKUP($A194,'US CENSUS 2020 | Cities'!$A$1:$Q$31910,10,FALSE),0) -> 0 | P194: =L194*N194 -> 0 | Q194: =L194*O194 -> 0
A195: 1600000US1300996 | B195: Alamo town | C195: 00996 | D195: 309 | E195: Wheeler County (part) | F195: Wheeler County | G195: =F195&", "&I195 -> Wheeler County, Georgia | H195: 13 | I195: =VLOOKUP(H195,'FIPS to State Crosswalk'!$A$1:$C$80,2,FALSE) -> Georgia | J195: 2797 | K195: =_xlfn.IFNA(VLOOKUP(A195,'US CENSUS 2020 | Cities'!$A$1:$Q$31910,4,FALSE),0) -> 771 | L195: 771 | M195: 100 | N195: =_xlfn.IFNA(VLOOKUP($A195,'US CENSUS 2020 | Cities'!$A$1:$Q$31910,9,FALSE),0) -> 0 | O195: =_xlfn.IFNA(VLOOKUP($A195,'US CENSUS 2020 | Cities'!$A$1:$Q$31910,10,FALSE),0) -> 0 | P195: 0 | Q195: 0
A196: 1600000US1800784 | B196: Alamo town | C196: 00784 | D196: 107 | E196: Montgomery County (part) | F196: Montgomery County | G196: Montgomery County, Indiana | H196: 18 | I196: =VLOOKUP(H196,'FIPS to State Crosswalk'!$A$1:$C$80,2,FALSE) -> Indiana | J196: 65 | K196: =_xlfn.IFNA(VLOOKUP(A196,'US CENSUS 2020 | Cities'!$A$1:$Q$31910,4,FALSE),0) -> 66 | L196: 66 | M196: 100 | N196: =_xlfn.IFNA(VLOOKUP($A196,'US CENSUS 2020 | Cities'!$A$1:$Q$31910,9,FALSE),0) -> 0 | O196: =_xlfn.IFNA(VLOOKUP($A196,'US CENSUS 2020 | Cities'!$A$1:$Q$31910,10,FALSE),0) -> 0 | P196: 0 | Q196: 0
A197: 1600000US4700440 | B197: Alamo town | C197: 00440 | D197: 033 | E197: Crockett County (part) | F197: Crockett County | G197: Crockett County, Tennessee | H197: 47 | I197: =VLOOKUP(H197,'FIPS to State Crosswalk'!$A$1:$C$80,2,FALSE) -> Tennessee | J197: 2490 | K197: =_xlfn.IFNA(VLOOKUP(A197,'US CENSUS 2020 | Cities'!$A$1:$Q$31910,4,FALSE),0) -> 2336 | L197: 2336 | M197: 100 | N197: =_xlfn.IFNA(VLOOKUP($A197,'US CENSUS 2020 | Cities'!$A$1:$Q$31910,9,FALSE),0) -> 0 | O197: =_xlfn.IFNA(VLOOKUP($A197,'US CENSUS 2020 | Cities'!$A$1:$Q$31910,10,FALSE),0) -> 0 | P197: 0 | Q197: 0
A198: 1600000US3501780 | B198: Alamogordo city | C198: 01780 | D198: 035 | E198: Otero County (part) | F198: Otero County | G198: Otero County, New Mexico | H198: 35 | I198: =VLOOKUP(H198,'FIPS to State Crosswalk'!$A$1:$C$80,2,FALSE) -> New Mexico | J198: 30403 | K198: =_xlfn.IFNA(VLOOKUP(A198,'US CENSUS 2020 | Cities'!$A$1:$Q$31910,4,FALSE),0) -> 30898 | L198: 30898 | M198: 100 | N198: =_xlfn.IFNA(VLOOKUP($A198,'US CENSUS 2020 | Cities'!$A$1:$Q$31910,9,FALSE),0) -> 0 | O198: =_xlfn.IFNA(VLOOKUP($A198,'US CENSUS 2020 | Cities'!$A$1:$Q$31910,10,FALSE),0) -> 0 | P198: 0 | Q198: 0
A199: 1600000US0801090 | B199: Alamosa city | C199: 01090 | D199: 003 | E199: Alamosa County (part) | F199: Alamosa County | G199: Alamosa County, Colorado | H199: 08 | I199: =VLOOKUP(H199,'FIPS to State Crosswalk'!$A$1:$C$80,2,FALSE) -> Colorado | J199: 8828 | K199: =_xlfn.IFNA(VLOOKUP(A199,'US CENSUS 2020 | Cities'!$A$1:$Q$31910,4,FALSE),0) -> 9806 | L199: 9806 | M199: 100 | N199: =_xlfn.IFNA(VLOOKUP($A199,'US CENSUS 2020 | Cities'!$A$1:$Q$31910,9,FALSE),0) -> 0 | O199: =_xlfn.IFNA(VLOOKUP($A199,'US CENSUS 2020 | Cities'!$A$1:$Q$31910,10,FALSE),0) -> 0 | P199: 0 | Q199: 0
A200: 1600000US0801145 | B200: Alamosa East CDP | C200: 01145 | D200: 003 | E200: Alamosa County (part) | F200: Alamosa County | G200: Alamosa County, Colorado | H200: 08 | I200: =VLOOKUP(H200,'FIPS to State Crosswalk'!$A$1:$C$80,2,FALSE) -> Colorado | J200: 1458 | K200: =_xlfn.IFNA(VLOOKUP(A200,'US CENSUS 2020 | Cities'!$A$1:$Q$31910,4,FALSE),0) -> 1453 | L200: 1453 | M200: 100 | N200: =_xlfn.IFNA(VLOOKUP($A200,'US CENSUS 2020 | Cities'!$A$1:$Q$31910,9,FALSE),0) -> 0 | O200: =_xlfn.IFNA(VLOOKUP($A200,'US CENSUS 2020 | Cities'!$A$1:$Q$31910,10,FALSE),0) -> 0 | P200: 0 | Q200: 0
... 4300 more rows

Sheet FIPS to State Crosswalk (hidden)
A1: FIPS | B1: State | C1: State Code
A2: 01 | B2: Alabama | C2: AL
A3: 02 | B3: Alaska | C3: AK
A4: 04 | B4: Arizona | C4: AZ
A5: 05 | B5: Arkansas | C5: AR
A6: 06 | B6: California | C6: CA
A7: 08 | B7: Colorado | C7: CO
A8: 09 | B8: Connecticut | C8: CT
A9: 10 | B9: Delaware | C9: DE
A10: 11 | B10: District of Columbia | C10: DC
A11: 12 | B11: Florida | C11: FL
A12: 13 | B12: Georgia | C12: GA
A13: 15 | B13: Hawaii | C13: HI
A14: 16 | B14: Idaho | C14: ID
A15: 17 | B15: Illinois | C15: IL
A16: 18 | B16: Indiana | C16: IN
A17: 19 | B17: Iowa | C17: IA
A18: 20 | B18: Kansas | C18: KS
A19: 21 | B19: Kentucky | C19: KY
A20: 22 | B20: Louisiana | C20: LA
A21: 23 | B21: Maine | C21: ME
A22: 24 | B22: Maryland | C22: MD
A23: 25 | B23: Massachusetts | C23: MA
A24: 26 | B24: Michigan | C24: MI
A25: 27 | B25: Minnesota | C25: MN
A26: 28 | B26: Mississippi | C26: MS
A27: 29 | B27: Missouri | C27: MO
A28: 30 | B28: Montana | C28: MT
A29: 31 | B29: Nebraska | C29: NE
A30: 32 | B30: Nevada | C30: NV
A31: 33 | B31: New Hampshire | C31: NH
A32: 34 | B32: New Jersey | C32: NJ
A33: 35 | B33: New Mexico | C33: NM
A34: 36 | B34: New York | C34: NY
A35: 37 | B35: North Carolina | C35: NC
A36: 38 | B36: North Dakota | C36: ND
A37: 39 | B37: Ohio | C37: OH
A38: 40 | B38: Oklahoma | C38: OK
A39: 41 | B39: Oregon | C39: OR
A40: 42 | B40: Pennsylvania | C40: PA
A41: 44 | B41: Rhode Island | C41: RI
A42: 45 | B42: South Carolina | C42: SC
A43: 46 | B43: South Dakota | C43: SD
A44: 47 | B44: Tennessee | C44: TN
A45: 48 | B45: Texas | C45: TX
A46: 49 | B46: Utah | C46: UT
A47: 50 | B47: Vermont | C47: VT
A48: 51 | B48: Virginia | C48: VA
A49: 53 | B49: Washington | C49: WA
A50: 54 | B50: West Virginia | C50: WV
A51: 55 | B51: Wisconsin | C51: WI
A52: 56 | B52: Wyoming | C52: WY
A53: 60 | B53: American Samoa | C53: AS
A54: 64 | B54: Federated States of Micronesia | C54: FM
A55: 66 | B55: Guam | C55: GU
A56: 68 | B56: Marshall Islands | C56: MH
A57: 69 | B57: Commonwealth of the Northern Mariana Islands | C57: MP
A58: 70 | B58: Palau | C58: PW
A59: 72 | B59: Puerto Rico | C59: PR
A60: 74 | B60: U.S. Minor Outlying Islands | C60: UM
A61: 78 | B61: U.S. Virgin Islands | C61: VI

Sheet Eligible County Pops (hidden)
A1: Row Labels | B1: Sum of pop eligible for alt 1 | C1: Sum of pop eligible for alt 2
A2: Abbeville County, South Carolina | B2: 0 | C2: 0
A3: Acadia Parish, Louisiana | B3: 0 | C3: 0
A4: Accomack County, Virginia | B4: 0 | C4: 0
A5: Ada County, Idaho | B5: 353319 | C5: 353319
A6: Adair County, Iowa | B6: 0 | C6: 0
A7: Adair County, Kentucky | B7: 0 | C7: 0
A8: Adair County, Missouri | B8: 0 | C8: 0
A9: Adair County, Oklahoma | B9: 0 | C9: 0
A10: Adams County, Colorado | B10: 381818 | C10: 310678
A11: Adams County, Idaho | B11: 0 | C11: 0
A12: Adams County, Illinois | B12: 39463 | C12: 0
A13: Adams County, Indiana | B13: 0 | C13: 0
A14: Adams County, Iowa | B14: 0 | C14: 0
A15: Adams County, Mississippi | B15: 0 | C15: 0
A16: Adams County, Nebraska | B16: 25152 | C16: 0
A17: Adams County, North Dakota | B17: 0 | C17: 0
A18: Adams County, Ohio | B18: 0 | C18: 0
A19: Adams County, Pennsylvania | B19: 0 | C19: 0
A20: Adams County, Washington | B20: 0 | C20: 0
A21: Adams County, Wisconsin | B21: 0 | C21: 0
A22: Addison County, Vermont | B22: 0 | C22: 0
A23: Adjuntas Municipio, Puerto Rico | B23: 0 | C23: 0
A24: Aguada Municipio, Puerto Rico | B24: 0 | C24: 0
A25: Aguadilla Municipio, Puerto Rico | B25: 0 | C25: 0
A26: Aguas Buenas Municipio, Puerto Rico | B26: 0 | C26: 0
A27: Aibonito Municipio, Puerto Rico | B27: 0 | C27: 0
A28: Aiken County, South Carolina | B28: 0 | C28: 0
A29: Aitkin County, Minnesota | B29: 0 | C29: 0
A30: Alachua County, Florida | B30: 141085 | C30: 141085
A31: Alamance County, North Carolina | B31: 50242 | C31: 50242
A32: Alameda County, California | B32: 1552241 | C32: 1504712
A33: Alamosa County, Colorado | B33: 0 | C33: 0
A34: Albany County, New York | B34: 99224 | C34: 99224
A35: Albany County, Wyoming | B35: 31407 | C35: 0
A36: Albemarle County, Virginia | B36: 0 | C36: 0
A37: Alcona County, Michigan | B37: 0 | C37: 0
A38: Alcorn County, Mississippi | B38: 0 | C38: 0
A39: Aleutians East Borough, Alaska | B39: 0 | C39: 0
A40: Aleutians West Census Area, Alaska | B40: 0 | C40: 0
A41: Alexander County, Illinois | B41: 0 | C41: 0
A42: Alexander County, North Carolina | B42: 0 | C42: 0
A43: Alexandria cit, Virginia | B43: 159467 | C43: 159467
A44: Alfalfa County, Oklahoma | B44: 0 | C44: 0
A45: Alger County, Michigan | B45: 0 | C45: 0
A46: Allamakee County, Iowa | B46: 0 | C46: 0
A47: Allegan County, Michigan | B47: 0 | C47: 0
A48: Allegany County, Maryland | B48: 0 | C48: 0
A49: Allegany County, New York | B49: 0 | C49: 0
A50: Alleghany County, North Carolina | B50: 0 | C50: 0
A51: Alleghany County, Virginia | B51: 0 | C51: 0
A52: Allegheny County, Pennsylvania | B52: 302971 | C52: 302971
A53: Allen County, Indiana | B53: 263886 | C53: 263886
A54: Allen County, Kansas | B54: 0 | C54: 0
A55: Allen County, Kentucky | B55: 0 | C55: 0
A56: Allen County, Ohio | B56: 35579 | C56: 0
A57: Allen Parish, Louisiana | B57: 0 | C57: 0
A58: Allendale County, South Carolina | B58: 0 | C58: 0
A59: Alpena County, Michigan | B59: 0 | C59: 0
A60: Alpine County, California | B60: 0 | C60: 0
A61: Amador County, California | B61: 0 | C61: 0
A62: Amelia County, Virginia | B62: 0 | C62: 0
A63: Amherst County, Virginia | B63: 0 | C63: 0
A64: Amite County, Mississippi | B64: 0 | C64: 0
A65: Añasco Municipio, Puerto Rico | B65: 0 | C65: 0
A66: Anchorage Municipalit, Alaska | B66: 291247 | C66: 291247
A67: Anderson County, Kansas | B67: 0 | C67: 0
A68: Anderson County, Kentucky | B68: 0 | C68: 0
A69: Anderson County, South Carolina | B69: 0 | C69: 0
A70: Anderson County, Tennessee | B70: 0 | C70: 0
A71: Anderson County, Texas | B71: 0 | C71: 0
A72: Andrew County, Missouri | B72: 0 | C72: 0
A73: Andrews County, Texas | B73: 0 | C73: 0
A74: Androscoggin County, Maine | B74: 61182 | C74: 0
A75: Angelina County, Texas | B75: 0 | C75: 0
A76: Anne Arundel County, Maryland | B76: 253701 | C76: 130009
A77: Anoka County, Minnesota | B77: 133821 | C77: 133821
A78: Anson County, North Carolina | B78: 0 | C78: 0
A79: Antelope County, Nebraska | B79: 0 | C79: 0
A80: Antrim County, Michigan | B80: 0 | C80: 0
A81: Apache County, Arizona | B81: 0 | C81: 0
A82: Appanoose County, Iowa | B82: 0 | C82: 0
A83: Appling County, Georgia | B83: 0 | C83: 0
A84: Appomattox County, Virginia | B84: 0 | C84: 0
A85: Aransas County, Texas | B85: 0 | C85: 0
A86: Arapahoe County, Colorado | B86: 432378 | C86: 393054
A87: Archer County, Texas | B87: 0 | C87: 0
A88: Archuleta County, Colorado | B88: 0 | C88: 0
A89: Arecibo Municipio, Puerto Rico | B89: 39634 | C89: 0
A90: Arenac County, Michigan | B90: 0 | C90: 0
A91: Arkansas County, Arkansas | B91: 0 | C91: 0
A92: Arlington Count, Virginia | B92: 238643 | C92: 238643
A93: Armstrong County, Pennsylvania | B93: 0 | C93: 0
A94: Armstrong County, Texas | B94: 0 | C94: 0
A95: Aroostook County, Maine | B95: 0 | C95: 0
A96: Arroyo Municipio, Puerto Rico | B96: 0 | C96: 0
A97: Arthur County, Nebraska | B97: 0 | C97: 0
A98: Ascension Parish, Louisiana | B98: 0 | C98: 0
A99: Ashe County, North Carolina | B99: 0 | C99: 0
A100: Ashland County, Ohio | B100: 0 | C100: 0
A101: Ashland County, Wisconsin | B101: 0 | C101: 0
A102: Ashley County, Arkansas | B102: 0 | C102: 0
A103: Ashtabula County, Ohio | B103: 0 | C103: 0
A104: Asotin County, Washington | B104: 0 | C104: 0
A105: Assumption Parish, Louisiana | B105: 0 | C105: 0
A106: Atascosa County, Texas | B106: 0 | C106: 0
A107: Atchison County, Kansas | B107: 0 | C107: 0
A108: Atchison County, Missouri | B108: 0 | C108: 0
A109: Athens County, Ohio | B109: 0 | C109: 0
A110: Atkinson County, Georgia | B110: 0 | C110: 0
A111: Atlantic County, New Jersey | B111: 38497 | C111: 0
A112: Atoka County, Oklahoma | B112: 0 | C112: 0
A113: Attala County, Mississippi | B113: 0 | C113: 0
A114: Audrain County, Missouri | B114: 0 | C114: 0
A115: Audubon County, Iowa | B115: 0 | C115: 0
A116: Auglaize County, Ohio | B116: 0 | C116: 0
A117: Augusta County, Virginia | B117: 0 | C117: 0
A118: Aurora County, South Dakota | B118: 0 | C118: 0
A119: Austin County, Texas | B119: 0 | C119: 0
A120: Autauga County, Alabama | B120: 32200 | C120: 0
A121: Avery County, North Carolina | B121: 0 | C121: 0
A122: Avoyelles Parish, Louisiana | B122: 0 | C122: 0
A123: Baca County, Colorado | B123: 0 | C123: 0
A124: Bacon County, Georgia | B124: 0 | C124: 0
A125: Bailey County, Texas | B125: 0 | C125: 0
A126: Baker County, Florida | B126: 0 | C126: 0
A127: Baker County, Georgia | B127: 0 | C127: 0
A128: Baker County, Oregon | B128: 0 | C128: 0
A129: Baldwin County, Alabama | B129: 0 | C129: 0
A130: Baldwin County, Georgia | B130: 0 | C130: 0
A131: Ballard County, Kentucky | B131: 0 | C131: 0
A132: Baltimore cit, Maryland | B132: 585708 | C132: 585708
A133: Baltimore County, Maryland | B133: 288215 | C133: 127349
A134: Bamberg County, South Carolina | B134: 0 | C134: 0
A135: Bandera County, Texas | B135: 0 | C135: 0
A136: Banks County, Georgia | B136: 0 | C136: 0
A137: Banner County, Nebraska | B137: 0 | C137: 0
A138: Bannock County, Idaho | B138: 56320 | C138: 56320
A139: Baraga County, Michigan | B139: 0 | C139: 0
A140: Barber County, Kansas | B140: 0 | C140: 0
A141: Barbour County, Alabama | B141: 0 | C141: 0
A142: Barbour County, West Virginia | B142: 0 | C142: 0
A143: Barceloneta Municipio, Puerto Rico | B143: 0 | C143: 0
A144: Barnes County, North Dakota | B144: 0 | C144: 0
A145: Barnstable County, Massachusetts | B145: 48916 | C145: 0
A146: Barnwell County, South Carolina | B146: 0 | C146: 0
A147: Barranquitas Municipio, Puerto Rico | B147: 0 | C147: 0
A148: Barren County, Kentucky | B148: 0 | C148: 0
A149: Barron County, Wisconsin | B149: 0 | C149: 0
A150: Barrow County, Georgia | B150: 0 | C150: 0
A151: Barry County, Michigan | B151: 0 | C151: 0
A152: Barry County, Missouri | B152: 0 | C152: 0
A153: Bartholomew County, Indiana | B153: 50474 | C153: 50474
A154: Barton County, Kansas | B154: 0 | C154: 0
A155: Barton County, Missouri | B155: 0 | C155: 0
A156: Bartow County, Georgia | B156: 0 | C156: 0
A157: Bastrop County, Texas | B157: 0 | C157: 0
A158: Bates County, Missouri | B158: 0 | C158: 0
A159: Bath County, Kentucky | B159: 0 | C159: 0
A160: Bath County, Virginia | B160: 0 | C160: 0
A161: Baxter County, Arkansas | B161: 0 | C161: 0
A162: Bay County, Florida | B162: 0 | C162: 0
A163: Bay County, Michigan | B163: 157 | C163: 0
A164: Bayamón Municipio, Puerto Rico | B164: 165368 | C164: 165368
A165: Bayfield County, Wisconsin | B165: 0 | C165: 0
A166: Baylor County, Texas | B166: 0 | C166: 0
A167: Beadle County, South Dakota | B167: 14263 | C167: 0
A168: Bear Lake County, Idaho | B168: 0 | C168: 0
A169: Beaufort County, North Carolina | B169: 0 | C169: 0
A170: Beaufort County, South Carolina | B170: 37661 | C170: 0
A171: Beauregard Parish, Louisiana | B171: 0 | C171: 0
A172: Beaver County, Oklahoma | B172: 0 | C172: 0
A173: Beaver County, Pennsylvania | B173: 0 | C173: 0
A174: Beaver County, Utah | B174: 0 | C174: 0
A175: Beaverhead County, Montana | B175: 0 | C175: 0
A176: Becker County, Minnesota | B176: 0 | C176: 0
A177: Beckham County, Oklahoma | B177: 0 | C177: 0
A178: Bedford cit, Virginia | B178: 0 | C178: 0
A179: Bedford County, Pennsylvania | B179: 0 | C179: 0
A180: Bedford County, Tennessee | B180: 0 | C180: 0
A181: Bedford County, Virginia | B181: 0 | C181: 0
A182: Bee County, Texas | B182: 0 | C182: 0
A183: Belknap County, New Hampshire | B183: 16871 | C183: 0
A184: Bell County, Kentucky | B184: 0 | C184: 0
A185: Bell County, Texas | B185: 235168 | C185: 235168
A186: Belmont County, Ohio | B186: 0 | C186: 0
A187: Beltrami County, Minnesota | B187: 0 | C187: 0
A188: Ben Hill County, Georgia | B188: 0 | C188: 0
A189: Benewah County, Idaho | B189: 0 | C189: 0
A190: Bennett County, South Dakota | B190: 0 | C190: 0
A191: Bennington County, Vermont | B191: 8795 | C191: 0
A192: Benson County, North Dakota | B192: 0 | C192: 0
A193: Bent County, Colorado | B193: 0 | C193: 0
A194: Benton County, Arkansas | B194: 130624 | C194: 130624
A195: Benton County, Indiana | B195: 0 | C195: 0
A196: Benton County, Iowa | B196: 0 | C196: 0
A197: Benton County, Minnesota | B197: 6515 | C197: 6515
A198: Benton County, Mississippi | B198: 0 | C198: 0
A199: Benton County, Missouri | B199: 0 | C199: 0
A200: Benton County, Oregon | B200: 66385 | C200: 66385
... 3026 more rows

Sheet Named Ranges (hidden)
A3: City
A4: County
B8: Abanda CDP, Alabama | C8: 1600000US0100100 | G8: Autauga County, Alabama | H8: 0500000US01001
B9: Abbeville city, Alabama | C9: 1600000US0100124 | G9: Baldwin County, Alabama | H9: 0500000US01003
B10: Adamsville city, Alabama | C10: 1600000US0100460 | G10: Barbour County, Alabama | H10: 0500000US01005
B11: Addison town, Alabama | C11: 1600000US0100484 | G11: Bibb County, Alabama | H11: 0500000US01007
B12: Akron town, Alabama | C12: 1600000US0100676 | G12: Blount County, Alabama | H12: 0500000US01009
B13: Alabaster city, Alabama | C13: 1600000US0100820 | G13: Bullock County, Alabama | H13: 0500000US01011
B14: Albertville city, Alabama | C14: 1600000US0100988 | G14: Butler County, Alabama | H14: 0500000US01013
B15: Alexander City city, Alabama | C15: 1600000US0101132 | G15: Calhoun County, Alabama | H15: 0500000US01015
B16: Alexandria CDP, Alabama | C16: 1600000US0101180 | G16: Chambers County, Alabama | H16: 0500000US01017
B17: Aliceville city, Alabama | C17: 1600000US0101228 | G17: Cherokee County, Alabama | H17: 0500000US01019
B18: Allgood town, Alabama | C18: 1600000US0101396 | G18: Chilton County, Alabama | H18: 0500000US01021
B19: Altoona town, Alabama | C19: 1600000US0101660 | G19: Choctaw County, Alabama | H19: 0500000US01023
B20: Andalusia city, Alabama | C20: 1600000US0101708 | G20: Clarke County, Alabama | H20: 0500000US01025
B21: Anderson town, Alabama | C21: 1600000US0101756 | G21: Clay County, Alabama | H21: 0500000US01027
B22: Anniston city, Alabama | C22: 1600000US0101852 | G22: Cleburne County, Alabama | H22: 0500000US01029
B23: Arab city, Alabama | C23: 1600000US0102116 | G23: Coffee County, Alabama | H23: 0500000US01031
B24: Ardmore town, Alabama | C24: 1600000US0102260 | G24: Colbert County, Alabama | H24: 0500000US01033
B25: Argo town, Alabama | C25: 1600000US0102320 | G25: Conecuh County, Alabama | H25: 0500000US01035
B26: Ariton town, Alabama | C26: 1600000US0102428 | G26: Coosa County, Alabama | H26: 0500000US01037
B27: Arley town, Alabama | C27: 1600000US0102500 | G27: Covington County, Alabama | H27: 0500000US01039
B28: Ashford town, Alabama | C28: 1600000US0102836 | G28: Crenshaw County, Alabama | H28: 0500000US01041
B29: Ashland town, Alabama | C29: 1600000US0102860 | G29: Cullman County, Alabama | H29: 0500000US01043
B30: Ashville city, Alabama | C30: 1600000US0102908 | G30: Dale County, Alabama | H30: 0500000US01045
B31: Athens city, Alabama | C31: 1600000US0102956 | G31: Dallas County, Alabama | H31: 0500000US01047
B32: Atmore city, Alabama | C32: 1600000US0103004 | G32: DeKalb County, Alabama | H32: 0500000US01049
B33: Attalla city, Alabama | C33: 1600000US0103028 | G33: Elmore County, Alabama | H33: 0500000US01051
B34: Auburn city, Alabama | C34: 1600000US0103076 | G34: Escambia County, Alabama | H34: 0500000US01053
B35: Autaugaville town, Alabama | C35: 1600000US0103220 | G35: Etowah County, Alabama | H35: 0500000US01055
B36: Avon town, Alabama | C36: 1600000US0103364 | G36: Fayette County, Alabama | H36: 0500000US01057
B37: Axis CDP, Alabama | C37: 1600000US0103508 | G37: Franklin County, Alabama | H37: 0500000US01059
B38: Babbie town, Alabama | C38: 1600000US0103556 | G38: Geneva County, Alabama | H38: 0500000US01061
B39: Baileyton town, Alabama | C39: 1600000US0103676 | G39: Greene County, Alabama | H39: 0500000US01063
B40: Bakerhill town, Alabama | C40: 1600000US0103724 | G40: Hale County, Alabama | H40: 0500000US01065
B41: Ballplay CDP, Alabama | C41: 1600000US0103820 | G41: Henry County, Alabama | H41: 0500000US01067
B42: Banks town, Alabama | C42: 1600000US0103940 | G42: Houston County, Alabama | H42: 0500000US01069
B43: Bay Minette city, Alabama | C43: 1600000US0104660 | G43: Jackson County, Alabama | H43: 0500000US01071
B44: Bayou La Batre city, Alabama | C44: 1600000US0104684 | G44: Jefferson County, Alabama | H44: 0500000US01073
B45: Bear Creek town, Alabama | C45: 1600000US0104852 | G45: Lamar County, Alabama | H45: 0500000US01075
B46: Beatrice town, Alabama | C46: 1600000US0104900 | G46: Lauderdale County, Alabama | H46: 0500000US01077
B47: Beaverton town, Alabama | C47: 1600000US0104948 | G47: Lawrence County, Alabama | H47: 0500000US01079
B48: Belgreen CDP, Alabama | C48: 1600000US0105140 | G48: Lee County, Alabama | H48: 0500000US01081
B49: Belk town, Alabama | C49: 1600000US0105164 | G49: Limestone County, Alabama | H49: 0500000US01083
B50: Bellamy CDP, Alabama | C50: 1600000US0105188 | G50: Lowndes County, Alabama | H50: 0500000US01085
B51: Belle Fontaine CDP, Alabama | C51: 1600000US0105212 | G51: Macon County, Alabama | H51: 0500000US01087
B52: Benton town, Alabama | C52: 1600000US0105692 | G52: Madison County, Alabama | H52: 0500000US01089
B53: Berlin town, Alabama | C53: 1600000US0105812 | G53: Marengo County, Alabama | H53: 0500000US01091
B54: Berry town, Alabama | C54: 1600000US0105932 | G54: Marion County, Alabama | H54: 0500000US01093
B55: Bessemer city, Alabama | C55: 1600000US0105980 | G55: Marshall County, Alabama | H55: 0500000US01095
B56: Billingsley town, Alabama | C56: 1600000US0106460 | G56: Mobile County, Alabama | H56: 0500000US01097
B57: Birmingham city, Alabama | C57: 1600000US0107000 | G57: Monroe County, Alabama | H57: 0500000US01099
B58: Black town, Alabama | C58: 1600000US0107120 | G58: Montgomery County, Alabama | H58: 0500000US01101
B59: Blountsville town, Alabama | C59: 1600000US0107456 | G59: Morgan County, Alabama | H59: 0500000US01103
B60: Blue Ridge CDP, Alabama | C60: 1600000US0107588 | G60: Perry County, Alabama | H60: 0500000US01105
B61: Blue Springs town, Alabama | C61: 1600000US0107672 | G61: Pickens County, Alabama | H61: 0500000US01107
B62: Boaz city, Alabama | C62: 1600000US0107912 | G62: Pike County, Alabama | H62: 0500000US01109
B63: Boligee town, Alabama | C63: 1600000US0108104 | G63: Randolph County, Alabama | H63: 0500000US01111
B64: Bon Air town, Alabama | C64: 1600000US0108248 | G64: Russell County, Alabama | H64: 0500000US01113
B65: Bon Secour CDP, Alabama | C65: 1600000US0108272 | G65: St. Clair County, Alabama | H65: 0500000US01115
B66: Boykin CDP, Alabama | C66: 1600000US0108680 | G66: Shelby County, Alabama | H66: 0500000US01117
B67: Brantley town, Alabama | C67: 1600000US0109016 | G67: Sumter County, Alabama | H67: 0500000US01119
B68: Brantleyville CDP, Alabama | C68: 1600000US0109064 | G68: Talladega County, Alabama | H68: 0500000US01121
B69: Brent city, Alabama | C69: 1600000US0109136 | G69: Tallapoosa County, Alabama | H69: 0500000US01123
B70: Brewton city, Alabama | C70: 1600000US0109208 | G70: Tuscaloosa County, Alabama | H70: 0500000US01125
B71: Bridgeport city, Alabama | C71: 1600000US0109328 | G71: Walker County, Alabama | H71: 0500000US01127
B72: Brighton city, Alabama | C72: 1600000US0109400 | G72: Washington County, Alabama | H72: 0500000US01129
B73: Brilliant town, Alabama | C73: 1600000US0109424 | G73: Wilcox County, Alabama | H73: 0500000US01131
B74: Bristow Cove CDP, Alabama | C74: 1600000US0109457 | G74: Winston County, Alabama | H74: 0500000US01133
B75: Brook Highland CDP, Alabama | C75: 1600000US0109500 | G75: Aleutians East Borough, Alaska | H75: 0500000US02013
B76: Brookside town, Alabama | C76: 1600000US0109736 | G76: Aleutians West Census Area, Alaska | H76: 0500000US02016
B77: Brookwood town, Alabama | C77: 1600000US0109808 | G77: Anchorage Municipality, Alaska | H77: 0500000US02020
B78: Broomtown CDP, Alabama | C78: 1600000US0109880 | G78: Bethel Census Area, Alaska | H78: 0500000US02050
B79: Brundidge city, Alabama | C79: 1600000US0110240 | G79: Bristol Bay Borough, Alaska | H79: 0500000US02060
B80: Bucks CDP, Alabama | C80: 1600000US0110456 | G80: Chugach Census Area, Alaska | H80: 0500000US02063
B81: Butler town, Alabama | C81: 1600000US0111032 | G81: Copper River Census Area, Alaska | H81: 0500000US02066
B82: Calera city, Alabama | C82: 1600000US0111416 | G82: Denali Borough, Alaska | H82: 0500000US02068
B83: Calvert CDP, Alabama | C83: 1600000US0111488 | G83: Dillingham Census Area, Alaska | H83: 0500000US02070
B84: Camden city, Alabama | C84: 1600000US0111512 | G84: Fairbanks North Star Borough, Alaska | H84: 0500000US02090
B85: Camp Hill town, Alabama | C85: 1600000US0111680 | G85: Haines Borough, Alaska | H85: 0500000US02100
B86: Carbon Hill city, Alabama | C86: 1600000US0112016 | G86: Hoonah-Angoon Census Area, Alaska | H86: 0500000US02105
B87: Cardiff town, Alabama | C87: 1600000US0112040 | G87: Juneau City and Borough, Alaska | H87: 0500000US02110
B88: Carlisle-Rockledge CDP, Alabama | C88: 1600000US0112070 | G88: Kenai Peninsula Borough, Alaska | H88: 0500000US02122
B89: Carlton CDP, Alabama | C89: 1600000US0112112 | G89: Ketchikan Gateway Borough, Alaska | H89: 0500000US02130
B90: Carolina town, Alabama | C90: 1600000US0112160 | G90: Kodiak Island Borough, Alaska | H90: 0500000US02150
B91: Carrollton town, Alabama | C91: 1600000US0112304 | G91: Kusilvak Census Area, Alaska | H91: 0500000US02158
B92: Castleberry town, Alabama | C92: 1600000US0112496 | G92: Lake and Peninsula Borough, Alaska | H92: 0500000US02164
B93: Catherine CDP, Alabama | C93: 1600000US0112544 | G93: Matanuska-Susitna Borough, Alaska | H93: 0500000US02170
B94: Cedar Bluff town, Alabama | C94: 1600000US0112760 | G94: Nome Census Area, Alaska | H94: 0500000US02180
B95: Center Point city, Alabama | C95: 1600000US0113264 | G95: North Slope Borough, Alaska | H95: 0500000US02185
B96: Centre city, Alabama | C96: 1600000US0113648 | G96: Northwest Arctic Borough, Alaska | H96: 0500000US02188
B97: Centreville city, Alabama | C97: 1600000US0113672 | G97: Petersburg Borough, Alaska | H97: 0500000US02195
B98: Chatom town, Alabama | C98: 1600000US0114008 | G98: Prince of Wales-Hyder Census Area, Alaska | H98: 0500000US02198
B99: Chelsea city, Alabama | C99: 1600000US0114104 | G99: Sitka City and Borough, Alaska | H99: 0500000US02220
B100: Cherokee town, Alabama | C100: 1600000US0114152 | G100: Skagway Municipality, Alaska | H100: 0500000US02230
B101: Chickasaw city, Alabama | C101: 1600000US0114392 | G101: Southeast Fairbanks Census Area, Alaska | H101: 0500000US02240
B102: Childersburg city, Alabama | C102: 1600000US0114464 | G102: Wrangell City and Borough, Alaska | H102: 0500000US02275
B103: Choccolocco CDP, Alabama | C103: 1600000US0114728 | G103: Yakutat City and Borough, Alaska | H103: 0500000US02282
B104: Chunchula CDP, Alabama | C104: 1600000US0114968 | G104: Yukon-Koyukuk Census Area, Alaska | H104: 0500000US02290
B105: Citronelle city, Alabama | C105: 1600000US0115064 | G105: Apache County, Arizona | H105: 0500000US04001
B106: Clanton city, Alabama | C106: 1600000US0115136 | G106: Cochise County, Arizona | H106: 0500000US04003
B107: Clay city, Alabama | C107: 1600000US0115256 | G107: Coconino County, Arizona | H107: 0500000US04005
B108: Clayhatchee town, Alabama | C108: 1600000US0115304 | G108: Gila County, Arizona | H108: 0500000US04007
B109: Clayton town, Alabama | C109: 1600000US0115376 | G109: Graham County, Arizona | H109: 0500000US04009
B110: Cleveland town, Alabama | C110: 1600000US0115472 | G110: Greenlee County, Arizona | H110: 0500000US04011
B111: Clio city, Alabama | C111: 1600000US0115640 | G111: La Paz County, Arizona | H111: 0500000US04012
B112: Coaling town, Alabama | C112: 1600000US0116000 | G112: Maricopa County, Arizona | H112: 0500000US04013
B113: Coats Bend CDP, Alabama | C113: 1600000US0116080 | G113: Mohave County, Arizona | H113: 0500000US04015
B114: Coffee Springs town, Alabama | C114: 1600000US0116240 | G114: Navajo County, Arizona | H114: 0500000US04017
B115: Coffeeville town, Alabama | C115: 1600000US0116264 | G115: Pima County, Arizona | H115: 0500000US04019
B116: Coker town, Alabama | C116: 1600000US0116312 | G116: Pinal County, Arizona | H116: 0500000US04021
B117: Collinsville town, Alabama | C117: 1600000US0116600 | G117: Santa Cruz County, Arizona | H117: 0500000US04023
B118: Colony town, Alabama | C118: 1600000US0116684 | G118: Yavapai County, Arizona | H118: 0500000US04025
B119: Columbia town, Alabama | C119: 1600000US0116744 | G119: Yuma County, Arizona | H119: 0500000US04027
B120: Columbiana city, Alabama | C120: 1600000US0116768 | G120: Arkansas County, Arkansas | H120: 0500000US05001
B121: Concord CDP, Alabama | C121: 1600000US0116936 | G121: Ashley County, Arkansas | H121: 0500000US05003
B122: Coosada town, Alabama | C122: 1600000US0117176 | G122: Baxter County, Arkansas | H122: 0500000US05005
B123: Cordova city, Alabama | C123: 1600000US0117368 | G123: Benton County, Arkansas | H123: 0500000US05007
B124: Cottondale CDP, Alabama | C124: 1600000US0117704 | G124: Boone County, Arkansas | H124: 0500000US05009
B125: Cottonwood town, Alabama | C125: 1600000US0117824 | G125: Bradley County, Arkansas | H125: 0500000US05011
B126: County Line town, Alabama | C126: 1600000US0117968 | G126: Calhoun County, Arkansas | H126: 0500000US05013
B127: Courtland town, Alabama | C127: 1600000US0118040 | G127: Carroll County, Arkansas | H127: 0500000US05015
B128: Cowarts town, Alabama | C128: 1600000US0118088 | G128: Chicot County, Arkansas | H128: 0500000US05017
B129: Creola city, Alabama | C129: 1600000US0118304 | G129: Clark County, Arkansas | H129: 0500000US05019
B130: Crossville town, Alabama | C130: 1600000US0118856 | G130: Clay County, Arkansas | H130: 0500000US05021
B131: Cuba town, Alabama | C131: 1600000US0118952 | G131: Cleburne County, Arkansas | H131: 0500000US05023
B132: Cullman city, Alabama | C132: 1600000US0118976 | G132: Cleveland County, Arkansas | H132: 0500000US05025
B133: Cullomburg CDP, Alabama | C133: 1600000US0119024 | G133: Columbia County, Arkansas | H133: 0500000US05027
B134: Cusseta town, Alabama | C134: 1600000US0119216 | G134: Conway County, Arkansas | H134: 0500000US05029
B135: Dadeville city, Alabama | C135: 1600000US0119336 | G135: Craighead County, Arkansas | H135: 0500000US05031
B136: Daleville city, Alabama | C136: 1600000US0119360 | G136: Crawford County, Arkansas | H136: 0500000US05033
B137: Daphne city, Alabama | C137: 1600000US0119648 | G137: Crittenden County, Arkansas | H137: 0500000US05035
B138: Dauphin Island town, Alabama | C138: 1600000US0119744 | G138: Cross County, Arkansas | H138: 0500000US05037
B139: Daviston town, Alabama | C139: 1600000US0119816 | G139: Dallas County, Arkansas | H139: 0500000US05039
B140: Dayton town, Alabama | C140: 1600000US0119912 | G140: Desha County, Arkansas | H140: 0500000US05041
B141: Deatsville town, Alabama | C141: 1600000US0120008 | G141: Drew County, Arkansas | H141: 0500000US05043
B142: Decatur city, Alabama | C142: 1600000US0120104 | G142: Faulkner County, Arkansas | H142: 0500000US05045
B143: Deer Park CDP, Alabama | C143: 1600000US0120152 | G143: Franklin County, Arkansas | H143: 0500000US05047
B144: Delta CDP, Alabama | C144: 1600000US0120272 | G144: Fulton County, Arkansas | H144: 0500000US05049
B145: Demopolis city, Alabama | C145: 1600000US0120296 | G145: Garland County, Arkansas | H145: 0500000US05051
B146: Detroit town, Alabama | C146: 1600000US0120392 | G146: Grant County, Arkansas | H146: 0500000US05053
B147: Dodge City town, Alabama | C147: 1600000US0120955 | G147: Greene County, Arkansas | H147: 0500000US05055
B148: Dora city, Alabama | C148: 1600000US0121136 | G148: Hempstead County, Arkansas | H148: 0500000US05057
B149: Dothan city, Alabama | C149: 1600000US0121184 | G149: Hot Spring County, Arkansas | H149: 0500000US05059
B150: Double Springs town, Alabama | C150: 1600000US0121280 | G150: Howard County, Arkansas | H150: 0500000US05061
B151: Douglas town, Alabama | C151: 1600000US0121328 | G151: Independence County, Arkansas | H151: 0500000US05063
B152: Dozier town, Alabama | C152: 1600000US0121448 | G152: Izard County, Arkansas | H152: 0500000US05065
B153: Dunnavant CDP, Alabama | C153: 1600000US0121890 | G153: Jackson County, Arkansas | H153: 0500000US05067
B154: Dutton town, Alabama | C154: 1600000US0121952 | G154: Jefferson County, Arkansas | H154: 0500000US05069
B155: Eagle Point CDP, Alabama | C155: 1600000US0122088 | G155: Johnson County, Arkansas | H155: 0500000US05071
B156: East Brewton city, Alabama | C156: 1600000US0122216 | G156: Lafayette County, Arkansas | H156: 0500000US05073
B157: East Point CDP, Alabama | C157: 1600000US0122504 | G157: Lawrence County, Arkansas | H157: 0500000US05075
B158: Eclectic town, Alabama | C158: 1600000US0122816 | G158: Lee County, Arkansas | H158: 0500000US05077
B159: Edgewater CDP, Alabama | C159: 1600000US0123032 | G159: Lincoln County, Arkansas | H159: 0500000US05079
B160: Edwardsville town, Alabama | C160: 1600000US0123176 | G160: Little River County, Arkansas | H160: 0500000US05081
B161: Egypt CDP, Alabama | C161: 1600000US0123224 | G161: Logan County, Arkansas | H161: 0500000US05083
B162: Elba city, Alabama | C162: 1600000US0123296 | G162: Lonoke County, Arkansas | H162: 0500000US05085
B163: Elberta town, Alabama | C163: 1600000US0123320 | G163: Madison County, Arkansas | H163: 0500000US05087
B164: Eldridge town, Alabama | C164: 1600000US0123344 | G164: Marion County, Arkansas | H164: 0500000US05089
B165: Elkmont town, Alabama | C165: 1600000US0123488 | G165: Miller County, Arkansas | H165: 0500000US05091
B166: Elmore town, Alabama | C166: 1600000US0123656 | G166: Mississippi County, Arkansas | H166: 0500000US05093
B167: Emelle town, Alabama | C167: 1600000US0123872 | G167: Monroe County, Arkansas | H167: 0500000US05095
B168: Emerald Mountain CDP, Alabama | C168: 1600000US0123880 | G168: Montgomery County, Arkansas | H168: 0500000US05097
B169: Enterprise city, Alabama | C169: 1600000US0124184 | G169: Nevada County, Arkansas | H169: 0500000US05099
B170: Epes town, Alabama | C170: 1600000US0124256 | G170: Newton County, Arkansas | H170: 0500000US05101
B171: Equality CDP, Alabama | C171: 1600000US0124280 | G171: Ouachita County, Arkansas | H171: 0500000US05103
B172: Ethelsville town, Alabama | C172: 1600000US0124472 | G172: Perry County, Arkansas | H172: 0500000US05105
B173: Eufaula city, Alabama | C173: 1600000US0124568 | G173: Phillips County, Arkansas | H173: 0500000US05107
B174: Eunola CDP, Alabama | C174: 1600000US0124616 | G174: Pike County, Arkansas | H174: 0500000US05109
B175: Eutaw town, Alabama | C175: 1600000US0124664 | G175: Poinsett County, Arkansas | H175: 0500000US05111
B176: Eva town, Alabama | C176: 1600000US0124688 | G176: Polk County, Arkansas | H176: 0500000US05113
B177: Evergreen city, Alabama | C177: 1600000US0124808 | G177: Pope County, Arkansas | H177: 0500000US05115
B178: Excel town, Alabama | C178: 1600000US0124880 | G178: Prairie County, Arkansas | H178: 0500000US05117
B179: Fairfield city, Alabama | C179: 1600000US0125120 | G179: Pulaski County, Arkansas | H179: 0500000US05119
B180: Fairford CDP, Alabama | C180: 1600000US0125216 | G180: Randolph County, Arkansas | H180: 0500000US05121
B181: Fairhope city, Alabama | C181: 1600000US0125240 | G181: St. Francis County, Arkansas | H181: 0500000US05123
B182: Fairview town, Alabama | C182: 1600000US0125384 | G182: Saline County, Arkansas | H182: 0500000US05125
B183: Falkville town, Alabama | C183: 1600000US0125648 | G183: Scott County, Arkansas | H183: 0500000US05127
B184: Faunsdale town, Alabama | C184: 1600000US0125816 | G184: Searcy County, Arkansas | H184: 0500000US05129
B185: Fayette city, Alabama | C185: 1600000US0125840 | G185: Sebastian County, Arkansas | H185: 0500000US05131
B186: Fayetteville CDP, Alabama | C186: 1600000US0125864 | G186: Sevier County, Arkansas | H186: 0500000US05133
B187: Fitzpatrick CDP, Alabama | C187: 1600000US0126152 | G187: Sharp County, Arkansas | H187: 0500000US05135
B188: Five Points town, Alabama | C188: 1600000US0126200 | G188: Stone County, Arkansas | H188: 0500000US05137
B189: Flomaton town, Alabama | C189: 1600000US0126824 | G189: Union County, Arkansas | H189: 0500000US05139
B190: Florala town, Alabama | C190: 1600000US0126848 | G190: Van Buren County, Arkansas | H190: 0500000US05141
B191: Florence city, Alabama | C191: 1600000US0126896 | G191: Washington County, Arkansas | H191: 0500000US05143
B192: Foley city, Alabama | C192: 1600000US0126992 | G192: White County, Arkansas | H192: 0500000US05145
B193: Forestdale CDP, Alabama | C193: 1600000US0127088 | G193: Woodruff County, Arkansas | H193: 0500000US05147
B194: Forkland town, Alabama | C194: 1600000US0127376 | G194: Yell County, Arkansas | H194: 0500000US05149
B195: Fort Deposit town, Alabama | C195: 1600000US0127520 | G195: Alameda County, California | H195: 0500000US06001
B196: Fort Payne city, Alabama | C196: 1600000US0127616 | G196: Alpine County, California | H196: 0500000US06003
B197: Fort Rucker CDP, Alabama | C197: 1600000US0127640 | G197: Amador County, California | H197: 0500000US06005
B198: Franklin town, Alabama | C198: 1600000US0128024 | G198: Butte County, California | H198: 0500000US06007
B199: Fredonia CDP, Alabama | C199: 1600000US0128120 | G199: Calaveras County, California | H199: 0500000US06009
B200: Frisco City town, Alabama | C200: 1600000US0128312 | G200: Colusa County, California | H200: 0500000US06011
B201: Fruitdale CDP, Alabama | C201: 1600000US0128408 | G201: Contra Costa County, California | H201: 0500000US06013
B202: Fruithurst town, Alabama | C202: 1600000US0128432 | G202: Del Norte County, California | H202: 0500000US06015
B203: Fulton town, Alabama | C203: 1600000US0128504 | G203: El Dorado County, California | H203: 0500000US06017
B204: Fultondale city, Alabama | C204: 1600000US0128552 | G204: Fresno County, California | H204: 0500000US06019
B205: Fyffe town, Alabama | C205: 1600000US0128672 | G205: Glenn County, California | H205: 0500000US06021
... 4295 more rows

Sheet cities_named_ranges (hidden)
A1: City | C1: Alabama | H1: Alaska | M1: Arizona | R1: Arkansas | W1: California | AB1: Colorado | AG1: Connecticut | AL1: Delaware | AQ1: District of Columbia | AV1: Florida | BA1: Georgia | BF1: Hawaii | BK1: Idaho | BP1: Illinois | BU1: Indiana | BZ1: Iowa | CE1: Kansas | CJ1: Kentucky | CO1: Louisiana | CT1: Maine | CY1: Maryland | DD1: Massachusetts | DI1: Michigan | DN1: Minnesota | DS1: Mississippi | DX1: Missouri | EC1: Montana | EH1: Nebraska | EM1: Nevada | ER1: New Hampshire | EW1: New Jersey | FB1: New Mexico | FG1: New York | FL1: North Carolina | FQ1: North Dakota | FV1: Ohio | GA1: Oklahoma | GF1: Oregon | GK1: Pennsylvania | GP1: Puerto Rico | GU1: Rhode Island | GZ1: South Carolina | HE1: South Dakota | HJ1: Tennessee | HO1: Texas | HT1: Utah | HY1: Vermont | ID1: Virginia | II1: Washington | IN1: West Virginia | IS1: Wisconsin | IX1: Wyoming
C2: Abanda CDP, Alabama | D2: Abanda CDP | E2: Alabama | F2: 1600000US0100100 | H2: Adak city, Alaska | I2: Adak city | J2: Alaska | K2: 1600000US0200065 | M2: Aguila CDP, Arizona | N2: Aguila CDP | O2: Arizona | P2: 1600000US0400730 | R2: Acorn CDP, Arkansas | S2: Acorn CDP | T2: Arkansas | U2: 1600000US0500190 | W2: Acalanes Ridge CDP, California | X2: Acalanes Ridge CDP | Y2: California | Z2: 1600000US0600135 | AB2: Acres Green CDP, Colorado | AC2: Acres Green CDP | AD2: Colorado | AE2: 1600000US0800320 | AG2: Ansonia city, Connecticut | AH2: Ansonia city | AI2: Connecticut | AJ2: 1600000US0901150 | AL2: Arden village, Delaware | AM2: Arden village | AN2: Delaware | AO2: 1600000US1001400 | AQ2: Washington city, District of Columbia | AR2: Washington city | AS2: District of Columbia | AT2: 1600000US1150000 | AV2: Acacia Villas CDP, Florida | AW2: Acacia Villas CDP | AX2: Florida | AY2: 1600000US1200075 | BA2: Abbeville city, Georgia | BB2: Abbeville city | BC2: Georgia | BD2: 1600000US1300184 | BF2: Ahuimanu CDP, Hawaii | BG2: Ahuimanu CDP | BH2: Hawaii | BI2: 1600000US1500400 | BK2: Aberdeen city, Idaho | BL2: Aberdeen city | BM2: Idaho | BN2: 1600000US1600100 | BP2: Abingdon city, Illinois | BQ2: Abingdon city | BR2: Illinois | BS2: 1600000US1700113 | BU2: Aberdeen CDP, Indiana | BV2: Aberdeen CDP | BW2: Indiana | BX2: 1600000US1800140 | BZ2: Ackley city, Iowa | CA2: Ackley city | CB2: Iowa | CC2: 1600000US1900190 | CE2: Abbyville city, Kansas | CF2: Abbyville city | CG2: Kansas | CH2: 1600000US2000100 | CJ2: Adairville city, Kentucky | CK2: Adairville city | CL2: Kentucky | CM2: 1600000US2100298 | CO2: Abbeville city, Louisiana | CP2: Abbeville city | CQ2: Louisiana | CR2: 1600000US2200100 | CT2: Alfred CDP, Maine | CU2: Alfred CDP | CV2: Maine | CW2: 1600000US2300695 | CY2: Aberdeen city, Maryland | CZ2: Aberdeen city | DA2: Maryland | DB2: 1600000US2400125 | DD2: Abington CDP, Massachusetts | DE2: Abington CDP | DF2: Massachusetts | DG2: 1600000US2500135 | DI2: Addison village, Michigan | DJ2: Addison village | DK2: Michigan | DL2: 1600000US2600380 | DN2: Ada city, Minnesota | DO2: Ada city | DP2: Minnesota | DQ2: 1600000US2700172 | DS2: Abbeville town, Mississippi | DT2: Abbeville town | DU2: Mississippi | DV2: 1600000US2800100 | DX2: Adrian city, Missouri | DY2: Adrian city | DZ2: Missouri | EA2: 1600000US2900244 | EC2: Absarokee CDP, Montana | ED2: Absarokee CDP | EE2: Montana | EF2: 1600000US3000175 | EH2: Abie village, Nebraska | EI2: Abie village | EJ2: Nebraska | EK2: 1600000US3100205 | EM2: Alamo CDP, Nevada | EN2: Alamo CDP | EO2: Nevada | EP2: 1600000US3200500 | ER2: Alton CDP, New Hampshire | ES2: Alton CDP | ET2: New Hampshire | EU2: 1600000US3300980 | EW2: Absecon city, New Jersey | EX2: Absecon city | EY2: New Jersey | EZ2: 1600000US3400100 | FB2: Abeytas CDP, New Mexico | FC2: Abeytas CDP | FD2: New Mexico | FE2: 1600000US3500240 | FG2: Accord CDP, New York | FH2: Accord CDP | FI2: New York | FJ2: 1600000US3600155 | FL2: Aberdeen town, North Carolina | FM2: Aberdeen town | FN2: North Carolina | FO2: 1600000US3700160 | FQ2: Abercrombie city, North Dakota | FR2: Abercrombie city | FS2: North Dakota | FT2: 1600000US3800100 | FV2: Aberdeen village, Ohio | FW2: Aberdeen village | FX2: Ohio | FY2: 1600000US3900142 | GA2: Achille town, Oklahoma | GB2: Achille town | GC2: Oklahoma | GD2: 1600000US4000100 | GF2: Adair Village city, Oregon | GG2: Adair Village city | GH2: Oregon | GI2: 1600000US4100275 | GK2: Aaronsburg CDP (Centre County), Pennsylvania | GL2: Aaronsburg CDP (Centre County) | GM2: Pennsylvania | GN2: 1600000US4200100 | GP2: Aceitunas comunidad, Puerto Rico | GQ2: Aceitunas comunidad | GR2: Puerto Rico | GS2: 1600000US7200186 | GU2: Ashaway CDP, Rhode Island | GV2: Ashaway CDP | GW2: Rhode Island | GX2: 1600000US4403520 | GZ2: Abbeville city, South Carolina | HA2: Abbeville city | HB2: South Carolina | HC2: 1600000US4500100 | HE2: Aberdeen city, South Dakota | HF2: Aberdeen city | HG2: South Dakota | HH2: 1600000US4600100 | HJ2: Adams city, Tennessee | HK2: Adams city | HL2: Tennessee | HM2: 1600000US4700200 | HO2: Abbott city, Texas | HP2: Abbott city | HQ2: Texas | HR2: 1600000US4800100 | HT2: Alpine city, Utah | HU2: Alpine city | HV2: Utah | HW2: 1600000US4900540 | HY2: Albany village, Vermont | HZ2: Albany village | IA2: Vermont | IB2: 1600000US5000400 | ID2: Abbs Valley CDP, Virginia | IE2: Abbs Valley CDP | IF2: Virginia | IG2: 1600000US5100110 | II2: Aberdeen city, Washington | IJ2: Aberdeen city | IK2: Washington | IL2: 1600000US5300100 | IN2: Accoville CDP, West Virginia | IO2: Accoville CDP | IP2: West Virginia | IQ2: 1600000US5400196 | IS2: Abbotsford city, Wisconsin | IT2: Abbotsford city | IU2: Wisconsin | IV2: 1600000US5500100 | IX2: Afton town, Wyoming | IY2: Afton town | IZ2: Wyoming | JA2: 1600000US5600245
A3: Alabama | C3: Abbeville city, Alabama | D3: Abbeville city | E3: Alabama | F3: 1600000US0100124 | H3: Akhiok city, Alaska | I3: Akhiok city | J3: Alaska | K3: 1600000US0200650 | M3: Ajo CDP, Arizona | N3: Ajo CDP | O3: Arizona | P3: 1600000US0400870 | R3: Adona city, Arkansas | S3: Adona city | T3: Arkansas | U3: 1600000US0500250 | W3: Acampo CDP, California | X3: Acampo CDP | Y3: California | Z3: 1600000US0600156 | AB3: Aetna Estates CDP, Colorado | AC3: Aetna Estates CDP | AD3: Colorado | AE3: 1600000US0800620 | AG3: Ball Pond CDP, Connecticut | AH3: Ball Pond CDP | AI3: Connecticut | AJ3: 1600000US0902480 | AL3: Ardencroft village, Delaware | AM3: Ardencroft village | AN3: Delaware | AO3: 1600000US1001530 | AV3: Alachua city, Florida | AW3: Alachua city | AX3: Florida | AY3: 1600000US1200375 | BA3: Acworth city, Georgia | BB3: Acworth city | BC3: Georgia | BD3: 1600000US1300408 | BF3: Aiea CDP, Hawaii | BG3: Aiea CDP | BH3: Hawaii | BI3: 1600000US1500550 | BK3: Acequia city, Idaho | BL3: Acequia city | BM3: Idaho | BN3: 1600000US1600280 | BP3: Adair CDP, Illinois | BQ3: Adair CDP | BR3: Illinois | BS3: 1600000US1700178 | BU3: Advance town, Indiana | BV3: Advance town | BW3: Indiana | BX3: 1600000US1800640 | BZ3: Ackworth city, Iowa | CA3: Ackworth city | CB3: Iowa | CC3: 1600000US1900235 | CE3: Abilene city, Kansas | CF3: Abilene city | CG3: Kansas | CH3: 1600000US2000125 | CJ3: Ages CDP, Kentucky | CK3: Ages CDP | CL3: Kentucky | CM3: 1600000US2100514 | CO3: Abita Springs town, Louisiana | CP3: Abita Springs town | CQ3: Louisiana | CR3: 1600000US2200240 | CT3: Anson CDP, Maine | CU3: Anson CDP | CV3: Maine | CW3: 1600000US2301360 | CY3: Aberdeen Proving Ground CDP, Maryland | CZ3: Aberdeen Proving Ground CDP | DA3: Maryland | DB3: 1600000US2400175 | DD3: Acushnet Center CDP, Massachusetts | DE3: Acushnet Center CDP | DF3: Massachusetts | DG3: 1600000US2500530 | DI3: Adrian city, Michigan | DJ3: Adrian city | DK3: Michigan | DL3: 1600000US2600440 | DN3: Adams city, Minnesota | DO3: Adams city | DP3: Minnesota | DQ3: 1600000US2700190 | DS3: Aberdeen city, Mississippi | DT3: Aberdeen city | DU3: Mississippi | DV3: 1600000US2800180 | DX3: Advance city, Missouri | DY3: Advance city | DZ3: Missouri | EA3: 1600000US2900262 | EC3: Acton CDP, Montana | ED3: Acton CDP | EE3: Montana | EF3: 1600000US3000400 | EH3: Adams village, Nebraska | EI3: Adams village | EJ3: Nebraska | EK3: 1600000US3100240 | EM3: Amargosa Valley CDP, Nevada | EN3: Amargosa Valley CDP | EO3: Nevada | EP3: 1600000US3201000 | ER3: Amherst CDP, New Hampshire | ES3: Amherst CDP | ET3: New Hampshire | EU3: 1600000US3301220 | EW3: Absecon Highlands CDP, New Jersey | EX3: Absecon Highlands CDP | EY3: New Jersey | EZ3: 1600000US3400160 | FB3: Abiquiu CDP, New Mexico | FC3: Abiquiu CDP | FD3: New Mexico | FE3: 1600000US3500310 | FG3: Adams village, New York | FH3: Adams village | FI3: New York | FJ3: 1600000US3600199 | FL3: Advance CDP, North Carolina | FM3: Advance CDP | FN3: North Carolina | FO3: 1600000US3700440 | FQ3: Adams city, North Dakota | FR3: Adams city | FS3: North Dakota | FT3: 1600000US3800340 | FV3: Ada village, Ohio | FW3: Ada village | FX3: Ohio | FY3: 1600000US3900198 | GA3: Ada city, Oklahoma | GB3: Ada city | GC3: Oklahoma | GD3: 1600000US4000200 | GF3: Adams city, Oregon | GG3: Adams city | GH3: Oregon | GI3: 1600000US4100350 | GK3: Aaronsburg CDP (Washington County), Pennsylvania | GL3: Aaronsburg CDP (Washington County) | GM3: Pennsylvania | GN3: 1600000US4200104 | GP3: Adjuntas zona urbana, Puerto Rico | GQ3: Adjuntas zona urbana | GR3: Puerto Rico | GS3: 1600000US7200358 | GU3: Bradford CDP, Rhode Island | GV3: Bradford CDP | GW3: Rhode Island | GX3: 1600000US4408020 | GZ3: Abney Crossroads CDP, South Carolina | HA3: Abney Crossroads CDP | HB3: South Carolina | HC3: 1600000US4500165 | HE3: Agar town, South Dakota | HF3: Agar town | HG3: South Dakota | HH3: 1600000US4600460 | HJ3: Adamsville town, Tennessee | HK3: Adamsville town | HL3: Tennessee | HM3: 1600000US4700240 | HO3: Abernathy city, Texas | HP3: Abernathy city | HQ3: Texas | HR3: 1600000US4800160 | HT3: Alta town, Utah | HU3: Alta town | HV3: Utah | HW3: 1600000US4900650 | HY3: Alburgh village, Vermont | HZ3: Alburgh village | IA3: Vermont | IB3: 1600000US5000850 | ID3: Abingdon town, Virginia | IE3: Abingdon town | IF3: Virginia | IG3: 1600000US5100148 | II3: Aberdeen Gardens CDP, Washington | IJ3: Aberdeen Gardens CDP | IK3: Washington | IL3: 1600000US5300135 | IN3: Addison (Webster Springs) town, West Virginia | IO3: Addison (Webster Springs) town | IP3: West Virginia | IQ3: 1600000US5400364 | IS3: Abrams CDP, Wisconsin | IT3: Abrams CDP | IU3: Wisconsin | IV3: 1600000US5500150 | IX3: Albany CDP, Wyoming | IY3: Albany CDP | IZ3: Wyoming | JA3: 1600000US5600680
A4: Alaska | C4: Adamsville city, Alabama | D4: Adamsville city | E4: Alabama | F4: 1600000US0100460 | H4: Akiachak CDP, Alaska | I4: Akiachak CDP | J4: Alaska | K4: 1600000US0200760 | M4: Ak Chin CDP, Arizona | N4: Ak Chin CDP | O4: Arizona | P4: 1600000US0400940 | R4: Alexander city, Arkansas | S4: Alexander city | T4: Arkansas | U4: 1600000US0500580 | W4: Acton CDP, California | X4: Acton CDP | Y4: California | Z4: 1600000US0600212 | AB4: Aguilar town, Colorado | AC4: Aguilar town | AD4: Colorado | AE4: 1600000US0800760 | AG4: Baltic CDP, Connecticut | AH4: Baltic CDP | AI4: Connecticut | AJ4: 1600000US0902550 | AL4: Ardentown village, Delaware | AM4: Ardentown village | AN4: Delaware | AO4: 1600000US1001660 | AV4: Alafaya CDP, Florida | AW4: Alafaya CDP | AX4: Florida | AY4: 1600000US1200410 | BA4: Adairsville city, Georgia | BB4: Adairsville city | BC4: Georgia | BD4: 1600000US1300436 | BF4: Ainaloa CDP, Hawaii | BG4: Ainaloa CDP | BH4: Hawaii | BI4: 1600000US1501085 | BK4: Albion city, Idaho | BL4: Albion city | BM4: Idaho | BN4: 1600000US1601000 | BP4: Adams CDP, Illinois | BQ4: Adams CDP | BR4: Illinois | BS4: 1600000US1700191 | BU4: Akron town, Indiana | BV4: Akron town | BW4: Indiana | BX4: 1600000US1800748 | BZ4: Adair city, Iowa | CA4: Adair city | CB4: Iowa | CC4: 1600000US1900370 | CE4: Ada CDP, Kansas | CF4: Ada CDP | CG4: Kansas | CH4: 1600000US2000225 | CJ4: Albany city, Kentucky | CK4: Albany city | CL4: Kentucky | CM4: 1600000US2100694 | CO4: Addis town, Louisiana | CP4: Addis town | CQ4: Louisiana | CR4: 1600000US2200415 | CT4: Ashland CDP, Maine | CU4: Ashland CDP | CV4: Maine | CW4: 1600000US2301675 | CY4: Abingdon CDP, Maryland | CZ4: Abingdon CDP | DA4: Maryland | DB4: 1600000US2400200 | DD4: Adams CDP, Massachusetts | DE4: Adams CDP | DF4: Massachusetts | DG4: 1600000US2500590 | DI4: Advance CDP, Michigan | DJ4: Advance CDP | DK4: Michigan | DL4: 1600000US2600480 | DN4: Adrian city, Minnesota | DO4: Adrian city | DP4: Minnesota | DQ4: 1600000US2700262 | DS4: Ackerman town, Mississippi | DT4: Ackerman town | DU4: Mississippi | DV4: 1600000US2800300 | DX4: Affton CDP, Missouri | DY4: Affton CDP | DZ4: Missouri | EA4: 1600000US2900280 | EC4: Alberton town, Montana | ED4: Alberton town | EE4: Montana | EF4: 1600000US3000700 | EH4: Agnew CDP, Nebraska | EI4: Agnew CDP | EJ4: Nebraska | EK4: 1600000US3100380 | EM4: Austin CDP, Nevada | EN4: Austin CDP | EO4: Nevada | EP4: 1600000US3203700 | ER4: Antrim CDP, New Hampshire | ES4: Antrim CDP | ET4: New Hampshire | EU4: 1600000US3301620 | EW4: Allamuchy CDP, New Jersey | EX4: Allamuchy CDP | EY4: New Jersey | EZ4: 1600000US3400640 | FB4: Acomita Lake CDP, New Mexico | FC4: Acomita Lake CDP | FD4: New Mexico | FE4: 1600000US3500765 | FG4: Adams Center CDP, New York | FH4: Adams Center CDP | FI4: New York | FJ4: 1600000US3600232 | FL4: Ahoskie town, North Carolina | FM4: Ahoskie town | FN4: North Carolina | FO4: 1600000US3700500 | FQ4: Alamo city, North Dakota | FR4: Alamo city | FS4: North Dakota | FT4: 1600000US3800940 | FV4: Adamsville village, Ohio | FW4: Adamsville village | FX4: Ohio | FY4: 1600000US3900380 | GA4: Adair town, Oklahoma | GB4: Adair town | GC4: Oklahoma | GD4: 1600000US4000250 | GF4: Adrian city, Oregon | GG4: Adrian city | GH4: Oregon | GI4: 1600000US4100500 | GK4: Abbottstown borough, Pennsylvania | GL4: Abbottstown borough | GM4: Pennsylvania | GN4: 1600000US4200116 | GP4: Aguada zona urbana, Puerto Rico | GQ4: Aguada zona urbana | GR4: Puerto Rico | GS4: 1600000US7200616 | GU4: Carolina CDP, Rhode Island | GV4: Carolina CDP | GW4: Rhode Island | GX4: 1600000US4412340 | GZ4: Adams Run CDP, South Carolina | HA4: Adams Run CDP | HB4: South Carolina | HC4: 1600000US4500370 | HE4: Agency Village CDP, South Dakota | HF4: Agency Village CDP | HG4: South Dakota | HH4: 1600000US4600520 | HJ4: Alamo town, Tennessee | HK4: Alamo town | HL4: Tennessee | HM4: 1600000US4700440 | HO4: Abilene city, Texas | HP4: Abilene city | HQ4: Texas | HR4: 1600000US4801000 | HT4: Altamont town, Utah | HU4: Altamont town | HV4: Utah | HW4: 1600000US4900760 | HY4: Algiers CDP, Vermont | HZ4: Algiers CDP | IA4: Vermont | IB4: 1600000US5001035 | ID4: Accomac town, Virginia | IE4: Accomac town | IF4: Virginia | IG4: 1600000US5100180 | II4: Acme CDP, Washington | IJ4: Acme CDP | IK4: Washington | IL4: 1600000US5300275 | IN4: Adrian CDP, West Virginia | IO4: Adrian CDP | IP4: West Virginia | IQ4: 1600000US5400460 | IS4: Adams city, Wisconsin | IT4: Adams city | IU4: Wisconsin | IV4: 1600000US5500275 | IX4: Albin town, Wyoming | IY4: Albin town | IZ4: Wyoming | JA4: 1600000US5600825
A5: Arizona | C5: Addison town, Alabama | D5: Addison town | E5: Alabama | F5: 1600000US0100484 | H5: Akiak city, Alaska | I5: Akiak city | J5: Alaska | K5: 1600000US0200870 | M5: Ak-Chin Village CDP, Arizona | N5: Ak-Chin Village CDP | O5: Arizona | P5: 1600000US0401090 | R5: Alicia town, Arkansas | S5: Alicia town | T5: Arkansas | U5: 1600000US0500700 | W5: Adelanto city, California | X5: Adelanto city | Y5: California | Z5: 1600000US0600296 | AB5: Air Force Academy CDP, Colorado | AC5: Air Force Academy CDP | AD5: Colorado | AE5: 1600000US0800870 | AG5: Bantam borough, Connecticut | AH5: Bantam borough | AI5: Connecticut | AJ5: 1600000US0902690 | AL5: Bear CDP, Delaware | AM5: Bear CDP | AN5: Delaware | AO5: 1600000US1004130 | AV5: Alford town, Florida | AW5: Alford town | AX5: Florida | AY5: 1600000US1200625 | BA5: Adel city, Georgia | BB5: Adel city | BC5: Georgia | BD5: 1600000US1300576 | BF5: Anahola CDP, Hawaii | BG5: Anahola CDP | BH5: Hawaii | BI5: 1600000US1502200 | BK5: American Falls city, Idaho | BL5: American Falls city | BM5: Idaho | BN5: 1600000US1601900 | BP5: Addieville village, Illinois | BQ5: Addieville village | BR5: Illinois | BS5: 1600000US1700230 | BU5: Alamo town, Indiana | BV5: Alamo town | BW5: Indiana | BX5: 1600000US1800784 | BZ5: Adel city, Iowa | CA5: Adel city | CB5: Iowa | CC5: 1600000US1900505 | CE5: Admire city, Kansas | CF5: Admire city | CG5: Kansas | CH5: 1600000US2000325 | CJ5: Alexandria city, Kentucky | CK5: Alexandria city | CL5: Kentucky | CM5: 1600000US2100802 | CO5: Albany town, Louisiana | CP5: Albany town | CQ5: Louisiana | CR5: 1600000US2200835 | CT5: Auburn city, Maine | CU5: Auburn city | CV5: Maine | CW5: 1600000US2302060 | CY5: Accident town, Maryland | CZ5: Accident town | DA5: Maryland | DB5: 1600000US2400225 | DD5: Agawam Town city, Massachusetts | DE5: Agawam Town city | DF5: Massachusetts | DG5: 1600000US2500840 | DI5: Ahmeek village, Michigan | DJ5: Ahmeek village | DK5: Michigan | DL5: 1600000US2600620 | DN5: Afton city, Minnesota | DO5: Afton city | DP5: Minnesota | DQ5: 1600000US2700316 | DS5: Agricola CDP, Mississippi | DT5: Agricola CDP | DU5: Mississippi | DV5: 1600000US2800460 | DX5: Agency village, Missouri | DY5: Agency village | DZ5: Missouri | EA5: 1600000US2900298 | EC5: Alder CDP, Montana | ED5: Alder CDP | EE5: Montana | EF5: 1600000US3000850 | EH5: Ainsworth city, Nebraska | EI5: Ainsworth city | EJ5: Nebraska | EK5: 1600000US3100415 | EM5: Baker CDP, Nevada | EN5: Baker CDP | EO5: Nevada | EP5: 1600000US3204100 | ER5: Ashland CDP, New Hampshire | ES5: Ashland CDP | ET5: New Hampshire | EU5: 1600000US3301940 | EW5: Allendale borough, New Jersey | EX5: Allendale borough | EY5: New Jersey | EZ5: 1600000US3400700 | FB5: Adelino CDP, New Mexico | FC5: Adelino CDP | FD5: New Mexico | FE5: 1600000US3500940 | FG5: Addison village, New York | FH5: Addison village | FI5: New York | FJ5: 1600000US3600276 | FL5: Alamance village, North Carolina | FM5: Alamance village | FN5: North Carolina | FO5: 1600000US3700640 | FQ5: Alexander city, North Dakota | FR5: Alexander city | FS5: North Dakota | FT5: 1600000US3801180 | FV5: Addyston village, Ohio | FW5: Addyston village | FX5: Ohio | FY5: 1600000US3900436 | GA5: Adams CDP, Oklahoma | GB5: Adams CDP | GC5: Oklahoma | GD5: 1600000US4000300 | GF5: Albany city, Oregon | GG5: Albany city | GH5: Oregon | GI5: 1600000US4101000 | GK5: Ackermanville CDP, Pennsylvania | GL5: Ackermanville CDP | GM5: Pennsylvania | GN5: 1600000US4200244 | GP5: Aguadilla zona urbana, Puerto Rico | GQ5: Aguadilla zona urbana | GR5: Puerto Rico | GS5: 1600000US7200745 | GU5: Central Falls city, Rhode Island | GV5: Central Falls city | GW5: Rhode Island | GX5: 1600000US4414140 | GZ5: Aiken city, South Carolina | HA5: Aiken city | HB5: South Carolina | HC5: 1600000US4500550 | HE5: Akaska town, South Dakota | HF5: Akaska town | HG5: South Dakota | HH5: 1600000US4600540 | HJ5: Alcoa city, Tennessee | HK5: Alcoa city | HL5: Tennessee | HM5: 1600000US4700540 | HO5: Abram CDP, Texas | HP5: Abram CDP | HQ5: Texas | HR5: 1600000US4801060 | HT5: Alton town, Utah | HU5: Alton town | HV5: Utah | HW5: 1600000US4900870 | HY5: Arlington CDP, Vermont | HZ5: Arlington CDP | IA5: Vermont | IB5: 1600000US5001375 | ID5: Adwolf CDP, Virginia | IE5: Adwolf CDP | IF5: Virginia | IG5: 1600000US5100468 | II5: Addy CDP, Washington | IJ5: Addy CDP | IK5: Washington | IL5: 1600000US5300380 | IN5: Albright town, West Virginia | IO5: Albright town | IP5: West Virginia | IQ5: 1600000US5400748 | IS5: Adell village, Wisconsin | IT5: Adell village | IU5: Wisconsin | IV5: 1600000US5500450 | IX5: Alcova CDP, Wyoming | IY5: Alcova CDP | IZ5: Wyoming | JA5: 1600000US5601115
A6: Arkansas | C6: Akron town, Alabama | D6: Akron town | E6: Alabama | F6: 1600000US0100676 | H6: Akutan city, Alaska | I6: Akutan city | J6: Alaska | K6: 1600000US0201090 | M6: Alamo Lake CDP, Arizona | N6: Alamo Lake CDP | O6: Arizona | P6: 1600000US0401170 | R6: Alix CDP, Arkansas | S6: Alix CDP | T6: Arkansas | U6: 1600000US0500730 | W6: Adin CDP, California | X6: Adin CDP | Y6: California | Z6: 1600000US0600310 | AB6: Akron town, Colorado | AC6: Akron town | AD6: Colorado | AE6: 1600000US0800925 | AG6: Bethel CDP, Connecticut | AH6: Bethel CDP | AI6: Connecticut | AJ6: 1600000US0904790 | AL6: Bellefonte town, Delaware | AM6: Bellefonte town | AN6: Delaware | AO6: 1600000US1004650 | AV6: Allentown CDP, Florida | AW6: Allentown CDP | AX6: Florida | AY6: 1600000US1200800 | BA6: Adrian city, Georgia | BB6: Adrian city | BC6: Georgia | BD6: 1600000US1300660 | BF6: Black Sands CDP, Hawaii | BG6: Black Sands CDP | BH6: Hawaii | BI6: 1600000US1502832 | BK6: Ammon city, Idaho | BL6: Ammon city | BM6: Idaho | BN6: 1600000US1601990 | BP6: Addison village, Illinois | BQ6: Addison village | BR6: Illinois | BS6: 1600000US1700243 | BU6: Albany town, Indiana | BV6: Albany town | BW6: Indiana | BX6: 1600000US1800802 | BZ6: Afton city, Iowa | CA6: Afton city | CB6: Iowa | CC6: 1600000US1900595 | CE6: Agenda city, Kansas | CF6: Agenda city | CG6: Kansas | CH6: 1600000US2000475 | CJ6: Allen city, Kentucky | CK6: Allen city | CL6: Kentucky | CM6: 1600000US2100946 | CO6: Alexandria city, Louisiana | CP6: Alexandria city | CQ6: Louisiana | CR6: 1600000US2200975 | CT6: Augusta city, Maine | CU6: Augusta city | CV6: Maine | CW6: 1600000US2302100 | CY6: Accokeek CDP, Maryland | CZ6: Accokeek CDP | DA6: Maryland | DB6: 1600000US2400250 | DD6: Amesbury Town city, Massachusetts | DE6: Amesbury Town city | DF6: Massachusetts | DG6: 1600000US2501260 | DI6: Akron village, Michigan | DJ6: Akron village | DK6: Michigan | DL6: 1600000US2600700 | DN6: Aitkin city, Minnesota | DO6: Aitkin city | DP6: Minnesota | DQ6: 1600000US2700460 | DS6: Alcorn State University CDP, Mississippi | DT6: Alcorn State University CDP | DU6: Mississippi | DV6: 1600000US2800680 | DX6: Airport Drive village, Missouri | DY6: Airport Drive village | DZ6: Missouri | EA6: 1600000US2900424 | EC6: Alzada CDP, Montana | ED6: Alzada CDP | EE6: Montana | EF6: 1600000US3001300 | EH6: Albion city, Nebraska | EI6: Albion city | EJ6: Nebraska | EK6: 1600000US3100555 | EM6: Battle Mountain CDP, Nevada | EN6: Battle Mountain CDP | EO6: Nevada | EP6: 1600000US3204900 | ER6: Bartlett CDP, New Hampshire | ES6: Bartlett CDP | ET6: New Hampshire | EU6: 1600000US3303620 | EW6: Allenhurst borough, New Jersey | EX6: Allenhurst borough | EY6: New Jersey | EZ6: 1600000US3400730 | FB6: Agua Fria CDP, New Mexico | FC6: Agua Fria CDP | FD6: New Mexico | FE6: 1600000US3501220 | FG6: Afton village, New York | FH6: Afton village | FI6: New York | FJ6: 1600000US3600342 | FL6: Albemarle city, North Carolina | FM6: Albemarle city | FN6: North Carolina | FO6: 1600000US3700680 | FQ6: Alice city, North Dakota | FR6: Alice city | FS6: North Dakota | FT6: 1600000US3801420 | FV6: Adelphi village, Ohio | FW6: Adelphi village | FX6: Ohio | FY6: 1600000US3900450 | GA6: Adamson CDP, Oklahoma | GB6: Adamson CDP | GC6: Oklahoma | GD6: 1600000US4000350 | GF6: Aloha CDP, Oregon | GG6: Aloha CDP | GH6: Oregon | GI6: 1600000US4101650 | GK6: Adamsburg borough, Pennsylvania | GL6: Adamsburg borough | GM6: Pennsylvania | GN6: 1600000US4200332 | GP6: Aguas Buenas zona urbana, Puerto Rico | GQ6: Aguas Buenas zona urbana | GR6: Puerto Rico | GS6: 1600000US7200874 | GU6: Charlestown CDP, Rhode Island | GV6: Charlestown CDP | GW6: Rhode Island | GX6: 1600000US4414320 | GZ6: Alcolu CDP, South Carolina | HA6: Alcolu CDP | HB6: South Carolina | HC6: 1600000US4500775 | HE6: Albee town, South Dakota | HF6: Albee town | HG6: South Dakota | HH6: 1600000US4600620 | HJ6: Alexandria town, Tennessee | HK6: Alexandria town | HL6: Tennessee | HM6: 1600000US4700620 | HO6: Acala CDP, Texas | HP6: Acala CDP | HQ6: Texas | HR6: 1600000US4801084 | HT6: Amalga town, Utah | HU6: Amalga town | HV6: Utah | HW6: 1600000US4901090 | HY6: Ascutney CDP, Vermont | HZ6: Ascutney CDP | IA6: Vermont | IB6: 1600000US5001750 | ID6: Afton CDP, Virginia | IE6: Afton CDP | IF6: Virginia | IG6: 1600000US5100484 | II6: Ahtanum CDP, Washington | IJ6: Ahtanum CDP | IK6: Washington | IL6: 1600000US5300800 | IN6: Alderson town, West Virginia | IO6: Alderson town | IP6: West Virginia | IQ6: 1600000US5400772 | IS6: Albany village, Wisconsin | IT6: Albany village | IU6: Wisconsin | IV6: 1600000US5500750 | IX6: Alpine town, Wyoming | IY6: Alpine town | IZ6: Wyoming | JA6: 1600000US5601695
A7: California | C7: Alabaster city, Alabama | D7: Alabaster city | E7: Alabama | F7: 1600000US0100820 | H7: Alakanuk city, Alaska | I7: Alakanuk city | J7: Alaska | K7: 1600000US0201200 | M7: Ali Chuk CDP, Arizona | N7: Ali Chuk CDP | O7: Arizona | P7: 1600000US0401560 | R7: Alleene CDP, Arkansas | S7: Alleene CDP | T7: Arkansas | U7: 1600000US0500820 | W7: Agoura Hills city, California | X7: Agoura Hills city | Y7: California | Z7: 1600000US0600394 | AB7: Alamosa city, Colorado | AC7: Alamosa city | AD7: Colorado | AE7: 1600000US0801090 | AG7: Bethlehem Village CDP, Connecticut | AH7: Bethlehem Village CDP | AI7: Connecticut | AJ7: 1600000US0904945 | AL7: Bethany Beach town, Delaware | AM7: Bethany Beach town | AN7: Delaware | AO7: 1600000US1005690 | AV7: Altamonte Springs city, Florida | AW7: Altamonte Springs city | AX7: Florida | AY7: 1600000US1200950 | BA7: Ailey city, Georgia | BB7: Ailey city | BC7: Georgia | BD7: 1600000US1300828 | BF7: Captain Cook CDP, Hawaii | BG7: Captain Cook CDP | BH7: Hawaii | BI7: 1600000US1503850 | BK7: Arbon Valley CDP, Idaho | BL7: Arbon Valley CDP | BM7: Idaho | BN7: 1600000US1602935 | BP7: Adeline village, Illinois | BQ7: Adeline village | BR7: Illinois | BS7: 1600000US1700295 | BU7: Albion town, Indiana | BV7: Albion town | BW7: Indiana | BX7: 1600000US1800820 | BZ7: Agency city, Iowa | CA7: Agency city | CB7: Iowa | CC7: 1600000US1900640 | CE7: Agra city, Kansas | CF7: Agra city | CG7: Kansas | CH7: 1600000US2000550 | CJ7: Allensville CDP, Kentucky | CK7: Allensville CDP | CL7: Kentucky | CM7: 1600000US2101000 | CO7: Ama CDP, Louisiana | CP7: Ama CDP | CQ7: Louisiana | CR7: 1600000US2201780 | CT7: Bangor city, Maine | CU7: Bangor city | CV7: Maine | CW7: 1600000US2302795 | CY7: Adamstown CDP, Maryland | CZ7: Adamstown CDP | DA7: Maryland | DB7: 1600000US2400350 | DD7: Amherst Town city, Massachusetts | DE7: Amherst Town city | DF7: Massachusetts | DG7: 1600000US2501370 | DI7: Alanson village, Michigan | DJ7: Alanson village | DK7: Michigan | DL7: 1600000US2600860 | DN7: Akeley city, Minnesota | DO7: Akeley city | DP7: Minnesota | DQ7: 1600000US2700496 | DS7: Algoma town, Mississippi | DT7: Algoma town | DU7: Mississippi | DV7: 1600000US2800820 | DX7: Alba city, Missouri | DY7: Alba city | DZ7: Missouri | EA7: 1600000US2900496 | EC7: Amsterdam CDP, Montana | ED7: Amsterdam CDP | EE7: Montana | EF7: 1600000US3001525 | EH7: Alda village, Nebraska | EI7: Alda village | EJ7: Nebraska | EK7: 1600000US3100625 | EM7: Beatty CDP, Nevada | EN7: Beatty CDP | EO7: Nevada | EP7: 1600000US3205100 | ER7: Belmont CDP, New Hampshire | ES7: Belmont CDP | ET7: New Hampshire | EU7: 1600000US3304660 | EW7: Allentown borough, New Jersey | EX7: Allentown borough | EY7: New Jersey | EZ7: 1600000US3400760 | FB7: Alamillo CDP, New Mexico | FC7: Alamillo CDP | FD7: New Mexico | FE7: 1600000US3501640 | FG7: Airmont village, New York | FH7: Airmont village | FI7: New York | FJ7: 1600000US3600408 | FL7: Alexis CDP, North Carolina | FM7: Alexis CDP | FN7: North Carolina | FO7: 1600000US3700880 | FQ7: Almont city, North Dakota | FR7: Almont city | FS7: North Dakota | FT7: 1600000US3801700 | FV7: Adena village, Ohio | FW7: Adena village | FX7: Ohio | FY7: 1600000US3900464 | GA7: Addington town, Oklahoma | GB7: Addington town | GC7: Oklahoma | GD7: 1600000US4000450 | GF7: Alpine CDP, Oregon | GG7: Alpine CDP | GH7: Oregon | GI7: 1600000US4101700 | GK7: Adamstown borough, Pennsylvania | GL7: Adamstown borough | GM7: Pennsylvania | GN7: 1600000US4200364 | GP7: Aguas Claras comunidad, Puerto Rico | GQ7: Aguas Claras comunidad | GR7: Puerto Rico | GS7: 1600000US7201003 | GU7: Chepachet CDP, Rhode Island | GV7: Chepachet CDP | GW7: Rhode Island | GX7: 1600000US4414860 | GZ7: Allendale town, South Carolina | HA7: Allendale town | HB7: South Carolina | HC7: 1600000US4500955 | HE7: Alcester city, South Dakota | HF7: Alcester city | HG7: South Dakota | HH7: 1600000US4600700 | HJ7: Algood city, Tennessee | HK7: Algood city | HL7: Tennessee | HM7: 1600000US4700640 | HO7: Ackerly city, Texas | HP7: Ackerly city | HQ7: Texas | HR7: 1600000US4801108 | HT7: American Fork city, Utah | HU7: American Fork city | HV7: Utah | HW7: 1600000US4901310 | HY7: Bakersfield CDP, Vermont | HZ7: Bakersfield CDP | IA7: Vermont | IB7: 1600000US5002425 | ID7: Alberta town, Virginia | IE7: Alberta town | IF7: Virginia | IG7: 1600000US5100724 | II7: Airway Heights city, Washington | IJ7: Airway Heights city | IK7: Washington | IL7: 1600000US5300905 | IN7: Alum Creek CDP, West Virginia | IO7: Alum Creek CDP | IP7: West Virginia | IQ7: 1600000US5401396 | IS7: Algoma city, Wisconsin | IT7: Algoma city | IU7: Wisconsin | IV7: 1600000US5501000 | IX7: Alpine Northeast CDP, Wyoming | IY7: Alpine Northeast CDP | IZ7: Wyoming | JA7: 1600000US5601888
A8: Colorado | C8: Albertville city, Alabama | D8: Albertville city | E8: Alabama | F8: 1600000US0100988 | H8: Alatna CDP, Alaska | I8: Alatna CDP | J8: Alaska | K8: 1600000US0201305 | M8: Ali Chukson CDP, Arizona | N8: Ali Chukson CDP | O8: Arizona | P8: 1600000US0401570 | R8: Allport town, Arkansas | S8: Allport town | T8: Arkansas | U8: 1600000US0500940 | W8: Agua Dulce CDP, California | X8: Agua Dulce CDP | Y8: California | Z8: 1600000US0600450 | AB8: Alamosa East CDP, Colorado | AC8: Alamosa East CDP | AD8: Colorado | AE8: 1600000US0801145 | AG8: Bigelow Corners CDP, Connecticut | AH8: Bigelow Corners CDP | AI8: Connecticut | AJ8: 1600000US0904965 | AL8: Bethel town, Delaware | AM8: Bethel town | AN8: Delaware | AO8: 1600000US1005820 | AV8: Altha town, Florida | AW8: Altha town | AX8: Florida | AY8: 1600000US1201000 | BA8: Alamo town, Georgia | BB8: Alamo town | BC8: Georgia | BD8: 1600000US1300996 | BF8: Discovery Harbour CDP, Hawaii | BG8: Discovery Harbour CDP | BH8: Hawaii | BI8: 1600000US1505900 | BK8: Arco city, Idaho | BL8: Arco city | BM8: Idaho | BN8: 1600000US1603160 | BP8: Albany village, Illinois | BQ8: Albany village | BR8: Illinois | BS8: 1600000US1700516 | BU8: Alexandria city, Indiana | BV8: Alexandria city | BW8: Indiana | BX8: 1600000US1800910 | BZ8: Ainsworth city, Iowa | CA8: Ainsworth city | CB8: Iowa | CC8: 1600000US1900730 | CE8: Albert city, Kansas | CF8: Albert city | CG8: Kansas | CH8: 1600000US2000825 | CJ8: Anchorage city, Kentucky | CK8: Anchorage city | CL8: Kentucky | CM8: 1600000US2101504 | CO8: Amelia CDP, Louisiana | CP8: Amelia CDP | CQ8: Louisiana | CR8: 1600000US2201815 | CT8: Bar Harbor CDP, Maine | CU8: Bar Harbor CDP | CV8: Maine | CW8: 1600000US2302830 | CY8: Adelphi CDP, Maryland | CZ8: Adelphi CDP | DA8: Maryland | DB8: 1600000US2400400 | DD8: Andover CDP, Massachusetts | DE8: Andover CDP | DF8: Massachusetts | DG8: 1600000US2501430 | DI8: Alba CDP, Michigan | DJ8: Alba CDP | DK8: Michigan | DL8: 1600000US2600900 | DN8: Albany city, Minnesota | DO8: Albany city | DP8: Minnesota | DQ8: 1600000US2700622 | DS8: Alligator town, Mississippi | DT8: Alligator town | DU8: Mississippi | DV8: 1600000US2800940 | DX8: Albany city, Missouri | DY8: Albany city | DZ8: Missouri | EA8: 1600000US2900514 | EC8: Anaconda-Deer Lodge County, Montana | ED8: Anaconda-Deer Lodge County | EE8: Montana | EF8: 1600000US3001675 | EH8: Alexandria village, Nebraska | EI8: Alexandria village | EJ8: Nebraska | EK8: 1600000US3100730 | EM8: Beaverdam CDP, Nevada | EN8: Beaverdam CDP | EO8: Nevada | EP8: 1600000US3205125 | ER8: Bennington CDP, New Hampshire | ES8: Bennington CDP | ET8: New Hampshire | EU8: 1600000US3304820 | EW8: Allenwood CDP, New Jersey | EX8: Allenwood CDP | EY8: New Jersey | EZ8: 1600000US3400790 | FB8: Alamo CDP, New Mexico | FC8: Alamo CDP | FD8: New Mexico | FE8: 1600000US3501710 | FG8: Akron village, New York | FH8: Akron village | FI8: New York | FJ8: 1600000US3600441 | FL8: Alliance town, North Carolina | FM8: Alliance town | FN8: North Carolina | FO8: 1600000US3701000 | FQ8: Alsen city, North Dakota | FR8: Alsen city | FS8: North Dakota | FT8: 1600000US3801740 | FV8: Ai CDP, Ohio | FW8: Ai CDP | FX8: Ohio | FY8: 1600000US3900541 | GA8: Afton town, Oklahoma | GB8: Afton town | GC8: Oklahoma | GD8: 1600000US4000600 | GF8: Alsea CDP, Oregon | GG8: Alsea CDP | GH8: Oregon | GI8: 1600000US4101800 | GK8: Adamsville CDP, Pennsylvania | GL8: Adamsville CDP | GM8: Pennsylvania | GN8: 1600000US4200372 | GP8: Aguilita comunidad, Puerto Rico | GQ8: Aguilita comunidad | GR8: Puerto Rico | GS8: 1600000US7201089 | GU8: Clayville CDP, Rhode Island | GV8: Clayville CDP | GW8: Rhode Island | GX8: 1600000US4415940 | GZ8: Anderson city, South Carolina | HA8: Anderson city | HB8: South Carolina | HC8: 1600000US4501360 | HE8: Alexandria city, South Dakota | HF8: Alexandria city | HG8: South Dakota | HH8: 1600000US4600820 | HJ8: Allardt city, Tennessee | HK8: Allardt city | HL8: Tennessee | HM8: 1600000US4700660 | HO8: Addison town, Texas | HP8: Addison town | HQ8: Texas | HR8: 1600000US4801240 | HT8: Aneth CDP, Utah | HU8: Aneth CDP | HV8: Utah | HW8: 1600000US4901530 | HY8: Barnet CDP, Vermont | HZ8: Barnet CDP | IA8: Vermont | IB8: 1600000US5002800 | ID8: Aldie CDP, Virginia | IE8: Aldie CDP | IF8: Virginia | IG8: 1600000US5100772 | II8: Albion town, Washington | IJ8: Albion town | IK8: Washington | IL8: 1600000US5301010 | IN8: Amherstdale CDP, West Virginia | IO8: Amherstdale CDP | IP8: West Virginia | IQ8: 1600000US5401660 | IS8: Allens Grove CDP, Wisconsin | IT8: Allens Grove CDP | IU8: Wisconsin | IV8: 1600000US5501075 | IX8: Alpine Northwest CDP, Wyoming | IY8: Alpine Northwest CDP | IZ8: Wyoming | JA8: 1600000US5601936
A9: Connecticut | C9: Alexander City city, Alabama | D9: Alexander City city | E9: Alabama | F9: 1600000US0101132 | H9: Alcan Border CDP, Alaska | I9: Alcan Border CDP | J9: Alaska | K9: 1600000US0201390 | M9: Ali Molina CDP, Arizona | N9: Ali Molina CDP | O9: Arizona | P9: 1600000US0401620 | R9: Alma city, Arkansas | S9: Alma city | T9: Arkansas | U9: 1600000US0500970 | W9: Aguanga CDP, California | X9: Aguanga CDP | Y9: California | Z9: 1600000US0600464 | AB9: Allenspark CDP, Colorado | AC9: Allenspark CDP | AD9: Colorado | AE9: 1600000US0801420 | AG9: Blue Hills CDP, Connecticut | AH9: Blue Hills CDP | AI9: Connecticut | AJ9: 1600000US0906050 | AL9: Blades town, Delaware | AM9: Blades town | AN9: Delaware | AO9: 1600000US1006730 | AV9: Altoona CDP, Florida | AW9: Altoona CDP | AX9: Florida | AY9: 1600000US1201050 | BA9: Alapaha town, Georgia | BB9: Alapaha town | BC9: Georgia | BD9: 1600000US1301024 | BF9: East Honolulu CDP, Hawaii | BG9: East Honolulu CDP | BH9: Hawaii | BI9: 1600000US1506290 | BK9: Arimo city, Idaho | BL9: Arimo city | BM9: Idaho | BN9: 1600000US1603340 | BP9: Albers village, Illinois | BQ9: Albers village | BR9: Illinois | BS9: 1600000US1700555 | BU9: Alfordsville town, Indiana | BV9: Alfordsville town | BW9: Indiana | BX9: 1600000US1800964 | BZ9: Akron city, Iowa | CA9: Akron city | CB9: Iowa | CC9: 1600000US1900775 | CE9: Alden city, Kansas | CF9: Alden city | CG9: Kansas | CH9: 1600000US2000950 | CJ9: Annville CDP, Kentucky | CK9: Annville CDP | CL9: Kentucky | CM9: 1600000US2101648 | CO9: Amite City town, Louisiana | CP9: Amite City town | CQ9: Louisiana | CR9: 1600000US2201885 | CT9: Bath city, Maine | CU9: Bath city | CV9: Maine | CW9: 1600000US2303355 | CY9: Algonquin CDP, Maryland | CZ9: Algonquin CDP | DA9: Maryland | DB9: 1600000US2400712 | DD9: Arlington CDP, Massachusetts | DE9: Arlington CDP | DF9: Massachusetts | DG9: 1600000US2501640 | DI9: Albion city, Michigan | DJ9: Albion city | DK9: Michigan | DL9: 1600000US2600980 | DN9: Alberta city, Minnesota | DO9: Alberta city | DP9: Minnesota | DQ9: 1600000US2700676 | DS9: Amory city, Mississippi | DT9: Amory city | DU9: Mississippi | DV9: 1600000US2801260 | DX9: Aldrich village, Missouri | DY9: Aldrich village | DZ9: Missouri | EA9: 1600000US2900568 | EC9: Antelope CDP, Montana | ED9: Antelope CDP | EE9: Montana | EF9: 1600000US3002050 | EH9: Allen village, Nebraska | EI9: Allen village | EJ9: Nebraska | EK9: 1600000US3100870 | EM9: Bennett Springs CDP, Nevada | EN9: Bennett Springs CDP | EO9: Nevada | EP9: 1600000US3205275 | ER9: Berlin city, New Hampshire | ES9: Berlin city | ET9: New Hampshire | EU9: 1600000US3305140 | EW9: Alloway CDP, New Jersey | EX9: Alloway CDP | EY9: New Jersey | EZ9: 1600000US3400850 | FB9: Alamogordo city, New Mexico | FC9: Alamogordo city | FD9: New Mexico | FE9: 1600000US3501780 | FG9: Akwesasne CDP, New York | FH9: Akwesasne CDP | FI9: New York | FJ9: 1600000US3600457 | FL9: Altamahaw CDP, North Carolina | FM9: Altamahaw CDP | FN9: North Carolina | FO9: 1600000US3701140 | FQ9: Ambrose city, North Dakota | FR9: Ambrose city | FS9: North Dakota | FT9: 1600000US3801860 | FV9: Akron city, Ohio | FW9: Akron city | FX9: Ohio | FY9: 1600000US3901000 | GA9: Agra town, Oklahoma | GB9: Agra town | GC9: Oklahoma | GD9: 1600000US4000700 | GF9: Altamont CDP, Oregon | GG9: Altamont CDP | GH9: Oregon | GI9: 1600000US4101850 | GK9: Addison borough, Pennsylvania | GL9: Addison borough | GM9: Pennsylvania | GN9: 1600000US4200396 | GP9: Aibonito zona urbana, Puerto Rico | GQ9: Aibonito zona urbana | GR9: Puerto Rico | GS9: 1600000US7201218 | GU9: Cranston city, Rhode Island | GV9: Cranston city | GW9: Rhode Island | GX9: 1600000US4419180 | GZ9: Andrews town, South Carolina | HA9: Andrews town | HB9: South Carolina | HC9: 1600000US4501450 | HE9: Allen CDP, South Dakota | HF9: Allen CDP | HG9: South Dakota | HH9: 1600000US4600900 | HJ9: Altamont town, Tennessee | HK9: Altamont town | HL9: Tennessee | HM9: 1600000US4700940 | HO9: Adrian city, Texas | HP9: Adrian city | HQ9: Texas | HR9: 1600000US4801324 | HT9: Annabella town, Utah | HU9: Annabella town | HV9: Utah | HW9: 1600000US4901750 | HY9: Barre city, Vermont | HZ9: Barre city | IA9: Vermont | IB9: 1600000US5003175 | ID9: Alexandria city, Virginia | IE9: Alexandria city | IF9: Virginia | IG9: 1600000US5101000 | II9: Alder CDP, Washington | IJ9: Alder CDP | IK9: Washington | IL9: 1600000US5301045 | IN9: Anawalt town, West Virginia | IO9: Anawalt town | IP9: West Virginia | IQ9: 1600000US5401780 | IS9: Allenton CDP, Wisconsin | IT9: Allenton CDP | IU9: Wisconsin | IV9: 1600000US5501100 | IX9: Alta CDP, Wyoming | IY9: Alta CDP | IZ9: Wyoming | JA9: 1600000US5601985
A10: Delaware | C10: Alexandria CDP, Alabama | D10: Alexandria CDP | E10: Alabama | F10: 1600000US0101180 | H10: Aleknagik city, Alaska | I10: Aleknagik city | J10: Alaska | K10: 1600000US0201420 | M10: Alpine CDP, Arizona | N10: Alpine CDP | O10: Arizona | P10: 1600000US0401920 | R10: Almyra town, Arkansas | S10: Almyra town | T10: Arkansas | U10: 1600000US0501030 | W10: Ahwahnee CDP, California | X10: Ahwahnee CDP | Y10: California | Z10: 1600000US0600478 | AB10: Alma town, Colorado | AC10: Alma town | AD10: Colorado | AE10: 1600000US0801530 | AG10: Bogus Hill CDP, Connecticut | AH10: Bogus Hill CDP | AI10: Connecticut | AJ10: 1600000US0906155 | AL10: Bowers town, Delaware | AM10: Bowers town | AN10: Delaware | AO10: 1600000US1007250 | AV10: Alturas CDP, Florida | AW10: Alturas CDP | AX10: Florida | AY10: 1600000US1201100 | BA10: Albany city, Georgia | BB10: Albany city | BC10: Georgia | BD10: 1600000US1301052 | BF10: East Kapolei CDP, Hawaii | BG10: East Kapolei CDP | BH10: Hawaii | BI10: 1600000US1506300 | BK10: Ashton city, Idaho | BL10: Ashton city | BM10: Idaho | BN10: 1600000US1603610 | BP10: Albion city, Illinois | BQ10: Albion city | BR10: Illinois | BS10: 1600000US1700568 | BU10: Alton town, Indiana | BV10: Alton town | BW10: Indiana | BX10: 1600000US1801270 | BZ10: Albert City city, Iowa | CA10: Albert City city | CB10: Iowa | CC10: 1600000US1900865 | CE10: Alexander city, Kansas | CF10: Alexander city | CG10: Kansas | CH10: 1600000US2001050 | CJ10: Anthoston CDP, Kentucky | CK10: Anthoston CDP | CL10: Kentucky | CM10: 1600000US2101720 | CO10: Anacoco village, Louisiana | CP10: Anacoco village | CQ10: Louisiana | CR10: 1600000US2201920 | CT10: Belfast city, Maine | CU10: Belfast city | CV10: Maine | CW10: 1600000US2303950 | CY10: Allen CDP, Maryland | CZ10: Allen CDP | DA10: Maryland | DB10: 1600000US2400800 | DD10: Athol CDP, Massachusetts | DE10: Athol CDP | DF10: Massachusetts | DG10: 1600000US2502515 | DI10: Alden CDP, Michigan | DJ10: Alden CDP | DK10: Michigan | DL10: 1600000US2601060 | DN10: Albert Lea city, Minnesota | DO10: Albert Lea city | DP10: Minnesota | DQ10: 1600000US2700694 | DS10: Anguilla town, Mississippi | DT10: Anguilla town | DU10: Mississippi | DV10: 1600000US2801500 | DX10: Alexandria city, Missouri | DY10: Alexandria city | DZ10: Missouri | EA10: 1600000US2900604 | EC10: Argenta CDP, Montana | ED10: Argenta CDP | EE10: Montana | EF10: 1600000US3002350 | EH10: Alliance city, Nebraska | EI10: Alliance city | EJ10: Nebraska | EK10: 1600000US3100905 | EM10: Blue Diamond CDP, Nevada | EN10: Blue Diamond CDP | EO10: Nevada | EP10: 1600000US3205700 | ER10: Bethlehem CDP, New Hampshire | ES10: Bethlehem CDP | ET10: New Hampshire | EU10: 1600000US3305380 | EW10: Alpha borough, New Jersey | EX10: Alpha borough | EY10: New Jersey | EZ10: 1600000US3401030 | FB10: Albuquerque city, New Mexico | FC10: Albuquerque city | FD10: New Mexico | FE10: 1600000US3502000 | FG10: Albany city, New York | FH10: Albany city | FI10: New York | FJ10: 1600000US3601000 | FL10: Anderson Creek CDP, North Carolina | FM10: Anderson Creek CDP | FN10: North Carolina | FO10: 1600000US3701340 | FQ10: Amenia city, North Dakota | FR10: Amenia city | FS10: North Dakota | FT10: 1600000US3801940 | FV10: Albany village, Ohio | FW10: Albany village | FX10: Ohio | FY10: 1600000US3901042 | GA10: Akins CDP, Oklahoma | GB10: Akins CDP | GC10: Oklahoma | GD10: 1600000US4000900 | GF10: Amity city, Oregon | GG10: Amity city | GH10: Oregon | GI10: 1600000US4102000 | GK10: Akron borough, Pennsylvania | GL10: Akron borough | GM10: Pennsylvania | GN10: 1600000US4200540 | GP10: Alianza comunidad, Puerto Rico | GQ10: Alianza comunidad | GR10: Puerto Rico | GS10: 1600000US7201863 | GU10: Cumberland Hill CDP, Rhode Island | GV10: Cumberland Hill CDP | GW10: Rhode Island | GX10: 1600000US4420260 | GZ10: Antreville CDP, South Carolina | HA10: Antreville CDP | HB10: South Carolina | HC10: 1600000US4501810 | HE10: Alpena town, South Dakota | HF10: Alpena town | HG10: South Dakota | HH10: 1600000US4601020 | HJ10: Andersonville CDP, Tennessee | HK10: Andersonville CDP | HL10: Tennessee | HM10: 1600000US4701220 | HO10: Agua Dulce CDP, Texas | HP10: Agua Dulce CDP | HQ10: Texas | HR10: 1600000US4801390 | HT10: Antimony town, Utah | HU10: Antimony town | HV10: Utah | HW10: 1600000US4901860 | HY10: Barton village, Vermont | HZ10: Barton village | IA10: Vermont | IB10: 1600000US5003475 | ID10: Allison Gap CDP, Virginia | IE10: Allison Gap CDP | IF10: Virginia | IG10: 1600000US5101240 | II10: Alderton CDP, Washington | IJ10: Alderton CDP | IK10: Washington | IL10: 1600000US5301150 | IN10: Anmoore town, West Virginia | IO10: Anmoore town | IP10: West Virginia | IQ10: 1600000US5401900 | IS10: Allouez village, Wisconsin | IT10: Allouez village | IU10: Wisconsin | IV10: 1600000US5501150 | IX10: Antelope Hills CDP, Wyoming | IY10: Antelope Hills CDP | IZ10: Wyoming | JA10: 1600000US5602877
A11: District_of_Columbia | C11: Aliceville city, Alabama | D11: Aliceville city | E11: Alabama | F11: 1600000US0101228 | H11: Aleneva CDP, Alaska | I11: Aleneva CDP | J11: Alaska | K11: 1600000US0201560 | M11: Amado CDP, Arizona | N11: Amado CDP | O11: Arizona | P11: 1600000US0401990 | R11: Alpena town, Arkansas | S11: Alpena town | T11: Arkansas | U11: 1600000US0501060 | W11: Airport CDP, California | X11: Airport CDP | Y11: California | Z11: 1600000US0600535 | AB11: Alpine CDP, Colorado | AC11: Alpine CDP | AD11: Colorado | AE11: 1600000US0801640 | AG11: Botsford CDP, Connecticut | AH11: Botsford CDP | AI11: Connecticut | AJ11: 1600000US0906680 | AL11: Bridgeville town, Delaware | AM11: Bridgeville town | AN11: Delaware | AO11: 1600000US1008680 | AV11: Alva CDP, Florida | AW11: Alva CDP | AX11: Florida | AY11: 1600000US1201125 | BA11: Aldora town, Georgia | BB11: Aldora town | BC11: Georgia | BD11: 1600000US1301248 | BF11: Eden Roc CDP, Hawaii | BG11: Eden Roc CDP | BH11: Hawaii | BI11: 1600000US1506325 | BK11: Athol city, Idaho | BL11: Athol city | BM11: Idaho | BN11: 1600000US1603700 | BP11: Alden CDP, Illinois | BQ11: Alden CDP | BR11: Illinois | BS11: 1600000US1700594 | BU11: Altona town, Indiana | BV11: Altona town | BW11: Indiana | BX11: 1600000US1801288 | BZ11: Albia city, Iowa | CA11: Albia city | CB11: Iowa | CC11: 1600000US1900910 | CE11: Allen city, Kansas | CF11: Allen city | CG11: Kansas | CH11: 1600000US2001275 | CJ11: Arjay CDP, Kentucky | CK11: Arjay CDP | CL11: Kentucky | CM11: 1600000US2101972 | CO11: Angie village, Louisiana | CP11: Angie village | CQ11: Louisiana | CR11: 1600000US2202165 | CT11: Berwick CDP, Maine | CU11: Berwick CDP | CV11: Maine | CW11: 1600000US2304685 | CY11: Andrews AFB CDP, Maryland | CZ11: Andrews AFB CDP | DA11: Maryland | DB11: 1600000US2401450 | DD11: Attleboro city, Massachusetts | DE11: Attleboro city | DF11: Massachusetts | DG11: 1600000US2502690 | DI11: Algonac city, Michigan | DJ11: Algonac city | DK11: Michigan | DL11: 1600000US2601180 | DN11: Albertville city, Minnesota | DO11: Albertville city | DP11: Minnesota | DQ11: 1600000US2700730 | DS11: Arcola town, Mississippi | DT11: Arcola town | DU11: Mississippi | DV11: 1600000US2801820 | DX11: Allendale village, Missouri | DY11: Allendale village | DZ11: Missouri | EA11: 1600000US2900712 | EC11: Arlee CDP, Montana | ED11: Arlee CDP | EE11: Montana | EF11: 1600000US3002425 | EH11: Alma city, Nebraska | EI11: Alma city | EJ11: Nebraska | EK11: 1600000US3100975 | EM11: Boulder City city, Nevada | EN11: Boulder City city | EO11: Nevada | EP11: 1600000US3206500 | ER11: Blodgett Landing CDP, New Hampshire | ES11: Blodgett Landing CDP | ET11: New Hampshire | EU11: 1600000US3306020 | EW11: Alpine borough, New Jersey | EX11: Alpine borough | EY11: New Jersey | EZ11: 1600000US3401090 | FB11: Alcalde CDP, New Mexico | FC11: Alcalde CDP | FD11: New Mexico | FE11: 1600000US3502070 | FG11: Albertson CDP, New York | FH11: Albertson CDP | FI11: New York | FJ11: 1600000US3601011 | FL11: Andrews town, North Carolina | FM11: Andrews town | FN11: North Carolina | FO11: 1600000US3701380 | FQ11: Amidon city, North Dakota | FR11: Amidon city | FS11: North Dakota | FT11: 1600000US3802060 | FV11: Alexandria village, Ohio | FW11: Alexandria village | FX11: Ohio | FY11: 1600000US3901154 | GA11: Albany CDP, Oklahoma | GB11: Albany CDP | GC11: Oklahoma | GD11: 1600000US4000950 | GF11: Annex CDP, Oregon | GG11: Annex CDP | GH11: Oregon | GI11: 1600000US4102200 | GK11: Alba borough, Pennsylvania | GL11: Alba borough | GM11: Pennsylvania | GN11: 1600000US4200572 | GP11: AÃ±asco zona urbana, Puerto Rico | GQ11: AÃ±asco zona urbana | GR11: Puerto Rico | GS11: 1600000US7202680 | GU11: East Providence city, Rhode Island | GV11: East Providence city | GW11: Rhode Island | GX11: 1600000US4422960 | GZ11: Arcadia CDP, South Carolina | HA11: Arcadia CDP | HB11: South Carolina | HC11: 1600000US4502080 | HE11: Altamont town, South Dakota | HF11: Altamont town | HG11: South Dakota | HH11: 1600000US4601140 | HJ11: Apison CDP, Tennessee | HK11: Apison CDP | HL11: Tennessee | HM11: 1600000US4701480 | HO11: Agua Dulce city, Texas | HP11: Agua Dulce city | HQ11: Texas | HR11: 1600000US4801396 | HT11: Apple Valley town, Utah | HU11: Apple Valley town | HV11: Utah | HW11: 1600000US4901905 | HY11: Beecher Falls CDP, Vermont | HZ11: Beecher Falls CDP | IA11: Vermont | IB11: 1600000US5004150 | ID11: Allisonia CDP, Virginia | IE11: Allisonia CDP | IF11: Virginia | IG11: 1600000US5101256 | II11: Alderwood Manor CDP, Washington | IJ11: Alderwood Manor CDP | IK11: Washington | IL11: 1600000US5301185 | IN11: Ansted town, West Virginia | IO11: Ansted town | IP11: West Virginia | IQ11: 1600000US5401996 | IS11: Alma city, Wisconsin | IT11: Alma city | IU11: Wisconsin | IV11: 1600000US5501225 | IX11: Arapahoe CDP, Wyoming | IY11: Arapahoe CDP | IZ11: Wyoming | JA11: 1600000US5603000
A12: Florida | C12: Allgood town, Alabama | D12: Allgood town | E12: Alabama | F12: 1600000US0101396 | H12: Allakaket city, Alaska | I12: Allakaket city | J12: Alaska | K12: 1600000US0201860 | M12: Anegam CDP, Arizona | N12: Anegam CDP | O12: Arizona | P12: 1600000US0402270 | R12: Alpine CDP, Arkansas | S12: Alpine CDP | T12: Arkansas | U12: 1600000US0501090 | W12: Alameda city, California | X12: Alameda city | Y12: California | Z12: 1600000US0600562 | AB12: Altona CDP, Colorado | AC12: Altona CDP | AD12: Colorado | AE12: 1600000US0801740 | AG12: Branchville CDP, Connecticut | AH12: Branchville CDP | AI12: Connecticut | AJ12: 1600000US0907100 | AL12: Brookside CDP, Delaware | AM12: Brookside CDP | AN12: Delaware | AO12: 1600000US1009850 | AV12: Andrews CDP, Florida | AW12: Andrews CDP | AX12: Florida | AY12: 1600000US1201353 | BA12: Allenhurst city, Georgia | BB12: Allenhurst city | BC12: Georgia | BD12: 1600000US1301472 | BF12: Eleele CDP, Hawaii | BG12: Eleele CDP | BH12: Hawaii | BI12: 1600000US1507000 | BK12: Atomic City city, Idaho | BL12: Atomic City city | BM12: Idaho | BN12: 1600000US1603970 | BP12: Aledo city, Illinois | BQ12: Aledo city | BR12: Illinois | BS12: 1600000US1700646 | BU12: Ambia town, Indiana | BV12: Ambia town | BW12: Indiana | BX12: 1600000US1801342 | BZ12: Albion city, Iowa | CA12: Albion city | CB12: Iowa | CC12: 1600000US1900955 | CE12: Alma city, Kansas | CF12: Alma city | CG12: Kansas | CH12: 1600000US2001350 | CJ12: Arlington city, Kentucky | CK12: Arlington city | CL12: Kentucky | CM12: 1600000US2102044 | CO12: Arabi CDP, Louisiana | CP12: Arabi CDP | CQ12: Louisiana | CR12: 1600000US2202550 | CT12: Bethel CDP, Maine | CU12: Bethel CDP | CV12: Maine | CW12: 1600000US2304790 | CY12: Annapolis city, Maryland | CZ12: Annapolis city | DA12: Maryland | DB12: 1600000US2401600 | DD12: Ayer CDP, Massachusetts | DE12: Ayer CDP | DF12: Massachusetts | DG12: 1600000US2503040 | DI12: Allegan city, Michigan | DJ12: Allegan city | DK12: Michigan | DL12: 1600000US2601260 | DN12: Alden city, Minnesota | DO12: Alden city | DP12: Minnesota | DQ12: 1600000US2700838 | DS12: Arkabutla CDP, Mississippi | DT12: Arkabutla CDP | DU12: Mississippi | DV12: 1600000US2801940 | DX12: Allenville village, Missouri | DY12: Allenville village | DZ12: Missouri | EA12: 1600000US2900748 | EC12: Ashland CDP, Montana | ED12: Ashland CDP | EE12: Montana | EF12: 1600000US3002800 | EH12: Alvo village, Nebraska | EI12: Alvo village | EJ12: Nebraska | EK12: 1600000US3101150 | EM12: Bunkerville CDP, Nevada | EN12: Bunkerville CDP | EO12: Nevada | EP12: 1600000US3208100 | ER12: Bradford CDP, New Hampshire | ES12: Bradford CDP | ET12: New Hampshire | EU12: 1600000US3306900 | EW12: Ampere North CDP, New Jersey | EX12: Ampere North CDP | EY12: New Jersey | EZ12: 1600000US3401184 | FB12: Algodones CDP, New Mexico | FC12: Algodones CDP | FD12: New Mexico | FE12: 1600000US3502210 | FG12: Albion village, New York | FH12: Albion village | FI12: New York | FJ12: 1600000US3601033 | FL12: Angier town, North Carolina | FM12: Angier town | FN12: North Carolina | FO12: 1600000US3701400 | FQ12: Anamoose city, North Dakota | FR12: Anamoose city | FS12: North Dakota | FT12: 1600000US3802220 | FV12: Alger village, Ohio | FW12: Alger village | FX12: Ohio | FY12: 1600000US3901210 | GA12: Albion town, Oklahoma | GB12: Albion town | GC12: Oklahoma | GD12: 1600000US4001050 | GF12: Antelope city, Oregon | GG12: Antelope city | GH12: Oregon | GI12: 1600000US4102250 | GK12: Albion borough, Pennsylvania | GL12: Albion borough | GM12: Pennsylvania | GN12: 1600000US4200628 | GP12: Animas comunidad, Puerto Rico | GQ12: Animas comunidad | GR12: Puerto Rico | GS12: 1600000US7203024 | GU12: Foster Center CDP, Rhode Island | GV12: Foster Center CDP | GW12: Rhode Island | GX12: 1600000US4427640 | GZ12: Arcadia Lakes town, South Carolina | HA12: Arcadia Lakes town | HB12: South Carolina | HC12: 1600000US4502125 | HE12: Anderson CDP, South Dakota | HF12: Anderson CDP | HG12: South Dakota | HH12: 1600000US4601450 | HJ12: Ardmore city, Tennessee | HK12: Ardmore city | HL12: Tennessee | HM12: 1600000US4701640 | HO12: Aguilares CDP, Texas | HP12: Aguilares CDP | HQ12: Texas | HR12: 1600000US4801420 | HT12: Aurora city, Utah | HU12: Aurora city | HV12: Utah | HW12: 1600000US4902740 | HY12: Bellows Falls village, Vermont | HZ12: Bellows Falls village | IA12: Vermont | IB12: 1600000US5004225 | ID12: Altavista town, Virginia | IE12: Altavista town | IF12: Virginia | IG12: 1600000US5101528 | II12: Alger CDP, Washington | IJ12: Alger CDP | IK12: Washington | IL12: 1600000US5301255 | IN12: Apple Grove CDP, West Virginia | IO12: Apple Grove CDP | IP12: West Virginia | IQ12: 1600000US5402188 | IS12: Alma Center village, Wisconsin | IT12: Alma Center village | IU12: Wisconsin | IV12: 1600000US5501300 | IX12: Arlington CDP, Wyoming | IY12: Arlington CDP | IZ12: Wyoming | JA12: 1600000US5603245
A13: Georgia | C13: Altoona town, Alabama | D13: Altoona town | E13: Alabama | F13: 1600000US0101660 | H13: Ambler city, Alaska | I13: Ambler city | J13: Alaska | K13: 1600000US0201970 | M13: Antares CDP, Arizona | N13: Antares CDP | O13: Arizona | P13: 1600000US0402410 | R13: Altheimer city, Arkansas | S13: Altheimer city | T13: Arkansas | U13: 1600000US0501150 | W13: Alamo CDP, California | X13: Alamo CDP | Y13: California | Z13: 1600000US0600618 | AB13: Amherst CDP, Colorado | AC13: Amherst CDP | AD13: Colorado | AE13: 1600000US0801915 | AG13: Branford Center CDP, Connecticut | AH13: Branford Center CDP | AI13: Connecticut | AJ13: 1600000US0907345 | AL13: Camden town, Delaware | AM13: Camden town | AN13: Delaware | AO13: 1600000US1010760 | AV13: Anna Maria city, Florida | AW13: Anna Maria city | AX13: Florida | AY13: 1600000US1201475 | BA13: Allentown city, Georgia | BB13: Allentown city | BC13: Georgia | BD13: 1600000US1301500 | BF13: Ewa Beach CDP, Hawaii | BG13: Ewa Beach CDP | BH13: Hawaii | BI13: 1600000US1507450 | BK13: Avimor CDP, Idaho | BL13: Avimor CDP | BM13: Idaho | BN13: 1600000US1604105 | BP13: Alexander CDP, Illinois | BQ13: Alexander CDP | BR13: Illinois | BS13: 1600000US1700659 | BU13: Amboy town, Indiana | BV13: Amboy town | BW13: Indiana | BX13: 1600000US1801360 | BZ13: Alburnett city, Iowa | CA13: Alburnett city | CB13: Iowa | CC13: 1600000US1901000 | CE13: Almena city, Kansas | CF13: Almena city | CG13: Kansas | CH13: 1600000US2001425 | CJ13: Artemus CDP, Kentucky | CK13: Artemus CDP | CL13: Kentucky | CM13: 1600000US2102188 | CO13: Arcadia town, Louisiana | CP13: Arcadia town | CQ13: Louisiana | CR13: 1600000US2202655 | CT13: Biddeford city, Maine | CU13: Biddeford city | CV13: Maine | CW13: 1600000US2304860 | CY13: Annapolis Neck CDP, Maryland | CZ13: Annapolis Neck CDP | DA13: Maryland | DB13: 1600000US2401635 | DD13: Baldwinville CDP, Massachusetts | DE13: Baldwinville CDP | DF13: Massachusetts | DG13: 1600000US2503355 | DI13: Allen village, Michigan | DJ13: Allen village | DK13: Michigan | DL13: 1600000US2601300 | DN13: Aldrich city, Minnesota | DO13: Aldrich city | DP13: Minnesota | DQ13: 1600000US2700892 | DS13: Arnold Line CDP, Mississippi | DT13: Arnold Line CDP | DU13: Mississippi | DV13: 1600000US2802060 | DX13: Alma city, Missouri | DY13: Alma city | DZ13: Missouri | EA13: 1600000US2900802 | EC13: Augusta CDP, Montana | ED13: Augusta CDP | EE13: Montana | EF13: 1600000US3003025 | EH13: Ames CDP, Nebraska | EI13: Ames CDP | EJ13: Nebraska | EK13: 1600000US3101220 | EM13: Caliente city, Nevada | EN13: Caliente city | EO13: Nevada | EP13: 1600000US3208500 | ER13: Bristol CDP, New Hampshire | ES13: Bristol CDP | ET13: New Hampshire | EU13: 1600000US3307620 | EW13: Anderson CDP, New Jersey | EX13: Anderson CDP | EY13: New Jersey | EZ13: 1600000US3401300 | FB13: Alma CDP, New Mexico | FC13: Alma CDP | FD13: New Mexico | FE13: 1600000US3502560 | FG13: Alden village, New York | FH13: Alden village | FI13: New York | FJ13: 1600000US3601088 | FL13: Ansonville town, North Carolina | FM13: Ansonville town | FN13: North Carolina | FO13: 1600000US3701420 | FQ13: Aneta city, North Dakota | FR13: Aneta city | FS13: North Dakota | FT13: 1600000US3802380 | FV13: Alliance city, Ohio | FW13: Alliance city | FX13: Ohio | FY13: 1600000US3901420 | GA13: Alderson town, Oklahoma | GB13: Alderson town | GC13: Oklahoma | GD13: 1600000US4001150 | GF13: Arlington city, Oregon | GG13: Arlington city | GH13: Oregon | GI13: 1600000US4102800 | GK13: Albrightsville CDP, Pennsylvania | GL13: Albrightsville CDP | GM13: Pennsylvania | GN13: 1600000US4200652 | GP13: Anon Raices comunidad, Puerto Rico | GQ13: Anon Raices comunidad | GR13: Puerto Rico | GS13: 1600000US7203174 | GU13: Greene CDP, Rhode Island | GV13: Greene CDP | GW13: Rhode Island | GX13: 1600000US4431240 | GZ13: Arial CDP, South Carolina | HA13: Arial CDP | HB13: South Carolina | HC13: 1600000US4502440 | HE13: Andover town, South Dakota | HF13: Andover town | HG13: South Dakota | HH13: 1600000US4601500 | HJ13: Arlington town, Tennessee | HK13: Arlington town | HL13: Tennessee | HM13: 1600000US4701740 | HO13: Airport Heights CDP, Texas | HP13: Airport Heights CDP | HQ13: Texas | HR13: 1600000US4801500 | HT13: Avon CDP, Utah | HU13: Avon CDP | HV13: Utah | HW13: 1600000US4902960 | HY13: Bennington CDP, Vermont | HZ13: Bennington CDP | IA13: Vermont | IB13: 1600000US5004750 | ID13: Amelia Court House CDP, Virginia | IE13: Amelia Court House CDP | IF13: Virginia | IG13: 1600000US5101640 | II13: Algona city, Washington | IJ13: Algona city | IK13: Washington | IL13: 1600000US5301290 | IN13: Arbovale CDP, West Virginia | IO13: Arbovale CDP | IP13: West Virginia | IQ13: 1600000US5402260 | IS13: Almena village, Wisconsin | IT13: Almena village | IU13: Wisconsin | IV13: 1600000US5501325 | IX13: Arrowhead Springs CDP, Wyoming | IY13: Arrowhead Springs CDP | IZ13: Wyoming | JA13: 1600000US5603652
A14: Hawaii | C14: Andalusia city, Alabama | D14: Andalusia city | E14: Alabama | F14: 1600000US0101708 | H14: Anaktuvuk Pass city, Alaska | I14: Anaktuvuk Pass city | J14: Alaska | K14: 1600000US0202080 | M14: Anthem CDP, Arizona | N14: Anthem CDP | O14: Arizona | P14: 1600000US0402430 | R14: Altus city, Arkansas | S14: Altus city | T14: Arkansas | U14: 1600000US0501210 | W14: Albany city, California | X14: Albany city | Y14: California | Z14: 1600000US0600674 | AB14: Antonito town, Colorado | AC14: Antonito town | AD14: Colorado | AE14: 1600000US0802355 | AG14: Bridgeport city, Connecticut | AH14: Bridgeport city | AI14: Connecticut | AJ14: 1600000US0908000 | AL14: Cheswold town, Delaware | AM14: Cheswold town | AN14: Delaware | AO14: 1600000US1014660 | AV14: Apalachicola city, Florida | AW14: Apalachicola city | AX14: Florida | AY14: 1600000US1201625 | BA14: Alma city, Georgia | BB14: Alma city | BC14: Georgia | BD14: 1600000US1301612 | BF14: Ewa Gentry CDP, Hawaii | BG14: Ewa Gentry CDP | BH14: Hawaii | BI14: 1600000US1507470 | BK14: Bancroft city, Idaho | BL14: Bancroft city | BM14: Idaho | BN14: 1600000US1604420 | BP14: Alexis village, Illinois | BQ14: Alexis village | BR14: Illinois | BS14: 1600000US1700672 | BU14: Americus CDP, Indiana | BV14: Americus CDP | BW14: Indiana | BX14: 1600000US1801396 | BZ14: Alden city, Iowa | CA14: Alden city | CB14: Iowa | CC14: 1600000US1901045 | CE14: Altamont city, Kansas | CF14: Altamont city | CG14: Kansas | CH14: 1600000US2001550 | CJ14: Ashland city, Kentucky | CK14: Ashland city | CL14: Kentucky | CM14: 1600000US2102368 | CO14: Arnaudville town, Louisiana | CP14: Arnaudville town | CQ14: Louisiana | CR14: 1600000US2203110 | CT14: Bingham CDP, Maine | CU14: Bingham CDP | CV14: Maine | CW14: 1600000US2304965 | CY14: Antietam CDP, Maryland | CZ14: Antietam CDP | DA14: Maryland | DB14: 1600000US2401750 | DD14: Barnstable Town city, Massachusetts | DE14: Barnstable Town city | DF14: Massachusetts | DG14: 1600000US2503690 | DI14: Allendale CDP, Michigan | DJ14: Allendale CDP | DK14: Michigan | DL14: 1600000US2601340 | DN14: Alexandria city, Minnesota | DO14: Alexandria city | DP14: Minnesota | DQ14: 1600000US2700928 | DS14: Artesia town, Mississippi | DT14: Artesia town | DU14: Mississippi | DV14: 1600000US2802100 | DX14: Altamont village, Missouri | DY14: Altamont village | DZ14: Missouri | EA14: 1600000US2900910 | EC14: Avon CDP, Montana | ED14: Avon CDP | EE14: Montana | EF14: 1600000US3003175 | EH14: Amherst village, Nebraska | EI14: Amherst village | EJ14: Nebraska | EK14: 1600000US3101290 | EM14: Cal-Nev-Ari CDP, Nevada | EN14: Cal-Nev-Ari CDP | EO14: Nevada | EP14: 1600000US3208600 | ER14: Canaan CDP, New Hampshire | ES14: Canaan CDP | ET14: New Hampshire | EU14: 1600000US3308900 | EW14: Andover borough, New Jersey | EX14: Andover borough | EY14: New Jersey | EZ14: 1600000US3401330 | FB14: Angel Fire village, New Mexico | FC14: Angel Fire village | FD14: New Mexico | FE14: 1600000US3503400 | FG14: Alexander village, New York | FH14: Alexander village | FI14: New York | FJ14: 1600000US3601154 | FL14: Apex town, North Carolina | FM14: Apex town | FN14: North Carolina | FO14: 1600000US3701520 | FQ14: Antler city, North Dakota | FR14: Antler city | FS14: North Dakota | FT14: 1600000US3802660 | FV14: Alvordton CDP, Ohio | FW14: Alvordton CDP | FX14: Ohio | FY14: 1600000US3901588 | GA14: Alex town, Oklahoma | GB14: Alex town | GC14: Oklahoma | GD14: 1600000US4001250 | GF14: Ashland city, Oregon | GG14: Ashland city | GH14: Oregon | GI14: 1600000US4103050 | GK14: Alburtis borough, Pennsylvania | GL14: Alburtis borough | GM14: Pennsylvania | GN14: 1600000US4200660 | GP14: AntÃ³n RuÃ­z comunidad, Puerto Rico | GQ14: AntÃ³n RuÃ­z comunidad | GR14: Puerto Rico | GS14: 1600000US7203196 | GU14: Greenville CDP, Rhode Island | GV14: Greenville CDP | GW14: Rhode Island | GX14: 1600000US4431600 | GZ14: Arkwright CDP, South Carolina | HA14: Arkwright CDP | HB14: South Carolina | HC14: 1600000US4502530 | HE14: Angostura CDP, South Dakota | HF14: Angostura CDP | HG14: South Dakota | HH14: 1600000US4601560 | HJ14: Ashland City town, Tennessee | HK14: Ashland City town | HL14: Tennessee | HM14: 1600000US4702180 | HO14: Airport Road Addition CDP, Texas | HP14: Airport Road Addition CDP | HQ14: Texas | HR14: 1600000US4801514 | HT14: Ballard town, Utah | HU14: Ballard town | HV14: Utah | HW14: 1600000US4903345 | HY14: Benson CDP, Vermont | HZ14: Benson CDP | IA14: Vermont | IB14: 1600000US5005125 | ID14: Amherst town, Virginia | IE14: Amherst town | IF14: Virginia | IG14: 1600000US5101672 | II14: Allyn CDP, Washington | IJ14: Allyn CDP | IK14: Washington | IL14: 1600000US5301430 | IN14: Arthurdale CDP, West Virginia | IO14: Arthurdale CDP | IP14: West Virginia | IQ14: 1600000US5402908 | IS14: Almond village, Wisconsin | IT14: Almond village | IU14: Wisconsin | IV14: 1600000US5501400 | IX14: Arvada CDP, Wyoming | IY14: Arvada CDP | IZ14: Wyoming | JA14: 1600000US5603725
A15: Idaho | C15: Anderson town, Alabama | D15: Anderson town | E15: Alabama | F15: 1600000US0101756 | H15: Anchorage municipality, Alaska | I15: Anchorage municipality | J15: Alaska | K15: 1600000US0203000 | M15: Apache Junction city, Arizona | N15: Apache Junction city | O15: Arizona | P15: 1600000US0402830 | R15: Amagon town, Arkansas | S15: Amagon town | T15: Arkansas | U15: 1600000US0501270 | W15: Albion CDP, California | X15: Albion CDP | Y15: California | Z15: 1600000US0600716 | AB15: Applewood CDP, Colorado | AC15: Applewood CDP | AD15: Colorado | AE15: 1600000US0802575 | AG15: Bridgewater CDP, Connecticut | AH15: Bridgewater CDP | AI15: Connecticut | AJ15: 1600000US0908140 | AL15: Claymont CDP, Delaware | AM15: Claymont CDP | AN15: Delaware | AO15: 1600000US1015310 | AV15: Apollo Beach CDP, Florida | AW15: Apollo Beach CDP | AX15: Florida | AY15: 1600000US1201675 | BA15: Alpharetta city, Georgia | BB15: Alpharetta city | BC15: Georgia | BD15: 1600000US1301696 | BF15: Ewa Villages CDP, Hawaii | BG15: Ewa Villages CDP | BH15: Hawaii | BI15: 1600000US1507485 | BK15: Banks CDP, Idaho | BL15: Banks CDP | BM15: Idaho | BN15: 1600000US1604600 | BP15: Algonquin village, Illinois | BQ15: Algonquin village | BR15: Illinois | BS15: 1600000US1700685 | BU15: Amo town, Indiana | BV15: Amo town | BW15: Indiana | BX15: 1600000US1801450 | BZ15: Alexander city, Iowa | CA15: Alexander city | CB15: Iowa | CC15: 1600000US1901090 | CE15: Alta Vista city, Kansas | CF15: Alta Vista city | CG15: Kansas | CH15: 1600000US2001575 | CJ15: Auburn city, Kentucky | CK15: Auburn city | CL15: Kentucky | CM15: 1600000US2102638 | CO15: Ashland village, Louisiana | CP15: Ashland village | CQ15: Louisiana | CR15: 1600000US2203145 | CT15: Blaine CDP, Maine | CU15: Blaine CDP | CV15: Maine | CW15: 1600000US2305350 | CY15: Aquasco CDP, Maryland | CZ15: Aquasco CDP | DA15: Maryland | DB15: 1600000US2401925 | DD15: Barre CDP, Massachusetts | DE15: Barre CDP | DF15: Massachusetts | DG15: 1600000US2503705 | DI15: Allen Park city, Michigan | DJ15: Allen Park city | DK15: Michigan | DL15: 1600000US2601380 | DN15: Alpha city, Minnesota | DO15: Alpha city | DP15: Minnesota | DQ15: 1600000US2701162 | DS15: Ashland town, Mississippi | DT15: Ashland town | DU15: Mississippi | DV15: 1600000US2802140 | DX15: Altenburg city, Missouri | DY15: Altenburg city | DZ15: Missouri | EA15: 1600000US2900928 | EC15: Ayers Ranch Colony CDP, Montana | ED15: Ayers Ranch Colony CDP | EE15: Montana | EF15: 1600000US3003196 | EH15: Anoka village, Nebraska | EI15: Anoka village | EJ15: Nebraska | EK15: 1600000US3101465 | EM15: Carlin city, Nevada | EN15: Carlin city | EO15: Nevada | EP15: 1600000US3208900 | ER15: Center Ossipee CDP, New Hampshire | ES15: Center Ossipee CDP | ET15: New Hampshire | EU15: 1600000US3310820 | EW15: Annandale CDP, New Jersey | EX15: Annandale CDP | EY15: New Jersey | EZ15: 1600000US3401480 | FB15: Angustura CDP, New Mexico | FC15: Angustura CDP | FD15: New Mexico | FE15: 1600000US3503680 | FG15: Alexandria Bay village, New York | FH15: Alexandria Bay village | FI15: New York | FJ15: 1600000US3601187 | FL15: Aquadale CDP, North Carolina | FM15: Aquadale CDP | FN15: North Carolina | FO15: 1600000US3701560 | FQ15: Apple Valley CDP, North Dakota | FR15: Apple Valley CDP | FS15: North Dakota | FT15: 1600000US3802820 | FV15: Amanda village, Ohio | FW15: Amanda village | FX15: Ohio | FY15: 1600000US3901630 | GA15: Aline town, Oklahoma | GB15: Aline town | GC15: Oklahoma | GD15: 1600000US4001350 | GF15: Astoria city, Oregon | GG15: Astoria city | GH15: Oregon | GI15: 1600000US4103150 | GK15: Aldan borough, Pennsylvania | GL15: Aldan borough | GM15: Pennsylvania | GN15: 1600000US4200676 | GP15: Arecibo zona urbana, Puerto Rico | GQ15: Arecibo zona urbana | GR15: Puerto Rico | GS15: 1600000US7203368 | GU15: Harmony CDP, Rhode Island | GV15: Harmony CDP | GW15: Rhode Island | GX15: 1600000US4433040 | GZ15: Arthurtown CDP, South Carolina | HA15: Arthurtown CDP | HB15: South Carolina | HC15: 1600000US4502665 | HE15: Antelope CDP, South Dakota | HF15: Antelope CDP | HG15: South Dakota | HH15: 1600000US4601740 | HJ15: Athens city, Tennessee | HK15: Athens city | HL15: Tennessee | HM15: 1600000US4702320 | HO15: Alamo city, Texas | HP15: Alamo city | HQ15: Texas | HR15: 1600000US4801576 | HT15: Bear River City city, Utah | HU15: Bear River City city | HV15: Utah | HW15: 1600000US4903950 | HY15: Bethel CDP, Vermont | HZ15: Bethel CDP | IA15: Vermont | IB15: 1600000US5005725 | ID15: Amonate CDP, Virginia | IE15: Amonate CDP | IF15: Virginia | IG15: 1600000US5101752 | II15: Almira town, Washington | IJ15: Almira town | IK15: Washington | IL15: 1600000US5301500 | IN15: Athens town, West Virginia | IO15: Athens town | IP15: West Virginia | IQ15: 1600000US5403292 | IS15: Alto CDP, Wisconsin | IT15: Alto CDP | IU15: Wisconsin | IV15: 1600000US5501500 | IX15: Atlantic City CDP, Wyoming | IY15: Atlantic City CDP | IZ15: Wyoming | JA15: 1600000US5604015
A16: Illinois | C16: Anniston city, Alabama | D16: Anniston city | E16: Alabama | F16: 1600000US0101852 | H16: Anchor Point CDP, Alaska | I16: Anchor Point CDP | J16: Alaska | K16: 1600000US0203110 | M16: Arivaca CDP, Arizona | N16: Arivaca CDP | O16: Arizona | P16: 1600000US0403320 | R16: Amity city, Arkansas | S16: Amity city | T16: Arkansas | U16: 1600000US0501360 | W16: Alderpoint CDP, California | X16: Alderpoint CDP | Y16: California | Z16: 1600000US0600786 | AB16: Arapahoe CDP, Colorado | AC16: Arapahoe CDP | AD16: Colorado | AE16: 1600000US0802850 | AG16: Bristol city, Connecticut | AH16: Bristol city | AI16: Connecticut | AJ16: 1600000US0908420 | AL16: Clayton town, Delaware | AM16: Clayton town | AN16: Delaware | AO16: 1600000US1015440 | AV16: Apopka city, Florida | AW16: Apopka city | AX16: Florida | AY16: 1600000US1201700 | BA16: Alston town, Georgia | BB16: Alston town | BC16: Georgia | BD16: 1600000US1301808 | BF16: Fern Acres CDP, Hawaii | BG16: Fern Acres CDP | BH16: Hawaii | BI16: 1600000US1507542 | BK16: Basalt city, Idaho | BL16: Basalt city | BM16: Idaho | BN16: 1600000US1605230 | BP16: Alhambra village, Illinois | BQ16: Alhambra village | BR16: Illinois | BS16: 1600000US1700737 | BU16: Anderson city, Indiana | BV16: Anderson city | BW16: Indiana | BX16: 1600000US1801468 | BZ16: Algona city, Iowa | CA16: Algona city | CB16: Iowa | CC16: 1600000US1901135 | CE16: Alton city, Kansas | CF16: Alton city | CG16: Kansas | CH16: 1600000US2001600 | CJ16: Audubon Park city, Kentucky | CK16: Audubon Park city | CL16: Kentucky | CM16: 1600000US2102656 | CO16: Athens village, Louisiana | CP16: Athens village | CQ16: Louisiana | CR16: 1600000US2203320 | CT16: Blue Hill CDP, Maine | CU16: Blue Hill CDP | CV16: Maine | CW16: 1600000US2305665 | CY16: Arbutus CDP, Maryland | CZ16: Arbutus CDP | DA16: Maryland | DB16: 1600000US2401975 | DD16: Belchertown CDP, Massachusetts | DE16: Belchertown CDP | DF16: Massachusetts | DG16: 1600000US2504790 | DI16: Alma city, Michigan | DJ16: Alma city | DK16: Michigan | DL16: 1600000US2601540 | DN16: Altura city, Minnesota | DO16: Altura city | DP16: Minnesota | DQ16: 1600000US2701234 | DS16: Austin CDP, Mississippi | DT16: Austin CDP | DU16: Mississippi | DV16: 1600000US2802380 | DX16: Alton city, Missouri | DY16: Alton city | DZ16: Missouri | EA16: 1600000US2900964 | EC16: Azure CDP, Montana | ED16: Azure CDP | EE16: Montana | EF16: 1600000US3003212 | EH16: Anselmo village, Nebraska | EI16: Anselmo village | EJ16: Nebraska | EK16: 1600000US3101500 | EM16: Carson City, Nevada | EN16: Carson City | EO16: Nevada | EP16: 1600000US3209700 | ER16: Center Sandwich CDP, New Hampshire | ES16: Center Sandwich CDP | ET16: New Hampshire | EU16: 1600000US3310900 | EW16: Arrowhead Lake CDP, New Jersey | EX16: Arrowhead Lake CDP | EY16: New Jersey | EZ16: 1600000US3401825 | FB16: Animas CDP, New Mexico | FC16: Animas CDP | FD16: New Mexico | FE16: 1600000US3503750 | FG16: Alfred village, New York | FH16: Alfred village | FI16: New York | FJ16: 1600000US3601198 | FL16: Arapahoe town, North Carolina | FM16: Arapahoe town | FN16: North Carolina | FO16: 1600000US3701640 | FQ16: Ardoch city, North Dakota | FR16: Ardoch city | FS16: North Dakota | FT16: 1600000US3802860 | FV16: Amberley village, Ohio | FW16: Amberley village | FX16: Ohio | FY16: 1600000US3901672 | GA16: Allen town, Oklahoma | GB16: Allen town | GC16: Oklahoma | GD16: 1600000US4001400 | GF16: Athena city, Oregon | GG16: Athena city | GH16: Oregon | GI16: 1600000US4103200 | GK16: Alexandria borough, Pennsylvania | GL16: Alexandria borough | GM16: Pennsylvania | GN16: 1600000US4200756 | GP16: Arroyo zona urbana, Puerto Rico | GQ16: Arroyo zona urbana | GR16: Puerto Rico | GS16: 1600000US7203927 | GU16: Harrisville CDP, Rhode Island | GV16: Harrisville CDP | GW16: Rhode Island | GX16: 1600000US4433400 | GZ16: Ashwood CDP, South Carolina | HA16: Ashwood CDP | HB16: South Carolina | HC16: 1600000US4503115 | HE16: Ardmore CDP, South Dakota | HF16: Ardmore CDP | HG16: South Dakota | HH16: 1600000US4601980 | HJ16: Atoka town, Tennessee | HK16: Atoka town | HL16: Tennessee | HM16: 1600000US4702340 | HO16: Alamo Beach CDP, Texas | HP16: Alamo Beach CDP | HQ16: Texas | HR16: 1600000US4801594 | HT16: Beaver city, Utah | HU16: Beaver city | HV16: Utah | HW16: 1600000US4904060 | HY16: Bolton CDP, Vermont | HZ16: Bolton CDP | IA16: Vermont | IB16: 1600000US5006475 | ID16: Annandale CDP, Virginia | IE16: Annandale CDP | IF16: Virginia | IG16: 1600000US5101912 | II16: Altoona CDP, Washington | IJ16: Altoona CDP | IK16: Washington | IL16: 1600000US5301745 | IN16: Auburn town, West Virginia | IO16: Auburn town | IP16: West Virginia | IQ16: 1600000US5403364 | IS16: Altoona city, Wisconsin | IT16: Altoona city | IU16: Wisconsin | IV16: 1600000US5501550 | IX16: Auburn CDP, Wyoming | IY16: Auburn CDP | IZ16: Wyoming | JA16: 1600000US5604160
A17: Indiana | C17: Arab city, Alabama | D17: Arab city | E17: Alabama | F17: 1600000US0102116 | H17: Anderson city, Alaska | I17: Anderson city | J17: Alaska | K17: 1600000US0203220 | M17: Arivaca Junction CDP, Arizona | N17: Arivaca Junction CDP | O17: Arizona | P17: 1600000US0403380 | R17: Anthonyville town, Arkansas | S17: Anthonyville town | T17: Arkansas | U17: 1600000US0501457 | W17: Alhambra city, California | X17: Alhambra city | Y17: California | Z17: 1600000US0600884 | AB17: Arboles CDP, Colorado | AC17: Arboles CDP | AD17: Colorado | AE17: 1600000US0802905 | AG17: Broad Brook CDP, Connecticut | AH17: Broad Brook CDP | AI17: Connecticut | AJ17: 1600000US0908770 | AL17: Dagsboro town, Delaware | AM17: Dagsboro town | AN17: Delaware | AO17: 1600000US1018950 | AV17: Arcadia city, Florida | AW17: Arcadia city | AX17: Florida | AY17: 1600000US1201750 | BA17: Alto town, Georgia | BB17: Alto town | BC17: Georgia | BD17: 1600000US1301948 | BF17: Fern Forest CDP, Hawaii | BG17: Fern Forest CDP | BH17: Hawaii | BI17: 1600000US1507675 | BK17: Bellevue city, Idaho | BL17: Bellevue city | BM17: Idaho | BN17: 1600000US1606220 | BP17: Allendale village, Illinois | BQ17: Allendale village | BR17: Illinois | BS17: 1600000US1700815 | BU17: Andrews town, Indiana | BV17: Andrews town | BW17: Indiana | BX17: 1600000US1801612 | BZ17: Alleman city, Iowa | CA17: Alleman city | CB17: Iowa | CC17: 1600000US1901180 | CE17: Altoona city, Kansas | CF17: Altoona city | CG17: Kansas | CH17: 1600000US2001625 | CJ17: Augusta city, Kentucky | CK17: Augusta city | CL17: Kentucky | CM17: 1600000US2102674 | CO17: Atlanta village, Louisiana | CP17: Atlanta village | CQ17: Louisiana | CR17: 1600000US2203390 | CT17: Boothbay Harbor CDP, Maine | CU17: Boothbay Harbor CDP | CV17: Maine | CW17: 1600000US2306085 | CY17: Arden on the Severn CDP, Maryland | CZ17: Arden on the Severn CDP | DA17: Maryland | DB17: 1600000US2402025 | DD17: Bellingham CDP, Massachusetts | DE17: Bellingham CDP | DF17: Massachusetts | DG17: 1600000US2504965 | DI17: Almont village, Michigan | DJ17: Almont village | DK17: Michigan | DL17: 1600000US2601660 | DN17: Alvarado city, Minnesota | DO17: Alvarado city | DP17: Minnesota | DQ17: 1600000US2701252 | DS17: Baldwyn city, Mississippi | DT17: Baldwyn city | DU17: Mississippi | DV17: 1600000US2802700 | DX17: Amazonia village, Missouri | DY17: Amazonia village | DZ17: Missouri | EA17: 1600000US2901018 | EC17: Babb CDP, Montana | ED17: Babb CDP | EE17: Montana | EF17: 1600000US3003250 | EH17: Ansley village, Nebraska | EI17: Ansley village | EJ17: Nebraska | EK17: 1600000US3101535 | EM17: Carter Springs CDP, Nevada | EN17: Carter Springs CDP | EO17: Nevada | EP17: 1600000US3210200 | ER17: Charlestown CDP, New Hampshire | ES17: Charlestown CDP | ET17: New Hampshire | EU17: 1600000US3311300 | EW17: Asbury CDP, New Jersey | EX17: Asbury CDP | EY17: New Jersey | EZ17: 1600000US3401900 | FB17: Anthony city, New Mexico | FC17: Anthony city | FD17: New Mexico | FE17: 1600000US3503820 | FG17: Allegany village, New York | FH17: Allegany village | FI17: New York | FJ17: 1600000US3601286 | FL17: Archdale city, North Carolina | FM17: Archdale city | FN17: North Carolina | FO17: 1600000US3701720 | FQ17: Argusville city, North Dakota | FR17: Argusville city | FS17: North Dakota | FT17: 1600000US3803020 | FV17: Amelia CDP, Ohio | FW17: Amelia CDP | FX17: Ohio | FY17: 1600000US3901742 | GA17: Altus city, Oklahoma | GB17: Altus city | GC17: Oklahoma | GD17: 1600000US4001700 | GF17: Aumsville city, Oregon | GG17: Aumsville city | GH17: Oregon | GI17: 1600000US4103250 | GK17: Alfarata CDP, Pennsylvania | GL17: Alfarata CDP | GM17: Pennsylvania | GN17: 1600000US4200764 | GP17: Bairoa La Veinticinco comunidad, Puerto Rico | GQ17: Bairoa La Veinticinco comunidad | GR17: Puerto Rico | GS17: 1600000US7204620 | GU17: Hope Valley CDP, Rhode Island | GV17: Hope Valley CDP | GW17: Rhode Island | GX17: 1600000US4434660 | GZ17: Atlantic Beach town, South Carolina | HA17: Atlantic Beach town | HB17: South Carolina | HC17: 1600000US4503205 | HE17: Arlington city, South Dakota | HF17: Arlington city | HG17: South Dakota | HH17: 1600000US4602180 | HJ17: Atwood town, Tennessee | HK17: Atwood town | HL17: Tennessee | HM17: 1600000US4702380 | HO17: Alamo Heights city, Texas | HP17: Alamo Heights city | HQ17: Texas | HR17: 1600000US4801600 | HT17: Benjamin CDP, Utah | HU17: Benjamin CDP | HV17: Utah | HW17: 1600000US4904720 | HY17: Bolton Valley CDP, Vermont | HZ17: Bolton Valley CDP | IA17: Vermont | IB17: 1600000US5006700 | ID17: Appalachia town, Virginia | IE17: Appalachia town | IF17: Virginia | IG17: 1600000US5102040 | II17: Amanda Park CDP, Washington | IJ17: Amanda Park CDP | IK17: Washington | IL17: 1600000US5301780 | IN17: Aurora CDP, West Virginia | IO17: Aurora CDP | IP17: West Virginia | IQ17: 1600000US5403460 | IS17: Amberg CDP, Wisconsin | IT17: Amberg CDP | IU17: Wisconsin | IV17: 1600000US5501650 | IX17: Baggs town, Wyoming | IY17: Baggs town | IZ17: Wyoming | JA17: 1600000US5604740
A18: Iowa | C18: Ardmore town, Alabama | D18: Ardmore town | E18: Alabama | F18: 1600000US0102260 | H18: Angoon city, Alaska | I18: Angoon city | J18: Alaska | K18: 1600000US0203440 | M18: Arizona City CDP, Arizona | N18: Arizona City CDP | O18: Arizona | P18: 1600000US0403530 | R18: Antoine town, Arkansas | S18: Antoine town | T18: Arkansas | U18: 1600000US0501540 | W18: Alhambra Valley CDP, California | X18: Alhambra Valley CDP | Y18: California | Z18: 1600000US0600898 | AB18: Aristocrat Ranchettes CDP, Colorado | AC18: Aristocrat Ranchettes CDP | AD18: Colorado | AE18: 1600000US0803015 | AG18: Brookfield Center CDP, Connecticut | AH18: Brookfield Center CDP | AI18: Connecticut | AJ18: 1600000US0908910 | AL18: Delaware City city, Delaware | AM18: Delaware City city | AN18: Delaware | AO18: 1600000US1019730 | AV18: Archer city, Florida | AW18: Archer city | AX18: Florida | AY18: 1600000US1201775 | BA18: Ambrose city, Georgia | BB18: Ambrose city | BC18: Georgia | BD18: 1600000US1302060 | BF18: Haena CDP, Hawaii | BG18: Haena CDP | BH18: Hawaii | BI18: 1600000US1508950 | BK18: Bennington CDP, Idaho | BL18: Bennington CDP | BM18: Idaho | BN18: 1600000US1606670 | BP18: Allenville village, Illinois | BQ18: Allenville village | BR18: Illinois | BS18: 1600000US1700867 | BU18: Angola city, Indiana | BV18: Angola city | BW18: Indiana | BX18: 1600000US1801666 | BZ18: Allerton city, Iowa | CA18: Allerton city | CB18: Iowa | CC18: 1600000US1901270 | CE18: Americus city, Kansas | CF18: Americus city | CG18: Kansas | CH18: 1600000US2001675 | CJ18: Auxier CDP, Kentucky | CK18: Auxier CDP | CL18: Kentucky | CM18: 1600000US2102764 | CO18: Avondale CDP, Louisiana | CP18: Avondale CDP | CQ18: Louisiana | CR18: 1600000US2203810 | CT18: Bowdoinham CDP, Maine | CU18: Bowdoinham CDP | CV18: Maine | CW18: 1600000US2306330 | CY18: Arnold CDP, Maryland | CZ18: Arnold CDP | DA18: Maryland | DB18: 1600000US2402275 | DD18: Belmont CDP, Massachusetts | DE18: Belmont CDP | DF18: Massachusetts | DG18: 1600000US2505105 | DI18: Alpena city, Michigan | DJ18: Alpena city | DK18: Michigan | DL18: 1600000US2601740 | DN18: Amboy city, Minnesota | DO18: Amboy city | DP18: Minnesota | DQ18: 1600000US2701324 | DS18: Bassfield town, Mississippi | DT18: Bassfield town | DU18: Mississippi | DV18: 1600000US2803580 | DX18: Amity town, Missouri | DY18: Amity town | DZ18: Missouri | EA18: 1600000US2901054 | EC18: Bainville town, Montana | ED18: Bainville town | EE18: Montana | EF18: 1600000US3003400 | EH18: Arapahoe city, Nebraska | EI18: Arapahoe city | EJ18: Nebraska | EK18: 1600000US3101780 | EM18: Cold Springs CDP, Nevada | EN18: Cold Springs CDP | EO18: Nevada | EP18: 1600000US3214090 | ER18: Claremont city, New Hampshire | ES18: Claremont city | ET18: New Hampshire | EU18: 1600000US3312900 | EW18: Asbury Park city, New Jersey | EX18: Asbury Park city | EY18: New Jersey | EZ18: 1600000US3401960 | FB18: Anton Chico CDP, New Mexico | FC18: Anton Chico CDP | FD18: New Mexico | FE18: 1600000US3503890 | FG18: Almond village, New York | FH18: Almond village | FI18: New York | FJ18: 1600000US3601440 | FL18: Archer Lodge town, North Carolina | FM18: Archer Lodge town | FN18: North Carolina | FO18: 1600000US3701760 | FQ18: Arnegard city, North Dakota | FR18: Arnegard city | FS18: North Dakota | FT18: 1600000US3803220 | FV18: Amesville village, Ohio | FW18: Amesville village | FX18: Ohio | FY18: 1600000US3901784 | GA18: Alva city, Oklahoma | GB18: Alva city | GC18: Oklahoma | GD18: 1600000US4001800 | GF18: Aurora city, Oregon | GG18: Aurora city | GH18: Oregon | GI18: 1600000US4103300 | GK18: Aliquippa city, Pennsylvania | GL18: Aliquippa city | GM18: Pennsylvania | GN18: 1600000US4200820 | GP18: Bajadero comunidad, Puerto Rico | GQ18: Bajadero comunidad | GR18: Puerto Rico | GS18: 1600000US7204658 | GU18: Hopkinton CDP, Rhode Island | GV18: Hopkinton CDP | GW18: Rhode Island | GX18: 1600000US4435200 | GZ18: Awendaw town, South Carolina | HA18: Awendaw town | HB18: South Carolina | HC18: 1600000US4503385 | HE18: Armour city, South Dakota | HF18: Armour city | HG18: South Dakota | HH18: 1600000US4602260 | HJ18: Auburntown town, Tennessee | HK18: Auburntown town | HL18: Tennessee | HM18: 1600000US4702400 | HO18: Alanreed CDP, Texas | HP18: Alanreed CDP | HQ18: Texas | HR18: 1600000US4801612 | HT18: Benson CDP, Utah | HU18: Benson CDP | HV18: Utah | HW18: 1600000US4905050 | HY18: Bradford CDP, Vermont | HZ18: Bradford CDP | IA18: Vermont | IB18: 1600000US5007225 | ID18: Apple Mountain Lake CDP, Virginia | IE18: Apple Mountain Lake CDP | IF18: Virginia | IG18: 1600000US5102064 | II18: Amboy CDP, Washington | IJ18: Amboy CDP | IK18: Washington | IL18: 1600000US5301850 | IN18: Bancroft town, West Virginia | IO18: Bancroft town | IP18: West Virginia | IQ18: 1600000US5404204 | IS18: Amery city, Wisconsin | IT18: Amery city | IU18: Wisconsin | IV18: 1600000US5501725 | IX18: Bairoil town, Wyoming | IY18: Bairoil town | IZ18: Wyoming | JA18: 1600000US5604885
A19: Kansas | C19: Argo town, Alabama | D19: Argo town | E19: Alabama | F19: 1600000US0102320 | H19: Aniak city, Alaska | I19: Aniak city | J19: Alaska | K19: 1600000US0203550 | M19: Arizona Village CDP, Arizona | N19: Arizona Village CDP | O19: Arizona | P19: 1600000US0403915 | R19: Aplin CDP, Arkansas | S19: Aplin CDP | T19: Arkansas | U19: 1600000US0501630 | W19: Aliso Viejo city, California | X19: Aliso Viejo city | Y19: California | Z19: 1600000US0600947 | AB19: Arriba town, Colorado | AC19: Arriba town | AD19: Colorado | AE19: 1600000US0803235 | AG19: Brooklyn CDP, Connecticut | AH19: Brooklyn CDP | AI19: Connecticut | AJ19: 1600000US0909120 | AL19: Delmar town, Delaware | AM19: Delmar town | AN19: Delaware | AO19: 1600000US1020380 | AV19: Aripeka CDP, Florida | AW19: Aripeka CDP | AX19: Florida | AY19: 1600000US1201875 | BA19: Americus city, Georgia | BB19: Americus city | BC19: Georgia | BD19: 1600000US1302116 | BF19: Haiku-Pauwela CDP, Hawaii | BG19: Haiku-Pauwela CDP | BH19: Hawaii | BI19: 1600000US1509260 | BK19: Blackfoot city, Idaho | BL19: Blackfoot city | BM19: Idaho | BN19: 1600000US1607840 | BP19: Allerton village, Illinois | BQ19: Allerton village | BR19: Illinois | BS19: 1600000US1700880 | BU19: Arcadia town, Indiana | BV19: Arcadia town | BW19: Indiana | BX19: 1600000US1801954 | BZ19: Allison city, Iowa | CA19: Allison city | CB19: Iowa | CC19: 1600000US1901315 | CE19: Ames CDP, Kansas | CF19: Ames CDP | CG19: Kansas | CH19: 1600000US2001725 | CJ19: Bancroft city, Kentucky | CK19: Bancroft city | CL19: Kentucky | CM19: 1600000US2103376 | CO19: Baker city, Louisiana | CP19: Baker city | CQ19: Louisiana | CR19: 1600000US2203985 | CT19: Bradley CDP, Maine | CU19: Bradley CDP | CV19: Maine | CW19: 1600000US2306645 | CY19: Ashton-Sandy Spring CDP, Maryland | CZ19: Ashton-Sandy Spring CDP | DA19: Maryland | DB19: 1600000US2402762 | DD19: Beverly city, Massachusetts | DE19: Beverly city | DF19: Massachusetts | DG19: 1600000US2505595 | DI19: Alpha village, Michigan | DJ19: Alpha village | DK19: Michigan | DL19: 1600000US2601800 | DN19: Andover city, Minnesota | DO19: Andover city | DP19: Minnesota | DQ19: 1600000US2701486 | DS19: Batesville city, Mississippi | DT19: Batesville city | DU19: Mississippi | DV19: 1600000US2803620 | DX19: Amoret city, Missouri | DY19: Amoret city | DZ19: Missouri | EA19: 1600000US2901072 | EC19: Baker city, Montana | ED19: Baker city | EE19: Montana | EF19: 1600000US3003475 | EH19: Arcadia village, Nebraska | EI19: Arcadia village | EJ19: Nebraska | EK19: 1600000US3101850 | EM19: Crescent Valley CDP, Nevada | EN19: Crescent Valley CDP | EO19: Nevada | EP19: 1600000US3216300 | ER19: Colebrook CDP, New Hampshire | ES19: Colebrook CDP | ET19: New Hampshire | EU19: 1600000US3313700 | EW19: Ashland CDP, New Jersey | EX19: Ashland CDP | EY19: New Jersey | EZ19: 1600000US3401990 | FB19: Anzac Village CDP, New Mexico | FC19: Anzac Village CDP | FD19: New Mexico | FE19: 1600000US3503970 | FG19: Altamont village, New York | FH19: Altamont village | FI19: New York | FJ19: 1600000US3601517 | FL19: Arrowhead Beach CDP, North Carolina | FM19: Arrowhead Beach CDP | FN19: North Carolina | FO19: 1600000US3701972 | FQ19: Arthur city, North Dakota | FR19: Arthur city | FS19: North Dakota | FT19: 1600000US3803300 | FV19: Amherst city, Ohio | FW19: Amherst city | FX19: Ohio | FY19: 1600000US3901798 | GA19: Amber town, Oklahoma | GB19: Amber town | GC19: Oklahoma | GD19: 1600000US4001900 | GF19: Baker City city, Oregon | GG19: Baker City city | GH19: Oregon | GI19: 1600000US4103650 | GK19: Alleghenyville CDP, Pennsylvania | GL19: Alleghenyville CDP | GM19: Pennsylvania | GN19: 1600000US4200924 | GP19: Bajandas comunidad, Puerto Rico | GQ19: Bajandas comunidad | GR19: Puerto Rico | GS19: 1600000US7204701 | GU19: Kingston CDP, Rhode Island | GV19: Kingston CDP | GW19: Rhode Island | GX19: 1600000US4438980 | GZ19: Aynor town, South Carolina | HA19: Aynor town | HB19: South Carolina | HC19: 1600000US4503430 | HE19: Artas town, South Dakota | HF19: Artas town | HG19: South Dakota | HH19: 1600000US4602340 | HJ19: Baileyton town, Tennessee | HK19: Baileyton town | HL19: Tennessee | HM19: 1600000US4702780 | HO19: Alba town, Texas | HP19: Alba town | HQ19: Texas | HR19: 1600000US4801636 | HT19: Beryl Junction CDP, Utah | HU19: Beryl Junction CDP | HV19: Utah | HW19: 1600000US4905380 | HY19: Brandon CDP, Vermont | HZ19: Brandon CDP | IA19: Vermont | IB19: 1600000US5007675 | ID19: Appomattox town, Virginia | IE19: Appomattox town | IF19: Virginia | IG19: 1600000US5102072 | II19: Ames Lake CDP, Washington | IJ19: Ames Lake CDP | IK19: Washington | IL19: 1600000US5301920 | IN19: Barboursville village, West Virginia | IO19: Barboursville village | IP19: West Virginia | IQ19: 1600000US5404276 | IS19: Amherst village, Wisconsin | IT19: Amherst village | IU19: Wisconsin | IV19: 1600000US5501750 | IX19: Bar Nunn town, Wyoming | IY19: Bar Nunn town | IZ19: Wyoming | JA19: 1600000US5605245
A20: Kentucky | C20: Ariton town, Alabama | D20: Ariton town | E20: Alabama | F20: 1600000US0102428 | H20: Anvik city, Alaska | I20: Anvik city | J20: Alaska | K20: 1600000US0203880 | M20: Arlington CDP, Arizona | N20: Arlington CDP | O20: Arizona | P20: 1600000US0404020 | R20: Appleton CDP, Arkansas | S20: Appleton CDP | T20: Arkansas | U20: 1600000US0501660 | W20: Alleghany CDP, California | X20: Alleghany CDP | Y20: California | Z20: 1600000US0600982 | AB20: Arvada city, Colorado | AC20: Arvada city | AD20: Colorado | AE20: 1600000US0803455 | AG20: Byram CDP, Connecticut | AH20: Byram CDP | AI20: Connecticut | AJ20: 1600000US0910660 | AL20: Dewey Beach town, Delaware | AM20: Dewey Beach town | AN20: Delaware | AO20: 1600000US1020900 | AV20: Asbury Lake CDP, Florida | AW20: Asbury Lake CDP | AX20: Florida | AY20: 1600000US1202187 | BA20: Andersonville city, Georgia | BB20: Andersonville city | BC20: Georgia | BD20: 1600000US1302256 | BF20: Halaula CDP, Hawaii | BG20: Halaula CDP | BH20: Hawaii | BI20: 1600000US1509700 | BK20: Blanchard CDP, Idaho | BL20: Blanchard CDP | BM20: Idaho | BN20: 1600000US1608290 | BP20: Alma village, Illinois | BQ20: Alma village | BR20: Illinois | BS20: 1600000US1700919 | BU20: Argos town, Indiana | BV20: Argos town | BW20: Indiana | BX20: 1600000US1802044 | BZ20: Alta city, Iowa | CA20: Alta city | CB20: Iowa | CC20: 1600000US1901495 | CE20: Andale city, Kansas | CF20: Andale city | CG20: Kansas | CH20: 1600000US2001775 | CJ20: Bandana CDP, Kentucky | CK20: Bandana CDP | CL20: Kentucky | CM20: 1600000US2103412 | CO20: Baldwin town, Louisiana | CP20: Baldwin town | CQ20: Louisiana | CR20: 1600000US2204020 | CT20: Brewer city, Maine | CU20: Brewer city | CV20: Maine | CW20: 1600000US2306925 | CY20: Aspen Hill CDP, Maryland | CZ20: Aspen Hill CDP | DA20: Maryland | DB20: 1600000US2402825 | DD20: Blandford CDP, Massachusetts | DE20: Blandford CDP | DF20: Massachusetts | DG20: 1600000US2506050 | DI20: Amasa CDP, Michigan | DJ20: Amasa CDP | DK20: Michigan | DL20: 1600000US2601960 | DN20: Angle Inlet CDP, Minnesota | DO20: Angle Inlet CDP | DP20: Minnesota | DQ20: 1600000US2701558 | DS20: Baxterville CDP, Mississippi | DT20: Baxterville CDP | DU20: Mississippi | DV20: 1600000US2803940 | DX20: Amsterdam city, Missouri | DY20: Amsterdam city | DZ20: Missouri | EA20: 1600000US2901090 | EC20: Ballantine CDP, Montana | ED20: Ballantine CDP | EE20: Montana | EF20: 1600000US3003625 | EH20: Archer CDP, Nebraska | EI20: Archer CDP | EJ20: Nebraska | EK20: 1600000US3101920 | EM20: Crystal Bay CDP, Nevada | EN20: Crystal Bay CDP | EO20: Nevada | EP20: 1600000US3216700 | ER20: Concord city, New Hampshire | ES20: Concord city | ET20: New Hampshire | EU20: 1600000US3314200 | EW20: Atco CDP, New Jersey | EX20: Atco CDP | EY20: New Jersey | EZ20: 1600000US3402020 | FB20: Apache Creek CDP, New Mexico | FC20: Apache Creek CDP | FD20: New Mexico | FE20: 1600000US3504030 | FG20: Altmar CDP, New York | FH20: Altmar CDP | FI20: New York | FJ20: 1600000US3601550 | FL20: Asheboro city, North Carolina | FM20: Asheboro city | FN20: North Carolina | FO20: 1600000US3702080 | FQ20: Ashley city, North Dakota | FR20: Ashley city | FS20: North Dakota | FT20: 1600000US3803540 | FV20: Amsterdam village, Ohio | FW20: Amsterdam village | FX20: Ohio | FY20: 1600000US3901938 | GA20: Ames town, Oklahoma | GB20: Ames town | GC20: Oklahoma | GD20: 1600000US4001950 | GF20: Bandon city, Oregon | GG20: Bandon city | GH20: Oregon | GI20: 1600000US4103800 | GK20: Allenport CDP, Pennsylvania | GL20: Allenport CDP | GM20: Pennsylvania | GN20: 1600000US4200980 | GP20: Barahona comunidad, Puerto Rico | GQ20: Barahona comunidad | GR20: Puerto Rico | GS20: 1600000US7205217 | GU20: Melville CDP, Rhode Island | GV20: Melville CDP | GW20: Rhode Island | GX20: 1600000US4445010 | GZ20: Bamberg town, South Carolina | HA20: Bamberg town | HB20: South Carolina | HC20: 1600000US4503790 | HE20: Artesian town, South Dakota | HF20: Artesian town | HG20: South Dakota | HH20: 1600000US4602380 | HJ20: Baneberry city, Tennessee | HK20: Baneberry city | HL20: Tennessee | HM20: 1600000US4703078 | HO20: Albany city, Texas | HP20: Albany city | HQ20: Texas | HR20: 1600000US4801648 | HT20: Bicknell town, Utah | HU20: Bicknell town | HV20: Utah | HW20: 1600000US4905490 | HY20: Brattleboro CDP, Vermont | HZ20: Brattleboro CDP | IA20: Vermont | IB20: 1600000US5007975 | ID20: Aquia Harbour CDP, Virginia | IE20: Aquia Harbour CDP | IF20: Virginia | IG20: 1600000US5102112 | II20: Anacortes city, Washington | IJ20: Anacortes city | IK20: Washington | IL20: 1600000US5301990 | IN20: Barrackville town, West Virginia | IO20: Barrackville town | IP20: West Virginia | IQ20: 1600000US5404612 | IS20: Amherst Junction village, Wisconsin | IT20: Amherst Junction village | IU20: Wisconsin | IV20: 1600000US5501800 | IX20: Basin town, Wyoming | IY20: Basin town | IZ20: Wyoming | JA20: 1600000US5605320
A21: Louisiana | C21: Arley town, Alabama | D21: Arley town | E21: Alabama | F21: 1600000US0102500 | H21: Arctic Village CDP, Alaska | I21: Arctic Village CDP | J21: Alaska | K21: 1600000US0203990 | M21: Ash Fork CDP, Arizona | N21: Ash Fork CDP | O21: Arizona | P21: 1600000US0404440 | R21: Arkadelphia city, Arkansas | S21: Arkadelphia city | T21: Arkansas | U21: 1600000US0501870 | W21: Allendale CDP, California | X21: Allendale CDP | Y21: California | Z21: 1600000US0600996 | AB21: Aspen city, Colorado | AC21: Aspen city | AD21: Colorado | AE21: 1600000US0803620 | AG21: Canaan CDP, Connecticut | AH21: Canaan CDP | AI21: Connecticut | AJ21: 1600000US0910870 | AL21: Dover city, Delaware | AM21: Dover city | AN21: Delaware | AO21: 1600000US1021200 | AV21: Astatula town, Florida | AW21: Astatula town | AX21: Florida | AY21: 1600000US1202250 | BA21: Antioch CDP, Georgia | BB21: Antioch CDP | BC21: Georgia | BD21: 1600000US1302364 | BF21: Halawa CDP, Hawaii | BG21: Halawa CDP | BH21: Hawaii | BI21: 1600000US1510000 | BK21: Bliss city, Idaho | BL21: Bliss city | BM21: Idaho | BN21: 1600000US1608470 | BP21: Alorton village, Illinois | BQ21: Alorton village | BR21: Illinois | BS21: 1600000US1700958 | BU21: Arlington CDP, Indiana | BV21: Arlington CDP | BW21: Indiana | BX21: 1600000US1802116 | BZ21: Alta Vista city, Iowa | CA21: Alta Vista city | CB21: Iowa | CC21: 1600000US1901540 | CE21: Andover city, Kansas | CF21: Andover city | CG21: Kansas | CH21: 1600000US2001800 | CJ21: Barbourmeade city, Kentucky | CK21: Barbourmeade city | CL21: Kentucky | CM21: 1600000US2103556 | CO21: Ball town, Louisiana | CP21: Ball town | CQ21: Louisiana | CR21: 1600000US2204055 | CT21: Bridgton CDP, Maine | CU21: Bridgton CDP | CV21: Maine | CW21: 1600000US2307135 | CY21: Baden CDP, Maryland | CZ21: Baden CDP | DA21: Maryland | DB21: 1600000US2403500 | DD21: Bliss Corner CDP, Massachusetts | DE21: Bliss Corner CDP | DF21: Massachusetts | DG21: 1600000US2506170 | DI21: Ann Arbor city, Michigan | DJ21: Ann Arbor city | DK21: Michigan | DL21: 1600000US2603000 | DN21: Annandale city, Minnesota | DO21: Annandale city | DP21: Minnesota | DQ21: 1600000US2701684 | DS21: Bay St. Louis city, Mississippi | DT21: Bay St. Louis city | DU21: Mississippi | DV21: 1600000US2803980 | DX21: Anderson city, Missouri | DY21: Anderson city | DZ21: Missouri | EA21: 1600000US2901198 | EC21: Basin CDP, Montana | ED21: Basin CDP | EE21: Montana | EF21: 1600000US3004150 | EH21: Arlington village, Nebraska | EI21: Arlington village | EJ21: Nebraska | EK21: 1600000US3101990 | EM21: Dayton CDP, Nevada | EN21: Dayton CDP | EO21: Nevada | EP21: 1600000US3217500 | ER21: Contoocook CDP, New Hampshire | ES21: Contoocook CDP | ET21: New Hampshire | EU21: 1600000US3314340 | EW21: Atlantic City city, New Jersey | EX21: Atlantic City city | EY21: New Jersey | EZ21: 1600000US3402080 | FB21: Aragon CDP, New Mexico | FC21: Aragon CDP | FD21: New Mexico | FE21: 1600000US3504450 | FG21: Altona CDP, New York | FH21: Altona CDP | FI21: New York | FJ21: 1600000US3601572 | FL21: Asheville city, North Carolina | FM21: Asheville city | FN21: North Carolina | FO21: 1600000US3702140 | FQ21: Auburn CDP, North Dakota | FR21: Auburn CDP | FS21: North Dakota | FT21: 1600000US3803740 | FV21: Andersonville CDP, Ohio | FW21: Andersonville CDP | FX21: Ohio | FY21: 1600000US3902022 | GA21: Amorita town, Oklahoma | GB21: Amorita town | GC21: Oklahoma | GD21: 1600000US4002000 | GF21: Banks city, Oregon | GG21: Banks city | GH21: Oregon | GI21: 1600000US4103850 | GK21: Allenport borough, Pennsylvania | GL21: Allenport borough | GM21: Pennsylvania | GN21: 1600000US4200988 | GP21: Barceloneta zona urbana, Puerto Rico | GQ21: Barceloneta zona urbana | GR21: Puerto Rico | GS21: 1600000US7205346 | GU21: Misquamicut CDP, Rhode Island | GV21: Misquamicut CDP | GW21: Rhode Island | GX21: 1600000US4446000 | GZ21: Barnwell city, South Carolina | HA21: Barnwell city | HB21: South Carolina | HC21: 1600000US4504060 | HE21: Ashland Heights CDP, South Dakota | HF21: Ashland Heights CDP | HG21: South Dakota | HH21: 1600000US4602530 | HJ21: Banner Hill CDP, Tennessee | HK21: Banner Hill CDP | HL21: Tennessee | HM21: 1600000US4703120 | HO21: Aldine CDP, Texas | HP21: Aldine CDP | HQ21: Texas | HR21: 1600000US4801696 | HT21: Big Water town, Utah | HU21: Big Water town | HV21: Utah | HW21: 1600000US4905534 | HY21: Bristol CDP, Vermont | HZ21: Bristol CDP | IA21: Vermont | IB21: 1600000US5008950 | ID21: Arcola CDP, Virginia | IE21: Arcola CDP | IF21: Virginia | IG21: 1600000US5102248 | II21: Anatone CDP, Washington | IJ21: Anatone CDP | IK21: Washington | IL21: 1600000US5302025 | IN21: Bartley CDP, West Virginia | IO21: Bartley CDP | IP21: West Virginia | IQ21: 1600000US5404732 | IS21: Angelica CDP, Wisconsin | IT21: Angelica CDP | IU21: Wisconsin | IV21: 1600000US5501950 | IX21: Bear River town, Wyoming | IY21: Bear River town | IZ21: Wyoming | JA21: 1600000US5605625
A22: Maine | C22: Ashford town, Alabama | D22: Ashford town | E22: Alabama | F22: 1600000US0102836 | H22: Atka city, Alaska | I22: Atka city | J22: Alaska | K22: 1600000US0204210 | M22: Avenue B and C CDP, Arizona | N22: Avenue B and C CDP | O22: Arizona | P22: 1600000US0404710 | R22: Arkansas City city, Arkansas | S22: Arkansas City city | T22: Arkansas | U22: 1600000US0501990 | W22: Allensworth CDP, California | X22: Allensworth CDP | Y22: California | Z22: 1600000US0601010 | AB22: Aspen Park CDP, Colorado | AC22: Aspen Park CDP | AD22: Colorado | AE22: 1600000US0803730 | AG22: Candlewood Isle CDP, Connecticut | AH22: Candlewood Isle CDP | AI22: Connecticut | AJ22: 1600000US0911360 | AL22: Dover Base Housing CDP, Delaware | AM22: Dover Base Housing CDP | AN22: Delaware | AO22: 1600000US1021387 | AV22: Astor CDP, Florida | AW22: Astor CDP | AX22: Florida | AY22: 1600000US1202275 | BA22: Appling CDP, Georgia | BB22: Appling CDP | BC22: Georgia | BD22: 1600000US1302536 | BF22: Haleiwa CDP, Hawaii | BG22: Haleiwa CDP | BH22: Hawaii | BI22: 1600000US1510750 | BK22: Bloomington city, Idaho | BL22: Bloomington city | BM22: Idaho | BN22: 1600000US1608560 | BP22: Alpha village, Illinois | BQ22: Alpha village | BR22: Illinois | BS22: 1600000US1700971 | BU22: Ashley town, Indiana | BV22: Ashley town | BW22: Indiana | BX22: 1600000US1802458 | BZ22: Alton city, Iowa | CA22: Alton city | CB22: Iowa | CC22: 1600000US1901585 | CE22: Anthony city, Kansas | CF22: Anthony city | CG22: Kansas | CH22: 1600000US2001975 | CJ22: Barbourville city, Kentucky | CK22: Barbourville city | CL22: Kentucky | CM22: 1600000US2103574 | CO22: Banks Springs CDP, Louisiana | CP22: Banks Springs CDP | CQ22: Louisiana | CR22: 1600000US2204230 | CT22: Brownville Junction CDP, Maine | CU22: Brownville Junction CDP | CV22: Maine | CW22: 1600000US2308360 | CY22: Bagtown CDP, Maryland | CZ22: Bagtown CDP | DA22: Maryland | DB22: 1600000US2403514 | DD22: Boston city, Massachusetts | DE22: Boston city | DF22: Massachusetts | DG22: 1600000US2507000 | DI22: Applegate village, Michigan | DJ22: Applegate village | DK22: Michigan | DL22: 1600000US2603200 | DN22: Anoka city, Minnesota | DO22: Anoka city | DP22: Minnesota | DQ22: 1600000US2701720 | DS22: Bay Springs city, Mississippi | DT22: Bay Springs city | DU22: Mississippi | DV22: 1600000US2804060 | DX22: Annada village, Missouri | DY22: Annada village | DZ22: Missouri | EA22: 1600000US2901252 | EC22: Batavia CDP, Montana | ED22: Batavia CDP | EE22: Montana | EF22: 1600000US3004230 | EH22: Arnold village, Nebraska | EI22: Arnold village | EJ22: Nebraska | EK22: 1600000US3102095 | EM22: Denio CDP, Nevada | EN22: Denio CDP | EO22: Nevada | EP22: 1600000US3218500 | ER22: Conway CDP, New Hampshire | ES22: Conway CDP | ET22: New Hampshire | EU22: 1600000US3314580 | EW22: Atlantic Highlands borough, New Jersey | EX22: Atlantic Highlands borough | EY22: New Jersey | EZ22: 1600000US3402110 | FB22: Arenas Valley CDP, New Mexico | FC22: Arenas Valley CDP | FD22: New Mexico | FE22: 1600000US3504660 | FG22: Amagansett CDP, New York | FH22: Amagansett CDP | FI22: New York | FJ22: 1600000US3601594 | FL22: Ashley Heights CDP, North Carolina | FM22: Ashley Heights CDP | FN22: North Carolina | FO22: 1600000US3702240 | FQ22: Ayr city, North Dakota | FR22: Ayr city | FS22: North Dakota | FT22: 1600000US3804020 | FV22: Andover village, Ohio | FW22: Andover village | FX22: Ohio | FY22: 1600000US3902050 | GA22: Anadarko city, Oklahoma | GB22: Anadarko city | GC22: Oklahoma | GD22: 1600000US4002050 | GF22: Barlow city, Oregon | GG22: Barlow city | GH22: Oregon | GI22: 1600000US4104000 | GK22: Allensville CDP, Pennsylvania | GL22: Allensville CDP | GM22: Pennsylvania | GN22: 1600000US4201004 | GP22: Barranquitas zona urbana, Puerto Rico | GQ22: Barranquitas zona urbana | GR22: Puerto Rico | GS22: 1600000US7205690 | GU22: Narragansett Pier CDP, Rhode Island | GV22: Narragansett Pier CDP | GW22: Rhode Island | GX22: 1600000US4448700 | GZ22: Batesburg-Leesville town, South Carolina | HA22: Batesburg-Leesville town | HB22: South Carolina | HC22: 1600000US4504300 | HE22: Ashton city, South Dakota | HF22: Ashton city | HG22: South Dakota | HH22: 1600000US4602540 | HJ22: Bartlett city, Tennessee | HK22: Bartlett city | HL22: Tennessee | HM22: 1600000US4703440 | HO22: Aledo city, Texas | HP22: Aledo city | HQ22: Texas | HR22: 1600000US4801744 | HT22: Blanding city, Utah | HU22: Blanding city | HV22: Utah | HW22: 1600000US4906370 | HY22: Burlington city, Vermont | HZ22: Burlington city | IA22: Vermont | IB22: 1600000US5010675 | ID22: Arlington CDP, Virginia | IE22: Arlington CDP | IF22: Virginia | IG22: 1600000US5103000 | II22: Anderson Island CDP, Washington | IJ22: Anderson Island CDP | IK22: Washington | IL22: 1600000US5302060 | IN22: Bartow CDP, West Virginia | IO22: Bartow CDP | IP22: West Virginia | IQ22: 1600000US5404780 | IS22: Aniwa village, Wisconsin | IT22: Aniwa village | IU22: Wisconsin | IV22: 1600000US5502075 | IX22: Bedford CDP, Wyoming | IY22: Bedford CDP | IZ22: Wyoming | JA22: 1600000US5606045
A23: Maryland | C23: Ashland town, Alabama | D23: Ashland town | E23: Alabama | F23: 1600000US0102860 | H23: Atmautluak CDP, Alaska | I23: Atmautluak CDP | J23: Alaska | K23: 1600000US0204430 | M23: Avondale city, Arizona | N23: Avondale city | O23: Arizona | P23: 1600000US0404720 | R23: Armorel CDP, Arkansas | S23: Armorel CDP | T23: Arkansas | U23: 1600000US0502230 | W23: Almanor CDP, California | X23: Almanor CDP | Y23: California | Z23: 1600000US0601094 | AB23: Atwood CDP, Colorado | AC23: Atwood CDP | AD23: Colorado | AE23: 1600000US0803840 | AG23: Candlewood Knolls CDP, Connecticut | AH23: Candlewood Knolls CDP | AI23: Connecticut | AJ23: 1600000US0911430 | AL23: Edgemoor CDP, Delaware | AM23: Edgemoor CDP | AN23: Delaware | AO23: 1600000US1023240 | AV23: Atlantic Beach city, Florida | AW23: Atlantic Beach city | AX23: Florida | AY23: 1600000US1202400 | BA23: Arabi town, Georgia | BB23: Arabi town | BC23: Georgia | BD23: 1600000US1302564 | BF23: Haliimaile CDP, Hawaii | BG23: Haliimaile CDP | BH23: Hawaii | BI23: 1600000US1510900 | BK23: Boise City city, Idaho | BL23: Boise City city | BM23: Idaho | BN23: 1600000US1608830 | BP23: Alsey village, Illinois | BQ23: Alsey village | BR23: Illinois | BS23: 1600000US1700997 | BU23: Atlanta town, Indiana | BV23: Atlanta town | BW23: Indiana | BX23: 1600000US1802602 | BZ23: Altoona city, Iowa | CA23: Altoona city | CB23: Iowa | CC23: 1600000US1901630 | CE23: Arcadia city, Kansas | CF23: Arcadia city | CG23: Kansas | CH23: 1600000US2002175 | CJ23: Bardstown city, Kentucky | CK23: Bardstown city | CL23: Kentucky | CM23: 1600000US2103628 | CO23: Barataria CDP, Louisiana | CP23: Barataria CDP | CQ23: Louisiana | CR23: 1600000US2204300 | CT23: Brunswick CDP, Maine | CU23: Brunswick CDP | CV23: Maine | CW23: 1600000US2308395 | CY23: Bakersville CDP, Maryland | CZ23: Bakersville CDP | DA23: Maryland | DB23: 1600000US2403575 | DD23: Bourne CDP, Massachusetts | DE23: Bourne CDP | DF23: Massachusetts | DG23: 1600000US2507140 | DI23: Arcadia CDP, Michigan | DJ23: Arcadia CDP | DK23: Michigan | DL23: 1600000US2603300 | DN23: Appleton city, Minnesota | DO23: Appleton city | DP23: Minnesota | DQ23: 1600000US2701864 | DS23: Beaumont town, Mississippi | DT23: Beaumont town | DU23: Mississippi | DV23: 1600000US2804500 | DX23: Annapolis city, Missouri | DY23: Annapolis city | DZ23: Missouri | EA23: 1600000US2901270 | EC23: Bearcreek town, Montana | ED23: Bearcreek town | EE23: Montana | EF23: 1600000US3004300 | EH23: Arthur village, Nebraska | EI23: Arthur village | EJ23: Nebraska | EK23: 1600000US3102200 | EM23: Double Spring CDP, Nevada | EN23: Double Spring CDP | EO23: Nevada | EP23: 1600000US3219150 | ER23: Derry CDP, New Hampshire | ES23: Derry CDP | ET23: New Hampshire | EU23: 1600000US3317860 | EW23: Auburn CDP, New Jersey | EX23: Auburn CDP | EY23: New Jersey | EZ23: 1600000US3402170 | FB23: Arrey CDP, New Mexico | FC23: Arrey CDP | FD23: New Mexico | FE23: 1600000US3504870 | FG23: Amenia CDP, New York | FH23: Amenia CDP | FI23: New York | FJ23: 1600000US3601682 | FL23: Askewville town, North Carolina | FM23: Askewville town | FN23: North Carolina | FO23: 1600000US3702320 | FQ23: Balfour city, North Dakota | FR23: Balfour city | FS23: North Dakota | FT23: 1600000US3804460 | FV23: Anna village, Ohio | FW23: Anna village | FX23: Ohio | FY23: 1600000US3902092 | GA23: Antlers city, Oklahoma | GB23: Antlers city | GC23: Oklahoma | GD23: 1600000US4002250 | GF23: Barnesdale CDP, Oregon | GG23: Barnesdale CDP | GH23: Oregon | GI23: 1600000US4104125 | GK23: Allentown city, Pennsylvania | GL23: Allentown city | GM23: Pennsylvania | GN23: 1600000US4202000 | GP23: Bartolo comunidad, Puerto Rico | GQ23: Bartolo comunidad | GR23: Puerto Rico | GS23: 1600000US7206421 | GU23: Newport city, Rhode Island | GV23: Newport city | GW23: Rhode Island | GX23: 1600000US4449960 | GZ23: Baxter Village CDP, South Carolina | HA23: Baxter Village CDP | HB23: South Carolina | HC23: 1600000US4504528 | HE23: Astoria town, South Dakota | HF23: Astoria town | HG23: South Dakota | HH23: 1600000US4602580 | HJ23: Baxter town, Tennessee | HK23: Baxter town | HL23: Tennessee | HM23: 1600000US4703680 | HO23: Alfred CDP, Texas | HP23: Alfred CDP | HQ23: Texas | HR23: 1600000US4801816 | HT23: Bluebell CDP, Utah | HU23: Bluebell CDP | HV23: Utah | HW23: 1600000US4906590 | HY23: Cabot CDP, Vermont | HZ23: Cabot CDP | IA23: Vermont | IB23: 1600000US5011050 | ID23: Arrington CDP, Virginia | IE23: Arrington CDP | IF23: Virginia | IG23: 1600000US5103208 | II23: Arlington city, Washington | IJ23: Arlington city | IK23: Washington | IL23: 1600000US5302585 | IN23: Bath (Berkeley Springs) town, West Virginia | IO23: Bath (Berkeley Springs) town | IP23: West Virginia | IQ23: 1600000US5404876 | IS23: Antigo city, Wisconsin | IT23: Antigo city | IU23: Wisconsin | IV23: 1600000US5502250 | IX23: Bessemer Bend CDP, Wyoming | IY23: Bessemer Bend CDP | IZ23: Wyoming | JA23: 1600000US5606407
A24: Massachusetts | C24: Ashville city, Alabama | D24: Ashville city | E24: Alabama | F24: 1600000US0102908 | H24: Atqasuk city, Alaska | I24: Atqasuk city | J24: Alaska | K24: 1600000US0204500 | M24: Avra Valley CDP, Arizona | N24: Avra Valley CDP | O24: Arizona | P24: 1600000US0404880 | R24: Ashdown city, Arkansas | S24: Ashdown city | T24: Arkansas | U24: 1600000US0502380 | W24: Alondra Park CDP, California | X24: Alondra Park CDP | Y24: California | Z24: 1600000US0601150 | AB24: Ault town, Colorado | AC24: Ault town | AD24: Colorado | AE24: 1600000US0803950 | AG24: Candlewood Lake Club CDP, Connecticut | AH24: Candlewood Lake Club CDP | AI24: Connecticut | AJ24: 1600000US0911500 | AL24: Ellendale town, Delaware | AM24: Ellendale town | AN24: Delaware | AO24: 1600000US1024020 | AV24: Atlantis city, Florida | AW24: Atlantis city | AX24: Florida | AY24: 1600000US1202500 | BA24: Aragon city, Georgia | BB24: Aragon city | BC24: Georgia | BD24: 1600000US1302592 | BF24: Hana CDP, Hawaii | BG24: Hana CDP | BH24: Hawaii | BI24: 1600000US1511350 | BK24: Bonners Ferry city, Idaho | BL24: Bonners Ferry city | BM24: Idaho | BN24: 1600000US1609370 | BP24: Alsip village, Illinois | BQ24: Alsip village | BR24: Illinois | BS24: 1600000US1701010 | BU24: Attica city, Indiana | BV24: Attica city | BW24: Indiana | BX24: 1600000US1802620 | BZ24: Alvord city, Iowa | CA24: Alvord city | CB24: Iowa | CC24: 1600000US1901675 | CE24: Argonia city, Kansas | CF24: Argonia city | CG24: Kansas | CH24: 1600000US2002250 | CJ24: Bardwell city, Kentucky | CK24: Bardwell city | CL24: Kentucky | CM24: 1600000US2103664 | CO24: Basile town, Louisiana | CP24: Basile town | CQ24: Louisiana | CR24: 1600000US2204580 | CT24: Bucksport CDP, Maine | CU24: Bucksport CDP | CV24: Maine | CW24: 1600000US2308780 | CY24: Ballenger Creek CDP, Maryland | CZ24: Ballenger Creek CDP | DA24: Maryland | DB24: 1600000US2403800 | DD24: Boxford CDP, Massachusetts | DE24: Boxford CDP | DF24: Massachusetts | DG24: 1600000US2507385 | DI24: Argentine CDP, Michigan | DJ24: Argentine CDP | DK24: Michigan | DL24: 1600000US2603400 | DN24: Apple Valley city, Minnesota | DO24: Apple Valley city | DP24: Minnesota | DQ24: 1600000US2701900 | DS24: Beauregard village, Mississippi | DT24: Beauregard village | DU24: Mississippi | DV24: 1600000US2804540 | DX24: Anniston town, Missouri | DY24: Anniston town | DZ24: Missouri | EA24: 1600000US2901288 | EC24: Bear Dance CDP, Montana | ED24: Bear Dance CDP | EE24: Montana | EF24: 1600000US3004410 | EH24: Ashland city, Nebraska | EI24: Ashland city | EJ24: Nebraska | EK24: 1600000US3102305 | EM24: Dry Valley CDP, Nevada | EN24: Dry Valley CDP | EO24: Nevada | EP24: 1600000US3219800 | ER24: Dover city, New Hampshire | ES24: Dover city | ET24: New Hampshire | EU24: 1600000US3318820 | EW24: Audubon borough, New Jersey | EX24: Audubon borough | EY24: New Jersey | EZ24: 1600000US3402200 | FB24: Arroyo Hondo CDP (Santa Fe County), New Mexico | FC24: Arroyo Hondo CDP (Santa Fe County) | FD24: New Mexico | FE24: 1600000US3505002 | FG24: Ames village, New York | FH24: Ames village | FI24: New York | FJ24: 1600000US3601737 | FL24: Atkinson town, North Carolina | FM24: Atkinson town | FN24: North Carolina | FO24: 1600000US3702460 | FQ24: Balta city, North Dakota | FR24: Balta city | FS24: North Dakota | FT24: 1600000US3804580 | FV24: Ansonia village, Ohio | FW24: Ansonia village | FX24: Ohio | FY24: 1600000US3902120 | GA24: Apache town, Oklahoma | GB24: Apache town | GC24: Oklahoma | GD24: 1600000US4002300 | GF24: Barview CDP, Oregon | GG24: Barview CDP | GH24: Oregon | GI24: 1600000US4104400 | GK24: Allenwood CDP, Pennsylvania | GL24: Allenwood CDP | GM24: Pennsylvania | GN24: 1600000US4202016 | GP24: BayamÃ³n zona urbana, Puerto Rico | GQ24: BayamÃ³n zona urbana | GR24: Puerto Rico | GS24: 1600000US7206593 | GU24: Newport East CDP, Rhode Island | GV24: Newport East CDP | GW24: Rhode Island | GX24: 1600000US4450140 | GZ24: Beaufort city, South Carolina | HA24: Beaufort city | HB24: South Carolina | HC24: 1600000US4504690 | HE24: Aurora town, South Dakota | HF24: Aurora town | HG24: South Dakota | HH24: 1600000US4602780 | HJ24: Bean Station city, Tennessee | HK24: Bean Station city | HL24: Tennessee | HM24: 1600000US4703760 | HO24: Alice city, Texas | HP24: Alice city | HQ24: Texas | HR24: 1600000US4801852 | HT24: Bluff town, Utah | HU24: Bluff town | HV24: Utah | HW24: 1600000US4906700 | HY24: Cambridge village, Vermont | HZ24: Cambridge village | IA24: Vermont | IB24: 1600000US5011425 | ID24: Ashburn CDP, Virginia | IE24: Ashburn CDP | IF24: Virginia | IG24: 1600000US5103320 | II24: Arlington Heights CDP, Washington | IJ24: Arlington Heights CDP | IK24: Washington | IL24: 1600000US5302620 | IN24: Baxter CDP, West Virginia | IO24: Baxter CDP | IP24: West Virginia | IQ24: 1600000US5404900 | IS24: Appleton city, Wisconsin | IT24: Appleton city | IU24: Wisconsin | IV24: 1600000US5502375 | IX24: Beulah CDP, Wyoming | IY24: Beulah CDP | IZ24: Wyoming | JA24: 1600000US5606480
A25: Michigan | C25: Athens city, Alabama | D25: Athens city | E25: Alabama | F25: 1600000US0102956 | H25: Attu Station CDP, Alaska | I25: Attu Station CDP | J25: Alaska | K25: 1600000US0204670 | M25: Aztec CDP, Arizona | N25: Aztec CDP | O25: Arizona | P25: 1600000US0404930 | R25: Ash Flat city, Arkansas | S25: Ash Flat city | T25: Arkansas | U25: 1600000US0502470 | W25: Alpaugh CDP, California | X25: Alpaugh CDP | Y25: California | Z25: 1600000US0601164 | AB25: Aurora city, Colorado | AC25: Aurora city | AD25: Colorado | AE25: 1600000US0804000 | AG25: Candlewood Orchards CDP, Connecticut | AH25: Candlewood Orchards CDP | AI25: Connecticut | AJ25: 1600000US0911640 | AL25: Elsmere town, Delaware | AM25: Elsmere town | AN25: Delaware | AO25: 1600000US1024540 | AV25: Auburndale city, Florida | AW25: Auburndale city | AX25: Florida | AY25: 1600000US1202550 | BA25: Arcade city, Georgia | BB25: Arcade city | BC25: Georgia | BD25: 1600000US1302648 | BF25: Hanalei CDP, Hawaii | BG25: Hanalei CDP | BH25: Hawaii | BI25: 1600000US1511500 | BK25: Bovill city, Idaho | BL25: Bovill city | BM25: Idaho | BN25: 1600000US1609730 | BP25: Altamont city, Illinois | BQ25: Altamont city | BR25: Illinois | BS25: 1600000US1701049 | BU25: Auburn city, Indiana | BV25: Auburn city | BW25: Indiana | BX25: 1600000US1802674 | BZ25: Amana CDP, Iowa | CA25: Amana CDP | CB25: Iowa | CC25: 1600000US1901720 | CE25: Arkansas City city, Kansas | CF25: Arkansas City city | CG25: Kansas | CH25: 1600000US2002300 | CJ25: Barlow city, Kentucky | CK25: Barlow city | CL25: Kentucky | CM25: 1600000US2103718 | CO25: Baskin village, Louisiana | CP25: Baskin village | CQ25: Louisiana | CR25: 1600000US2204615 | CT25: Calais city, Maine | CU25: Calais city | CV25: Maine | CW25: 1600000US2309585 | CY25: Baltimore city, Maryland | CZ25: Baltimore city | DA25: Maryland | DB25: 1600000US2404000 | DD25: Braintree Town city, Massachusetts | DE25: Braintree Town city | DF25: Massachusetts | DG25: 1600000US2507740 | DI25: Armada village, Michigan | DJ25: Armada village | DK25: Michigan | DL25: 1600000US2603520 | DN25: Arco city, Minnesota | DO25: Arco city | DP25: Minnesota | DQ25: 1600000US2701972 | DS25: Beechwood CDP, Mississippi | DT25: Beechwood CDP | DU25: Mississippi | DV25: 1600000US2804705 | DX25: Appleton City city, Missouri | DY25: Appleton City city | DZ25: Missouri | EA25: 1600000US2901522 | EC25: Beaver Creek CDP, Montana | ED25: Beaver Creek CDP | EE25: Montana | EF25: 1600000US3004575 | EH25: Ashton village, Nebraska | EI25: Ashton village | EJ25: Nebraska | EK25: 1600000US3102375 | EM25: Dyer CDP, Nevada | EN25: Dyer CDP | EO25: Nevada | EP25: 1600000US3220700 | ER25: Durham CDP, New Hampshire | ES25: Durham CDP | ET25: New Hampshire | EU25: 1600000US3319620 | EW25: Audubon Park borough, New Jersey | EX25: Audubon Park borough | EY25: New Jersey | EZ25: 1600000US3402230 | FB25: Arroyo Hondo CDP (Taos County), New Mexico | FC25: Arroyo Hondo CDP (Taos County) | FD25: New Mexico | FE25: 1600000US3505010 | FG25: Amityville village, New York | FH25: Amityville village | FI25: New York | FJ25: 1600000US3602044 | FL25: Atlantic CDP, North Carolina | FM25: Atlantic CDP | FN25: North Carolina | FO25: 1600000US3702480 | FQ25: Bantry city, North Dakota | FR25: Bantry city | FS25: North Dakota | FT25: 1600000US3804740 | FV25: Antioch village, Ohio | FW25: Antioch village | FX25: Ohio | FY25: 1600000US3902148 | GA25: Arapaho town, Oklahoma | GB25: Arapaho town | GC25: Oklahoma | GD25: 1600000US4002500 | GF25: Bay City city, Oregon | GG25: Bay City city | GH25: Oregon | GI25: 1600000US4104800 | GK25: Allison CDP, Pennsylvania | GL25: Allison CDP | GM25: Pennsylvania | GN25: 1600000US4202040 | GP25: BayamÃ³n comunidad, Puerto Rico | GQ25: BayamÃ³n comunidad | GR25: Puerto Rico | GS25: 1600000US7206679 | GU25: Pascoag CDP, Rhode Island | GV25: Pascoag CDP | GW25: Rhode Island | GX25: 1600000US4454460 | GZ25: Beech Island CDP, South Carolina | HA25: Beech Island CDP | HB25: South Carolina | HC25: 1600000US4504915 | HE25: Aurora Center CDP, South Dakota | HF25: Aurora Center CDP | HG25: South Dakota | HH25: 1600000US4602860 | HJ25: Beech Bluff CDP, Tennessee | HK25: Beech Bluff CDP | HL25: Tennessee | HM25: 1600000US4704000 | HO25: Alice Acres CDP, Texas | HP25: Alice Acres CDP | HQ25: Texas | HR25: 1600000US4801858 | HT25: Bluffdale city, Utah | HU25: Bluffdale city | HV25: Utah | HW25: 1600000US4906810 | HY25: Canaan CDP, Vermont | HZ25: Canaan CDP | IA25: Vermont | IB25: 1600000US5011725 | ID25: Ashland town, Virginia | IE25: Ashland town | IF25: Virginia | IG25: 1600000US5103368 | II25: Artondale CDP, Washington | IJ25: Artondale CDP | IK25: Washington | IL25: 1600000US5302910 | IN25: Bayard town, West Virginia | IO25: Bayard town | IP25: West Virginia | IQ25: 1600000US5404924 | IS25: Arcadia city, Wisconsin | IT25: Arcadia city | IU25: Wisconsin | IV25: 1600000US5502500 | IX25: Big Horn CDP, Wyoming | IY25: Big Horn CDP | IZ25: Wyoming | JA25: 1600000US5606770
A26: Minnesota | C26: Atmore city, Alabama | D26: Atmore city | E26: Alabama | F26: 1600000US0103004 | H26: Badger CDP, Alaska | I26: Badger CDP | J26: Alaska | K26: 1600000US0205000 | M26: Bagdad CDP, Arizona | N26: Bagdad CDP | O26: Arizona | P26: 1600000US0405140 | R26: Atkins city, Arkansas | S26: Atkins city | T26: Arkansas | U26: 1600000US0502590 | W26: Alpine CDP, California | X26: Alpine CDP | Y26: California | Z26: 1600000US0601192 | AB26: Avon town, Colorado | AC26: Avon town | AD26: Colorado | AE26: 1600000US0804110 | AG26: Candlewood Shores CDP, Connecticut | AH26: Candlewood Shores CDP | AI26: Connecticut | AJ26: 1600000US0911780 | AL26: Farmington town, Delaware | AM26: Farmington town | AN26: Delaware | AO26: 1600000US1025840 | AV26: Aucilla CDP, Florida | AW26: Aucilla CDP | AX26: Florida | AY26: 1600000US1202575 | BA26: Argyle town, Georgia | BB26: Argyle town | BC26: Georgia | BD26: 1600000US1302844 | BF26: Hanamaulu CDP, Hawaii | BG26: Hanamaulu CDP | BH26: Hawaii | BI26: 1600000US1511650 | BK26: Bruneau CDP, Idaho | BL26: Bruneau CDP | BM26: Idaho | BN26: 1600000US1610450 | BP26: Alton city, Illinois | BQ26: Alton city | BR26: Illinois | BS26: 1600000US1701114 | BU26: Aurora city, Indiana | BV26: Aurora city | BW26: Indiana | BX26: 1600000US1802782 | BZ26: Ames city, Iowa | CA26: Ames city | CB26: Iowa | CC26: 1600000US1901855 | CE26: Arlington city, Kansas | CF26: Arlington city | CG26: Kansas | CH26: 1600000US2002325 | CJ26: Beattyville city, Kentucky | CK26: Beattyville city | CL26: Kentucky | CM26: 1600000US2104546 | CO26: Bastrop city, Louisiana | CP26: Bastrop city | CQ26: Louisiana | CR26: 1600000US2204685 | CT26: Camden CDP, Maine | CU26: Camden CDP | CV26: Maine | CW26: 1600000US2309690 | CY26: Baltimore Highlands CDP, Maryland | CZ26: Baltimore Highlands CDP | DA26: Maryland | DB26: 1600000US2404050 | DD26: Brewster CDP, Massachusetts | DE26: Brewster CDP | DF26: Massachusetts | DG26: 1600000US2507945 | DI26: Ashley village, Michigan | DJ26: Ashley village | DK26: Michigan | DL26: 1600000US2603740 | DN26: Arden Hills city, Minnesota | DO26: Arden Hills city | DP26: Minnesota | DQ26: 1600000US2702026 | DS26: Belmont town, Mississippi | DT26: Belmont town | DU26: Mississippi | DV26: 1600000US2805100 | DX26: Arbela town, Missouri | DY26: Arbela town | DZ26: Missouri | EA26: 1600000US2901576 | EC26: Belfry CDP, Montana | ED26: Belfry CDP | EE26: Montana | EF26: 1600000US3004900 | EH26: Aten CDP, Nebraska | EI26: Aten CDP | EJ26: Nebraska | EK26: 1600000US3102480 | EM26: East Valley CDP, Nevada | EN26: East Valley CDP | EO26: Nevada | EP26: 1600000US3221520 | ER26: East Merrimack CDP, New Hampshire | ES26: East Merrimack CDP | ET26: New Hampshire | EU26: 1600000US3321780 | EW26: Avalon borough, New Jersey | EX26: Avalon borough | EY26: New Jersey | EZ26: 1600000US3402320 | FB26: Arroyo Seco CDP, New Mexico | FC26: Arroyo Seco CDP | FD26: New Mexico | FE26: 1600000US3505150 | FG26: Amsterdam city, New York | FH26: Amsterdam city | FI26: New York | FJ26: 1600000US3602066 | FL26: Atlantic Beach town, North Carolina | FM26: Atlantic Beach town | FN26: North Carolina | FO26: 1600000US3702500 | FQ26: Barney city, North Dakota | FR26: Barney city | FS26: North Dakota | FT26: 1600000US3804940 | FV26: Antwerp village, Ohio | FW26: Antwerp village | FX26: Ohio | FY26: 1600000US3902204 | GA26: Arcadia town, Oklahoma | GB26: Arcadia town | GC26: Oklahoma | GD26: 1600000US4002550 | GF26: Bayshore CDP, Oregon | GG26: Bayshore CDP | GH26: Oregon | GI26: 1600000US4104850 | GK26: Allison Park CDP, Pennsylvania | GL26: Allison Park CDP | GM26: Pennsylvania | GN26: 1600000US4202056 | GP26: BenÃ­tez comunidad, Puerto Rico | GQ26: BenÃ­tez comunidad | GR26: Puerto Rico | GS26: 1600000US7207496 | GU26: Pawtucket city, Rhode Island | GV26: Pawtucket city | GW26: Rhode Island | GX26: 1600000US4454640 | GZ26: Belton city, South Carolina | HA26: Belton city | HB26: South Carolina | HC26: 1600000US4505365 | HE26: Avon city, South Dakota | HF26: Avon city | HG26: South Dakota | HH26: 1600000US4602900 | HJ26: Beersheba Springs town, Tennessee | HK26: Beersheba Springs town | HL26: Tennessee | HM26: 1600000US4704240 | HO26: Allen city, Texas | HP26: Allen city | HQ26: Texas | HR26: 1600000US4801924 | HT26: Bonanza CDP, Utah | HU26: Bonanza CDP | HV26: Utah | HW26: 1600000US4906920 | HY26: Castleton CDP, Vermont | HZ26: Castleton CDP | IA26: Vermont | IB26: 1600000US5011875 | ID26: Atkins CDP, Virginia | IE26: Atkins CDP | IF26: Virginia | IG26: 1600000US5103512 | II26: Ashford CDP, Washington | IJ26: Ashford CDP | IK26: Washington | IL26: 1600000US5303005 | IN26: Beards Fork CDP, West Virginia | IO26: Beards Fork CDP | IP26: West Virginia | IQ26: 1600000US5405068 | IS26: Arena village, Wisconsin | IT26: Arena village | IU26: Wisconsin | IV26: 1600000US5502550 | IX26: Big Piney town, Wyoming | IY26: Big Piney town | IZ26: Wyoming | JA26: 1600000US5607060
A27: Mississippi | C27: Attalla city, Alabama | D27: Attalla city | E27: Alabama | F27: 1600000US0103028 | H27: Bear Creek CDP, Alaska | I27: Bear Creek CDP | J27: Alaska | K27: 1600000US0205585 | M27: Bear Flat CDP, Arizona | N27: Bear Flat CDP | O27: Arizona | P27: 1600000US0405450 | R27: Aubrey town, Arkansas | S27: Aubrey town | T27: Arkansas | U27: 1600000US0502680 | W27: Alpine Village CDP, California | X27: Alpine Village CDP | Y27: California | Z27: 1600000US0601228 | AB27: Avondale CDP, Colorado | AC27: Avondale CDP | AD27: Colorado | AE27: 1600000US0804165 | AG27: Cannondale CDP, Connecticut | AH27: Cannondale CDP | AI27: Connecticut | AJ27: 1600000US0911990 | AL27: Felton town, Delaware | AM27: Felton town | AN27: Delaware | AO27: 1600000US1026620 | AV27: Avalon CDP, Florida | AW27: Avalon CDP | AX27: Florida | AY27: 1600000US1202660 | BA27: Arlington city, Georgia | BB27: Arlington city | BC27: Georgia | BD27: 1600000US1302928 | BF27: Hanapepe CDP, Hawaii | BG27: Hanapepe CDP | BH27: Hawaii | BI27: 1600000US1511800 | BK27: Buhl city, Idaho | BL27: Buhl city | BM27: Idaho | BN27: 1600000US1610810 | BP27: Altona village, Illinois | BQ27: Altona village | BR27: Illinois | BS27: 1600000US1701140 | BU27: Austin city, Indiana | BV27: Austin city | BW27: Indiana | BX27: 1600000US1802800 | BZ27: Anamosa city, Iowa | CA27: Anamosa city | CB27: Iowa | CC27: 1600000US1901990 | CE27: Arma city, Kansas | CF27: Arma city | CG27: Kansas | CH27: 1600000US2002375 | CJ27: Beaver Dam city, Kentucky | CK27: Beaver Dam city | CL27: Kentucky | CM27: 1600000US2104654 | CO27: Baton Rouge city, Louisiana | CP27: Baton Rouge city | CQ27: Louisiana | CR27: 1600000US2205000 | CT27: Cape Neddick CDP, Maine | CU27: Cape Neddick CDP | CV27: Maine | CW27: 1600000US2310320 | CY27: Barclay town, Maryland | CZ27: Barclay town | DA27: Maryland | DB27: 1600000US2404250 | DD27: Bridgewater Town city, Massachusetts | DE27: Bridgewater Town city | DF27: Massachusetts | DG27: 1600000US2508130 | DI27: Athens village, Michigan | DJ27: Athens village | DK27: Michigan | DL27: 1600000US2603880 | DN27: Argyle city, Minnesota | DO27: Argyle city | DP27: Minnesota | DQ27: 1600000US2702134 | DS27: Belzoni city, Mississippi | DT27: Belzoni city | DU27: Mississippi | DV27: 1600000US2805140 | DX27: Arbyrd city, Missouri | DY27: Arbyrd city | DZ27: Missouri | EA27: 1600000US2901630 | EC27: Belgrade city, Montana | ED27: Belgrade city | EE27: Montana | EF27: 1600000US3004975 | EH27: Atkinson city, Nebraska | EI27: Atkinson city | EJ27: Nebraska | EK27: 1600000US3102550 | EM27: Elko city, Nevada | EN27: Elko city | EO27: Nevada | EP27: 1600000US3222500 | ER27: Enfield CDP, New Hampshire | ES27: Enfield CDP | ET27: New Hampshire | EU27: 1600000US3324260 | EW27: Avenel CDP, New Jersey | EX27: Avenel CDP | EY27: New Jersey | EZ27: 1600000US3402350 | FB27: Artesia city, New Mexico | FC27: Artesia city | FD27: New Mexico | FE27: 1600000US3505220 | FG27: Andes CDP, New York | FH27: Andes CDP | FI27: New York | FJ27: 1600000US3602121 | FL27: Aulander town, North Carolina | FM27: Aulander town | FN27: North Carolina | FO27: 1600000US3702580 | FQ27: Barton CDP, North Dakota | FR27: Barton CDP | FS27: North Dakota | FT27: 1600000US3805220 | FV27: Apple Creek village, Ohio | FW27: Apple Creek village | FX27: Ohio | FY27: 1600000US3902232 | GA27: Ardmore city, Oklahoma | GB27: Ardmore city | GC27: Oklahoma | GD27: 1600000US4002600 | GF27: Bayside Gardens CDP, Oregon | GG27: Bayside Gardens CDP | GH27: Oregon | GI27: 1600000US4104925 | GK27: Allport CDP, Pennsylvania | GL27: Allport CDP | GM27: Pennsylvania | GN27: 1600000US4202072 | GP27: Betances comunidad, Puerto Rico | GQ27: Betances comunidad | GR27: Puerto Rico | GS27: 1600000US7207668 | GU27: Providence city, Rhode Island | GV27: Providence city | GW27: Rhode Island | GX27: 1600000US4459000 | GZ27: Belvedere CDP, South Carolina | HA27: Belvedere CDP | HB27: South Carolina | HC27: 1600000US4505410 | HE27: Badger town, South Dakota | HF27: Badger town | HG27: South Dakota | HH27: 1600000US4603060 | HJ27: Bell Buckle town, Tennessee | HK27: Bell Buckle town | HL27: Tennessee | HM27: 1600000US4704460 | HO27: Allison CDP, Texas | HP27: Allison CDP | HQ27: Texas | HR27: 1600000US4802032 | HT27: Boulder town, Utah | HU27: Boulder town | HV27: Utah | HW27: 1600000US4907470 | HY27: Castleton Four Corners CDP, Vermont | HZ27: Castleton Four Corners CDP | IA27: Vermont | IB27: 1600000US5012062 | ID27: Atlantic CDP, Virginia | IE27: Atlantic CDP | IF27: Virginia | IG27: 1600000US5103528 | II27: Asotin city, Washington | IJ27: Asotin city | IK27: Washington | IL27: 1600000US5303075 | IN27: Beaver CDP, West Virginia | IO27: Beaver CDP | IP27: West Virginia | IQ27: 1600000US5405260 | IS27: Argonne CDP, Wisconsin | IT27: Argonne CDP | IU27: Wisconsin | IV27: 1600000US5502600 | IX27: Bondurant CDP, Wyoming | IY27: Bondurant CDP | IZ27: Wyoming | JA27: 1600000US5608365
A28: Missouri | C28: Auburn city, Alabama | D28: Auburn city | E28: Alabama | F28: 1600000US0103076 | H28: Beaver CDP, Alaska | I28: Beaver CDP | J28: Alaska | K28: 1600000US0205750 | M28: Beaver Dam CDP, Arizona | N28: Beaver Dam CDP | O28: Arizona | P28: 1600000US0405490 | R28: Augusta city, Arkansas | S28: Augusta city | T28: Arkansas | U28: 1600000US0502740 | W28: Alta CDP, California | X28: Alta CDP | Y28: California | Z28: 1600000US0601276 | AB28: Bark Ranch CDP, Colorado | AC28: Bark Ranch CDP | AD28: Colorado | AE28: 1600000US0804620 | AG28: Canton Valley CDP, Connecticut | AH28: Canton Valley CDP | AI28: Connecticut | AJ28: 1600000US0912370 | AL28: Fenwick Island town, Delaware | AM28: Fenwick Island town | AN28: Delaware | AO28: 1600000US1026880 | AV28: Ave Maria CDP, Florida | AW28: Ave Maria CDP | AX28: Florida | AY28: 1600000US1202677 | BA28: Arnoldsville city, Georgia | BB28: Arnoldsville city | BC28: Georgia | BD28: 1600000US1303124 | BF28: Hauula CDP, Hawaii | BG28: Hauula CDP | BH28: Hawaii | BI28: 1600000US1512400 | BK28: Burley city, Idaho | BL28: Burley city | BM28: Idaho | BN28: 1600000US1611260 | BP28: Alto Pass village, Illinois | BQ28: Alto Pass village | BR28: Illinois | BS28: 1600000US1701205 | BU28: Avilla town, Indiana | BV28: Avilla town | BW28: Indiana | BX28: 1600000US1802872 | BZ28: Anderson CDP, Iowa | CA28: Anderson CDP | CB28: Iowa | CC28: 1600000US1902035 | CE28: Asherville CDP, Kansas | CF28: Asherville CDP | CG28: Kansas | CH28: 1600000US2002600 | CJ28: Bedford city, Kentucky | CK28: Bedford city | CL28: Kentucky | CM28: 1600000US2104816 | CO28: Bawcomville CDP, Louisiana | CP28: Bawcomville CDP | CQ28: Louisiana | CR28: 1600000US2205105 | CT28: Caribou city, Maine | CU28: Caribou city | CV28: Maine | CW28: 1600000US2310565 | CY28: Barnesville town, Maryland | CZ28: Barnesville town | DA28: Maryland | DB28: 1600000US2404475 | DD28: Brockton city, Massachusetts | DE28: Brockton city | DF28: Massachusetts | DG28: 1600000US2509000 | DI28: Atlanta CDP, Michigan | DJ28: Atlanta CDP | DK28: Michigan | DL28: 1600000US2603920 | DN28: Arlington city, Minnesota | DO28: Arlington city | DP28: Minnesota | DQ28: 1600000US2702152 | DS28: Benndale CDP, Mississippi | DT28: Benndale CDP | DU28: Mississippi | DV28: 1600000US2805180 | DX28: Arcadia city, Missouri | DY28: Arcadia city | DZ28: Missouri | EA28: 1600000US2901648 | EC28: Belknap CDP, Montana | ED28: Belknap CDP | EE28: Montana | EF28: 1600000US3005050 | EH28: Atlanta village, Nebraska | EI28: Atlanta village | EJ28: Nebraska | EK28: 1600000US3102620 | EM28: Ely city, Nevada | EN28: Ely city | EO28: Nevada | EP28: 1600000US3223500 | ER28: Epping CDP, New Hampshire | ES28: Epping CDP | ET28: New Hampshire | EU28: 1600000US3324580 | EW28: Avon-by-the-Sea borough, New Jersey | EX28: Avon-by-the-Sea borough | EY28: New Jersey | EZ28: 1600000US3402440 | FB28: Atoka CDP, New Mexico | FC28: Atoka CDP | FD28: New Mexico | FE28: 1600000US3505430 | FG28: Andover village, New York | FH28: Andover village | FI28: New York | FJ28: 1600000US3602143 | FL28: Aurora town, North Carolina | FM28: Aurora town | FN28: North Carolina | FO28: 1600000US3702620 | FQ28: Bathgate city, North Dakota | FR28: Bathgate city | FS28: North Dakota | FT28: 1600000US3805260 | FV28: Apple Valley CDP, Ohio | FW28: Apple Valley CDP | FX28: Ohio | FY28: 1600000US3902266 | GA28: Arkoma town, Oklahoma | GB28: Arkoma town | GC28: Oklahoma | GD28: 1600000US4002650 | GF28: Beatty CDP, Oregon | GG28: Beatty CDP | GH28: Oregon | GI28: 1600000US4105150 | GK28: Almedia CDP, Pennsylvania | GL28: Almedia CDP | GM28: Pennsylvania | GN28: 1600000US4202088 | GP28: BoquerÃ³n comunidad (Cabo Rojo Municipio), Puerto Rico | GQ28: BoquerÃ³n comunidad (Cabo Rojo Municipio) | GR28: Puerto Rico | GS28: 1600000US7207969 | GU28: Quonochontaug CDP, Rhode Island | GV28: Quonochontaug CDP | GW28: Rhode Island | GX28: 1600000US4460260 | GZ28: Ben Avon CDP, South Carolina | HA28: Ben Avon CDP | HB28: South Carolina | HC28: 1600000US4505545 | HE28: Baltic city, South Dakota | HF28: Baltic city | HG28: South Dakota | HH28: 1600000US4603380 | HJ28: Belle Meade city, Tennessee | HK28: Belle Meade city | HL28: Tennessee | HM28: 1600000US4704620 | HO28: Alma town, Texas | HP28: Alma town | HQ28: Texas | HR28: 1600000US4802044 | HT28: Bountiful city, Utah | HU28: Bountiful city | HV28: Utah | HW28: 1600000US4907690 | HY28: Cavendish CDP, Vermont | HZ28: Cavendish CDP | IA28: Vermont | IB28: 1600000US5012175 | ID28: Augusta Springs CDP, Virginia | IE28: Augusta Springs CDP | IF28: Virginia | IG28: 1600000US5103608 | II28: Auburn city, Washington | IJ28: Auburn city | IK28: Washington | IL28: 1600000US5303180 | IN28: Beckley city, West Virginia | IO28: Beckley city | IP28: West Virginia | IQ28: 1600000US5405332 | IS28: Argyle village, Wisconsin | IT28: Argyle village | IU28: Wisconsin | IV28: 1600000US5502650 | IX28: Boulder CDP, Wyoming | IY28: Boulder CDP | IZ28: Wyoming | JA28: 1600000US5609235
A29: Montana | C29: Autaugaville town, Alabama | D29: Autaugaville town | E29: Alabama | F29: 1600000US0103220 | H29: Beluga CDP, Alaska | I29: Beluga CDP | J29: Alaska | K29: 1600000US0206245 | M29: Beaver Valley CDP, Arizona | N29: Beaver Valley CDP | O29: Arizona | P29: 1600000US0405495 | R29: Austin city, Arkansas | S29: Austin city | T29: Arkansas | U29: 1600000US0502860 | W29: Altadena CDP, California | X29: Altadena CDP | Y29: California | Z29: 1600000US0601290 | AB29: Basalt town, Colorado | AC29: Basalt town | AD29: Colorado | AE29: 1600000US0804935 | AG29: Cheshire Village CDP, Connecticut | AH29: Cheshire Village CDP | AI29: Connecticut | AJ29: 1600000US0914200 | AL29: Frankford town, Delaware | AM29: Frankford town | AN29: Delaware | AO29: 1600000US1028310 | AV29: Aventura city, Florida | AW29: Aventura city | AX29: Florida | AY29: 1600000US1202681 | BA29: Ashburn city, Georgia | BB29: Ashburn city | BC29: Georgia | BD29: 1600000US1303236 | BF29: Hawaiian Acres CDP, Hawaii | BG29: Hawaiian Acres CDP | BH29: Hawaii | BI29: 1600000US1512450 | BK29: Butte City city, Idaho | BL29: Butte City city | BM29: Idaho | BN29: 1600000US1611710 | BP29: Alvin village, Illinois | BQ29: Alvin village | BR29: Illinois | BS29: 1600000US1701242 | BU29: Avoca CDP, Indiana | BV29: Avoca CDP | BW29: Indiana | BX29: 1600000US1802890 | BZ29: Andover city, Iowa | CA29: Andover city | CB29: Iowa | CC29: 1600000US1902080 | CE29: Ashland city, Kansas | CF29: Ashland city | CG29: Kansas | CH29: 1600000US2002675 | CJ29: Beech Grove CDP, Kentucky | CK29: Beech Grove CDP | CL29: Kentucky | CM29: 1600000US2104978 | CO29: Bayou Blue CDP, Louisiana | CP29: Bayou Blue CDP | CQ29: Louisiana | CR29: 1600000US2205175 | CT29: Casco CDP, Maine | CU29: Casco CDP | CV29: Maine | CW29: 1600000US2311090 | CY29: Barrelville CDP, Maryland | CZ29: Barrelville CDP | DA29: Maryland | DB29: 1600000US2404525 | DD29: Brookfield CDP, Massachusetts | DE29: Brookfield CDP | DF29: Massachusetts | DG29: 1600000US2509070 | DI29: Atlantic Mine CDP, Michigan | DJ29: Atlantic Mine CDP | DK29: Michigan | DL29: 1600000US2603960 | DN29: Ashby city, Minnesota | DO29: Ashby city | DP29: Minnesota | DQ29: 1600000US2702422 | DS29: Benoit town, Mississippi | DT29: Benoit town | DU29: Mississippi | DV29: 1600000US2805220 | DX29: Archie city, Missouri | DY29: Archie city | DZ29: Missouri | EA29: 1600000US2901702 | EC29: Belt town, Montana | ED29: Belt town | EE29: Montana | EF29: 1600000US3005275 | EH29: Auburn city, Nebraska | EI29: Auburn city | EJ29: Nebraska | EK29: 1600000US3102655 | EM29: Empire CDP, Nevada | EN29: Empire CDP | EO29: Nevada | EP29: 1600000US3223700 | ER29: Exeter CDP, New Hampshire | ES29: Exeter CDP | ET29: New Hampshire | EU29: 1600000US3325300 | EW29: Barclay CDP, New Jersey | EX29: Barclay CDP | EY29: New Jersey | EZ29: 1600000US3402880 | FB29: Aztec city, New Mexico | FC29: Aztec city | FD29: New Mexico | FE29: 1600000US3505780 | FG29: Angelica village, New York | FH29: Angelica village | FI29: New York | FJ29: 1600000US3602176 | FL29: Autryville town, North Carolina | FM29: Autryville town | FN29: North Carolina | FO29: 1600000US3702700 | FQ29: Beach city, North Dakota | FR29: Beach city | FS29: North Dakota | FT29: 1600000US3805420 | FV29: Aquilla village, Ohio | FW29: Aquilla village | FX29: Ohio | FY29: 1600000US3902274 | GA29: Armstrong town, Oklahoma | GB29: Armstrong town | GC29: Oklahoma | GD29: 1600000US4002750 | GF29: Beaver CDP, Oregon | GG29: Beaver CDP | GH29: Oregon | GI29: 1600000US4105200 | GK29: Alsace Manor CDP, Pennsylvania | GL29: Alsace Manor CDP | GM29: Pennsylvania | GN29: 1600000US4202128 | GP29: BoquerÃ³n comunidad (Las Piedras Municipio), Puerto Rico | GQ29: BoquerÃ³n comunidad (Las Piedras Municipio) | GR29: Puerto Rico | GS29: 1600000US7208099 | GU29: Tiverton CDP, Rhode Island | GV29: Tiverton CDP | GW29: Rhode Island | GX29: 1600000US4470700 | GZ29: Bennettsville city, South Carolina | HA29: Bennettsville city | HB29: South Carolina | HC29: 1600000US4505680 | HE29: Bancroft town, South Dakota | HF29: Bancroft town | HG29: South Dakota | HH29: 1600000US4603420 | HJ29: Bells city, Tennessee | HK29: Bells city | HL29: Tennessee | HM29: 1600000US4704720 | HO29: Alpine city, Texas | HP29: Alpine city | HQ29: Texas | HR29: 1600000US4802104 | HT29: Brian Head town, Utah | HU29: Brian Head town | HV29: Utah | HW29: 1600000US4908020 | HY29: Chelsea CDP, Vermont | HZ29: Chelsea CDP | IA29: Vermont | IB29: 1600000US5013450 | ID29: Austinville CDP, Virginia | IE29: Austinville CDP | IF29: Virginia | IG29: 1600000US5103656 | II29: Bainbridge Island city, Washington | IJ29: Bainbridge Island city | IK29: Washington | IL29: 1600000US5303736 | IN29: Beech Bottom village, West Virginia | IO29: Beech Bottom village | IP29: West Virginia | IQ29: 1600000US5405452 | IS29: Arkansaw CDP, Wisconsin | IT29: Arkansaw CDP | IU29: Wisconsin | IV29: 1600000US5502700 | IX29: Boulder Flats CDP, Wyoming | IY29: Boulder Flats CDP | IZ29: Wyoming | JA29: 1600000US5609307
